Workbook

Sheet Notes
A1: NHS England - CCG allocations 2019/20 to 2023/24
A2: Technical Guidance Documentation
A3: Minimum allocation for primary medical care services
A6: N - Minimum growth (Primary medical care)
A7: Description of worksheets in this document
A9: This workbook performs the calculations necessary to set the
A10: minimum recurrent revenue allocation for primary care medical services.
A11: This calculation feeds in to the total place based pace of change in workbook Q
A13: Please refer to the Technical Guide published alongside this spreadsheet for further information
A15: Pace of change parameters | H15: inputs
A16: A series of parameters and switches to tune pace of change policy
A18: Rows 8-13 provide basic information on national population growth and GDP
A19: deflators to inform setting growth limits.
A21: Rows 15-23 set the parameters for per capita growth rates. The minimum growth
A22: is set to the reference growth. The recommended earliest point for the end of
A23: transition ensures that pace of change preserves the order of the initial DfTs.
A25: Row 25 set the minimum programme growth.
A27: Rows 27 and 28 provide switches for turning on and off different parts of the pace of
A28: change policy.
A30: Rows 30-36 give a summary of the performance of the pace of change choices
A31: to support the process of choosing these parameters.
A33: Row 37 sets the minimum target closing DfT.
A35: VBA code | H35: calculations
A36: User defined Visual Basic functions used to set per capita growth
A37: Calculations are performed using this VBA code (comments describe process)
A39: PCM 2019-20 | H39: outputs
A40: Shows the calculation of the minimum allocation for 2019-20
A41: Baselines, target values and populations are brought in from workbook M.
A43: Columns Q-W applies per capita growth based on opening DfT per capita,
A44: higher for CCGs that are furthest below target, and lower for CCGs that
A45: are furthest above target.
A47: Columns X-Z apply a minimum programme [total allocation] growth.
A49: The minimum allocation is in column AA, and target allocation in column AF.
A50: The minimum allocation Closing DfT is in column AH.
A52: PCM 2020-21 | H52: outputs
A53: Shows the calculation of the minimum allocation for 2020-21
A54: Baselines, target values and populations are brought in from workbook M.
A56: PCM 2021-22 | H56: outputs
A57: Shows the calculation of the minimum allocation for 2021-22
A58: Baselines, target values and populations are brought in from workbook M.
A60: PCM 2022-23 | H60: outputs
A61: Shows the calculation of the minimum allocation for 2022-23
A62: Baselines, target values and populations are brought in from workbook M.
A64: PCM 2023-24 | H64: outputs
A65: Shows the calculation of the minimum allocation for 2023-24
A66: Baselines, target values and populations are brought in from workbook M.
A68: Additional Notes: GP Contract Adjustments
A69: Further adjustments which affect CCG Primary medical care allocations due to decisions on
A70: the GP contract1 were not finalised in time for the CCG allocations to take these into account.
A72: The overall effect to CCGs of funding changes to the GP contract2, due to the introduction of
A73: the new centrally-funded Clinical Negligence Scheme for General Practice (CNSGP) which will
A74: start from April 2019, are outlined in spreadsheet K2.
A76: 1 www.england.nhs.uk/publication/gms-contract-settlement-and-allocation-changes-2019-20-to-2023-24-letter-from-ed-waller/
A77: 2 www.england.nhs.uk/publication/gp-contract-five-year-framework/
A81: See also Technical Guidance Documentation
A82: www.england.nhs.uk/allocations
A84: For queries please contact
A85: england.revenue-allocations@nhs.net

Sheet Pace of Change Parameters
A1: NHS England - 2019-20 to 2023-24 Allocations
A2: Minimum allocations for primary care medical services
A3: Pace of change parameters | L3: Illustration of the pace of change parameters for 2019-20
B5: Primary medical care
B7: GDP deflator and Population Growth | D7: 2018-19 | E7: 2019-20 | F7: 2020-21 | G7: 2021-22 | H7: 2022-23 | I7: 2023-24
B8: GDP deflator | C8: % | E8: 0.01789380137 | F8: 0.01942659196 | G8: 0.01925030241 | H8: 0.01940538178 | I8: 0.01895821993
B9: Population growth | C9: % | E9: 0.006220598103 | F9: 0.005977095412 | G9: 0.005599747363 | H9: 0.005346112538 | I9: 0.005056217038
B10: Reference growth | C10: % | E10: 0.01160103787 | F10: 0.01336958526 | G10: 0.01357454105 | H10: 0.01398450649 | I10: 0.01383206497
B11: Quanta
B12: Quanta | C12: £'000 | D12: 7758002.56 | E12: 8260451.836 | F12: 8626712.608 | G12: 9091879.716 | H12: 9464456.982 | I12: 9850739.765
B13: Quantum growth % | C13: % | E13: 0.06476528871 | F13: 0.04433907243 | G13: 0.05392171144 | H13: 0.04097912403 | I13: 0.04081404599
B14: Per Capita
B15: Maximum per capita growth | C15: % | E15: 0.1691 | F15: 0.0439 | G15: 0.0531 | H15: 0.0401 | I15: 0.04
A16: Per capita growth based on opening DfT per capita | B16: Start of first transition | C16: % | E16: -0.1292944949 | F16: -0.04636363699 | G16: -0.04227897326 | H16: -0.03837465166 | I16: -0.03566531494
B17: End of first transition | C17: % | E17: -0.025 | F17: 0 | G17: 0 | H17: 0 | I17: 0
B18: Start of second transition | C18: % | E18: 0.05 | F18: 0.05 | G18: 0.05 | H18: 0.05 | I18: 0.05
B19: End of second transition | C19: % | E19: 0.1 | F19: 0.1 | G19: 0.1 | H19: 0.1 | I19: 0.1
B20: Default per cap growth | C20: % | E20: 0.0545 | F20: 0.0344 | G20: 0.0446 | H20: 0.0325 | I20: 0.0328
B21: Average per cap growth | C21: % | E21: 0.05818275905 | F21: 0.03813404619 | G21: 0.04805288009 | H21: 0.03544352641 | I21: 0.03557793917
B22: Gap from floor to avg per cap growth | C22: % | E22: 0.0125 | F22: 0.0125 | G22: 0.0125 | H22: 0.0125 | I22: 0.0125
B23: Floor per cap growth | C23: % | E23: 0.04568275905 | F23: 0.02563404619 | G23: 0.03555288009 | H23: 0.02294352641 | I23: 0.02307793917
B24: Programme
B25: Minimum programme growth % | E25: 0.01789380137 | F25: 0.01942659196 | G25: 0.01925030241 | H25: 0.01940538178 | I25: 0.01895821993
B26: Switches
B27: Per capita switch | E27: 1 | F27: 1 | G27: 1 | H27: 1 | I27: 1
B28: PoC switch | E28: 1 | F28: 1 | G28: 1 | H28: 1 | I28: 1
B29: Performance
B30: Balance | C30: £'000 | E30: 7991.835612 | F30: 8489.607871 | G30: 9010.715767 | H30: 9697.98233 | I30: 10292.76485
B31: Balance / Quanta | C31: % | E31: 0.0009674816549 | F31: 0.0009841069544 | G31: 0.0009910729188 | H31: 0.00102467393 | I31: 0.001044872273
B32: Minimum opening DfT | C32: % | E32: 0 | F32: 0 | G32: 0 | H32: 0 | I32: 0
B33: Minimum closing DfT | C33: % | E33: -0.04991524835 | F33: -0.04615728628 | G33: -0.04246998271 | H33: -0.0387743695 | I33: -0.03502185826
B34: Maximum closing DfT | C34: % | E34: 0.244065467 | F34: 0.2309812416 | G34: 0.2187593172 | H34: 0.2066257835 | I34: 0.1951996099
B35: No. of CCGs < -5% closing DfT | E35: 0 | F35: 0 | G35: 0 | H35: 0 | I35: 0
B36: No. of CCGs < -2.5% closing DfT | E36: 50 | F36: 42 | G36: 37 | H36: 30 | I36: 21
B37: Target min DfT | C37: % | E37: -0.0499 | F37: -0.046175 | G37: -0.04245 | H37: -0.038725 | I37: -0.035

Sheet VBA Code
A1: NHS England - 2019-20 to 2023-24 Allocations
A2: Minimum allocations for primary care medical services
A3: User defined Visual Basic functions used to set per capita growth
A5: # These functions are shown in the order they are used in the minimum allocation calculations
A7: # Function MinGrowthPerhead sets minimum per capita growth
A8: # Inputs are taken from the minimum allocation worksheet and the pace of change parameters
A9: # X is the opening DfT per capita, taken from the minimum allocation worksheet
A10: # minval is 0
A11: # maxval is 1
A12: # RampStart is start of the second transition ( 5% over opening target)
A13: # RampEnd is the end of the second transition (10% over opening target)
A14: # HigherRate is the default per cap growth taken from the pace of change parameters
A15: # LowerRate is the floor per cap growth taken from the pace of change parameters
B17: Function MinGrowthPerHead(X, minval, maxval, RampStart, RampEnd, HigherRate, LowerRate)
C18: Dim a, b As Double
A19: # a is the transition ranging from minval = 0 (where opening DfT per capita >= 10%) to maxval = 1 (where opening DfT per capita <= 5%)
C20: a = MinMaxRamp(X, minval, maxval, RampStart, RampEnd)
C21: b = 1 - a
A22: # minimum growth per head is weighted average of the growth rates
C23: MinGrowthPerHead = a * HigherRate + b * LowerRate
B24: End Function
A26: # Function MinMaxRamp sets transition
A27: # X is opening DfT per capita, from the minimum allocation worksheet
A28: # minval is 0
A29: # maxval is 1
A30: # RampStart is start of the second transition ( 5% over opening target)
A31: # RampEnd is the end of the second transition (10% over opening target)
B33: Function MinMaxRamp(X, minval, maxval, RampStart, RampEnd)
C34: If X < RampStart Then
C35: MinMaxRamp = maxval
C36: ElseIf X > RampEnd Then
C37: MinMaxRamp = minval
C38: Else
C39: MinMaxRamp = (X - RampEnd) / (RampStart - RampEnd)
C40: End If
B41: End Function
A43: # Function NewMinGrowthPerHead sets higher per capita growth to ensure CCGs are within target minimum closing DfT
A44: # Inputs are taken from the minimum allocation sheet and the pace of change parameters
A45: # X is opening DfT per capita, from the minimum allocation worksheet
A46: # minDfT is the Target minimum closing DfT (increasing from -4.99% in 2019-20 to -3.50% in 2023/24), taken from the pace of change parameters worksheet
A47: # QuantumGrowth is quantum growth taken from the pace of change parameters worksheet
A48: # DefaultGrowth is the default per cap growth taken from pace of change parameters worksheet
A49: # RampEnd is end of first transition (-2.5% in 2019-20 and 0% thereafter)
A50: # ClosingTargetPerHead is closing target per capita
A51: # BaselinePerHead is baseline allocation per capita
A52: # Transition (in range 0 to 1) relates to first transition
A53: # lowestOpenDfT is the minimum CCG opening DfT per capita
B55: Function NewMinGrowthPerHead(X As Double, minDfT As Double, QuantumGrowth As Double, DefaultGrowth As Double, RampEnd As Double, ClosingTargetPerHead As Double, BaselinePerHead As Double, Transition As Double, lowestOpenDfT As Double) As Double
C56: Dim GrowthDiff As Double
C57: Dim gmax As Double
C58: Dim adjlowestopenDfT As Double
C60: GrowthDiff = DefaultGrowth - QuantumGrowth
A61: # where opening DfT per capita is below minimum closing DfT, apply sufficient per capita growth to move closing DfT to minimum closing DfT
C62: If X < minDfT Then
C63: NewMinGrowthPerHead = (ClosingTargetPerHead * (1 + minDfT) / BaselinePerHead) - 1
A64: # where opening DfT per capita is between minimum closing DfT and end of first transition
A65: # apply per capita growth based on opening DfT per capita position on first transition
C66: ElseIf X < RampEnd Then
A67: # set adjusted lowest opening DfT as start of first transition
C68: If lowestOpenDfT < minDfT Then
C69: adjlowestopenDfT = minDfT
C70: Else
C71: adjlowestopenDfT = lowestOpenDfT
C72: End If
A73: # per capita growth rate to apply to start of first transition
A74: # default per cap growth applied to end of first transition
A75: # per capita growth rate weighted average of two rates based on transition position
C76: gmax = ((1 + minDfT) * (1 + QuantumGrowth) / (1 + adjlowestopenDfT)) - 1
C77: NewMinGrowthPerHead = (1 - Transition) * DefaultGrowth + Transition * gmax
C78: Else
C79: NewMinGrowthPerHead = 0
C80: End If
B82: End Function

Sheet Primary medical care 2019-20
A1: NHS England - 2019-20 to 2023-24 Allocations | E1: 2018-19 | J1: 2019-20 | L1: 0.06476528871 | P1: -0.1292944949 | Q1: 0.05 | R1: 0.0545 | T1: -0.1292944949 | U1: 0.0545 | X1: 0.01789380137 | AA1: 1.017893801 | AI1: -0.04991524835
A2: Minimum allocations for primary medical care services | P2: -0.0499 | Q2: 0.1 | R2: 0.04568275905 | S2: 1 | T2: -0.025 | U2: 0.1691 | Z2: 1 | AI2: 0.244065467
A3: 2019-20 minimum allocation calculations | U3: 0.1146 | AI3: 0
L4: 138.9539238 | AA4: 7991.835612 | AI4: 50
B5: England | E5: 7758002.56 | F5: 59079904.56 | G5: 131.3137287 | J5: 7758002.56 | K5: 59447416.9 | L5: 130.5019287 | M5: 0.006220598103 | AA5: 8252460 | AF5: 8260451.836 | AH5: -0.0009674816549
E6: Baseline | J6: Opening Target | O6: Distance from Target | Q6: Minimum per capita growth | T6: Per capita pace of change | X6: Minimum programme | AF6: Closing target
A7: CCG | B7: Clinical Commissioning Group (192) | E7: Baseline £000 | F7: Estimated Population | G7: Allocation per capita £ | H7: Closing DfT | J7: Opening Target £000 | K7: Estimated Population | L7: Opening Target per capita £ | M7: population growth rate % | O7: DFT (total allocation) | P7: DFT (per capita) | Q7: Apply minimum per capita growth [programme] | R7: Apply minimum per capita growth [per capita] | S7: Allocation after min per capita growth £000 | T7: First Transition position | U7: Growth on per capita parameters [programme] | V7: Growth on per capita parameters [per capita] | W7: Allocation after per capita p-o-c | X7: Apply minimum programme growth [programme] | Y7: Apply minimum programme growth [per capita] | Z7: Allocation after minimum programme growth | AA7: Minimum allocation £000 | AB7: Minimum allocation per head £ | AC7: Growth after rounding | AD7: Per capita growth after rounding | AF7: Target allocations from the fair shares formula £000 | AG7: Target per head | AH7: DFT (total allocation) | AI7: DFT (per capita)
A9: 00C | B9: NHS Darlington CCG | E9: 14557 | F9: 108354.6675 | G9: =E9/F9*1000 -> 134.3458509 | H9: 0.0188906055 | J9: 14227.43891 | K9: 108392.1875 | L9: =J9/K9*1000 -> 131.2588964 | M9: =K9/F9-1 -> 0.0003462704506 | O9: =E9/J9-1 -> 0.02316376805 | P9: =G9/L9-1 -> 0.02351805943 | Q9: =(1+M9)*(1+R9)-1 -> 0.05486514219 | R9: =MinGrowthPerHead(P9,0,1,$Q$1,$Q$2,$R$1,$R$2) -> 0.0545 | S9: =(1+IF($S$2=1,Q9,0))*$E9 -> 15355.67187 | T9: =MinMaxRamp(P9,0,1,$P$2,$T$2) -> 0 | U9: =(1+M9)*(1+V9)-1 -> 0.05486514219 | V9: =MAX(R9,NewMinGrowthPerHead(P9,$P$2,$L$1,$U$1,$T$2,AG9,G9,T9, $P$1)) -> 0.0545 | W9: =(1+IF($S$2=1,U9,0))*$E9 -> 15355.67187 | X9: =MAX(U9,$X$1) -> 0.05486514219 | Y9: =(1+X9)/(1+M9) - 1 -> 0.0545 | Z9: =(1+IF($Z$2=1,X9,0))*$E9 -> 15355.67187 | AA9: =IF(ROUND(Z9,0)/E9>$AA$1,ROUND(Z9,0),ROUNDUP(Z9,0)) -> 15356 | AB9: =AA9/K9*1000 -> 141.670727 | AC9: =AA9/E9-1 -> 0.0548876829 | AD9: =AB9/G9-1 -> 0.05452253291 | AF9: 15148.88309 | AG9: =AF9/K9*1000 -> 139.7599167 | AH9: =AA9/AF9-1 -> 0.01367209088 | AI9: =AB9/AG9-1 -> 0.01367209088
A10: 00D | B10: NHS Durham Dales, Easington and Sedgefield CCG | E10: 44037 | F10: 292189.8361 | G10: =E10/F10*1000 -> 150.7136613 | H10: 0.07466743824 | J10: 40875.31941 | K10: 293122.5 | L10: =J10/K10*1000 -> 139.447908 | M10: =K10/F10-1 -> 0.00319197941 | O10: =E10/J10-1 -> 0.07734937946 | P10: =G10/L10-1 -> 0.08078825649 | Q10: =(1+M10)*(1+R10)-1 -> 0.0524192624 | R10: =MinGrowthPerHead(P10,0,1,$Q$1,$Q$2,$R$1,$R$2) -> 0.04907065048 | S10: =(1+IF($S$2=1,Q10,0))*$E10 -> 46345.38706 | T10: =MinMaxRamp(P10,0,1,$P$2,$T$2) -> 0 | U10: =(1+M10)*(1+V10)-1 -> 0.0524192624 | V10: =MAX(R10,NewMinGrowthPerHead(P10,$P$2,$L$1,$U$1,$T$2,AG10,G10,T10, $P$1)) -> 0.04907065048 | W10: =(1+IF($S$2=1,U10,0))*$E10 -> 46345.38706 | X10: =MAX(U10,$X$1) -> 0.0524192624 | Y10: =(1+X10)/(1+M10) - 1 -> 0.04907065048 | Z10: =(1+IF($Z$2=1,X10,0))*$E10 -> 46345.38706 | AA10: 46345 | AB10: 158.1079583 | AC10: 0.05241047301 | AD10: 0.04906188906 | AF10: 43522.62127 | AG10: 148.479292 | AH10: =AA10/AF10-1 -> 0.06484854649 | AI10: 0.06484854649
A11: 00J | B11: NHS North Durham CCG | E11: 34457 | F11: 259367.9209 | G11: 132.8498909 | H11: 0.04208883447 | J11: 32970.4028 | K11: 260056.4375 | L11: 126.7817214 | M11: 0.002654594289 | O11: 0.04508883947 | P11: 0.04786312634 | Q11: 0.05729926968 | R11: 0.0545 | S11: 36431.36094 | T11: 0 | U11: 0.05729926968 | V11: 0.0545 | W11: 36431.36094 | X11: 0.05729926968 | Y11: 0.0545 | Z11: 36431.36094 | AA11: 36431 | AB11: 140.0888221 | AC11: 0.05728879473 | AD11: 0.05448955279 | AF11: 35105.74046 | AG11: 134.9927762 | AH11: 0.0377505082 | AI11: 0.0377505082
A12: 00K | B12: NHS Hartlepool and Stockton-on-Tees CCG | E12: 40719 | F12: 297298.9188 | G12: 136.9631621 | H12: -0.01715160081 | J12: 41292.35288 | K12: 298132.2188 | L12: 138.5034903 | M12: 0.002802902699 | O12: -0.01388520733 | P12: -0.01112122351 | Q12: 0.0574556609 | R12: 0.0545 | S12: 43058.53706 | T12: 0 | U12: 0.0574556609 | V12: 0.0545 | W12: 43058.53706 | X12: 0.0574556609 | Y12: 0.0545 | Z12: 43058.53706 | AA12: 43059 | AB12: 144.4292072 | AC12: 0.05746703013 | AD12: 0.05451133746 | AF12: 43966.66404 | AG12: 147.4737089 | AH12: -0.02064436901 | AI12: -0.02064436901
A13: 00L | B13: NHS Northumberland CCG | E13: 44534 | F13: 325418 | G13: 136.85168 | H13: 0.01722001842 | J13: 43671.13414 | K13: 325474.5938 | L13: 134.1767836 | M13: 0.0001739109392 | O13: 0.0197582654 | P13: 0.01993561251 | Q13: 0.05468338909 | R13: 0.0545 | S13: 46969.27005 | T13: 0 | U13: 0.05468338909 | V13: 0.0545 | W13: 46969.27005 | X13: 0.05468338909 | Y13: 0.0545 | Z13: 46969.27005 | AA13: 46969 | AB13: 144.3092668 | AC13: 0.05467732519 | AD13: 0.05449393716 | AF13: 46499.50775 | AG13: 142.8667818 | AH13: 0.01009671436 | AI13: 0.01009671436
A14: 00M | B14: NHS South Tees CCG | E14: 44495 | F14: 296987.7526 | G14: 149.820993 | H14: 0.0007538280752 | J14: 44215.41608 | K14: 297279.8125 | L14: 148.7333287 | M14: 0.0009834071497 | O14: 0.006323222617 | P14: 0.007312848069 | Q14: 0.05553700284 | R14: 0.0545 | S14: 46966.11894 | T14: 0 | U14: 0.05553700284 | V14: 0.0545 | W14: 46966.11894 | X14: 0.05553700284 | Y14: 0.0545 | Z14: 46966.11894 | AA14: 46966 | AB14: 157.985837 | AC14: 0.0555343297 | AD14: 0.05449732949 | AF14: 47079.04027 | AG14: 158.3660857 | AH14: -0.0024010742 | AI14: -0.0024010742
A15: 00N | B15: NHS South Tyneside CCG | E15: 21917 | F15: 157204.2485 | G15: 139.4173517 | H15: 0.01132828254 | J15: 21556.46001 | K15: 157356.1406 | L15: 136.9915399 | M15: 0.0009662085552 | O15: 0.01672538022 | P15: 0.01770774898 | Q15: 0.05551886692 | R15: 0.0545 | S15: 23133.80701 | T15: 0 | U15: 0.05551886692 | V15: 0.0545 | W15: 23133.80701 | X15: 0.05551886692 | Y15: 0.0545 | Z15: 23133.80701 | AA15: 23134 | AB15: 147.0168238 | AC15: 0.05552767258 | AD15: 0.05450879716 | AF15: 22952.57037 | AG15: 145.8638365 | AH15: 0.007904545363 | AI15: 0.007904545363
A16: 00P | B16: NHS Sunderland CCG | E16: 40788 | F16: 284072.0813 | G16: 143.5832758 | H16: 0.03353655306 | J16: 39250.40781 | K16: 284309.3125 | L16: 138.0553013 | M16: 0.0008351092479 | O16: 0.0391739162 | P16: 0.04004173995 | Q16: 0.0553806227 | R16: 0.0545 | S16: 43046.86484 | T16: 0 | U16: 0.0553806227 | V16: 0.0545 | W16: 43046.86484 | X16: 0.0553806227 | Y16: 0.0545 | Z16: 43046.86484 | AA16: 43047 | AB16: 151.4090398 | AC16: 0.05538393645 | AD16: 0.05450331098 | AF16: 41792.47181 | AG16: 146.9964928 | AH16: 0.03001804244 | AI16: 0.03001804244
A17: 00Q | B17: NHS Blackburn with Darwen CCG | E17: 24176 | F17: 175120.7517 | G17: 138.0533133 | H17: 0.02387195838 | J17: 23469.99171 | K17: 175157.5156 | L17: 133.9936321 | M17: 0.0002099346631 | O17: 0.03008131838 | P17: 0.03029756815 | Q17: 0.0547213761 | R17: 0.0545 | S17: 25498.94399 | T17: 0 | U17: 0.0547213761 | V17: 0.0545 | W17: 25498.94399 | X17: 0.0547213761 | Y17: 0.0545 | Z17: 25498.94399 | AA17: 25499 | AB17: 145.5775386 | AC17: 0.05472369292 | AD17: 0.05450231633 | AF17: 24990.0325 | AG17: 142.6717684 | AH17: 0.02036682041 | AI17: 0.02036682041
A18: 00R | B18: NHS Blackpool CCG | E18: 25836 | F18: 173468.5012 | G18: 148.9377024 | H18: -0.1354148529 | J18: 29608.86526 | K18: 173096.5469 | L18: 171.0540493 | M18: -0.002144218094 | O18: -0.1274235006 | P18: -0.1292944949 | Q18: 0.05223892202 | R18: 0.0545 | S18: 27185.64479 | T18: 1 | U18: 0.1593636793 | V18: 0.1618549497 | W18: 29953.32002 | X18: 0.1593636793 | Y18: 0.1618549497 | Z18: 29953.32002 | AA18: 29953 | AB18: 173.0421579 | AC18: 0.1593512928 | AD18: 0.1618425366 | AF18: 31526.49197 | AG18: 182.1324142 | AH18: -0.0499101508 | AI18: -0.0499101508
A19: 00T | B19: NHS Bolton CCG | E19: 41048 | F19: 309358.2469 | G19: 132.6875892 | H19: -0.008656623174 | J19: 41293.19452 | K19: 310601.6875 | L19: 132.9458151 | M19: 0.00401941944 | O19: -0.005937891784 | P19: -0.001942339222 | Q19: 0.0587384778 | R19: 0.0545 | S19: 43459.09704 | T19: 0 | U19: 0.0587384778 | V19: 0.0545 | W19: 43459.09704 | X19: 0.0587384778 | Y19: 0.0545 | Z19: 43459.09704 | AA19: 43459 | AB19: 139.9187504 | AC19: 0.05873611382 | AD19: 0.05449764548 | AF19: 43967.56019 | AG19: 141.5560892 | AH19: -0.01156671381 | AI19: -0.01156671381
A20: 00V | B20: NHS Bury CCG | E20: 26473 | F20: 204179.5007 | G20: 129.6555232 | H20: 0.00272594346 | J20: 26329.62102 | K20: 204868.2812 | L20: 128.5197536 | M20: 0.003373406807 | O20: 0.005445539075 | P20: 0.0088373159 | Q20: 0.05805725748 | R20: 0.0545 | S20: 28009.94978 | T20: 0 | U20: 0.05805725748 | V20: 0.0545 | W20: 28009.94978 | X20: 0.05805725748 | Y20: 0.0545 | Z20: 28009.94978 | AA20: 28010 | AB20: 136.7219944 | AC20: 0.05805915461 | AD20: 0.05450189075 | AF20: 28034.86653 | AG20: 136.8433725 | AH20: -0.0008869857421 | AI20: -0.0008869857421
A21: 00X | B21: NHS Chorley and South Ribble CCG | E21: 22035 | F21: 183604.5844 | G21: 120.0133432 | H21: -0.01655503707 | J21: 22475.45842 | K21: 184909.5625 | L21: 121.5483835 | M21: 0.007107546655 | O21: -0.01959730532 | P21: -0.01262904743 | Q21: 0.06199490795 | R21: 0.0545 | S21: 23401.0578 | T21: 0 | U21: 0.06199490795 | V21: 0.0545 | W21: 23401.0578 | X21: 0.06199490795 | Y21: 0.0545 | Z21: 23401.0578 | AA21: 23401 | AB21: 126.5537579 | AC21: 0.061992285 | AD21: 0.05449739556 | AF21: 23931.08797 | AG21: 129.4204997 | AH21: -0.02215060072 | AI21: -0.02215060072
A22: 00Y | B22: NHS Oldham CCG | E22: 37493 | F22: 255302.415 | G22: 146.8572085 | H22: 0.07263928722 | J22: 34905.62205 | K22: 256758.2344 | L22: 135.9474298 | M22: 0.005702332803 | O22: 0.07412496326 | P22: 0.08024998127 | Q22: 0.05514826379 | R22: 0.04916557253 | S22: 39560.67385 | T22: 0 | U22: 0.05514826379 | V22: 0.04916557253 | W22: 39560.67385 | X22: 0.05514826379 | Y22: 0.04916557253 | Z22: 39560.67385 | AA22: 39561 | AB22: 154.0787975 | AC22: 0.05515696263 | AD22: 0.04917422205 | AF22: 37166.29474 | AG22: 144.7521044 | AH22: 0.0644321765 | AI22: 0.0644321765
A23: 01A | B23: NHS East Lancashire CCG | E23: 50241 | F23: 382164.0862 | G23: 131.4644725 | H23: -0.03606119771 | J23: 51891.99122 | K23: 382499.5625 | L23: 135.6654917 | M23: 0.0008778330288 | O23: -0.03181591571 | P23: -0.03096601174 | Q23: 0.05542567493 | R23: 0.0545 | S23: 53025.64133 | T23: 0.2395988652 | U23: 0.05788738553 | V23: 0.05695955153 | W23: 53149.32014 | X23: 0.05788738553 | Y23: 0.05695955153 | Z23: 53149.32014 | AA23: 53149 | AB23: 138.9517929 | AC23: 0.05788101351 | AD23: 0.0569531851 | AF23: 55252.79101 | AG23: 144.4519064 | AH23: -0.03807574193 | AI23: -0.03807574193
A24: 01C | B24: NHS Eastern Cheshire CCG | E24: 26646 | F24: 208597.4119 | G24: 127.7388811 | H24: 0.02157811199 | J24: 26081.92419 | K24: 209256.7656 | L24: 124.640769 | M24: 0.003160890982 | O24: 0.02162707818 | P24: 0.02485633 | Q24: 0.05783315954 | R24: 0.0545 | S24: 28187.02237 | T24: 0 | U24: 0.05783315954 | V24: 0.0545 | W24: 28187.02237 | X24: 0.05783315954 | Y24: 0.0545 | Z24: 28187.02237 | AA24: 28187 | AB24: 134.7005432 | AC24: 0.05783232005 | AD24: 0.05449916315 | AF24: 27771.12754 | AG24: 132.7131644 | AH24: 0.01497499383 | AI24: 0.01497499383
A25: 01D | B25: NHS Heywood, Middleton and Rochdale CCG | E25: 30927 | F25: 233537.334 | G25: 132.428505 | H25: -0.03602603281 | J25: 31999.41353 | K25: 234477.7031 | L25: 136.4710295 | M25: 0.004026633021 | O25: -0.03351353717 | P25: -0.02962185086 | Q25: 0.05874608452 | R25: 0.0545 | S25: 32743.84016 | T25: 0.1856165004 | U25: 0.06065916386 | V25: 0.05640540697 | W25: 32803.00596 | X25: 0.06065916386 | Y25: 0.05640540697 | Z25: 32803.00596 | AA25: 32803 | AB25: 139.8981633 | AC25: 0.06065897113 | AD25: 0.056405215 | AF25: 34071.86479 | AG25: 145.3096151 | AH25: -0.03724083782 | AI25: -0.03724083782
A26: 01E | B26: NHS Greater Preston CCG | E26: 26433 | F26: 209211.5839 | G26: 126.3457764 | H26: -0.04522377368 | J26: 27531.19043 | K26: 209249.0156 | L26: 131.5714215 | M26: 0.0001789179211 | O26: -0.03988895561 | P26: -0.03971717454 | Q26: 0.05468866895 | R26: 0.0545 | S26: 27878.58559 | T26: 0.5910511864 | U26: 0.06075706557 | V26: 0.06056731107 | W26: 28038.99151 | X26: 0.06075706557 | Y26: 0.06056731107 | Z26: 28038.99151 | AA26: 28039 | AB26: 133.9982409 | AC26: 0.0607573866 | AD26: 0.06056763204 | AF26: 29314.25593 | AG26: 140.0926826 | AH26: -0.04350292681 | AI26: -0.04350292681
A27: 01F | B27: NHS Halton CCG | E27: 18289 | F27: 131379.166 | G27: 139.2077645 | H27: 0.003465985601 | J27: 18167.682 | K27: 131605.6875 | L27: 138.0463288 | M27: 0.001724181172 | O27: 0.006677681598 | P27: 0.008413376303 | Q27: 0.05631814905 | R27: 0.0545 | S27: 19319.00263 | T27: 0 | U27: 0.05631814905 | V27: 0.0545 | W27: 19319.00263 | X27: 0.05631814905 | Y27: 0.0545 | Z27: 19319.00263 | AA27: 19319 | AB27: 146.7945677 | AC27: 0.05631800536 | AD27: 0.05449985656 | AF27: 19344.31717 | AG27: 146.9869391 | AH27: -0.001308765472 | AI27: -0.001308765472
A28: 01G | B28: NHS Salford CCG | E28: 38765 | F28: 272953.1648 | G28: 142.0207017 | H28: -0.009405529769 | J28: 39152.49528 | K28: 275610.5 | L28: 142.0573428 | M28: 0.009735498788 | O28: -0.009897077579 | P28: -0.0002579317778 | Q28: 0.06476608347 | R28: 0.0545 | S28: 41275.65723 | T28: 0 | U28: 0.06476608347 | V28: 0.0545 | W28: 41275.65723 | X28: 0.06476608347 | Y28: 0.0545 | Z28: 41275.65723 | AA28: 41276 | AB28: 149.7620737 | AC28: 0.06477492584 | AD28: 0.05450875711 | AF28: 41688.21794 | AG28: 151.2577276 | AH28: -0.009888116219 | AI28: -0.009888116219
A29: 01H | B29: NHS Cumbria CCG | E29: 46749 | F29: 324183.1635 | G29: 144.2055149 | H29: 0.02371227642 | J29: 45443.59179 | K29: 323764.0625 | L29: 140.36021 | M29: -0.001292790618 | O29: 0.02872590296 | P29: 0.02739597576 | Q29: 0.05313675229 | R29: 0.0545 | S29: 49233.09003 | T29: 0 | U29: 0.05313675229 | V29: 0.0545 | W29: 49233.09003 | X29: 0.05313675229 | Y29: 0.0545 | Z29: 49233.09003 | AA29: 49233 | AB29: 152.0644374 | AC29: 0.05313482641 | AD29: 0.05449807163 | AF29: 48386.75913 | AG29: 149.4506795 | AH29: 0.01748909992 | AI29: 0.01748909992
A30: 01J | B30: NHS Knowsley CCG | E30: 30745 | F30: 165151.5828 | G30: 186.1623091 | H30: 0.2576422509 | J30: 24339.48495 | K30: 165618.9688 | L30: 146.9607324 | M30: 0.002830042428 | O30: 0.2631738125 | P30: 0.266748648 | Q30: 0.04864208562 | R30: 0.04568275905 | S30: 32240.50092 | T30: 0 | U30: 0.04864208562 | V30: 0.04568275905 | W30: 32240.50092 | X30: 0.04864208562 | Y30: 0.04568275905 | Z30: 32240.50092 | AA30: 32241 | AB30: 194.6697304 | AC30: 0.04865831843 | AD30: 0.04569894604 | AF30: 25915.83872 | AG30: 156.4786867 | AH30: 0.244065467 | AI30: 0.244065467
A31: 01K | B31: NHS Morecambe Bay CCG | E31: 45296 | F31: 345955.6711 | G31: 130.9300693 | H31: -0.01660448108 | J31: 45873.81362 | K31: 346843 | L31: 132.2610334 | M31: 0.002564862875 | O31: -0.01259571804 | P31: -0.01006316145 | Q31: 0.0572046479 | R31: 0.0545 | S31: 47887.14173 | T31: 0 | U31: 0.0572046479 | V31: 0.0545 | W31: 47887.14173 | X31: 0.0572046479 | Y31: 0.0545 | Z31: 47887.14173 | AA31: 47887 | AB31: 138.0653495 | AC31: 0.0572015189 | AD31: 0.054496879 | AF31: 48844.84441 | AG31: 140.8269575 | AH31: -0.01960993871 | AI31: -0.01960993871
A32: 01R | B32: NHS South Cheshire CCG | E32: 23780 | F32: 185925.4155 | G32: 127.9007495 | H32: -0.001067785929 | J32: 23767.49813 | K32: 186311.0625 | L32: 127.5689044 | M32: 0.002074202559 | O32: 0.0005260069983 | P32: 0.002601300602 | Q32: 0.0566872466 | R32: 0.0545 | S32: 25128.02272 | T32: 0 | U32: 0.0566872466 | V32: 0.0545 | W32: 25128.02272 | X32: 0.0566872466 | Y32: 0.0545 | Z32: 25128.02272 | AA32: 25128 | AB32: 134.8712184 | AC32: 0.056686291 | AD32: 0.05449904638 | AF32: 25306.80701 | AG32: 135.8309414 | AH32: -0.007065569666 | AI32: -0.007065569666
A33: 01T | B33: NHS South Sefton CCG | E33: 21423 | F33: 155093.0837 | G33: 138.1299506 | H33: -0.03096327384 | J33: 21988.50366 | K33: 155182.25 | L33: 141.6947084 | M33: 0.0005749209289 | O33: -0.02571815094 | P33: -0.02515801591 | Q33: 0.05510625412 | R33: 0.0545 | S33: 22603.54128 | T33: 0.006346020527 | U33: 0.0551714353 | V33: 0.05456514373 | W33: 22604.93766 | X33: 0.0551714353 | Y33: 0.05456514373 | Z33: 22604.93766 | AA33: 22605 | AB33: 145.667433 | AC33: 0.05517434533 | AD33: 0.05456805209 | AF33: 23412.59544 | AG33: 150.8716071 | AH33: -0.03449405878 | AI33: -0.03449405878
A34: 01V | B34: NHS Southport and Formby CCG | E34: 16556 | F34: 125038.3317 | G34: 132.4073968 | H34: -0.009316651908 | J34: 16656.15881 | K34: 125268.4766 | L34: 132.9636894 | M34: 0.001840594755 | O34: -0.006013320049 | P34: -0.004183793379 | Q34: 0.05644090717 | R34: 0.0545 | S34: 17490.43566 | T34: 0 | U34: 0.05644090717 | V34: 0.0545 | W34: 17490.43566 | X34: 0.05644090717 | Y34: 0.0545 | Z34: 17490.43566 | AA34: 17490 | AB34: 139.6201222 | AC34: 0.0564145929 | AD34: 0.05447373407 | AF34: 17734.89975 | AG34: 141.5751212 | AH34: -0.01380891641 | AI34: -0.01380891641
A35: 01W | B35: NHS Stockport CCG | E35: 39157 | F35: 312021.7475 | G35: 125.4944577 | H35: -0.02788066114 | J35: 40183.90315 | K35: 313465.75 | L35: 128.1923245 | M35: 0.004627890507 | O35: -0.02555508713 | P35: -0.02104546277 | Q35: 0.05938011054 | R35: 0.0545 | S35: 41482.14699 | T35: 0 | U35: 0.05938011054 | V35: 0.0545 | W35: 41482.14699 | X35: 0.05938011054 | Y35: 0.0545 | Z35: 41482.14699 | AA35: 41482 | AB35: 132.3334367 | AC35: 0.05937635672 | AD35: 0.05449626347 | AF35: 42786.42523 | AG35: 136.4947374 | AH35: -0.03048689456 | AI35: -0.03048689456
A36: 01X | B36: NHS St Helens CCG | E36: 28559 | F36: 197589.5005 | G36: 144.5370322 | H36: 0.04187270023 | J36: 27339.12989 | K36: 198154.4375 | L36: 137.9687997 | M36: 0.002859144895 | O36: 0.04461993158 | P36: 0.04760665132 | Q36: 0.05751496829 | R36: 0.0545 | S36: 30201.56998 | T36: 0 | U36: 0.05751496829 | V36: 0.0545 | W36: 30201.56998 | X36: 0.05751496829 | Y36: 0.0545 | Z36: 30201.56998 | AA36: 30202 | AB36: 152.4164706 | AC36: 0.05753002556 | AD36: 0.05451501434 | AF36: 29109.75654 | AG36: 146.9043888 | AH36: 0.03752155959 | AI36: 0.03752155959
A37: 01Y | B37: NHS Tameside and Glossop CCG | E37: 33041 | F37: 247904.7488 | G37: 133.281029 | H37: -0.02752757218 | J37: 33864.34927 | K37: 248556.2812 | L37: 136.2441903 | M37: 0.002628156475 | O37: -0.02431315792 | P37: -0.02174890023 | Q37: 0.057271391 | R37: 0.0545 | S37: 34933.30403 | T37: 0 | U37: 0.057271391 | V37: 0.0545 | W37: 34933.30403 | X37: 0.057271391 | Y37: 0.0545 | Z37: 34933.30403 | AA37: 34933 | AB37: 140.5436218 | AC37: 0.0572621894 | AD37: 0.05449082252 | AF37: 36057.58363 | AG37: 145.0680846 | AH37: -0.03118854666 | AI37: -0.03118854666
A38: 02A | B38: NHS Trafford CCG | E38: 30774 | F38: 242027.0015 | G38: 127.1511022 | H38: 0.05105310565 | J38: 29262.41336 | K38: 243556.875 | L38: 120.1461193 | M38: 0.006321086184 | O38: 0.05165625325 | P38: 0.05830386307 | Q38: 0.05969198591 | R38: 0.05303565677 | S38: 32610.96117 | T38: 0 | U38: 0.05969198591 | V38: 0.05303565677 | W38: 32610.96117 | X38: 0.05969198591 | Y38: 0.05303565677 | Z38: 32610.96117 | AA38: 32611 | AB38: 133.8948038 | AC38: 0.05969324755 | AD38: 0.05303691048 | AF38: 31157.60201 | AG38: 127.9274174 | AH38: 0.04664665737 | AI38: 0.04664665737
A39: 02D | B39: NHS Vale Royal CCG | E39: 13164 | F39: 107018.25 | G39: 123.0070572 | H39: -0.02899518912 | J39: 13519.81645 | K39: 107292.4375 | L39: 126.0090344 | M39: 0.002562063013 | O39: -0.02631814213 | P39: -0.02382350786 | Q39: 0.05720169545 | R39: 0.0545 | S39: 13917.00312 | T39: 0 | U39: 0.05720169545 | V39: 0.0545 | W39: 13917.00312 | X39: 0.05720169545 | Y39: 0.0545 | Z39: 13917.00312 | AA39: 13917 | AB39: 129.7109128 | AC39: 0.05720145852 | AD39: 0.05449976368 | AF39: 14395.43127 | AG39: 134.1700459 | AH39: -0.03323493808 | AI39: -0.03323493808
A40: 02E | B40: NHS Warrington CCG | E40: 27120 | F40: 218209.0056 | G40: 124.284513 | H40: -0.02202812721 | J40: 27733.46557 | K40: 219281.6562 | L40: 126.4741705 | M40: 0.004915702868 | O40: -0.02212004741 | P40: -0.01731308013 | Q40: 0.05968360867 | R40: 0.0545 | S40: 28738.61947 | T40: 0 | U40: 0.05968360867 | V40: 0.0545 | W40: 28738.61947 | X40: 0.05968360867 | Y40: 0.0545 | Z40: 28738.61947 | AA40: 28739 | AB40: 131.0597543 | AC40: 0.05969764012 | AD40: 0.05451396281 | AF40: 29529.63148 | AG40: 134.6653066 | AH40: -0.02677417356 | AI40: -0.02677417356
A41: 02F | B41: NHS West Cheshire CCG | E41: 35423 | F41: 263907.4162 | G41: 134.2251025 | H41: 0.02057766914 | J41: 34657.14687 | K41: 264776.8438 | L41: 130.8919103 | M41: 0.003294441527 | O41: 0.02209798556 | P41: 0.0254652276 | Q41: 0.05797398859 | R41: 0.0545 | S41: 37476.6126 | T41: 0 | U41: 0.05797398859 | V41: =MAX(R41,NewMinGrowthPerHead(P41,$P$2,$L$1,$U$1,$T$2,AG41,G41,T41, $P$1)) -> 0.0545 | W41: 37476.6126 | X41: 0.05797398859 | Y41: 0.0545 | Z41: 37476.6126 | AA41: =IF(ROUND(Z41,0)/E41>$AA$1,ROUND(Z41,0),ROUNDUP(Z41,0)) -> 37477 | AB41: =AA41/K41*1000 -> 141.5418338 | AC41: =AA41/E41-1 -> 0.05798492505 | AD41: =AB41/G41-1 -> 0.05451090055 | AF41: 36901.72699 | AG41: =AF41/K41*1000 -> 139.3691626 | AH41: 0.01558932481 | AI41: 0.01558932481
A42: 02G | B42: NHS West Lancashire CCG | E42: 14067 | F42: 113598.5002 | G42: 123.8308602 | H42: -0.03148920628 | J42: 14479.92069 | K42: 113720.625 | L42: 127.3288877 | M42: 0.001075056058 | O42: -0.02851677872 | P42: -0.02747237979 | Q42: 0.05563364661 | R42: 0.0545 | S42: 14849.59851 | T42: 0.09929236121 | U42: 0.05665400713 | V42: 0.05551926475 | W42: 14863.95192 | X42: 0.05665400713 | Y42: 0.05551926475 | Z42: 14863.95192 | AA42: 14864 | AB42: 130.7062813 | AC42: 0.05665742518 | AD42: 0.05552267913 | AF42: 15417.71694 | AG42: 135.5753799 | AH42: -0.0359143277 | AI42: -0.0359143277
A43: 02H | B43: NHS Wigan Borough CCG | E43: 46889 | F43: 327903.6691 | G43: 142.9962651 | H43: 0.07635541053 | J43: 43485.24847 | K43: 328789.4375 | L43: 132.258654 | M43: 0.002701306866 | O43: 0.07827370546 | P43: 0.08118645363 | Q43: 0.05183410254 | R43: 0.04900043048 | S43: 49319.44923 | T43: 0 | U43: 0.05183410254 | V43: 0.04900043048 | W43: 49319.44923 | X43: 0.05183410254 | Y43: 0.04900043048 | Z43: 49319.44923 | AA43: 49319 | AB43: 150.0017774 | AC43: 0.05182452174 | AD43: 0.04899087549 | AF43: 46301.58314 | AG43: 140.824424 | AH43: 0.06516876215 | AI43: 0.06516876215
A44: 02M | B44: NHS Fylde & Wyre CCG | E44: 26402 | F44: 177596.6686 | G44: 148.6626985 | H44: 0.1017641962 | J44: 23937.65273 | K44: 178249.3125 | L44: 134.2930999 | M44: 0.003674865553 | O44: 0.1029485764 | P44: 0.1070017641 | Q44: 0.0495255026 | R44: 0.04568275905 | S44: 27709.57232 | T44: 0 | U44: 0.0495255026 | V44: 0.04568275905 | W44: 27709.57232 | X44: 0.0495255026 | Y44: 0.04568275905 | Z44: 27709.57232 | AA44: 27710 | AB44: 155.4564201 | AC44: 0.04954170139 | AD44: 0.04569889852 | AF44: 25487.98172 | AG44: 142.9906313 | AH44: 0.08717905968 | AI44: 0.08717905968
A45: 02N | B45: NHS Airedale, Wharfedale and Craven CCG | E45: 21615 | F45: 159178.1672 | G45: 135.7912355 | H45: 0.04967280598 | J45: 20563.39185 | K45: 159702.5 | L45: 128.7606133 | M45: 0.003293999251 | O45: 0.05113981946 | P45: 0.05460227324 | Q45: 0.0571592618 | R45: 0.05368841296 | S45: 22850.49744 | T45: 0 | U45: 0.0571592618 | V45: 0.05368841296 | W45: 22850.49744 | X45: 0.0571592618 | Y45: 0.05368841296 | Z45: 22850.49744 | AA45: 22850 | AB45: 143.0785367 | AC45: 0.05713624798 | AD45: 0.05366547469 | AF45: 21895.18586 | AG45: 137.0998316 | AH45: 0.04360840518 | AI45: 0.04360840518
A46: 02P | B46: NHS Barnsley CCG | E46: 35829 | F46: 260349.6661 | G46: 137.6187669 | H46: 0.03399667985 | J46: 34689.28467 | K46: 262230.9375 | L46: 132.2852483 | M46: 0.007225941372 | O46: 0.03285496779 | P46: 0.04031831724 | Q46: 0.06211975518 | R46: 0.0545 | S46: 38054.68871 | T46: 0 | U46: 0.06211975518 | V46: 0.0545 | W46: 38054.68871 | X46: 0.06211975518 | Y46: 0.0545 | Z46: 38054.68871 | AA46: 38055 | AB46: 145.1201768 | AC46: 0.06212844344 | AD46: 0.05450862593 | AF46: 36935.94621 | AG46: 140.8527406 | AH46: 0.03029714706 | AI46: 0.03029714706
A47: 02Q | B47: NHS Bassetlaw CCG | E47: 16704 | F47: 117382.667 | G47: 142.3038037 | H47: 0.077635944 | J47: 15489.31172 | K47: 117732.3672 | L47: 131.56375 | M47: 0.002979146788 | O47: 0.07842106224 | P47: 0.08163383689 | Q47: 0.05204642798 | R47: 0.04892153676 | S47: 17573.38353 | T47: 0 | U47: 0.05204642798 | V47: 0.04892153676 | W47: 17573.38353 | X47: 0.05204642798 | Y47: 0.04892153676 | Z47: 17573.38353 | AA47: 17573 | AB47: 149.2622668 | AC47: 0.05202346743 | AD47: 0.04889864441 | AF47: 16492.48147 | AG47: 140.0845142 | AH47: 0.06551582521 | AI47: 0.06551582521
A48: 02R | B48: NHS Bradford Districts CCG | E48: 49173 | F48: 333179.2496 | G48: 147.5872224 | H48: 0.1054792326 | J48: 44340.53147 | K48: 334130.3125 | L48: 132.7043067 | M48: 0.002854508098 | O48: 0.1089853544 | P48: 0.112150962 | Q48: 0.04866766895 | R48: 0.04568275905 | S48: 51566.13529 | T48: 0 | U48: 0.04866766895 | V48: 0.04568275905 | W48: 51566.13529 | X48: 0.04866766895 | Y48: 0.04568275905 | Z48: 51566.13529 | AA48: 51566 | AB48: 154.329009 | AC48: 0.04866491774 | AD48: 0.04568001567 | AF48: 47212.25879 | AG48: 141.2989394 | AH48: 0.0922163295 | AI48: 0.0922163295
A49: 02T | B49: NHS Calderdale CCG | E49: 29449 | F49: 220614.665 | G49: 133.4861397 | H49: 0.02641777301 | J49: 28646.6388 | K49: 221396.0625 | L49: 129.3909136 | M49: 0.003541910781 | O49: 0.02800891266 | P49: 0.03165002851 | Q49: 0.05823494492 | R49: 0.0545 | S49: 31163.96089 | T49: 0 | U49: 0.05823494492 | V49: 0.0545 | W49: 31163.96089 | X49: 0.05823494492 | Y49: 0.0545 | Z49: 31163.96089 | AA49: 31164 | AB49: 140.761311 | AC49: 0.05823627288 | AD49: 0.05450132327 | AF49: 30501.94663 | AG49: 137.7709535 | AH49: 0.02170528262 | AI49: 0.02170528262
A50: 02W | B50: NHS Bradford City CCG | E50: 20098 | F50: 140422.67 | G50: 143.1250381 | H50: 0.01011416945 | J50: 19753.54639 | K50: 140352.5781 | L50: 140.7423123 | M50: -0.000499149514 | O50: 0.01743755821 | P50: 0.01692970475 | Q50: 0.05397364684 | R50: 0.0545 | S50: 21182.76235 | T50: 0 | U50: 0.05397364684 | V50: 0.0545 | W50: 21182.76235 | X50: 0.05397364684 | Y50: 0.0545 | Z50: 21182.76235 | AA50: 21183 | AB50: 150.9270459 | AC50: 0.05398547119 | AD50: 0.05451183026 | AF50: 21032.89052 | AG50: 149.8575288 | AH50: 0.007136892581 | AI50: 0.007136892581
A51: 02X | B51: NHS Doncaster CCG | E51: 43355 | F51: 320731.4169 | G51: 135.1754076 | H51: 0.007953675862 | J51: 42857.95923 | K51: 321430.5625 | L51: 133.3350472 | M51: 0.002179847664 | O51: 0.01159739704 | P51: 0.01380252526 | Q51: 0.05679864936 | R51: 0.0545 | S51: 45817.50544 | T51: 0 | U51: 0.05679864936 | V51: 0.0545 | W51: 45817.50544 | X51: 0.05679864936 | Y51: 0.0545 | Z51: 45817.50544 | AA51: 45818 | AB51: 142.5440059 | AC51: 0.05681005651 | AD51: 0.05451138234 | AF51: 45633.66733 | AG51: 141.9705301 | AH51: 0.004039400669 | AI51: 0.004039400669
A52: 02Y | B52: NHS East Riding of Yorkshire CCG | E52: 42062 | F52: 304284.9979 | G52: 138.2322503 | H52: 0.003021372212 | J52: 41880.13409 | K52: 304863.6562 | L52: 137.3733249 | M52: 0.001901698504 | O52: 0.004342534127 | P52: 0.006252490821 | Q52: 0.05650534107 | R52: 0.0545 | S52: 44438.72766 | T52: 0 | U52: 0.05650534107 | V52: 0.0545 | W52: 44438.72766 | X52: 0.05650534107 | Y52: 0.0545 | Z52: 44438.72766 | AA52: 44439 | AB52: 145.7668013 | AC52: 0.05651181589 | AD52: 0.05450646253 | AF52: 44592.51306 | AG52: 146.2703479 | AH52: -0.00344257485 | AI52: -0.00344257485
A53: 03A | B53: NHS Greater Huddersfield CCG | E53: 32870 | F53: 248802.7496 | G53: 132.1126879 | H53: 0.05864156627 | J53: 31013.92841 | K53: 249965.9375 | L53: 124.0726185 | M53: 0.004675140721 | O53: 0.05984638805 | P53: 0.06480131906 | Q53: 0.05680759721 | R53: 0.05188986407 | S53: 34737.26572 | T53: 0 | U53: 0.05680759721 | V53: 0.05188986407 | W53: 34737.26572 | X53: 0.05680759721 | Y53: 0.05188986407 | Z53: 34737.26572 | AA53: 34737 | AB53: 138.9669342 | AC53: 0.05679951323 | AD53: 0.05188181771 | AF53: 33022.55443 | AG53: 132.1082175 | AH53: 0.0519174121 | AI53: 0.0519174121
A54: 03D | B54: NHS Hambleton, Richmondshire and Whitby CCG | E54: 21610 | F54: 144071.9993 | G54: 149.994448 | H54: 0.04467861049 | J54: 20641.5065 | K54: 144023.375 | L54: 143.3205304 | M54: -0.0003374997767 | O54: 0.04691971 | P54: 0.04656637483 | Q54: 0.05414410649 | R54: 0.0545 | S54: 22780.05414 | T54: 0 | U54: 0.05414410649 | V54: 0.0545 | W54: 22780.05414 | X54: 0.05414410649 | Y54: 0.0545 | Z54: 22780.05414 | AA54: 22780 | AB54: 158.1687695 | AC54: 0.05414160111 | AD54: 0.05449749378 | AF54: 21978.35963 | AG54: 152.602726 | AH54: 0.03647407652 | AI54: 0.03647407652
A55: 03E | B55: NHS Harrogate and Rural District CCG | E55: 21364 | F55: 163132.0811 | G55: 130.9613649 | H55: 0.02615290293 | J55: 20793.56325 | K55: 163245.0625 | L55: 127.3763686 | M55: 0.0006925764974 | O55: 0.02743333313 | P55: 0.02814490931 | Q55: 0.05523032192 | R55: 0.0545 | S55: 22543.9406 | T55: 0 | U55: 0.05523032192 | V55: 0.0545 | W55: 22543.9406 | X55: 0.05523032192 | Y55: 0.0545 | Z55: 22543.9406 | AA55: 22544 | AB55: 138.0991232 | AC55: 0.05523310242 | AD55: 0.05450277857 | AF55: 22140.26438 | AG55: 135.6259359 | AH55: 0.01823535679 | AI55: 0.01823535679
A56: 03F | B56: NHS Hull CCG | E56: 45051 | F56: 299081.3347 | G56: 150.6312657 | H56: 0.06190440605 | J56: 42181.31453 | K56: 299668.0312 | L56: 140.7601417 | M56: 0.001961662249 | O56: 0.06803214883 | P56: 0.07012726718 | Q56: 0.05301227095 | R56: 0.05095066071 | S56: 47439.25582 | T56: 0 | U56: 0.05301227095 | V56: 0.05095066071 | W56: 47439.25582 | X56: 0.05301227095 | Y56: 0.05095066071 | Z56: 47439.25582 | AA56: 47439 | AB56: 158.3051746 | AC56: 0.05300659253 | AD56: 0.05094499341 | AF56: 44913.19955 | AG56: 149.8765129 | AH56: 0.0562373752 | AI56: 0.0562373752
A57: 03H | B57: NHS North East Lincolnshire CCG | E57: 28291 | F57: 169648.7517 | G57: 166.7622055 | H57: 0.181519883 | J57: 23806.91909 | K57: 169562.0781 | L57: 140.4023786 | M57: -0.0005109002165 | O57: 0.1883520036 | P57: 0.1877448743 | Q57: 0.0451485195 | R57: 0.04568275905 | S57: 29568.29677 | T57: 0 | U57: 0.0451485195 | V57: 0.04568275905 | W57: 29568.29677 | X57: 0.0451485195 | Y57: 0.04568275905 | Z57: 29568.29677 | AA57: 29568 | AB57: 174.378613 | AC57: 0.04513802976 | AD57: 0.04567226395 | AF57: 25348.78108 | AG57: 149.4955792 | AH57: 0.1664466196 | AI57: 0.1664466196
A58: 03J | B58: NHS North Kirklees CCG | E58: 25281 | F58: 193733.751 | G58: 130.4935246 | H58: 0.03411933647 | J58: 24408.63099 | K58: 194611.9688 | L58: 125.4220444 | M58: 0.004533116838 | O58: 0.03574018601 | P58: 0.04043531729 | Q58: 0.05928017171 | R58: 0.0545 | S58: 26779.66202 | T58: 0 | U58: 0.05928017171 | V58: 0.0545 | W58: 26779.66202 | X58: 0.05928017171 | Y58: 0.0545 | Z58: 26779.66202 | AA58: 26780 | AB58: 137.6071583 | AC58: 0.0592935406 | AD58: 0.05451330857 | AF58: 25989.46302 | AG58: 133.5450393 | AH58: 0.0304175957 | AI58: 0.0304175957
A59: 03K | B59: NHS North Lincolnshire CCG | E59: 22543 | F59: 177178.165 | G59: 127.2335109 | H59: -0.113048191 | J59: 25363.5464 | K59: 177652.9844 | L59: 142.7701679 | M59: 0.002679897581 | O59: -0.1112047329 | P59: -0.1088228526 | Q59: 0.057325952 | R59: 0.0545 | S59: 23835.29894 | T59: 1 | U59: 0.1382075696 | V59: 0.1351654425 | W59: 25658.61324 | X59: 0.1382075696 | Y59: 0.1351654425 | Z59: 25658.61324 | AA59: 25659 | AB59: 144.4332618 | AC59: 0.1382247261 | AD59: 0.1351825531 | AF59: 27006.22381 | AG59: 152.016719 | AH59: -0.0498856789 | AI59: -0.0498856789
A60: 03L | B60: NHS Rotherham CCG | E60: 37107 | F60: 263162.8309 | G60: 141.0039551 | H60: 0.05259637576 | J60: 35161.54085 | K60: 263993.0938 | L60: 133.191139 | M60: 0.003154939527 | O60: 0.05532917792 | P60: 0.05865867766 | Q60: 0.05629515347 | R60: 0.05297308705 | S60: 39195.94426 | T60: 0 | U60: 0.05629515347 | V60: 0.05297308705 | W60: 39195.94426 | X60: 0.05629515347 | Y60: 0.05297308705 | Z60: 39195.94426 | AA60: 39196 | AB60: 148.473581 | AC60: 0.05629665562 | AD60: 0.05297458448 | AF60: 37438.78819 | AG60: 141.8173016 | AH60: 0.04693559514 | AI60: 0.04693559514
A61: 03M | B61: NHS Scarborough and Ryedale CCG | E61: 17309 | F61: 120479.5811 | G61: 143.6674982 | H61: 1.420767566e-06 | J61: 17258.72829 | K61: 120626.7188 | L61: 143.0755016 | M61: 0.001221266658 | O61: 0.002912828178 | P61: 0.004137652176 | Q61: 0.05578782569 | R61: 0.0545 | S61: 18274.63147 | T61: 0 | U61: 0.05578782569 | V61: 0.0545 | W61: 18274.63147 | X61: 0.05578782569 | Y61: 0.0545 | Z61: 18274.63147 | AA61: 18275 | AB61: 151.500432 | AC61: 0.05580911664 | AD61: 0.05452126498 | AF61: 18376.49481 | AG61: 152.3418278 | AH61: -0.005523077792 | AI61: -0.005523077792
A62: 03N | B62: NHS Sheffield CCG | E62: 77727 | F62: 601173.1586 | G62: 129.2921996 | H62: 0.006932066463 | J62: 77084.65965 | K62: 604647.125 | L62: 127.4870192 | M62: 0.005778645272 | O62: 0.00833292065 | P62: 0.01415971891 | Q62: 0.06059358144 | R62: 0.0545 | S62: 82436.7573 | T62: 0 | U62: 0.06059358144 | V62: 0.0545 | W62: 82436.7573 | X62: 0.06059358144 | Y62: 0.0545 | Z62: 82436.7573 | AA62: 82437 | AB62: 136.3390258 | AC62: 0.06059670385 | AD62: 0.05450310447 | AF62: 82077.06989 | AG62: 135.7437528 | AH62: 0.004385270033 | AI62: 0.004385270033
A63: 03Q | B63: NHS Vale of York CCG | E63: 43889 | F63: 357151.7429 | G63: 122.8861426 | H63: -0.01993668019 | J63: 44754.547 | K63: 358916.4375 | L63: 124.6935006 | M63: 0.004941021891 | O63: -0.01933986738 | P63: -0.01449440419 | Q63: 0.05971030758 | R63: 0.0545 | S63: 46509.62569 | T63: 0 | U63: 0.05971030758 | V63: 0.0545 | W63: 46509.62569 | X63: 0.05971030758 | Y63: 0.0545 | Z63: 46509.62569 | AA63: 46510 | AB63: 129.5844802 | AC63: 0.05971883615 | AD63: 0.05450848664 | AF63: 47653.08816 | AG63: 132.7693111 | AH63: -0.02398770374 | AI63: -0.02398770374
A64: 03R | B64: NHS Wakefield CCG | E64: 56883 | F64: 373747.3367 | G64: 152.1964023 | H64: 0.1357757455 | J64: 50064.79661 | K64: 375745.5312 | L64: 133.2412296 | M64: 0.005346378112 | O64: 0.1361875779 | P64: 0.1422620663 | Q64: 0.05127337446 | R64: 0.04568275905 | S64: 59799.58336 | T64: 0 | U64: 0.05127337446 | V64: 0.04568275905 | W64: 59799.58336 | X64: 0.05127337446 | Y64: 0.04568275905 | Z64: 59799.58336 | AA64: 59800 | AB64: 159.1502627 | AC64: 0.05128069898 | AD64: 0.04569004461 | AF64: 53307.25762 | AG64: 141.8706363 | AH64: 0.1217984694 | AI64: 0.1217984694
A65: 03T | B65: NHS Lincolnshire East CCG | E65: 37587 | F65: 250451.3348 | G65: 150.07706 | H65: -0.04199511788 | J65: 39185.61718 | K65: 251486.8125 | L65: 155.8157933 | M65: 0.004134446565 | O65: -0.04079601897 | P65: -0.03683024137 | Q65: 0.0588597739 | R65: 0.0545 | S65: 39799.36232 | T65: 0.4751100951 | U65: 0.06375708048 | V65: 0.05937714229 | W65: 39983.43738 | X65: 0.06375708048 | Y65: 0.05937714229 | Z65: 39983.43738 | AA65: 39983 | AB65: 158.9864677 | AC65: 0.0637454439 | AD65: 0.05936555363 | AF65: 41723.48499 | AG65: 165.9072481 | AH65: -0.04171475591 | AI65: -0.04171475591
A66: 03V | B66: NHS Corby CCG | E66: 10407 | F66: 78638.08618 | G66: 132.3404537 | H66: -0.02850350672 | J66: 10798.64317 | K66: 79913.375 | L66: 135.1293594 | M66: 0.01621719043 | O66: -0.03626781319 | P66: -0.0206387848 | Q66: 0.0716010273 | R66: 0.0545 | S66: 11152.15189 | T66: 0 | U66: 0.0716010273 | V66: 0.0545 | W66: 11152.15189 | X66: 0.0716010273 | Y66: 0.0545 | Z66: 11152.15189 | AA66: 11152 | AB66: 139.5511077 | AC66: 0.07158643221 | AD66: 0.05448563782 | AF66: 11498.02042 | AG66: 143.8810514 | AH66: -0.03009391213 | AI66: -0.03009391213
A67: 03W | B67: NHS East Leicestershire and Rutland CCG | E67: 42170 | F67: 331537.5828 | G67: 127.1952327 | H67: 0.03043574543 | J67: 40975.65112 | K67: 333199 | L67: 122.9765129 | M67: 0.005011248335 | O67: 0.02914777058 | P67: 0.03430508563 | Q67: 0.05978436137 | R67: 0.0545 | S67: 44691.10652 | T67: 0 | U67: 0.05978436137 | V67: 0.0545 | W67: 44691.10652 | X67: 0.05978436137 | Y67: 0.0545 | Z67: 44691.10652 | AA67: 44691 | AB67: 134.1270532 | AC67: 0.05978183543 | AD67: 0.05449748665 | AF67: 43629.451 | AG67: 130.9411223 | AH67: 0.02433101905 | AI67: 0.02433101905
A68: 04C | B68: NHS Leicester City CCG | E68: 52819 | F68: 406178.9177 | G68: 130.0387531 | H68: -0.00130060341 | J68: 52895.39819 | K68: 409607.5625 | L68: 129.1367715 | M68: 0.008441217998 | O68: -0.001444325815 | P68: 0.006984700314 | Q68: 0.06340126438 | R68: 0.0545 | S68: 56167.79138 | T68: 0 | U68: 0.06340126438 | V68: 0.0545 | W68: 56167.79138 | X68: 0.06340126438 | Y68: 0.0545 | Z68: 56167.79138 | AA68: 56168 | AB68: 137.1263745 | AC68: 0.06340521403 | AD68: 0.05450391659 | AF68: 56321.18392 | AG68: 137.5003518 | AH68: -0.002719827845 | AI68: -0.002719827845
A69: 04D | B69: NHS Lincolnshire West CCG | E69: 30649 | F69: 237516.3375 | G69: 129.0395445 | H69: -0.05546976943 | J69: 32427.91785 | K69: 238697.6562 | L69: 135.8535243 | M69: 0.004973631447 | O69: -0.05485760322 | P69: -0.05015681328 | Q69: 0.05974469436 | R69: 0.0545 | S69: 32480.11514 | T69: 1 | U69: 0.07035035594 | V69: 0.06505317398 | W69: 32805.16806 | X69: 0.07035035594 | Y69: 0.06505317398 | Z69: 32805.16806 | AA69: 32805 | AB69: 137.4332723 | AC69: 0.07034487259 | AD69: 0.06504771777 | AF69: 34528.12131 | AG69: 144.6521171 | AH69: -0.04990486731 | AI69: -0.04990486731
A70: 04E | B70: NHS Mansfield and Ashfield CCG | E70: 26734 | F70: 193960.417 | G70: 137.8322465 | H70: 0.04552494289 | J70: 25578.03695 | K70: 195172.625 | L70: 131.0534044 | M70: 0.006249770064 | O70: 0.04519357977 | P70: 0.05172579932 | Q70: 0.06078414474 | R70: 0.05419566423 | S70: 28359.00333 | T70: 0 | U70: 0.06078414474 | V70: 0.05419566423 | W70: 28359.00333 | X70: 0.06078414474 | Y70: 0.05419566423 | Z70: 28359.00333 | AA70: 28359 | AB70: 145.3021396 | AC70: 0.06078402035 | AD70: 0.05419554062 | AF70: 27234.60589 | AG70: 139.5411159 | AH70: 0.04128549207 | AI70: 0.04128549207
A71: 04F | B71: NHS Milton Keynes CCG | E71: 34055 | F71: 294316.6709 | G71: 115.7087021 | H71: -0.03145759275 | J71: 35325.40726 | K71: 297252.1875 | L71: 118.8398563 | M71: 0.009974007224 | O71: -0.03596298975 | P71: -0.02634767764 | Q71: 0.06501759062 | R71: 0.0545 | S71: 36269.17405 | T71: 0.05412360018 | U71: 0.0655787265 | V71: 0.05505559438 | W71: 36288.28353 | X71: 0.0655787265 | Y71: 0.05505559438 | Z71: 36288.28353 | AA71: 36288 | AB71: 122.0781596 | AC71: 0.06557040082 | AD71: 0.05504735092 | AF71: 37613.26746 | AG71: 126.5365539 | AH71: -0.03523404236 | AI71: -0.03523404236
A72: 04G | B72: NHS Nene CCG | E72: 85167 | F72: 685994.9172 | G72: 124.1510656 | H72: -0.03967131171 | J72: 88917.43552 | K72: 691032.875 | L72: 128.673235 | M72: 0.007344016168 | O72: -0.04217885384 | P72: -0.03514459986 | Q72: 0.06224426505 | R72: 0.0545 | S72: 90468.15732 | T72: 0.4074136488 | U72: 0.06645719806 | V72: 0.05868221873 | W72: 90826.96019 | X72: 0.06645719806 | Y72: 0.05868221873 | Z72: 90826.96019 | AA72: 90827 | AB72: 131.4365832 | AC72: 0.06645766553 | AD72: 0.05868268279 | AF72: 94676.1989 | AG72: 137.0067942 | AH72: -0.04065645795 | AI72: -0.04065645795
A73: 04H | B73: NHS Newark & Sherwood CCG | E73: 17988 | F73: 135028.0862 | G73: 133.2167293 | H73: 0.04607404811 | J73: 17234.62586 | K73: 136000.9688 | L73: 126.7242874 | M73: 0.007205038565 | O73: 0.04371282265 | P73: 0.05123281379 | Q73: 0.06187874646 | R73: 0.05428259968 | S73: 19101.07489 | T73: 0 | U73: 0.06187874646 | V73: =MAX(R73,NewMinGrowthPerHead(P73,$P$2,$L$1,$U$1,$T$2,AG73,G73,T73, $P$1)) -> 0.05428259968 | W73: 19101.07489 | X73: 0.06187874646 | Y73: 0.05428259968 | Z73: 19101.07489 | AA73: =IF(ROUND(Z73,0)/E73>$AA$1,ROUND(Z73,0),ROUNDUP(Z73,0)) -> 19101 | AB73: =AA73/K73*1000 -> 140.447529 | AC73: =AA73/E73-1 -> 0.06187458306 | AD73: =AB73/G73-1 -> 0.05427846605 | AF73: 18350.83138 | AG73: =AF73/K73*1000 -> 134.9316225 | AH73: 0.04087927183 | AI73: 0.04087927183
A74: 04K | B74: NHS Nottingham City CCG | E74: 48557 | F74: 379334.0833 | G74: =E74/F74*1000 -> 128.0058981 | H74: -0.06187228127 | J74: 51617.73905 | K74: 381504.375 | L74: =J74/K74*1000 -> 135.3005167 | M74: =K74/F74-1 -> 0.005721319974 | O74: =E74/J74-1 -> -0.05929626334 | P74: =G74/L74-1 -> -0.05391419627 | Q74: =(1+M74)*(1+R74)-1 -> 0.06053313191 | R74: =MinGrowthPerHead(P74,0,1,$Q$1,$Q$2,$R$1,$R$2) -> 0.0545 | S74: =(1+IF($S$2=1,Q74,0))*$E74 -> 51496.30729 | T74: =MinMaxRamp(P74,0,1,$P$2,$T$2) -> 1 | U74: =(1+M74)*(1+V74)-1 -> 0.07540074668 | V74: 0.06928303629 | W74: =(1+IF($S$2=1,U74,0))*$E74 -> 52218.23406 | X74: =MAX(U74,$X$1) -> 0.07540074668 | Y74: =(1+X74)/(1+M74) - 1 -> 0.06928303629 | Z74: =(1+IF($Z$2=1,X74,0))*$E74 -> 52218.23406 | AA74: 52218 | AB74: 136.8739218 | AC74: 0.07539592644 | AD74: 0.06927824346 | AF74: 54960.77682 | AG74: 144.0632937 | AH74: =AA74/AF74-1 -> -0.04990425861 | AI74: -0.04990425861
A75: 04L | B75: NHS Nottingham North and East CCG | E75: 19551 | F75: 152471.7529 | G75: 128.2270298 | H75: 0.03841846612 | J75: 18838.56187 | K75: 153479.5469 | L75: 122.7431423 | M75: 0.006609709182 | O75: 0.03781807427 | P75: 0.04467774993 | Q75: 0.06146993833 | R75: 0.0545 | S75: 20752.79876 | T75: 0 | U75: 0.06146993833 | V75: 0.0545 | W75: 20752.79876 | X75: 0.06146993833 | Y75: 0.0545 | Z75: 20752.79876 | AA75: 20753 | AB75: 135.216714 | AC75: 0.06148023119 | AD75: 0.05451022527 | AF75: 20058.64677 | AG75: 130.6926374 | AH75: 0.0346161554 | AI75: 0.0346161554
A76: 04M | B76: NHS Nottingham West CCG | E76: 12653 | F76: 94123.33276 | G76: 134.430004 | H76: 0.06696011298 | J76: 11847.38744 | K76: 94623.32812 | L76: 125.2057783 | M76: 0.005312129805 | O76: 0.06799917412 | P76: 0.07367252436 | Q76: 0.05590493822 | R76: 0.05032547297 | S76: 13360.36518 | T76: 0 | U76: 0.05590493822 | V76: 0.05032547297 | W76: 13360.36518 | X76: 0.05590493822 | Y76: 0.05032547297 | Z76: 13360.36518 | AA76: 13360 | AB76: 141.1913982 | AC76: 0.05587607682 | AD76: 0.05029676408 | AF76: 12614.68691 | AG76: 133.3147666 | AH76: 0.05908296408 | AI76: 0.05908296408
A77: 04N | B77: NHS Rushcliffe CCG | E77: 15976 | F77: 127118.4194 | G77: 125.6780888 | H77: 0.04564236408 | J77: 15311.76717 | K77: 128001.9531 | L77: 119.6213557 | M77: 0.006950477321 | O77: 0.04338054674 | P77: 0.05063253957 | Q77: 0.06171695797 | R77: 0.05438845492 | S77: 16961.99012 | T77: 0 | U77: 0.06171695797 | V77: 0.05438845492 | W77: 16961.99012 | X77: 0.06171695797 | Y77: 0.05438845492 | Z77: 16961.99012 | AA77: 16962 | AB77: 132.513603 | AC77: 0.06171757636 | AD77: 0.05438906905 | AF77: 16303.43819 | AG77: 127.3686674 | AH77: 0.04039404464 | AI77: 0.04039404464
A78: 04Q | B78: NHS South West Lincolnshire CCG | E78: 19067 | F78: 133650.3335 | G78: 142.6633178 | H78: -0.01502608968 | J78: 19409.76574 | K78: 134597.2812 | L78: 144.2062244 | M78: 0.007085262933 | O78: -0.01765944761 | P78: -0.0106993065 | Q78: 0.06197140976 | R78: 0.0545 | S78: 20248.60887 | T78: 0 | U78: 0.06197140976 | V78: 0.0545 | W78: 20248.60887 | X78: 0.06197140976 | Y78: 0.0545 | Z78: 20248.60887 | AA78: 20249 | AB78: 150.4413745 | AC78: 0.06199192322 | AD78: 0.05452036913 | AF78: 20666.84482 | AG78: 153.5457821 | AH78: -0.02021812361 | AI78: -0.02021812361
A79: 04V | B79: NHS West Leicestershire CCG | E79: 47087 | F79: 392938.0018 | G79: 119.8331538 | H79: -0.01695145604 | J79: 48053.66811 | K79: 396364.25 | L79: 121.2361309 | M79: 0.00871956429 | O79: -0.02011642708 | P79: -0.01157226927 | Q79: 0.06369478054 | R79: 0.0545 | S79: 50086.19613 | T79: 0 | U79: 0.06369478054 | V79: 0.0545 | W79: 50086.19613 | X79: 0.06369478054 | Y79: 0.0545 | Z79: 50086.19613 | AA79: 50086 | AB79: 126.3635658 | AC79: 0.06369061524 | AD79: 0.05449587071 | AF79: 51165.8778 | AG79: 129.088024 | AH79: -0.02110542897 | AI79: -0.02110542897
A80: 04Y | B80: NHS Cannock Chase CCG | E80: 18033 | F80: 133195.4146 | G80: 135.3875436 | H80: 0.08546417372 | J80: 16581.14014 | K80: 133391.125 | L80: 124.3046727 | M80: 0.00146934825 | O80: 0.0875609188 | P80: 0.08915892453 | Q80: 0.04913380772 | R80: 0.04759452654 | S80: 18919.02995 | T80: 0 | U80: 0.04913380772 | V80: 0.04759452654 | W80: 18919.02995 | X80: 0.04913380772 | Y80: 0.04759452654 | Z80: 18919.02995 | AA80: 18919 | AB80: 141.8310251 | AC80: 0.04913214662 | AD80: 0.04759286787 | AF80: 17655.02246 | AG80: 132.3553007 | AH80: 0.07159308574 | AI80: 0.07159308574
A81: 05A | B81: NHS Coventry and Rugby CCG | E81: 68506 | F81: 514597.9202 | G81: 133.1252951 | H81: -0.001534872646 | J81: 68909.02397 | K81: 521674.4062 | L81: 132.0920159 | M81: 0.01375148586 | O81: -0.005848638427 | P81: 0.007822419963 | Q81: 0.06900094184 | R81: 0.0545 | S81: 73232.97852 | T81: 0 | U81: 0.06900094184 | V81: 0.0545 | W81: 73232.97852 | X81: 0.06900094184 | Y81: 0.0545 | Z81: 73232.97852 | AA81: 73233 | AB81: 140.3806649 | AC81: 0.06900125536 | AD81: 0.05450030927 | AF81: 73371.9368 | AG81: 140.6469934 | AH81: -0.001893595882 | AI81: -0.001893595882
A82: 05C | B82: NHS Dudley CCG | E82: 41842 | F82: 319480.2455 | G82: 130.9689741 | H82: 0.01625004511 | J82: 41033.46595 | K82: 320331.8125 | L82: 128.0967558 | M82: 0.002665476377 | O82: 0.01970425915 | P82: 0.02242225676 | Q82: 0.05731074484 | R82: 0.0545 | S82: 44239.99619 | T82: 0 | U82: 0.05731074484 | V82: 0.0545 | W82: 44239.99619 | X82: 0.05731074484 | Y82: 0.0545 | Z82: 44239.99619 | AA82: 44240 | AB82: 138.1067951 | AC82: 0.057310836 | AD82: 0.05450009092 | AF82: 43691.01022 | AG82: 136.3929791 | AH82: 0.01256528002 | AI82: 0.01256528002
A83: 05D | B83: NHS East Staffordshire CCG | E83: 18631 | F83: 142069.916 | G83: 131.1396566 | H83: 0.0009758409314 | J83: 18593.72385 | K83: 142623.875 | L83: 130.3689431 | M83: 0.003899199774 | O83: 0.002004770634 | P83: 0.005911787409 | Q83: 0.05861170616 | R83: 0.0545 | S83: 19722.9947 | T83: 0 | U83: 0.05861170616 | V83: 0.0545 | W83: 19722.9947 | X83: 0.05861170616 | Y83: 0.0545 | Z83: 19722.9947 | AA83: 19723 | AB83: 138.2868051 | AC83: 0.05861199077 | AD83: 0.0545002835 | AF83: 19797.95174 | AG83: 138.8123254 | AH83: -0.003785833134 | AI83: -0.003785833134
A84: 05F | B84: NHS Herefordshire CCG | E84: 27704 | F84: 187473.5002 | G84: 147.7755521 | H84: 0.04895233176 | J84: 26414.80001 | K84: 188340.4375 | L84: 140.2502849 | M84: 0.004624318929 | O84: 0.04880597189 | P84: 0.0536559852 | Q84: 0.0587286489 | R84: 0.05385528595 | S84: 29331.01849 | T84: 0 | U84: 0.0587286489 | V84: 0.05385528595 | W84: 29331.01849 | X84: 0.0587286489 | Y84: 0.05385528595 | Z84: 29331.01849 | AA84: 29331 | AB84: 155.7339485 | AC84: 0.05872798152 | AD84: 0.05385462164 | AF84: 28125.56216 | AG84: 149.3336351 | AH84: 0.04285915534 | AI84: 0.04285915534
A85: 05G | B85: NHS North Staffordshire CCG | E85: 28904 | F85: 218066.2522 | G85: 132.5468738 | H85: 0.02740261303 | J85: 28097.27378 | K85: 218799.0938 | L85: 128.41586 | M85: 0.00336063717 | O85: 0.02871190371 | P85: 0.03216903117 | Q85: 0.0580437919 | R85: 0.0545 | S85: 30581.69776 | T85: 0 | U85: 0.0580437919 | V85: 0.0545 | W85: 30581.69776 | X85: 0.0580437919 | Y85: 0.0545 | Z85: 30581.69776 | AA85: 30582 | AB85: 139.7720597 | AC85: 0.05805424855 | AD85: 0.05451042163 | AF85: 29917.00183 | AG85: 136.7327502 | AH85: 0.02222810209 | AI85: 0.02222810209
A86: 05H | B86: NHS Warwickshire North CCG | E86: 25637 | F86: 191658.7515 | G86: 133.7637849 | H86: 0.01247733131 | J86: 25303.04128 | K86: 192349.4375 | L86: 131.5472591 | M86: 0.003603728136 | O86: 0.01319836266 | P86: 0.01684965411 | Q86: 0.05830013132 | R86: 0.0545 | S86: 27131.64047 | T86: 0 | U86: 0.05830013132 | V86: 0.0545 | W86: 27131.64047 | X86: 0.05830013132 | Y86: 0.0545 | Z86: 27131.64047 | AA86: 27132 | AB86: 141.0557803 | AC86: 0.05831415532 | AD86: 0.05451397365 | AF86: 26941.80006 | AG86: 140.0669553 | AH86: 0.007059659745 | AI86: 0.007059659745
A87: 05J | B87: NHS Redditch and Bromsgrove CCG | E87: 23068 | F87: 177842.7515 | G87: 129.7100939 | H87: 0.03702790173 | J87: 22240.58017 | K87: 178487.7656 | L87: 124.6056283 | M87: 0.00362687911 | O87: 0.03720315841 | P87: 0.04096496888 | Q87: 0.05832454402 | R87: 0.0545 | S87: 24413.43058 | T87: 0 | U87: 0.05832454402 | V87: 0.0545 | W87: 24413.43058 | X87: 0.05832454402 | Y87: 0.0545 | Z87: 24413.43058 | AA87: 24413 | AB87: 136.7768817 | AC87: 0.05830587827 | AD87: 0.05448140171 | AF87: 23680.99777 | AG87: 132.6757478 | AH87: 0.03091095394 | AI87: 0.03091095394
A88: 05L | B88: NHS Sandwell and West Birmingham CCG | E88: 79419 | F88: 571256.6579 | G88: 139.0250755 | H88: 0.02814904458 | J88: 77198.13119 | K88: 575628.9375 | L88: 134.1109283 | M88: 0.007653791937 | O88: 0.02876842712 | P88: 0.03664240662 | Q88: 0.0625709236 | R88: 0.0545 | S88: 84388.32018 | T88: 0 | U88: 0.0625709236 | V88: 0.0545 | W88: 84388.32018 | X88: 0.0625709236 | Y88: 0.0545 | Z88: 84388.32018 | AA88: 84388 | AB88: 146.6013859 | AC88: 0.06256689205 | AD88: 0.05449599908 | AF88: 82197.89044 | AG88: 142.7966613 | AH88: 0.02664435237 | AI88: 0.02664435237
A89: 05N | B89: NHS Shropshire CCG | E89: 43348 | F89: 310001.5817 | G89: 139.8315446 | H89: 0.0287998232 | J89: 42190.02521 | K89: 311223.875 | L89: 135.5616603 | M89: 0.003942861609 | O89: 0.02744664842 | P89: 0.03149772836 | Q89: 0.05865774757 | R89: 0.0545 | S89: 45890.69604 | T89: 0 | U89: 0.05865774757 | V89: 0.0545 | W89: 45890.69604 | X89: 0.05865774757 | Y89: 0.0545 | Z89: 45890.69604 | AA89: 45891 | AB89: 147.4533405 | AC89: 0.05866475962 | AD89: 0.05450698451 | AF89: 44922.47437 | AG89: 144.3413503 | AH89: 0.02155993495 | AI89: 0.02155993495
A90: 05Q | B90: NHS South East Staffordshire and Seisdon Peninsula CCG | E90: 27558 | F90: 217891.4995 | G90: 126.4757922 | H90: 0.0445788829 | J90: 26353.94343 | K90: 218123.3281 | L90: 120.8212971 | M90: 0.00106396376 | O90: 0.04568790908 | P90: 0.04680048312 | Q90: 0.05562194978 | R90: 0.0545 | S90: 29090.82969 | T90: 0 | U90: 0.05562194978 | V90: 0.0545 | W90: 29090.82969 | X90: 0.05562194978 | Y90: 0.0545 | Z90: 29090.82969 | AA90: 29091 | AB90: 133.3695036 | AC90: 0.05562812976 | AD90: 0.05450617341 | AF90: 28060.76418 | AG90: 128.6463233 | AH90: 0.03671446044 | AI90: 0.03671446044
A91: 05R | B91: NHS South Warwickshire CCG | E91: 37345 | F91: 287548.6646 | G91: 129.8736687 | H91: -0.01407160059 | J91: 37831.60365 | K91: 288329.125 | L91: 131.209789 | M91: 0.002714185403 | O91: -0.01286235848 | P91: -0.0101830839 | Q91: 0.05736210851 | R91: 0.0545 | S91: 39487.18794 | T91: 0 | U91: 0.05736210851 | V91: 0.0545 | W91: 39487.18794 | X91: 0.05736210851 | Y91: 0.0545 | Z91: 39487.18794 | AA91: 39487 | AB91: 136.9511318 | AC91: 0.05735707591 | AD91: 0.05449498103 | AF91: 40281.77838 | AG91: 139.7076288 | AH91: -0.01973046902 | AI91: -0.01973046902
A92: 05T | B92: NHS South Worcestershire CCG | E92: 46487 | F92: 311742.3354 | G92: 149.1199453 | H92: 0.0838213077 | J92: 42962.53246 | K92: 313593.1875 | L92: 137.0008475 | M92: 0.005937121271 | O92: 0.08203584239 | P92: 0.08846002041 | Q92: 0.05393820215 | R92: 0.04771777466 | S92: 48994.4252 | T92: 0 | U92: 0.05393820215 | V92: 0.04771777466 | W92: 48994.4252 | X92: 0.05393820215 | Y92: 0.04771777466 | Z92: 48994.4252 | AA92: 48994 | AB92: 156.2342613 | AC92: 0.05392905543 | AD92: 0.04770868193 | AF92: 45745.01328 | AG92: 145.8737469 | AH92: 0.07102384479 | AI92: 0.07102384479
A93: 05V | B93: NHS Stafford and Surrounds CCG | E93: 20542 | F93: 149033.4121 | G93: 137.8348634 | H93: 0.09722110616 | J93: 18709.26185 | K93: 149500.5 | L93: 125.1451457 | M93: 0.003134115257 | O93: 0.09795887007 | P93: 0.1013999997 | Q93: 0.04896004934 | R93: 0.04568275905 | S93: 21547.73733 | T93: 0 | U93: 0.04896004934 | V93: 0.04568275905 | W93: 21547.73733 | X93: 0.04896004934 | Y93: 0.04568275905 | Z93: 21547.73733 | AA93: 21548 | AB93: 144.1332972 | AC93: 0.04897283614 | AD93: 0.0456955059 | AF93: 19920.97259 | AG93: 133.2502072 | AH93: 0.08167409486 | AI93: 0.08167409486
A94: 05W | B94: NHS Stoke on Trent CCG | E94: 39627 | F94: 291168.8324 | G94: 136.0962974 | H94: -0.009626438574 | J94: 39873.51893 | K94: 292240 | L94: 136.4410037 | M94: 0.003678853927 | O94: -0.00618252243 | P94: -0.0025264131 | Q94: 0.05837935147 | R94: 0.0545 | S94: 41940.39856 | T94: 0 | U94: 0.05837935147 | V94: 0.0545 | W94: 41940.39856 | X94: 0.05837935147 | Y94: 0.0545 | Z94: 41940.39856 | AA94: 41940 | AB94: 143.5121818 | AC94: 0.05836929366 | AD94: 0.05448997906 | AF94: 42455.93889 | AG94: 145.2776447 | AH94: -0.01215233731 | AI94: -0.01215233731
A95: 05X | B95: NHS Telford and Wrekin CCG | E95: 23435 | F95: 186593.4155 | G95: 125.593928 | H95: -0.02810740606 | J95: 24133.83343 | K95: 187726.6094 | L95: 128.5584048 | M95: 0.006073064499 | O95: -0.02895658646 | P95: -0.02305937718 | Q95: 0.06090404651 | R95: 0.0545 | S95: 24862.28633 | T95: 0 | U95: 0.06090404651 | V95: 0.0545 | W95: 24862.28633 | X95: 0.06090404651 | Y95: 0.0545 | Z95: 24862.28633 | AA95: 24862 | AB95: 132.4372719 | AC95: 0.06089182846 | AD95: 0.0544878557 | AF95: 25696.86812 | AG95: 136.884527 | AH95: -0.03248910025 | AI95: -0.03248910025
A96: 05Y | B96: NHS Walsall CCG | E96: 40137 | F96: 285891.3344 | G96: 140.3925029 | H96: 0.02758030432 | J96: 38990.1403 | K96: 287643.6875 | L96: 135.5501337 | M96: 0.006129437793 | O96: 0.02941409524 | P96: 0.0357238249 | Q96: 0.06096349215 | R96: 0.0545 | S96: 42583.89168 | T96: 0 | U96: 0.06096349215 | V96: 0.0545 | W96: 42583.89168 | X96: 0.06096349215 | Y96: 0.0545 | Z96: 42583.89168 | AA96: 42584 | AB96: 148.0442709 | AC96: 0.0609661908 | AD96: 0.0545026822 | AF96: 41515.34799 | AG96: 144.3290772 | AH96: 0.0257411309 | AI96: 0.0257411309
A97: 06A | B97: NHS Wolverhampton CCG | E97: 36552 | F97: 280643.164 | G97: 130.2436855 | H97: -0.06045288937 | J97: 38823.73395 | K97: 282238.0625 | L97: 137.556691 | M97: 0.005683012106 | O97: -0.05851405094 | P97: -0.0531635749 | Q97: 0.06049273627 | R97: 0.0545 | S97: 38763.1305 | T97: 1 | U97: 0.07450727418 | V97: 0.06843534319 | W97: 39275.38989 | X97: 0.07450727418 | Y97: 0.06843534319 | Z97: 39275.38989 | AA97: 39275 | AB97: 139.1555754 | AC97: 0.07449660757 | AD97: 0.06842473686 | AF97: 41338.16428 | AG97: 146.4655898 | AH97: -0.04990943162 | AI97: -0.04990943162
A98: 06D | B98: NHS Wyre Forest CCG | E98: 16983 | F98: 116333.3347 | G98: 145.9856716 | H98: 0.07745350553 | J98: 15759.86243 | K98: 116725.7969 | L98: 135.0161048 | M98: 0.003373600174 | O98: 0.07761092965 | P98: 0.08124635807 | Q98: 0.05252873904 | R98: 0.04898986664 | S98: 17875.09558 | T98: 0 | U98: 0.05252873904 | V98: 0.04898986664 | W98: 17875.09558 | X98: 0.05252873904 | Y98: 0.04898986664 | Z98: 17875.09558 | AA98: 17875 | AB98: 153.1366714 | AC98: 0.05252311135 | AD98: 0.04898425787 | AF98: 16780.55447 | AG98: 143.7604618 | AH98: 0.06522105906 | AI98: 0.06522105906
A99: 06F | B99: NHS Bedfordshire CCG | E99: 60488 | F99: 480292.0828 | G99: 125.9400314 | H99: -0.005580768393 | J99: 61180.22591 | K99: 486320.9688 | L99: 125.802155 | M99: 0.01255254084 | O99: -0.01131453661 | P99: 0.001095978053 | Q99: 0.06773665432 | R99: 0.0545 | S99: 64585.25475 | T99: 0 | U99: 0.06773665432 | V99: 0.0545 | W99: 64585.25475 | X99: 0.06773665432 | Y99: 0.0545 | Z99: 64585.25475 | AA99: 64585 | AB99: 132.8032393 | AC99: 0.0677324428 | AD99: 0.05449584069 | AF99: 65142.5809 | AG99: 133.9497679 | AH99: -0.008559392216 | AI99: -0.008559392216
A100: 06H | B100: NHS Cambridgeshire and Peterborough CCG | E100: 125463 | F100: 967901.8398 | G100: 129.6236817 | H100: 0.02433534744 | J100: 122499.4153 | K100: 973472.4375 | L100: 125.8375796 | M100: 0.005755333329 | O100: 0.02419264341 | P100: 0.03008721347 | Q100: 0.06056899899 | R100: 0.0545 | S100: 133062.1683 | T100: 0 | U100: 0.06056899899 | V100: 0.0545 | W100: 133062.1683 | X100: 0.06056899899 | Y100: 0.0545 | Z100: 133062.1683 | AA100: 133062 | AB100: 136.6879994 | AC100: 0.0605676574 | AD100: 0.05449866608 | AF100: 130433.1253 | AG100: 133.9874868 | AH100: 0.02015496191 | AI100: 0.02015496191
A101: 06K | B101: NHS East and North Hertfordshire CCG | E101: 71486.41 | F101: 598378.249 | G101: 119.466926 | H101: -0.01074766764 | J101: 72397.58844 | K101: 603318.875 | L101: 119.9988786 | M101: 0.008256693758 | O101: -0.01258575672 | P101: -0.004432979702 | Q101: 0.06320668357 | R101: 0.0545 | S101: 76004.8289 | T101: 0 | U101: 0.06320668357 | V101: 0.0545 | W101: 76004.8289 | X101: 0.06320668357 | Y101: 0.0545 | Z101: 76004.8289 | AA101: 76005 | AB101: 125.9781571 | AC101: 0.06320907708 | AD101: 0.05450237391 | AF101: 77086.43915 | AG101: 127.7706406 | AH101: -0.01402891564 | AI101: -0.01402891564
A102: 06L | B102: NHS Ipswich and East Suffolk CCG | E102: 55072 | F102: 407773.1641 | G102: 135.055479 | H102: -0.002606363188 | J102: 55269.69492 | K102: 409731.9062 | L102: 134.8923383 | M102: 0.004803509304 | O102: -0.003576913565 | P102: 0.001209414001 | Q102: 0.05956530056 | R102: 0.0545 | S102: 58352.38023 | T102: 0 | U102: 0.05956530056 | V102: 0.0545 | W102: 58352.38023 | X102: 0.05956530056 | Y102: 0.0545 | Z102: 58352.38023 | AA102: 58352 | AB102: 142.4150746 | AC102: 0.05955839628 | AD102: 0.05449312873 | AF102: 58849.25267 | AG102: 143.6286796 | AH102: -0.008449600419 | AI102: -0.008449600419
A103: 06M | B103: NHS Great Yarmouth and Waveney CCG | E103: 33799 | F103: 239834.4198 | G103: 140.9263943 | H103: -0.02311573885 | J103: 34529.14722 | K103: 240583.375 | L103: 143.5225822 | M103: 0.003122801318 | O103: -0.02114582255 | P103: -0.01808905543 | Q103: 0.05779299399 | R103: 0.0545 | S103: 35752.3454 | T103: 0 | U103: 0.05779299399 | V103: 0.0545 | W103: 35752.3454 | X103: 0.05779299399 | Y103: 0.0545 | Z103: 35752.3454 | AA103: 35752 | AB103: 148.6054471 | AC103: 0.05778277464 | AD103: 0.05448981246 | AF103: 36765.43741 | AG103: 152.8178637 | AH103: -0.02756494903 | AI103: -0.02756494903
A104: 06N | B104: NHS Herts Valleys CCG | E104: 77326 | F104: 646355.7542 | G104: 119.6338077 | H104: 0.006805708217 | J104: 76911.66392 | K104: 651355.75 | L104: 118.0793505 | M104: 0.007735671503 | O104: 0.00538716833 | P104: 0.0131645132 | Q104: 0.0626572656 | R104: 0.0545 | S104: 82171.03572 | T104: 0 | U104: 0.0626572656 | V104: 0.0545 | W104: 82171.03572 | X104: 0.0626572656 | Y104: 0.0545 | Z104: 82171.03572 | AA104: 82171 | AB104: 126.1537954 | AC104: 0.06265680366 | AD104: 0.05449954161 | AF104: 81892.87004 | AG104: 125.7267938 | AH104: 0.00339626589 | AI104: 0.00339626589
A105: 06P | B105: NHS Luton CCG | E105: 30123.15 | F105: 234034.252 | G105: 128.7125698 | H105: 4.583680222e-05 | J105: 30133.32814 | K105: 236174.5938 | L105: 127.5892028 | M105: 0.009145421147 | O105: -0.000337770223 | P105: 0.008804561873 | Q105: 0.0641438466 | R105: 0.0545 | S105: 32055.36471 | T105: 0 | U105: 0.0641438466 | V105: =MAX(R105,NewMinGrowthPerHead(P105,$P$2,$L$1,$U$1,$T$2,AG105,G105,T105, $P$1)) -> 0.0545 | W105: 32055.36471 | X105: 0.0641438466 | Y105: 0.0545 | Z105: 32055.36471 | AA105: =IF(ROUND(Z105,0)/E105>$AA$1,ROUND(Z105,0),ROUNDUP(Z105,0)) -> 32055 | AB105: =AA105/K105*1000 -> 135.7258606 | AC105: =AA105/E105-1 -> 0.06413173921 | AD105: =AB105/G105-1 -> 0.05448800233 | AF105: 32084.92184 | AG105: =AF105/K105*1000 -> 135.8525544 | AH105: -0.0009325825372 | AI105: -0.0009325825372
A106: 06Q | B106: NHS Mid Essex CCG | E106: 48462 | F106: 391510.002 | G106: 123.7822783 | H106: -0.02394167301 | J106: 49716.19687 | K106: 393605.25 | L106: 126.309791 | M106: 0.005351710139 | O106: -0.02522712807 | P106: -0.02001042621 | Q106: 0.06014337834 | R106: 0.0545 | S106: 51376.6684 | T106: 0 | U106: 0.06014337834 | V106: 0.0545 | W106: 51376.6684 | X106: 0.06014337834 | Y106: 0.0545 | Z106: 51376.6684 | AA106: 51377 | AB106: 130.5292549 | AC106: 0.06015022079 | AD106: 0.05450680603 | AF106: 52936.08071 | AG106: 134.4902811 | AH106: -0.02945213715 | AI106: -0.02945213715
A107: 06T | B107: NHS North East Essex CCG | E107: 47737 | F107: 351813.5821 | G107: 135.6883373 | H107: -0.01106756902 | J107: 48424.85963 | K107: 355431.3125 | L107: 136.2425254 | M107: 0.01028308903 | O107: -0.01420467984 | P107: -0.004067658796 | Q107: 0.06534351738 | R107: 0.0545 | S107: 50856.30349 | T107: 0 | U107: 0.06534351738 | V107: 0.0545 | W107: 50856.30349 | X107: 0.06534351738 | Y107: 0.0545 | Z107: 50856.30349 | AA107: 50856 | AB107: 143.0824978 | AC107: 0.06533715986 | AD107: 0.05449370718 | AF107: 51561.10964 | AG107: 145.0663119 | AH107: -0.0136752224 | AI107: -0.0136752224
A108: 06V | B108: NHS North Norfolk CCG | E108: 28143 | F108: 173764.1685 | G108: 161.9608936 | H108: 0.0349579136 | J108: 27187.50877 | K108: 174474.5469 | L108: 155.8250717 | M108: 0.00408817551 | O108: 0.03514449375 | P108: 0.03937634612 | Q108: 0.05881098108 | R108: 0.0545 | S108: 29798.11744 | T108: 0 | U108: 0.05881098108 | V108: 0.0545 | W108: 29798.11744 | X108: 0.05881098108 | Y108: 0.0545 | Z108: 29798.11744 | AA108: 29798 | AB108: 170.7870892 | AC108: 0.05880680809 | AD108: 0.054495844 | AF108: 28948.31562 | AG108: 165.9171274 | AH108: 0.0293517726 | AI108: 0.0293517726
A109: 06W | B109: NHS Norwich CCG | E109: 31047 | F109: 235861.9206 | G109: 131.6321004 | H109: 0.07660687485 | J109: 28777.75106 | K109: 237093.5156 | L109: 121.3772169 | M109: 0.005221678224 | O109: 0.07885428343 | P109: 0.08448771335 | Q109: 0.05389277328 | R109: 0.04841827043 | S109: 32720.20893 | T109: 0 | U109: 0.05389277328 | V109: 0.04841827043 | W109: 32720.20893 | X109: 0.05389277328 | Y109: 0.04841827043 | Z109: 32720.20893 | AA109: 32720 | AB109: 138.0046178 | AC109: 0.05388604374 | AD109: 0.04841157584 | AF109: 30641.55042 | AG109: 129.2382473 | AH109: 0.06783108408 | AI109: 0.06783108408
A110: 06Y | B110: NHS South Norfolk CCG | E110: 32333 | F110: 228211.083 | G110: 141.6802356 | H110: 0.01596330744 | J110: 31938.3081 | K110: 230298.2812 | L110: 138.6823554 | M110: 0.009145910946 | O110: 0.01235794648 | P110: 0.0216168821 | Q110: 0.06414436309 | R110: 0.0545 | S110: 34406.97969 | T110: 0 | U110: 0.06414436309 | V110: 0.0545 | W110: 34406.97969 | X110: 0.06414436309 | Y110: 0.0545 | Z110: 34406.97969 | AA110: 34407 | AB110: 149.4018966 | AC110: 0.06414499119 | AD110: 0.0545006224 | AF110: 34006.80184 | AG110: 147.6641582 | AH110: 0.01176817976 | AI110: 0.01176817976
A111: 07G | B111: NHS Thurrock CCG | E111: 21122 | F111: 176522.333 | G111: 119.6562477 | H111: -0.05208578335 | J111: 22356.38014 | K111: 178554.9375 | L111: 125.2072917 | M111: 0.01151471577 | O111: -0.05521377467 | P111: -0.04433482982 | Q111: 0.06664226778 | R111: 0.0545 | S111: 22529.61798 | T111: 0.7764991894 | U111: 0.07470503981 | V111: 0.06247098836 | W111: 22699.91985 | X111: 0.07470503981 | Y111: 0.06247098836 | Z111: 22699.91985 | AA111: 22700 | AB111: 127.1317406 | AC111: 0.07470883439 | AD111: 0.06247473975 | AF111: 23804.29755 | AG111: 133.316378 | AH111: -0.04639067995 | AI111: -0.04639067995
A112: 07H | B112: NHS West Essex CCG | E112: 40516 | F112: 313283.4155 | G112: 129.3269863 | H112: -0.02100556196 | J112: 41454.89936 | K112: 316014.2812 | L112: 131.1804618 | M112: 0.008716917613 | O112: -0.02264869469 | P112: -0.01412920388 | Q112: 0.06369198962 | R112: 0.0545 | S112: 43096.54465 | T112: 0 | U112: 0.06369198962 | V112: 0.0545 | W112: 43096.54465 | X112: 0.06369198962 | Y112: 0.0545 | Z112: 43096.54465 | AA112: 43097 | AB112: 136.376748 | AC112: 0.06370322835 | AD112: 0.05451114161 | AF112: 44139.73788 | AG112: 139.6764023 | AH112: -0.02362356313 | AI112: -0.02362356313
A113: 07J | B113: NHS West Norfolk CCG | E113: 28328 | F113: 175842.082 | G113: 161.0990934 | H113: 0.0254121117 | J113: 27621.98012 | K113: 176762.8125 | L113: 156.2657877 | M113: 0.005236121286 | O113: 0.02556007469 | P113: 0.03093003163 | Q113: 0.0600214899 | R113: 0.0545 | S113: 30028.28877 | T113: 0 | U113: 0.0600214899 | V113: 0.0545 | W113: 30028.28877 | X113: 0.0600214899 | Y113: 0.0545 | Z113: 30028.28877 | AA113: 30028 | AB113: 169.8773604 | AC113: 0.06001129624 | AD113: 0.05448985944 | AF113: 29410.92564 | AG113: 166.3863865 | AH113: 0.02098112671 | AI113: 0.02098112671
A114: 07K | B114: NHS West Suffolk CCG | E114: 34527 | F114: 250879.6626 | G114: 137.6237501 | H114: 0.02280397626 | J114: 33818.06368 | K114: 252258.1562 | L114: 134.061329 | M114: 0.005494640889 | O114: 0.02096324388 | P114: 0.02657307027 | Q114: 0.06029409882 | R114: 0.0545 | S114: 36608.77435 | T114: 0 | U114: 0.06029409882 | V114: 0.0545 | W114: 36608.77435 | X114: 0.06029409882 | Y114: 0.0545 | Z114: 36608.77435 | AA114: 36609 | AB114: 145.125139 | AC114: 0.06030063429 | AD114: 0.05450649975 | AF114: 36008.30034 | AG114: 142.7438497 | AH114: 0.01668225528 | AI114: 0.01668225528
A115: 07L | B115: NHS Barking and Dagenham CCG | E115: 31194 | F115: 224031.6644 | G115: 139.2392458 | H115: 0.06919259953 | J115: 29361.66502 | K115: 227890.2969 | L115: 128.841225 | M115: 0.01722360293 | O115: 0.06240569036 | P115: 0.08070414412 | Q115: 0.06715451506 | R115: 0.04908548326 | S115: 33288.81794 | T115: 0 | U115: 0.06715451506 | V115: 0.04908548326 | W115: 33288.81794 | X115: 0.06715451506 | Y115: 0.04908548326 | Z115: 33288.81794 | AA115: 33289 | AB115: 146.0746704 | AC115: 0.06716035135 | AD115: 0.04909122073 | AF115: 31263.28174 | AG115: 137.1856642 | AH115: 0.06479544537 | AI115: 0.06479544537
A116: 07M | B116: NHS Barnet CCG | E116: 51330 | F116: 423732.5726 | G116: 121.1377253 | H116: -0.01857916175 | J116: 52518.96634 | K116: 428645.75 | L116: 122.5230073 | M116: 0.01159499577 | O116: -0.02263879932 | P116: -0.01130630033 | Q116: 0.06672692304 | R116: 0.0545 | S116: 54755.09296 | T116: 0 | U116: 0.06672692304 | V116: 0.0545 | W116: 54755.09296 | X116: 0.06672692304 | Y116: 0.0545 | Z116: 54755.09296 | AA116: 54755 | AB116: 127.7395145 | AC116: 0.06672511202 | AD116: 0.05449820974 | AF116: 55920.37236 | AG116: 130.4582452 | AH116: -0.02083985332 | AI116: -0.02083985332
A117: 07N | B117: NHS Bexley CCG | E117: 29566 | F117: 241442.5046 | G117: 122.4556548 | H117: 0.003779490449 | J117: 29478.34031 | K117: 243943.6875 | L117: 120.8407588 | M117: 0.01035933116 | O117: 0.002973698372 | P117: 0.01336383506 | Q117: 0.06542391471 | R117: 0.0545 | S117: 31500.32346 | T117: 0 | U117: 0.06542391471 | V117: 0.0545 | W117: 31500.32346 | X117: 0.06542391471 | Y117: 0.0545 | Z117: 31500.32346 | AA117: 31500 | AB117: 129.128162 | AC117: 0.06541297436 | AD117: 0.05448917183 | AF117: 31387.51353 | AG117: 128.6670455 | AH117: 0.003583796842 | AI117: 0.003583796842
A118: 07P | B118: NHS Brent CCG | E118: 49142 | F118: 381905.0813 | G118: 128.6759522 | H118: 0.005775806855 | J118: 48811.83243 | K118: 383764.3438 | L118: 127.1922033 | M118: 0.00486838888 | O118: 0.006764088776 | P118: 0.01166540787 | Q118: 0.05963371607 | R118: 0.0545 | S118: 52072.52008 | T118: 0 | U118: 0.05963371607 | V118: 0.0545 | W118: 52072.52008 | X118: 0.05963371607 | Y118: 0.0545 | Z118: 52072.52008 | AA118: 52073 | AB118: 135.6900422 | AC118: 0.05964348215 | AD118: 0.05450971876 | AF118: 51973.14485 | AG118: 135.4298431 | AH118: 0.001921283544 | AI118: 0.001921283544
A119: 07Q | B119: NHS Bromley CCG | E119: 43960 | F119: 349360.7507 | G119: 125.8298189 | H119: 0.02580362289 | J119: 42929.86084 | K119: 353043.375 | L119: 121.5993951 | M119: 0.01054103605 | O119: 0.02399586532 | P119: 0.03478984265 | Q119: 0.06561552251 | R119: 0.0545 | S119: 46844.45837 | T119: 0 | U119: 0.06561552251 | V119: 0.0545 | W119: 46844.45837 | X119: 0.06561552251 | Y119: 0.0545 | Z119: 46844.45837 | AA119: 46844 | AB119: 132.6862457 | AC119: 0.06560509554 | AD119: 0.05448968179 | AF119: 45710.22567 | AG119: 129.474815 | AH119: 0.02480351629 | AI119: 0.02480351629
A120: 07R | B120: NHS Camden CCG | E120: 37814 | F120: 284025.7501 | G120: 133.135816 | H120: -0.01168494223 | J120: 38461.38182 | K120: 287746.6562 | L120: 133.6640443 | M120: 0.01310059439 | O120: -0.01683199583 | P120: -0.003951910599 | Q120: 0.06831457678 | R120: 0.0545 | S120: 40397.24741 | T120: 0 | U120: 0.06831457678 | V120: 0.0545 | W120: 40397.24741 | X120: 0.06831457678 | Y120: 0.0545 | Z120: 40397.24741 | AA120: 40397 | AB120: 140.3908581 | AC120: 0.06830803406 | AD120: 0.05449354189 | AF120: 40952.34432 | AG120: 142.3208348 | AH120: -0.01356074543 | AI120: -0.01356074543
A121: 07T | B121: NHS City and Hackney CCG | E121: 46386 | F121: 319028.9971 | G121: 145.3974417 | H121: 0.0561151166 | J121: 44165.67437 | K121: 323519.0625 | L121: 136.5164514 | M121: 0.01407416064 | O121: 0.05027265328 | P121: 0.06505435932 | Q121: 0.06664908063 | R121: 0.05184524173 | S121: 49477.58425 | T121: 0 | U121: 0.06664908063 | V121: 0.05184524173 | W121: 49477.58425 | X121: 0.06664908063 | Y121: 0.05184524173 | Z121: 49477.58425 | AA121: 49478 | AB121: 152.9368922 | AC121: 0.06665804338 | AD121: 0.05185408009 | AF121: 47026.07702 | AG121: 145.3579788 | AH121: 0.05213964546 | AI121: 0.05213964546
A122: 07V | B122: NHS Croydon CCG | E122: 52255 | F122: 412238.4162 | G122: 126.7591713 | H122: -0.0127408624 | J122: 53009.9449 | K122: 415648.125 | L122: 127.5356286 | M122: 0.008271205854 | O122: -0.01424157109 | P122: -0.006088160205 | Q122: 0.06322198657 | R122: 0.0545 | S122: 55558.66491 | T122: 0 | U122: 0.06322198657 | V122: 0.0545 | W122: 55558.66491 | X122: 0.06322198657 | Y122: 0.0545 | Z122: 55558.66491 | AA122: 55559 | AB122: 133.6683523 | AC122: 0.0632283992 | AD122: 0.05450636002 | AF122: 56443.14928 | AG122: 135.7955104 | AH122: -0.01566442156 | AI122: -0.01566442156
A123: 07W | B123: NHS Ealing CCG | E123: 55396 | F123: 437491.4159 | G123: 126.621913 | H123: 0.02948055554 | J123: 53642.37403 | K123: 438184.875 | L123: 122.4195017 | M123: 0.001585080557 | O123: 0.03269105821 | P123: 0.03432795672 | Q123: 0.05617146745 | R123: 0.0545 | S123: 58507.67461 | T123: 0 | U123: 0.05617146745 | V123: 0.0545 | W123: 58507.67461 | X123: 0.05617146745 | Y123: 0.0545 | Z123: 58507.67461 | AA123: 58508 | AB123: 133.5235498 | AC123: 0.05617734132 | AD123: 0.05450586458 | AF123: 57116.53787 | AG123: 130.348036 | AH123: 0.02436180803 | AI123: 0.02436180803
A124: 07X | B124: NHS Enfield CCG | E124: 43225 | F124: 339923.5801 | G124: 127.1609342 | H124: 0.005859664935 | J124: 43081.68486 | K124: 343347.5625 | L124: 125.4754353 | M124: 0.01007280054 | O124: 0.003326590875 | P124: 0.0134328995 | Q124: 0.06512176817 | R124: 0.0545 | S124: 46039.88843 | T124: 0 | U124: 0.06512176817 | V124: 0.0545 | W124: 46039.88843 | X124: 0.06512176817 | Y124: 0.0545 | Z124: 46039.88843 | AA124: 46040 | AB124: 134.0915301 | AC124: 0.06512434933 | AD124: 0.05450255542 | AF124: 45871.88262 | AG124: 133.6018881 | AH124: 0.003664933115 | AI124: 0.003664933115
A125: 07Y | B125: NHS Hounslow CCG | E125: 39861 | F125: 316827.4174 | G125: 125.8129752 | H125: 0.01988952577 | J125: 39102.68698 | K125: 318917.875 | L125: 122.6105215 | M125: 0.006598095574 | O125: 0.01939286224 | P125: 0.02611891377 | Q125: 0.06145769178 | R125: 0.0545 | S125: 42310.76505 | T125: 0 | U125: 0.06145769178 | V125: 0.0545 | W125: 42310.76505 | X125: 0.06145769178 | Y125: 0.0545 | Z125: 42310.76505 | AA125: 42311 | AB125: 132.670519 | AC125: 0.06146358596 | AD125: 0.05450585554 | AF125: 41635.18379 | AG125: 130.5514274 | AH125: 0.01623185365 | AI125: 0.01623185365
A126: 08A | B126: NHS Greenwich CCG | E126: 38751 | F126: 296353.2482 | G126: 130.7594914 | H126: 0.03490110047 | J126: 37645.83757 | K126: 300540.5 | L126: 125.2604477 | M126: 0.01412925913 | O126: 0.02935682932 | P126: 0.04390087871 | Q126: 0.06939930376 | R126: 0.0545 | S126: 41440.29242 | T126: 0 | U126: 0.06939930376 | V126: 0.0545 | W126: 41440.29242 | X126: 0.06939930376 | Y126: 0.0545 | Z126: 41440.29242 | AA126: 41440 | AB126: 137.8849107 | AC126: 0.06939175763 | AD126: 0.05449255901 | AF126: 40083.98111 | AG126: 133.3729767 | AH126: 0.03382944637 | AI126: 0.03382944637
A127: 08C | B127: NHS Hammersmith and Fulham CCG | E127: 28812 | F127: 239940.2433 | G127: 120.0798983 | H127: -0.06789308655 | J127: 30720.11627 | K127: 239545.8438 | L127: 128.2431613 | M127: -0.001643740669 | O127: -0.0621129248 | P127: -0.06365456793 | Q127: 0.05276667546 | R127: 0.0545 | S127: 30332.31345 | T127: 1 | U127: 0.07863038904 | V127: 0.08040629681 | W127: 31077.49877 | X127: 0.07863038904 | Y127: 0.08040629681 | Z127: 31077.49877 | AA127: 31077 | AB127: 129.732996 | AC127: 0.07861307788 | AD127: 0.08038895715 | AF127: 32709.71347 | AG127: 136.5488666 | AH127: -0.04991524835 | AI127: -0.04991524835
A128: 08D | B128: NHS Haringey CCG | E128: 43054 | F128: 318493.8382 | G128: 135.1800093 | H128: 0.02201718737 | J128: 42247.73667 | K128: 321680.5625 | L128: 131.3344404 | M128: 0.01000560733 | O128: 0.01908417816 | P128: 0.02928073428 | Q128: 0.06505091293 | R128: 0.0545 | S128: 45854.70201 | T128: 0 | U128: 0.06505091293 | V128: 0.0545 | W128: 45854.70201 | X128: 0.06505091293 | Y128: 0.0545 | Z128: 45854.70201 | AA128: 45855 | AB128: 142.5482461 | AC128: 0.06505783435 | AD128: 0.05450685285 | AF128: 44983.92353 | AG128: 139.8403534 | AH128: 0.01936417285 | AI128: 0.01936417285
A129: 08E | B129: NHS Harrow CCG | E129: 31689 | F129: 267267.6649 | G129: 118.5665315 | H129: 0.00871858224 | J129: 31355.7216 | K129: 268365.625 | L129: 116.8395602 | M129: 0.004108091727 | O129: 0.01062895 | P129: 0.01478070642 | Q129: 0.05883198273 | R129: 0.0545 | S129: 33553.3267 | T129: 0 | U129: 0.05883198273 | V129: 0.0545 | W129: 33553.3267 | X129: 0.05883198273 | Y129: 0.0545 | Z129: 33553.3267 | AA129: 33553 | AB129: 125.0271901 | AC129: 0.05882167314 | AD129: 0.05448973259 | AF129: 33386.48397 | AG129: 124.4067081 | AH129: 0.004987528332 | AI129: 0.004987528332
A130: 08F | B130: NHS Havering CCG | E130: 34764 | F130: 278062.1665 | G130: 125.0224021 | H130: -0.001354286252 | J130: 34889.45813 | K130: 281514.6562 | L130: 123.934784 | M130: 0.01241625134 | O130: -0.003595874852 | P130: 0.008775729197 | Q130: 0.06759293703 | R130: 0.0545 | S130: 37113.80086 | T130: 0 | U130: 0.06759293703 | V130: 0.0545 | W130: 37113.80086 | X130: 0.06759293703 | Y130: 0.0545 | Z130: 37113.80086 | AA130: 37114 | AB130: 131.8368304 | AC130: 0.06759866529 | AD130: 0.054505658 | AF130: 37149.08395 | AG130: 131.9614561 | AH130: -0.0009444096528 | AI130: -0.0009444096528
A131: 08G | B131: NHS Hillingdon CCG | E131: 40031 | F131: 312904.0027 | G131: 127.9338061 | H131: 0.04406838724 | J131: 38502.37612 | K131: 316898.25 | L131: 121.4975978 | M131: 0.01276508859 | O131: 0.03970206601 | P131: 0.05297395499 | Q131: 0.06742964982 | R131: 0.05397555845 | S131: 42730.27631 | T131: 0 | U131: 0.06742964982 | V131: 0.05397555845 | W131: 42730.27631 | X131: 0.06742964982 | Y131: 0.05397555845 | Z131: 42730.27631 | AA131: 42730 | AB131: 134.8382328 | AC131: 0.06742274737 | AD131: 0.053968743 | AF131: 40995.99363 | AG131: 129.3664248 | AH131: 0.04229697147 | AI131: 0.04229697147
A132: 08H | B132: NHS Islington CCG | E132: 37321 | F132: 252448.0015 | G132: 147.8363852 | H132: 0.03658406106 | J132: 36167.74625 | K132: 255947.1875 | L132: 141.3094108 | M132: 0.01386101698 | O132: 0.03188624861 | P132: 0.04618924142 | Q132: 0.06911644241 | R132: 0.0545 | S132: 39900.49475 | T132: 0 | U132: 0.06911644241 | V132: 0.0545 | W132: 39900.49475 | X132: 0.06911644241 | Y132: 0.0545 | Z132: 39900.49475 | AA132: 39900 | AB132: 155.8915352 | AC132: 0.06910318587 | AD132: 0.0544869247 | AF132: 38510.16078 | AG132: 150.4613555 | AH132: 0.03609019522 | AI132: 0.03609019522
A133: 08J | B133: NHS Kingston CCG | E133: 26035 | F133: 209554.5002 | G133: 124.2397561 | H133: 0.08410117789 | J133: 24136.1576 | K133: 212189.8125 | L133: 113.7479567 | M133: 0.01257578493 | O133: 0.07867210826 | P133: 0.0922372567 | Q133: 0.06021917533 | R133: 0.04705167861 | S133: 27602.80623 | T133: 0 | U133: 0.06021917533 | V133: 0.04705167861 | W133: 27602.80623 | X133: 0.06021917533 | Y133: 0.04705167861 | Z133: 27602.80623 | AA133: 27603 | AB133: 130.0863584 | AC133: 0.06022661801 | AD133: 0.04705902886 | AF133: 25699.34281 | AG133: 121.1148759 | AH133: 0.07407415833 | AI133: 0.07407415833
A134: 08K | B134: NHS Lambeth CCG | E134: 56175 | F134: 413713.3293 | G134: 135.7824271 | H134: 0.01420455416 | J134: 55364.92124 | K134: 416706.75 | L134: 132.8630295 | M134: 0.007235494827 | O134: 0.01463162499 | P134: 0.02197298686 | Q134: 0.06212982929 | R134: 0.0545 | S134: 59665.14316 | T134: 0 | U134: 0.06212982929 | V134: 0.0545 | W134: 59665.14316 | X134: 0.06212982929 | Y134: 0.0545 | Z134: 59665.14316 | AA134: 59665 | AB134: 143.1822259 | AC134: 0.06212728082 | AD134: 0.05449746983 | AF134: 58950.64634 | AG134: 141.467942 | AH134: 0.01211782569 | AI134: 0.01211782569
A135: 08L | B135: NHS Lewisham CCG | E135: 44841 | F135: 330341.7554 | G135: 135.7412415 | H135: 0.01957229133 | J135: 44129.46187 | K135: 334478.8438 | L135: 131.9349869 | M135: 0.01252366167 | O135: 0.01612387958 | P135: 0.02884947126 | Q135: 0.06770620123 | R135: 0.0545 | S135: 47877.01377 | T135: 0 | U135: 0.06770620123 | V135: 0.0545 | W135: 47877.01377 | X135: 0.06770620123 | Y135: 0.0545 | Z135: 47877.01377 | AA135: 47877 | AB135: 143.139098 | AC135: 0.06770589416 | AD135: 0.05449969673 | AF135: 46987.51921 | AG135: 140.4797944 | AH135: 0.01893015008 | AI135: 0.01893015008
A136: 08M | B136: NHS Newham CCG | E136: 53289 | F136: 400514.6649 | G136: 133.0513079 | H136: 0.03561357624 | J136: 51733.14023 | K136: 405949.8125 | L136: 127.4372807 | M136: 0.01357040837 | O136: 0.03007472131 | P136: 0.04405325593 | Q136: 0.06880999562 | R136: 0.0545 | S136: 56955.81586 | T136: 0 | U136: 0.06880999562 | V136: 0.0545 | W136: 56955.81586 | X136: 0.06880999562 | Y136: 0.0545 | Z136: 56955.81586 | AA136: 56956 | AB136: 140.3030578 | AC136: 0.06881345118 | AD136: 0.05450340929 | AF136: 55083.65199 | AG136: 135.690793 | AH136: 0.03399099269 | AI136: 0.03399099269
A137: 08N | B137: NHS Redbridge CCG | E137: 38474 | F137: 320670.8375 | G137: 119.9797284 | H137: -6.829669933e-05 | J137: 38615.00717 | K137: 324502.875 | L137: 118.997427 | M137: 0.01195006539 | O137: -0.003651615776 | P137: 0.008254812562 | Q137: 0.06710134395 | R137: 0.0545 | S137: 41055.65711 | T137: 0 | U137: 0.06710134395 | V137: =MAX(R137,NewMinGrowthPerHead(P137,$P$2,$L$1,$U$1,$T$2,AG137,G137,T137, $P$1)) -> 0.0545 | W137: 41055.65711 | X137: 0.06710134395 | Y137: 0.0545 | Z137: 41055.65711 | AA137: =IF(ROUND(Z137,0)/E137>$AA$1,ROUND(Z137,0),ROUNDUP(Z137,0)) -> 41056 | AB137: =AA137/K137*1000 -> 126.5196803 | AC137: =AA137/E137-1 -> 0.06711025628 | AD137: =AB137/G137-1 -> 0.05450880708 | AF137: 41115.91926 | AG137: =AF137/K137*1000 -> 126.7043297 | AH137: -0.001457325005 | AI137: -0.001457325005
A138: 08P | B138: NHS Richmond CCG | E138: 25598 | F138: 217734.1711 | G138: =E138/F138*1000 -> 117.5653774 | H138: 0.01362167485 | J138: 25335.00818 | K138: 219498.4375 | L138: =J138/K138*1000 -> 115.4222712 | M138: =K138/F138-1 -> 0.008102845539 | O138: =E138/J138-1 -> 0.01038056959 | P138: =G138/L138-1 -> 0.01856752728 | Q138: =(1+M138)*(1+R138)-1 -> 0.06304445062 | R138: =MinGrowthPerHead(P138,0,1,$Q$1,$Q$2,$R$1,$R$2) -> 0.0545 | S138: =(1+IF($S$2=1,Q138,0))*$E138 -> 27211.81185 | T138: =MinMaxRamp(P138,0,1,$P$2,$T$2) -> 0 | U138: =(1+M138)*(1+V138)-1 -> 0.06304445062 | V138: 0.0545 | W138: =(1+IF($S$2=1,U138,0))*$E138 -> 27211.81185 | X138: =MAX(U138,$X$1) -> 0.06304445062 | Y138: =(1+X138)/(1+M138) - 1 -> 0.0545 | Z138: =(1+IF($Z$2=1,X138,0))*$E138 -> 27211.81185 | AA138: 27212 | AB138: 123.9735476 | AC138: 0.06305180092 | AD138: 0.05450729122 | AF138: 26975.8373 | AG138: 122.8976279 | AH138: =AA138/AF138-1 -> 0.008754601142 | AI138: 0.008754601142
A139: 08Q | B139: NHS Southwark CCG | E139: 44749 | F139: 330855.1648 | G139: 135.2525357 | H139: -0.007257494798 | J139: 45182.93838 | K139: 334416.6875 | L139: 135.1097002 | M139: 0.01076459756 | O139: -0.009604031865 | P139: 0.001057182162 | Q139: 0.06585126813 | R139: 0.0545 | S139: 47695.7784 | T139: 0 | U139: 0.06585126813 | V139: 0.0545 | W139: 47695.7784 | X139: 0.06585126813 | Y139: 0.0545 | Z139: 47695.7784 | AA139: 47696 | AB139: 142.6244616 | AC139: 0.06585622025 | AD139: 0.05450489938 | AF139: 48109.22443 | AG139: 143.8601189 | AH139: -0.008589297246 | AI139: -0.008589297246
A140: 08R | B140: NHS Merton CCG | E140: 29316 | F140: 225435.2542 | G140: 130.0417724 | H140: 0.1193064678 | J140: 26155.74867 | K140: 226818.9688 | L140: 115.3155259 | M140: 0.006137968992 | O140: 0.1208243499 | P140: 0.127703935 | Q140: 0.0521011274 | R140: 0.04568275905 | S140: 30843.39665 | T140: 0 | U140: 0.0521011274 | V140: 0.04568275905 | W140: 30843.39665 | X140: 0.0521011274 | Y140: 0.04568275905 | Z140: 30843.39665 | AA140: 30843 | AB140: 135.9806905 | AC140: 0.05208759722 | AD140: 0.04566931141 | AF140: 27849.73329 | AG140: 122.7839693 | AH140: 0.1074791878 | AI140: 0.1074791878
A141: 08T | B141: NHS Sutton CCG | E141: 26294 | F141: 196403.9951 | G141: 133.8771138 | H141: 0.09927242929 | J141: 23966.14782 | K141: 198247.3125 | L141: 120.8901524 | M141: 0.009385335475 | O141: 0.09713084481 | P141: 0.1074277858 | Q141: 0.05549684254 | R141: 0.04568275905 | S141: 27753.23398 | T141: 0 | U141: 0.05549684254 | V141: 0.04568275905 | W141: 27753.23398 | X141: 0.05549684254 | Y141: 0.04568275905 | Z141: 27753.23398 | AA141: 27753 | AB141: 139.9918095 | AC141: 0.05548794402 | AD141: 0.04567394326 | AF141: 25518.3223 | AG141: 128.719638 | AH141: 0.08757149767 | AI141: 0.08757149767
A142: 08V | B142: NHS Tower Hamlets CCG | E142: 45600 | F142: 324833.7494 | G142: 140.3795021 | H142: 0.008180830641 | J142: 45675.98888 | K142: 331104.6875 | L142: 137.9502937 | M142: 0.01930506951 | O142: -0.001663650517 | P142: 0.0176093021 | Q142: 0.0748571958 | R142: 0.0545 | S142: 49013.48813 | T142: 0 | U142: 0.0748571958 | V142: 0.0545 | W142: 49013.48813 | X142: 0.0748571958 | Y142: 0.0545 | Z142: 49013.48813 | AA142: 49013 | AB142: 148.0287107 | AC142: 0.07484649123 | AD142: 0.05448949817 | AF142: 48634.20749 | AG142: 146.8846843 | AH142: 0.007788602507 | AI142: 0.007788602507
A143: 08W | B143: NHS Waltham Forest CCG | E143: 40385 | F143: 311576.3333 | G143: 129.6151077 | H143: 0.02188759561 | J143: 39576.87654 | K143: 314321.0938 | L143: 125.9122513 | M143: 0.008809271256 | O143: 0.02041908125 | P143: 0.02940822973 | Q143: 0.06378937654 | R143: 0.0545 | S143: 42961.13397 | T143: 0 | U143: 0.06378937654 | V143: 0.0545 | W143: 42961.13397 | X143: 0.06378937654 | Y143: 0.0545 | Z143: 42961.13397 | AA143: 42961 | AB143: 136.6787048 | AC143: 0.06378605918 | AD143: 0.05449671161 | AF143: 42140.08438 | AG143: 134.0669946 | AH143: 0.01948063546 | AI143: 0.01948063546
A144: 08X | B144: NHS Wandsworth CCG | E144: 48924 | F144: 403858.7606 | G144: 121.1413612 | H144: 0.003736981304 | J144: 48706.21997 | K144: 406574.1875 | L144: 119.7966361 | M144: 0.006723704343 | O144: 0.004471298069 | P144: 0.0112250661 | Q144: 0.06159014623 | R144: 0.0545 | S144: 51937.23631 | T144: 0 | U144: 0.06159014623 | V144: 0.0545 | W144: 51937.23631 | X144: 0.06159014623 | Y144: 0.0545 | Z144: 51937.23631 | AA144: 51937 | AB144: 127.7429842 | AC144: 0.061585316 | AD144: 0.05449520203 | AF144: 51860.69237 | AG144: 127.5552998 | AH144: 0.00147139626 | AI144: 0.00147139626
A145: 08Y | B145: NHS West London CCG | E145: 37058 | F145: 250220.5861 | G145: 148.1013237 | H145: 0.09043097476 | J145: 33875.0315 | K145: 250446.0938 | L145: 135.2587736 | M145: 0.0009012355617 | O145: 0.09396208227 | P145: 0.0949479998 | Q145: 0.0475168625 | R145: 0.04657365311 | S145: 38818.87989 | T145: 0 | U145: 0.0475168625 | V145: 0.04657365311 | W145: 38818.87989 | X145: 0.0475168625 | Y145: 0.04657365311 | Z145: 38818.87989 | AA145: 38819 | AB145: 154.9994229 | AC145: 0.04752010362 | AD145: 0.04657689131 | AF145: 36068.9577 | AG145: 144.0188472 | AH145: 0.07624401916 | AI145: 0.07624401916
A146: 09A | B146: NHS Central London (Westminster) CCG | E146: 29446 | F146: 229468.5806 | G146: 128.3225788 | H146: -0.05716393113 | J146: 31272.23554 | K146: 231308.875 | L146: 135.1968684 | M146: 0.008019810139 | O146: -0.05839798497 | P146: -0.05084651558 | Q146: 0.06295688979 | R146: 0.0545 | S146: 31299.82858 | T146: 1 | U146: 0.07437482573 | V146: 0.06582709479 | W146: 31636.04112 | X146: 0.07437482573 | Y146: 0.06582709479 | Z146: 31636.04112 | AA146: 31636 | AB146: 136.7695035 | AC146: 0.07437342933 | AD146: 0.0658257095 | AF146: 33297.5909 | AG146: 143.9529327 | AH146: -0.04990123488 | AI146: -0.04990123488
A147: 09C | B147: NHS Ashford CCG | E147: 17005 | F147: 133545.9155 | G147: 127.3344822 | H147: -0.03328507695 | J147: 17662.95373 | K147: 134913.2812 | L147: 130.9207928 | M147: 0.01023891879 | O147: -0.037250493 | P147: -0.02739297898 | Q147: 0.06529693987 | R147: 0.0545 | S147: 18115.37446 | T147: 0.0961035733 | U147: 0.0662935718 | V147: 0.05548653093 | W147: 18132.32219 | X147: 0.0662935718 | Y147: 0.05548653093 | Z147: 18132.32219 | AA147: 18132 | AB147: 134.3974428 | AC147: 0.06627462511 | AD147: 0.05546777626 | AF147: 18806.90003 | AG147: 139.3999157 | AH147: -0.03588576699 | AI147: -0.03588576699
A148: 09D | B148: NHS Brighton and Hove CCG | E148: 41673 | F148: 317709.1667 | G148: 131.1671314 | H148: 0.01434360834 | J148: 41028.81165 | K148: 319712.5625 | L148: 128.3303081 | M148: 0.006305753888 | O148: 0.01570087763 | P148: 0.02210563739 | Q148: 0.06114941747 | R148: 0.0545 | S148: 44221.27967 | T148: 0 | U148: 0.06114941747 | V148: 0.0545 | W148: 44221.27967 | X148: 0.06114941747 | Y148: 0.0545 | Z148: 44221.27967 | AA148: 44221 | AB148: 138.3148652 | AC148: 0.06114270631 | AD148: 0.05449333089 | AF148: 43686.05448 | AG148: 136.6416576 | AH148: 0.01224522392 | AI148: 0.01224522392
A149: 09E | B149: NHS Canterbury and Coastal CCG | E149: 27394 | F149: 225725.2512 | G149: 121.359927 | H149: -0.04361986845 | J149: 28700.03653 | K149: 227708.875 | L149: 126.038287 | M149: 0.008787779695 | O149: -0.04550644133 | P149: -0.03711856221 | Q149: 0.06376671369 | R149: 0.0545 | S149: 29140.82535 | T149: 0.4866892454 | U149: 0.0688066231 | V149: 0.05949600562 | W149: 29278.88863 | X149: 0.0688066231 | Y149: 0.05949600562 | Z149: 29278.88863 | AA149: 29279 | AB149: 128.5808469 | AC149: 0.06881068847 | AD149: 0.05950003557 | AF149: 30558.80268 | AG149: 134.201193 | AH149: -0.04188000078 | AI149: -0.04188000078
A150: 09F | B150: NHS Eastbourne, Hailsham and Seaford CCG | E150: 25981 | F150: 196420.0802 | G150: 132.272627 | H150: -0.01186875927 | J150: 26382.43043 | K150: 198129.1094 | L150: 133.1577703 | M150: 0.008700888075 | O150: -0.0152158244 | P150: -0.006647327506 | Q150: 0.06367508647 | R150: 0.0545 | S150: 27635.34242 | T150: 0 | U150: 0.06367508647 | V150: 0.0545 | W150: 27635.34242 | X150: 0.06367508647 | Y150: 0.0545 | Z150: 27635.34242 | AA150: 27635 | AB150: 139.4797568 | AC150: 0.06366190678 | AD150: 0.05448693399 | AF150: 28091.09615 | AG150: 141.7817717 | AH150: -0.01623632448 | AI150: -0.01623632448
A151: 09G | B151: NHS Coastal West Sussex CCG | E151: 67655 | F151: 515159.1699 | G151: 131.3283427 | H151: -0.03802210716 | J151: 70497.58373 | K151: 519346.125 | L151: 135.7429667 | M151: 0.008127497912 | O151: -0.04032171855 | P151: -0.03252193532 | Q151: 0.06307044655 | R151: 0.0545 | S151: 71922.03106 | T151: 0.302085756 | U151: 0.0661966474 | V151: 0.0576009975 | W151: 72133.53418 | X151: 0.0661966474 | Y151: 0.0576009975 | Z151: 72133.53418 | AA151: 72134 | AB151: 138.8938831 | AC151: 0.06620353263 | AD151: 0.05760782722 | AF151: 75063.38009 | AG151: 144.5343991 | AH151: -0.03902542211 | AI151: -0.03902542211
A152: 09H | B152: NHS Crawley CCG | E152: 15740 | F152: 133480.7476 | G152: 117.9196273 | H152: -0.0151512502 | J152: 15957.58823 | K152: 134315.8281 | L152: 118.8064612 | M152: 0.006256187365 | O152: -0.013635408 | P152: -0.0074645263 | Q152: 0.06109714958 | R152: 0.0545 | S152: 16701.66913 | T152: 0 | U152: 0.06109714958 | V152: 0.0545 | W152: 16701.66913 | X152: 0.06109714958 | Y152: 0.0545 | Z152: 16701.66913 | AA152: 16702 | AB152: 124.3487103 | AC152: 0.06111817027 | AD152: 0.05452089 | AF152: 16991.08603 | AG152: 126.500996 | AH152: -0.01701398216 | AI152: -0.01701398216
A153: 09J | B153: NHS Dartford, Gravesham and Swanley CCG | E153: 33190 | F153: 269110.2473 | G153: 123.3323529 | H153: -0.03624520509 | J153: 34506.27587 | K153: 271700.1875 | L153: 127.0012957 | M153: 0.009624086081 | O153: -0.03814598452 | P153: -0.02888901868 | Q153: 0.06464859877 | R153: 0.0545 | S153: 35335.68699 | T153: 0.1561854891 | U153: 0.0662673181 | V153: 0.05610328914 | W153: 35389.41229 | X153: 0.0662673181 | Y153: 0.05610328914 | Z153: 35389.41229 | AA153: 35389 | AB153: 130.2501862 | AC153: 0.06625489605 | AD153: 0.0560909855 | AF153: 36741.08478 | AG153: 135.2265713 | AH153: -0.03680035012 | AI153: -0.03680035012
A154: 09L | B154: NHS East Surrey CCG | E154: 21538 | F154: 182620.4157 | G154: 117.938621 | H154: -0.02604217841 | J154: 22144.73745 | K154: 183940.0312 | L154: 120.3910715 | M154: 0.007226002276 | O154: -0.02739871961 | P154: -0.02037070054 | Q154: 0.0621198194 | R154: 0.0545 | S154: 22875.93667 | T154: 0 | U154: 0.0621198194 | V154: 0.0545 | W154: 22875.93667 | X154: 0.0621198194 | Y154: 0.0545 | Z154: 22875.93667 | AA154: 22876 | AB154: 124.3666202 | AC154: 0.06212275977 | AD154: 0.05450291928 | AF154: 23578.94777 | AG154: 128.188234 | AH154: -0.02981251639 | AI154: -0.02981251639
A155: 09N | B155: NHS Guildford and Waverley CCG | E155: 26668 | F155: 225634.0859 | G155: 118.1913623 | H155: -0.0405834531 | J155: 27790.63289 | K155: 226834.0312 | L155: 122.5152713 | M155: 0.005318103014 | O155: -0.04039608932 | P155: -0.03529281687 | Q155: 0.06010793963 | R155: 0.0545 | S155: 28270.95853 | T155: 0.4133661393 | U155: 0.06437382882 | V155: 0.05874332276 | W155: 28384.72127 | X155: 0.06437382882 | Y155: 0.05874332276 | Z155: 28384.72127 | AA155: 28385 | AB155: 125.1355444 | AC155: 0.06438428079 | AD155: 0.05875371944 | AF155: 29590.50125 | AG155: 130.4500083 | AH155: -0.04073946705 | AI155: -0.04073946705
A156: 09P | B156: NHS Hastings and Rother CCG | E156: 26853 | F156: 188683.9995 | G156: 142.317314 | H156: -0.1090443701 | J156: 30145.92344 | K156: 189923.25 | L156: 158.7268722 | M156: 0.00656786209 | O156: -0.1092327937 | P156: -0.1033823576 | Q156: 0.06142581057 | R156: 0.0545 | S156: 28502.46729 | T156: 1 | U156: 0.1356878584 | V156: 0.1282774874 | W156: 30496.62606 | X156: 0.1356878584 | Y156: 0.1282774874 | Z156: 30496.62606 | AA156: 30497 | AB156: 160.5753903 | AC156: 0.1357017838 | AD156: 0.128291322 | AF156: 32098.33287 | AG156: 169.0068639 | AH156: -0.0498883502 | AI156: -0.0498883502
A157: 09W | B157: NHS Medway CCG | E157: 38833 | F157: 299528.0034 | G157: 129.6473103 | H157: 0.002637357346 | J157: 38800.93834 | K157: 302095.9375 | L157: 128.4391265 | M157: 0.008573268785 | O157: 0.0008263115097 | P157: 0.009406664486 | Q157: 0.06354051193 | R157: 0.0545 | S157: 41300.4687 | T157: 0 | U157: 0.06354051193 | V157: 0.0545 | W157: 41300.4687 | X157: 0.06354051193 | Y157: 0.0545 | Z157: 41300.4687 | AA157: 41300 | AB157: 136.7115372 | AC157: 0.0635284423 | AD157: 0.05448803297 | AF157: 41313.89231 | AG157: 136.7575236 | AH157: -0.0003362624767 | AI157: -0.0003362624767
A158: 09X | B158: NHS Horsham and Mid Sussex CCG | E158: 28840 | F158: 240990.5884 | G158: 119.6727233 | H158: 0.009058715363 | J158: 28675.21567 | K158: 242897.75 | L158: 118.054678 | M158: 0.007913842752 | O158: 0.005746576784 | P158: 0.01370589704 | Q158: 0.06284514718 | R158: 0.0545 | S158: 30652.45404 | T158: 0 | U158: 0.06284514718 | V158: 0.0545 | W158: 30652.45404 | X158: 0.06284514718 | Y158: 0.0545 | Z158: 30652.45404 | AA158: 30652 | AB158: 126.1930174 | AC158: 0.06282940361 | AD158: 0.05448438004 | AF158: 30532.37429 | AG158: 125.7005233 | AH158: 0.003917995559 | AI158: 0.003917995559
A159: 09Y | B159: NHS North West Surrey CCG | E159: 44621 | F159: 372157.2458 | G159: 119.8982433 | H159: -0.01892174713 | J159: 45439.96454 | K159: 374092.875 | L159: 121.4670676 | M159: 0.005201105805 | O159: -0.01802300134 | P159: -0.01291563507 | Q159: 0.05998456607 | R159: 0.0545 | S159: 47297.57132 | T159: 0 | U159: 0.05998456607 | V159: 0.0545 | W159: 47297.57132 | X159: 0.05998456607 | Y159: 0.0545 | Z159: 47297.57132 | AA159: 47298 | AB159: 126.4338435 | AC159: 0.05999417315 | AD159: 0.05450955737 | AF159: 48382.89696 | AG159: 129.3339173 | AH159: -0.02242315017 | AI159: -0.02242315017
A160: 10A | B160: NHS South Kent Coast CCG | E160: 28052 | F160: 206477.2515 | G160: 135.860003 | H160: -0.03559147823 | J160: 29101.76224 | K160: 207538.2344 | L160: 140.2236187 | M160: 0.005138497838 | O160: -0.0360721193 | P160: -0.03111897797 | Q160: 0.05991854597 | R160: 0.0545 | S160: 29732.83505 | T160: 0.2457420871 | U160: 0.06245412189 | V160: 0.05702261347 | W160: 29803.96303 | X160: 0.06245412189 | Y160: 0.05702261347 | Z160: 29803.96303 | AA160: 29804 | AB160: 143.6072736 | AC160: 0.0624554399 | AD160: 0.05702392475 | AF160: 30986.54627 | AG160: 149.3052418 | AH160: -0.03816321646 | AI160: -0.03816321646
A161: 10C | B161: NHS Surrey Heath CCG | E161: 11254 | F161: 96804.16748 | G161: 116.2553255 | H161: -0.05492122899 | J161: 11907.30924 | K161: 97135.19531 | L161: 122.5849106 | M161: 0.003419561788 | O161: -0.05486623583 | P161: -0.05163429253 | Q161: 0.05810592791 | R161: 0.0545 | S161: 11907.92411 | T161: 1 | U161: 0.07036013224 | V161: 0.06671244313 | W161: 12045.83293 | X161: 0.07036013224 | Y161: 0.06671244313 | Z161: 12045.83293 | AA161: 12046 | AB161: 124.0127223 | AC161: 0.07037497779 | AD161: 0.06672723808 | AF161: 12678.48956 | AG161: 130.5241578 | AH161: -0.04988682243 | AI161: -0.04988682243
A162: 10D | B162: NHS Swale CCG | E162: 15133 | F162: 113167.082 | G162: 133.7226314 | H162: 0.004218624727 | J162: 15135.36682 | K162: 114335.75 | L162: 132.3765036 | M162: 0.010326925 | O162: -0.0001563768429 | P162: 0.01016893327 | Q162: 0.06538974241 | R162: 0.0545 | S162: 16122.54297 | T162: 0 | U162: 0.06538974241 | V162: 0.0545 | W162: 16122.54297 | X162: 0.06538974241 | Y162: 0.0545 | Z162: 16122.54297 | AA162: 16123 | AB162: 141.0145121 | AC162: 0.06541994317 | AD162: 0.05452989206 | AF162: 16115.61322 | AG162: 140.9499061 | AH162: 0.0004583615361 | AI162: 0.0004583615361
A163: 10E | B163: NHS Thanet CCG | E163: 21794 | F163: 145493.915 | G163: 149.7932061 | H163: 0.006748815075 | J163: 21703.13593 | K163: 146794.5625 | L163: 147.8470017 | M163: 0.008939531668 | O163: 0.004186679452 | P163: 0.01316363807 | Q163: 0.06392673614 | R163: 0.0545 | S163: 23187.21929 | T163: 0 | U163: 0.06392673614 | V163: 0.0545 | W163: 23187.21929 | X163: 0.06392673614 | Y163: 0.0545 | Z163: 23187.21929 | AA163: 23187 | AB163: 157.955442 | AC163: 0.06391667431 | AD163: 0.05449002732 | AF163: 23108.74579 | AG163: 157.4223554 | AH163: 0.003386346006 | AI163: 0.003386346006
A164: 10J | B164: NHS North Hampshire CCG | E164: 28402 | F164: 226201.3323 | G164: 125.5607105 | H164: 0.02902129308 | J164: 27641.97667 | K164: 227382.6875 | L164: 121.5658807 | M164: 0.005222582965 | O164: 0.02749525977 | P164: 0.03286143901 | Q164: 0.06000721374 | R164: 0.0545 | S164: 30106.32488 | T164: 0 | U164: 0.06000721374 | V164: 0.0545 | W164: 30106.32488 | X164: 0.06000721374 | Y164: 0.0545 | Z164: 30106.32488 | AA164: 30106 | AB164: 132.4023404 | AC164: 0.05999577495 | AD164: 0.05448862064 | AF164: 29432.21727 | AG164: 129.4391301 | AH164: 0.02289269352 | AI164: 0.02289269352
A165: 10K | B165: NHS Fareham and Gosport CCG | E165: 25628 | F165: 204854.0034 | G165: 125.1037303 | H165: 3.881432331e-05 | J165: 25646.90136 | K165: 205878.6875 | L165: 124.5728816 | M165: 0.005002021268 | O165: -0.0007369841933 | P165: 0.004261350665 | Q165: 0.05977463143 | R165: 0.0545 | S165: 27159.90425 | T165: 0 | U165: 0.05977463143 | V165: 0.0545 | W165: 27159.90425 | X165: 0.05977463143 | Y165: 0.0545 | Z165: 27159.90425 | AA165: 27160 | AB165: 131.9223487 | AC165: 0.05977836741 | AD165: 0.05450371739 | AF165: 27307.93033 | AG165: 132.6408802 | AH165: -0.005417119872 | AI165: -0.005417119872
A166: 10L | B166: NHS Isle of Wight CCG | E166: 19855 | F166: 144499.1648 | G166: 137.4056385 | H166: -0.01496761474 | J166: 20161.9905 | K166: 145043.375 | L166: 139.0066282 | M166: 0.003766182357 | O166: -0.01522619993 | P166: -0.01151736222 | Q166: 0.0584714393 | R166: 0.0545 | S166: 21015.95043 | T166: 0 | U166: 0.0584714393 | V166: 0.0545 | W166: 21015.95043 | X166: 0.0584714393 | Y166: 0.0545 | Z166: 21015.95043 | AA166: 21016 | AB166: 144.8945876 | AC166: 0.05847393604 | AD166: 0.05450248737 | AF166: 21467.78763 | AG166: 148.0094326 | AH166: -0.02104490885 | AI166: -0.02104490885
A167: 10Q | B167: NHS Oxfordshire CCG | E167: 94207 | F167: 745291.4208 | G167: 126.4029041 | H167: 0.01932440647 | J167: 92327.02063 | K167: 747848.3125 | L167: 123.4568817 | M167: 0.003430727372 | O167: 0.02036217959 | P167: 0.02386276405 | Q167: 0.05811770201 | R167: 0.0545 | S167: 99682.09435 | T167: 0 | U167: 0.05811770201 | V167: 0.0545 | W167: 99682.09435 | X167: 0.05811770201 | Y167: 0.0545 | Z167: 99682.09435 | AA167: 99682 | AB167: 133.2917362 | AC167: 0.05811670046 | AD167: 0.05449900187 | AF167: 98306.60677 | AG167: 131.4526023 | AH167: 0.01399085243 | AI167: 0.01399085243
A168: 10R | B168: NHS Portsmouth CCG | E168: 29055 | F168: 230173.1748 | G168: 126.2310433 | H168: -0.07234325046 | J168: 31244.44094 | K168: 231311.25 | L168: 135.0753193 | M168: 0.004944430185 | O168: -0.07007457571 | P168: -0.06547662438 | Q168: 0.05971390163 | R168: 0.0545 | S168: 30789.98741 | T168: 1 | U168: 0.08786519261 | V168: 0.08251278373 | W168: 31607.92317 | X168: 0.08786519261 | Y168: 0.08251278373 | Z168: 31607.92317 | AA168: 31608 | AB168: 136.6470502 | AC168: 0.08786783686 | AD168: 0.08251541497 | AF168: 33267.99618 | AG168: 143.8235113 | AH168: -0.04989769061 | AI168: -0.04989769061
A169: 10V | B169: NHS South Eastern Hampshire CCG | E169: 27841 | F169: 215319.8374 | G169: 129.3006735 | H169: -0.0005586936685 | J169: 27870.7088 | K169: 216374.5938 | L169: 128.8076771 | M169: 0.004898556308 | O169: -0.00106595061 | P169: 0.003827384078 | Q169: 0.05966552763 | R169: 0.0545 | S169: 29502.14795 | T169: 0 | U169: 0.05966552763 | V169: =MAX(R169,NewMinGrowthPerHead(P169,$P$2,$L$1,$U$1,$T$2,AG169,G169,T169, $P$1)) -> 0.0545 | W169: 29502.14795 | X169: 0.05966552763 | Y169: 0.0545 | Z169: 29502.14795 | AA169: =IF(ROUND(Z169,0)/E169>$AA$1,ROUND(Z169,0),ROUNDUP(Z169,0)) -> 29502 | AB169: =AA169/K169*1000 -> 136.3468764 | AC169: =AA169/E169-1 -> 0.05966021335 | AD169: =AB169/G169-1 -> 0.05449471163 | AF169: 29675.7633 | AG169: =AF169/K169*1000 -> 137.1499435 | AH169: -0.005855394492 | AI169: -0.005855394492
A170: 10X | B170: NHS Southampton CCG | E170: 35719 | F170: 286630.2473 | G170: 124.6169947 | H170: -0.04670166097 | J170: 37382.30642 | K170: 288342.1875 | L170: 129.6456365 | M170: 0.005972643372 | O170: -0.04449448371 | P170: -0.03878759002 | Q170: 0.06079815244 | R170: 0.0545 | S170: 37890.64921 | T170: 0.5537184748 | U170: 0.06651618143 | V170: 0.06018408001 | W170: 38094.89148 | X170: 0.06651618143 | Y170: 0.06018408001 | Z170: 38094.89148 | AA170: 38095 | AB170: 132.1173302 | AC170: 0.06651921946 | AD170: 0.06018710001 | AF170: 39803.38229 | AG170: 138.0421736 | AH170: -0.04292053072 | AI170: -0.04292053072
A171: 11A | B171: NHS West Hampshire CCG | E171: 70825 | F171: 563241.3382 | G171: 125.7453869 | H171: -0.0007723987547 | J171: 70968.86544 | K171: 566415.25 | L171: 125.2947646 | M171: 0.005635083203 | O171: -0.002027162742 | P171: 0.00359649723 | Q171: 0.06044219524 | R171: 0.0545 | S171: 75105.81848 | T171: 0 | U171: 0.06044219524 | V171: 0.0545 | W171: 75105.81848 | X171: 0.06044219524 | Y171: 0.0545 | Z171: 75105.81848 | AA171: 75106 | AB171: 132.598831 | AC171: 0.06044475821 | AD171: 0.05450254861 | AF171: 75565.1845 | AG171: 133.4095163 | AH171: -0.006076667483 | AI171: -0.006076667483
A172: 11E | B172: NHS Bath and North East Somerset CCG | E172: 25459 | F172: 207664.9996 | G172: 122.5964898 | H172: -0.01868156896 | J172: 25921.96971 | K172: 209078.4688 | L172: 123.9820143 | M172: 0.006806487183 | O172: -0.01786012843 | P172: -0.01117520599 | Q172: 0.06167744073 | R172: 0.0545 | S172: 27029.24596 | T172: 0 | U172: 0.06167744073 | V172: 0.0545 | W172: 27029.24596 | X172: 0.06167744073 | Y172: 0.0545 | Z172: 27029.24596 | AA172: 27029 | AB172: 129.2768221 | AC172: 0.06166777957 | AD172: 0.05449040415 | AF172: 27600.81356 | AG172: 132.0117453 | AH172: -0.02071727194 | AI172: -0.02071727194
A173: 11J | B173: NHS Dorset CCG | E173: 105931 | F173: 801319.5815 | G173: 132.1956962 | H173: -0.008559958575 | J173: 106736.3882 | K173: 804863.5625 | L173: 132.614263 | M173: 0.004422681086 | O173: -0.007545582091 | P173: -0.003156272708 | Q173: 0.05916371721 | R173: 0.0545 | S173: 112198.2717 | T173: 0 | U173: 0.05916371721 | V173: 0.0545 | W173: 112198.2717 | X173: 0.05916371721 | Y173: 0.0545 | Z173: 112198.2717 | AA173: 112198 | AB173: 139.4000241 | AC173: 0.05916115207 | AD173: 0.05449744616 | AF173: 113649.2012 | AG173: 141.2030641 | AH173: -0.01276912781 | AI173: -0.01276912781
A174: 11M | B174: NHS Gloucestershire CCG | E174: 81511 | F174: 647166.6637 | G174: 125.9505543 | H174: -0.02638315144 | J174: 83898.0313 | K174: 651781.125 | L174: 128.7211735 | M174: 0.007130251925 | O174: -0.02845157702 | P174: -0.02152419201 | Q174: 0.06201885066 | R174: 0.0545 | S174: 86566.21854 | T174: 0 | U174: 0.06201885066 | V174: 0.0545 | W174: 86566.21854 | X174: 0.06201885066 | Y174: 0.0545 | Z174: 86566.21854 | AA174: 86566 | AB174: 132.8145242 | AC174: 0.0620161696 | AD174: 0.05449733792 | AF174: 89331.71152 | AG174: 137.0578375 | AH174: -0.03096001937 | AI174: -0.03096001937
A175: 11N | B175: NHS Kernow CCG | E175: 72183 | F175: 575386.8376 | G175: 125.4512535 | H175: -0.1114088881 | J175: 81330.15065 | K175: 579195.75 | L175: 140.4191081 | M175: 0.006619742053 | O175: -0.1124693681 | P175: -0.1065941443 | Q175: 0.06148051799 | R175: 0.0545 | S175: 76620.84823 | T175: 1 | U175: 0.1398293923 | V175: 0.1323336357 | W175: 82276.30503 | X175: 0.1398293923 | Y175: 0.1323336357 | Z175: 82276.30503 | AA175: 82276 | AB175: 142.0521473 | AC175: 0.1398251666 | AD175: 0.1323294378 | AF175: 86597.52134 | AG175: 149.5133922 | AH175: -0.04990352234 | AI175: -0.04990352234
A176: 11X | B176: NHS Somerset CCG | E176: 72559 | F176: 575240.8369 | G176: 126.1367332 | H176: -0.04968087896 | J176: 76463.06152 | K176: 578764.8125 | L176: 132.1142196 | M176: 0.006126087301 | O176: -0.05105813764 | P176: -0.04524483695 | Q176: 0.06095995906 | R176: 0.0545 | S176: 76982.19367 | T176: 0.8130456607 | U176: 0.06935723673 | V176: 0.06284614844 | W176: 77591.49174 | X176: 0.06935723673 | Y176: 0.06284614844 | Z176: 77591.49174 | AA176: 77591 | AB176: 134.0630915 | AC176: 0.06935045963 | AD176: 0.0628394126 | AF176: 81415.21377 | AG176: 140.6706351 | AH176: -0.04697173412 | AI176: -0.04697173412
A177: 12D | B177: NHS Swindon CCG | E177: 27868 | F177: 237659.9145 | G177: 117.2599934 | H177: -0.06676432494 | J177: 29910.88509 | K177: 239149.6562 | L177: 125.0718298 | M177: 0.006268376171 | O177: -0.06829905193 | P177: -0.06245879991 | Q177: 0.06111000267 | R177: 0.0545 | S177: 29571.01355 | T177: 1 | U177: 0.08579206976 | V177: 0.07902831439 | W177: 30258.8534 | X177: 0.08579206976 | Y177: 0.07902831439 | Z177: 30258.8534 | AA177: 30259 | AB177: 126.527466 | AC177: 0.08579733027 | AD177: 0.07903354213 | AF177: 31848.0722 | AG177: 133.1721429 | AH177: -0.0498953969 | AI177: -0.0498953969
A178: 12F | B178: NHS Wirral CCG | E178: 47394 | F178: 336408.4187 | G178: 140.8823245 | H178: 0.009347057191 | J178: 46722.39143 | K178: 336757.8125 | L178: 138.7418189 | M178: 0.001038600045 | O178: 0.01437444756 | P178: 0.01542797691 | Q178: 0.05559520375 | R178: 0.0545 | S178: 50028.87909 | T178: 0 | U178: 0.05559520375 | V178: 0.0545 | W178: 50028.87909 | X178: 0.05559520375 | Y178: 0.0545 | Z178: 50028.87909 | AA178: 50029 | AB178: 148.5607702 | AC178: 0.05559775499 | AD178: 0.0545025486 | AF178: 49748.3806 | AG178: 147.7274729 | AH178: 0.005640774466 | AI178: 0.005640774466
A179: 13T | B179: NHS Newcastle Gateshead CCG | E179: 68214 | F179: 525567.0029 | G179: 129.7912533 | H179: -0.04307103373 | J179: 71030.33851 | K179: 527745.75 | L179: 134.5919669 | M179: 0.004145517238 | O179: -0.03964979708 | P179: -0.03566864876 | Q179: 0.05887144793 | R179: 0.0545 | S179: 72229.85695 | T179: 0.4284597897 | U179: 0.06328794445 | V179: 0.05889826344 | W179: 72531.12384 | X179: 0.06328794445 | Y179: 0.05889826344 | Z179: 72531.12384 | AA179: 72531 | AB179: 137.4354981 | AC179: 0.06328612895 | AD179: 0.05889645544 | AF179: 75630.63889 | AG179: 143.3088545 | AH179: -0.0409839046 | AI179: -0.0409839046
A180: 14L | B180: NHS Manchester CCG | E180: 91000 | F180: 641324.168 | G180: 141.8939197 | H180: -0.02513592824 | J180: 93442.37178 | K180: 647873.9375 | L180: 144.2292495 | M180: 0.01021288431 | O180: -0.02613773318 | P180: -0.01619179052 | Q180: 0.0652694865 | R180: 0.0545 | S180: 96939.52327 | T180: 0 | U180: 0.0652694865 | V180: 0.0545 | W180: 96939.52327 | X180: 0.0652694865 | Y180: 0.0545 | Z180: 96939.52327 | AA180: 96940 | AB180: 149.6278742 | AC180: 0.06527472527 | AD180: 0.05450518581 | AF180: 99494.19397 | AG180: 153.5702985 | AH180: -0.02567178914 | AI180: -0.02567178914
A181: 14Y | B181: NHS Buckinghamshire CCG | E181: 68562 | F181: 559494.6709 | G181: 122.5427221 | H181: -0.007261635884 | J181: 69224.18914 | K181: 563792.625 | L181: 122.7830696 | M181: 0.007681849936 | O181: -0.009565863471 | P181: -0.001957497063 | Q181: 0.06260051076 | R181: 0.0545 | S181: 72854.01622 | T181: 0 | U181: 0.06260051076 | V181: 0.0545 | W181: 72854.01622 | X181: 0.06260051076 | Y181: 0.0545 | Z181: 72854.01622 | AA181: 72854 | AB181: 129.2212717 | AC181: 0.0626002742 | AD181: 0.05449976525 | AF181: 73707.51374 | AG181: 130.7351506 | AH181: -0.01157973854 | AI181: -0.01157973854
A182: 15A | B182: NHS Berkshire West CCG | E182: 66737 | F182: 544245.2573 | G182: 122.6230254 | H182: -0.0192612037 | J182: 68098.99584 | K182: 547396.375 | L182: 124.4052737 | M182: 0.005789885412 | O182: -0.02000023389 | P182: -0.01432614754 | Q182: 0.06060543417 | R182: 0.0545 | S182: 70781.62486 | T182: 0 | U182: 0.06060543417 | V182: 0.0545 | W182: 70781.62486 | X182: 0.06060543417 | Y182: 0.0545 | Z182: 70781.62486 | AA182: 70782 | AB182: 129.3066656 | AC182: 0.06061105534 | AD182: 0.05450558881 | AF182: 72509.44697 | AG182: 132.4624171 | AH182: -0.02382375047 | AI182: -0.02382375047
A183: 15C | B183: NHS Bristol, North Somerset and South Gloucestershire CCG | E183: 123478 | F183: 1008377.16 | G183: 122.4521984 | H183: -0.03095659888 | J183: 127625.8438 | K183: 1017741.5 | L183: 125.4010412 | M183: 0.009286545214 | O183: -0.03250003044 | P183: -0.02351529823 | Q183: 0.06429266193 | R183: 0.0545 | S183: 131416.7293 | T183: 0 | U183: 0.06429266193 | V183: 0.0545 | W183: 131416.7293 | X183: 0.06429266193 | Y183: 0.0545 | Z183: 131416.7293 | AA183: 131417 | AB183: 129.1261091 | AC183: 0.06429485414 | AD183: 0.05450217205 | AF183: 135891.5684 | AG183: 133.5226759 | AH183: -0.03292749125 | AI183: -0.03292749125
A184: 15D | B184: NHS East Berkshire CCG | E184: 56506 | F184: 460081.7478 | G184: 122.8173043 | H184: 0.0186702109 | J184: 55463.86677 | K184: 462630.3438 | L184: 119.8880867 | M184: 0.005539441544 | O184: 0.01878940813 | P184: 0.0244329325 | Q184: 0.06034134111 | R184: 0.0545 | S184: 59915.64782 | T184: 0 | U184: 0.06034134111 | V184: 0.0545 | W184: 59915.64782 | X184: 0.06034134111 | Y184: 0.0545 | Z184: 59915.64782 | AA184: 59916 | AB184: 129.5116086 | AC184: 0.06034757371 | AD184: 0.05450619827 | AF184: 59056.00012 | AG184: 127.6526733 | AH184: 0.01456244722 | AI184: 0.01456244722
A185: 15E | B185: NHS Birmingham and Solihull CCG | E185: 176765 | F185: 1310470.411 | G185: 134.8866778 | H185: -0.003152424725 | J185: 177217.9725 | K185: 1320167.625 | L185: 134.238993 | M185: 0.00739979646 | O185: -0.002556019115 | P185: 0.004824863323 | Q185: 0.06230308537 | R185: 0.0545 | S185: 187778.0049 | T185: 0 | U185: 0.06230308537 | V185: 0.0545 | W185: 187778.0049 | X185: 0.06230308537 | Y185: 0.0545 | Z185: 187778.0049 | AA185: 187778 | AB185: 142.237998 | AC185: 0.06230305773 | AD185: 0.05449997257 | AF185: 188695.5457 | AG185: 142.9330201 | AH185: -0.004862572019 | AI185: -0.004862572019
A186: 15F | B186: NHS Leeds CCG | E186: 112484 | F186: 879777.0082 | G186: 127.8551257 | H186: -0.04440380885 | J186: 117437.9058 | K186: 884667.0625 | L186: 132.7481386 | M186: 0.005558288373 | O186: -0.04218319297 | P186: -0.03685937095 | Q186: 0.06036121509 | R186: 0.0545 | S186: 119273.6709 | T186: 0.4762799578 | U186: 0.06527754168 | V186: 0.05938915127 | W186: 119826.679 | X186: 0.06527754168 | Y186: 0.05938915127 | Z186: 119826.679 | AA186: 119827 | AB186: 135.448696 | AC186: 0.06528039543 | AD186: 0.05939198926 | AF186: 125043.8057 | AG186: 141.3456101 | AH186: -0.04171982524 | AI186: -0.04171982524
A187: 15M | B187: NHS Derby and Derbyshire CCG | E187: 136564 | F187: 1049689.499 | G187: 130.0994247 | H187: 0.01130474974 | J187: 134926.9883 | K187: 1053807.5 | L187: 128.0376048 | M187: 0.003923065569 | O187: 0.01213257444 | P187: 0.01610323689 | Q187: 0.05863687264 | R187: 0.0545 | S187: 144571.6859 | T187: 0 | U187: 0.05863687264 | V187: 0.0545 | W187: 144571.6859 | X187: 0.05863687264 | Y187: 0.0545 | Z187: 144571.6859 | AA187: 144572 | AB187: 137.1901415 | AC187: 0.05863917284 | AD187: 0.05450229121 | AF187: 143665.5736 | AG187: 136.3299973 | AH187: 0.006309280337 | AI187: 0.006309280337
A188: 99A | B188: NHS Liverpool CCG | E188: 75041 | F188: 532851.0004 | G188: 140.8292373 | H188: -0.05950284351 | J188: 79651.1256 | K188: 536622.875 | L188: 148.4303583 | M188: 0.007078666703 | O188: -0.05787897622 | P188: -0.0512100155 | Q188: 0.06196445404 | R188: 0.0545 | S188: 79690.8746 | T188: 1 | U188: 0.07378295916 | V188: 0.0662354339 | W188: 80577.74704 | X188: 0.07378295916 | Y188: 0.0662354339 | Z188: 80577.74704 | AA188: 80578 | AB188: 150.1575944 | AC188: 0.07378633014 | AD188: 0.06623878118 | AF188: 84809.75375 | AG188: 158.0434933 | AH188: -0.04989701731 | AI188: -0.04989701731
A189: 99C | B189: NHS North Tyneside CCG | E189: 27663 | F189: 219095.5853 | G189: 126.2599607 | H189: -0.03914157908 | J189: 28704.72171 | K189: 219720.4375 | L189: 130.6420196 | M189: 0.002851961494 | O189: -0.03629095321 | P189: -0.03354249212 | Q189: 0.0575073934 | R189: 0.0545 | S189: 29253.82702 | T189: 0.3430719726 | U189: 0.06103917009 | V189: 0.05802173285 | W189: 29351.52656 | X189: 0.06103917009 | Y189: 0.05802173285 | Z189: 29351.52656 | AA189: 29352 | AB189: 133.5879372 | AC189: 0.06105628457 | AD189: 0.05803879865 | AF189: 30563.7913 | AG189: 139.1030878 | AH189: -0.03964793797 | AI189: -0.03964793797
A190: 99D | B190: NHS South Lincolnshire CCG | E190: 23580 | F190: 167158.003 | G190: 141.0641404 | H190: -0.003626880786 | J190: 23697.95603 | K190: 168384.8125 | L190: 140.7368971 | M190: 0.007339220901 | O190: -0.004977477143 | P190: 0.002325212953 | Q190: 0.06223920844 | R190: 0.0545 | S190: 25047.60054 | T190: 0 | U190: 0.06223920844 | V190: 0.0545 | W190: 25047.60054 | X190: 0.06223920844 | Y190: 0.0545 | Z190: 25047.60054 | AA190: 25048 | AB190: 148.7545084 | AC190: 0.06225614928 | AD190: 0.05451681741 | AF190: 25232.761 | AG190: 149.8517629 | AH190: -0.007322266435 | AI190: -0.007322266435
A191: 99E | B191: NHS Basildon and Brentwood CCG | E191: 33842 | F191: 279038.8335 | G191: 121.2806102 | H191: -0.05183512748 | J191: 35715.32668 | K191: 281462.125 | L191: 126.8921233 | M191: 0.008684423862 | O191: -0.05245161825 | P191: -0.04422270648 | Q191: 0.06365772496 | R191: 0.0545 | S191: 35996.30473 | T191: 0.771996244 | U191: 0.0716513113 | V191: 0.06242476433 | W191: 36266.82368 | X191: 0.0716513113 | Y191: 0.06242476433 | Z191: 36266.82368 | AA191: 36267 | AB191: 128.8521502 | AC191: 0.07165652148 | AD191: 0.06242992965 | AF191: 38028.44012 | AG191: 135.1103283 | AH191: -0.04631902121 | AI191: -0.04631902121
A192: 99F | B192: NHS Castle Point and Rochford CCG | E192: 23587 | F192: 185222.1655 | G192: 127.3443701 | H192: 0.02671289356 | J192: 22983.14118 | K192: 186162.3125 | L192: 123.4575402 | M192: 0.00507578005 | O192: 0.02627398993 | P192: 0.03148313097 | Q192: 0.05985241006 | R192: 0.0545 | S192: 24998.7388 | T192: 0 | U192: 0.05985241006 | V192: 0.0545 | W192: 24998.7388 | X192: 0.05985241006 | Y192: 0.0545 | Z192: 24998.7388 | AA192: 24999 | AB192: 134.2860414 | AC192: 0.05986348412 | AD192: 0.05451101813 | AF192: 24471.65095 | AG192: 131.4533034 | AH192: 0.02154938573 | AI192: 0.02154938573
A193: 99G | B193: NHS Southend CCG | E193: 24764 | F193: 188323.4146 | G193: 131.4971909 | H193: -0.0140659167 | J193: 25131.33811 | K193: 189659.2812 | L193: 132.5078211 | M193: 0.007093470777 | O193: -0.01461673506 | P193: -0.00762694767 | Q193: 0.06198006493 | R193: 0.0545 | S193: 26298.87433 | T193: 0 | U193: 0.06198006493 | V193: 0.0545 | W193: 26298.87433 | X193: 0.06198006493 | Y193: 0.0545 | Z193: 26298.87433 | AA193: 26299 | AB193: 138.6644504 | AC193: 0.06198513972 | AD193: 0.05450503904 | AF193: 26758.97648 | AG193: 141.0897284 | AH193: -0.0171896141 | AI193: -0.0171896141
A194: 99H | B194: NHS Surrey Downs CCG | E194: 36340 | F194: 307646.083 | G194: 118.1227456 | H194: -0.03915517807 | J194: 37835.62437 | K194: 309493.5 | L194: 122.2501421 | M194: 0.006005007358 | O194: -0.03952952785 | P194: -0.0337618956 | Q194: 0.06083228026 | R194: 0.0545 | S194: 38550.64506 | T194: 0.3518833573 | U194: 0.06446615571 | V194: 0.05811218426 | W194: 38682.7001 | X194: 0.06446615571 | Y194: 0.05811218426 | Z194: 38682.7001 | AA194: 38683 | AB194: 124.9880854 | AC194: 0.06447440837 | AD194: 0.05812038765 | AF194: 40286.0595 | AG194: 130.1677079 | AH194: -0.03979191618 | AI194: -0.03979191618
A195: 99J | B195: NHS West Kent CCG | E195: 60378 | F195: 492969.2539 | G195: 122.4782266 | H195: -0.01837846818 | J195: 61622.55872 | K195: 496486.1875 | L195: 124.1173678 | M195: 0.007134184467 | O195: -0.0201964791 | P195: -0.01320638005 | Q195: 0.06202299752 | R195: 0.0545 | S195: 64122.82454 | T195: 0 | U195: 0.06202299752 | V195: 0.0545 | W195: 64122.82454 | X195: 0.06202299752 | Y195: 0.0545 | Z195: 64122.82454 | AA195: 64123 | AB195: 129.1536434 | AC195: 0.06202590347 | AD195: 0.05450288537 | AF195: 65613.56153 | AG195: 132.1558649 | AH195: -0.02271727813 | AI195: -0.02271727813
A196: 99K | B196: NHS High Weald Lewes Havens CCG | E196: 21862 | F196: 170506.7529 | G196: 128.2177956 | H196: 0.001010154863 | J196: 21910.1891 | K196: 171932.0312 | L196: 127.4351786 | M196: 0.008359072564 | O196: -0.002199392453 | P196: 0.006141295229 | Q196: 0.06331464202 | R196: 0.0545 | S196: 23246.1847 | T196: 0 | U196: 0.06331464202 | V196: 0.0545 | W196: 23246.1847 | X196: 0.06331464202 | Y196: 0.0545 | Z196: 23246.1847 | AA196: 23246 | AB196: 135.2045912 | AC196: 0.06330619339 | AD196: 0.05449162141 | AF196: 23329.20883 | AG196: 135.6885547 | AH196: -0.003566723082 | AI196: -0.003566723082
A197: 99M | B197: NHS North East Hampshire and Farnham CCG | E197: 28410 | F197: 227496.5793 | G197: 124.8809986 | H197: 0.02696569413 | J197: 27639.59631 | K197: 227991 | L197: 121.2310851 | M197: 0.002173310279 | O197: 0.02787318883 | P197: 0.0301070762 | Q197: 0.05679175569 | R197: 0.0545 | S197: 30023.45378 | T197: 0 | U197: 0.05679175569 | V197: 0.0545 | W197: 30023.45378 | X197: 0.05679175569 | Y197: 0.0545 | Z197: 30023.45378 | AA197: 30023 | AB197: 131.6850227 | AC197: 0.05677578317 | AD197: 0.05448406212 | AF197: 29429.68275 | AG197: 129.0826513 | AH197: 0.02016050453 | AI197: 0.02016050453
A198: 99N | B198: NHS Wiltshire CCG | E198: 62128 | F198: 490466.5025 | G198: 126.6712399 | H198: -0.03552563643 | J198: 64713.69538 | K198: 495483.4688 | L198: 130.6071735 | M198: 0.01022896822 | O198: -0.0399559222 | P198: -0.03013566184 | Q198: 0.06528644699 | R198: 0.0545 | S198: 66184.11638 | T198: 0.2062514796 | U198: 0.06742533506 | V198: 0.05661723098 | W198: 66317.00122 | X198: 0.06742533506 | Y198: 0.05661723098 | Z198: 66317.00122 | AA198: 66317 | AB198: 133.8430123 | AC198: 0.06742531548 | AD198: 0.0566172116 | AF198: 68904.89654 | AG198: 139.0659848 | AH198: -0.03755751293 | AI198: -0.03755751293
A199: 99P | B199: NHS Northern, Eastern and Western Devon CCG | E199: 115015 | F199: 931441.8411 | G199: 123.4806028 | H199: -0.0750929509 | J199: 124277.2864 | K199: 936391.5 | L199: 132.7193662 | M199: 0.005313975233 | O199: -0.07452919743 | P199: -0.06961126851 | Q199: 0.06010358688 | R199: 0.0545 | S199: 121927.814 | T199: 1 | U199: 0.09310147656 | V199: 0.08732346659 | W199: 125723.0663 | X199: 0.09310147656 | Y199: 0.08732346659 | Z199: 125723.0663 | AA199: 125723 | AB199: 134.2632862 | AC199: 0.09310089988 | AD199: 0.08732289296 | AF199: 132326.1408 | AG199: 141.3149743 | AH199: -0.04990050124 | AI199: -0.04990050124
A200: 99Q | B200: NHS South Devon and Torbay CCG | E200: 36268 | F200: 293831.3333 | G200: 123.4313563 | H200: -0.07269204037 | J200: 39138.2555 | K200: 295595.9375 | L200: 132.4045785 | M200: 0.0060055006 | O200: -0.07333631668 | P200: -0.06777123737 | Q200: 0.06083280038 | R200: 0.0545 | S200: 38474.284 | T200: 1 | U200: 0.09169434285 | V200: 0.08517730986 | W200: 39593.57043 | X200: 0.09169434285 | Y200: 0.08517730986 | Z200: 39593.57043 | AA200: 39594 | AB200: 133.9463605 | AC200: 0.09170618727 | AD200: 0.08518908358 | AF200: 41673.05592 | AG200: 140.9797992 | AH200: -0.04988969182 | AI200: -0.04988969182

Sheet Primary medical care 2020-21
A1: NHS England - 2019-20 to 2023-24 Allocations | E1: 2019-20 | J1: 2020-21 | L1: 0.04433907243 | P1: -0.04636363699 | Q1: 0.05 | R1: 0.0344 | T1: -0.04636363699 | U1: 0.0344 | X1: 0.01942659196 | AA1: 1.019426592 | AI1: -0.04615728628
A2: Minimum allocations for primary medical care services | P2: -0.046175 | Q2: 0.1 | R2: 0.02563404619 | S2: 1 | T2: 0 | U2: 0.0439 | Z2: 1 | AI2: 0.2309812416
A3: 2020-21 minimum allocation calculations | U3: 0.0095 | AI3: 0
L4: 144.2527991 | AA4: 8489.607871 | AI4: 42
B5: England | E5: 8269628 | F5: 59447416.9 | G5: 139.1082814 | J5: 8260451.836 | K5: 59802739.78 | L5: 138.1283176 | M5: 0.005977095412 | AA5: 8618223 | AF5: 8626712.608 | AH5: -0.0009841069544
E6: Baseline | J6: Opening Target | O6: Distance from Target | Q6: Minimum per capita growth | T6: Per capita pace of change | X6: Minimum programme | AF6: Closing target
A7: CCG | B7: Clinical Commissioning Group (192) | E7: Baseline £000 | F7: Estimated Population | G7: Allocation per capita £ | H7: Closing DfT | J7: Opening Target £000 | K7: Estimated Population | L7: Opening Target per capita £ | M7: population growth rate % | O7: DFT (total allocation) | P7: DFT (per capita) | Q7: Apply minimum per capita growth [programme] | R7: Apply minimum per capita growth [per capita] | S7: Allocation after min per capita growth £000 | T7: First Transition position | U7: Growth on per capita parameters [programme] | V7: Growth on per capita parameters [per capita] | W7: Allocation after per capita p-o-c | X7: Apply minimum programme growth [programme] | Y7: Apply minimum programme growth [per capita] | Z7: Allocation after minimum programme growth | AA7: Minimum allocation £000 | AB7: Minimum allocation per head £ | AC7: Growth after rounding | AD7: Per capita growth after rounding | AF7: Target allocations from the fair shares formula £000 | AG7: Target per head | AH7: DFT (total allocation) | AI7: DFT (per capita)
A9: 00C | B9: NHS Darlington CCG | E9: 15380 | F9: 108392.1875 | G9: =E9/F9*1000 -> 141.8921451 | H9: 0.0152563661 | J9: 15094.63173 | K9: 108449.6406 | L9: =J9/K9*1000 -> 139.1856316 | M9: =K9/F9-1 -> 0.0005300485794 | O9: =E9/J9-1 -> 0.018905282 | P9: =G9/L9-1 -> 0.01944535129 | Q9: =(1+M9)*(1+R9)-1 -> 0.03494828225 | R9: =MinGrowthPerHead(P9,0,1,$Q$1,$Q$2,$R$1,$R$2) -> 0.0344 | S9: =(1+IF($S$2=1,Q9,0))*$E9 -> 15917.50458 | T9: =MinMaxRamp(P9,0,1,$P$2,$T$2) -> 0 | U9: =(1+M9)*(1+V9)-1 -> 0.03494828225 | V9: =MAX(R9,NewMinGrowthPerHead(P9,$P$2,$L$1,$U$1,$T$2,AG9,G9,T9, $P$1)) -> 0.0344 | W9: =(1+IF($S$2=1,U9,0))*$E9 -> 15917.50458 | X9: =MAX(U9,$X$1) -> 0.03494828225 | Y9: =(1+X9)/(1+M9) - 1 -> 0.0344 | Z9: =(1+IF($Z$2=1,X9,0))*$E9 -> 15917.50458 | AA9: =IF(ROUND(Z9,0)/E9>$AA$1,ROUND(Z9,0),ROUNDUP(Z9,0)) -> 15918 | AB9: =AA9/K9*1000 -> 146.7778031 | AC9: =AA9/E9-1 -> 0.03498049415 | AD9: =AB9/G9-1 -> 0.03443219483 | AF9: 15763.9137 | AG9: =AF9/K9*1000 -> 145.3569934 | AH9: =AA9/AF9-1 -> 0.009774622139 | AI9: =AB9/AG9-1 -> 0.009774622139
A10: 00D | B10: NHS Durham Dales, Easington and Sedgefield CCG | E10: 46460 | F10: 293122.5 | G10: =E10/F10*1000 -> 158.5002857 | H10: 0.06749085057 | J10: 43441.29861 | K10: 294087.8125 | L10: =J10/K10*1000 -> 147.7153992 | M10: =K10/F10-1 -> 0.003293205059 | O10: =E10/J10-1 -> 0.06948920697 | P10: =G10/L10-1 -> 0.07301125424 | Q10: =(1+M10)*(1+R10)-1 -> 0.03375889366 | R10: =MinGrowthPerHead(P10,0,1,$Q$1,$Q$2,$R$1,$R$2) -> 0.03036568816 | S10: =(1+IF($S$2=1,Q10,0))*$E10 -> 48028.4382 | T10: =MinMaxRamp(P10,0,1,$P$2,$T$2) -> 0 | U10: =(1+M10)*(1+V10)-1 -> 0.03375889366 | V10: 0.03036568816 | W10: =(1+IF($S$2=1,U10,0))*$E10 -> 48028.4382 | X10: =MAX(U10,$X$1) -> 0.03375889366 | Y10: =(1+X10)/(1+M10) - 1 -> 0.03036568816 | Z10: =(1+IF($Z$2=1,X10,0))*$E10 -> 48028.4382 | AA10: 48028 | AB10: 163.3117659 | AC10: 0.0337494619 | AD10: 0.03035628736 | AF10: 45367.4455 | AG10: 154.2649629 | AH10: =AA10/AF10-1 -> 0.05864457378 | AI10: 0.05864457378
A11: 00J | B11: NHS North Durham CCG | E11: 36495 | F11: 260056.4375 | G11: 140.3349225 | H11: 0.03957357187 | J11: 35021.15265 | K11: 260704.7812 | L11: 134.3326059 | M11: 0.00249308864 | O11: 0.04208449008 | P11: 0.04468249908 | Q11: 0.03697885089 | R11: 0.0344 | S11: 37844.54316 | T11: 0 | U11: 0.03697885089 | V11: 0.0344 | W11: 37844.54316 | X11: 0.03697885089 | Y11: 0.0344 | Z11: 37844.54316 | AA11: 37845 | AB11: 145.1641961 | AC11: 0.03699136868 | AD11: 0.03441248666 | AF11: 36573.95807 | AG11: 140.2887891 | AH11: 0.03475264899 | AI11: 0.03475264899
A12: 00K | B12: NHS Hartlepool and Stockton-on-Tees CCG | E12: 43129 | F12: 298132.2188 | G12: 144.6640024 | H12: -0.01905225368 | J12: 43823.91995 | K12: 298891.875 | L12: 146.6213156 | M12: 0.002548051509 | O12: -0.01585709237 | P12: -0.01334944555 | Q12: 0.03703570448 | R12: 0.0344 | S12: 44726.3129 | T12: 0.2891054801 | U12: 0.03991646646 | V12: 0.03727344031 | W12: 44850.55728 | X12: 0.03991646646 | Y12: 0.03727344031 | Z12: 44850.55728 | AA12: 44851 | AB12: 150.0576086 | AC12: 0.03992673143 | AD12: 0.03728367919 | AF12: 45767.03191 | AG12: 153.1223688 | AH12: -0.02001510408 | AI12: -0.02001510408
A13: 00L | B13: NHS Northumberland CCG | E13: 47016 | F13: 325474.5938 | G13: 144.4536714 | H13: 0.01110747775 | J13: 46395.76732 | K13: 325564.0625 | L13: 142.508872 | M13: 0.0002748870472 | O13: 0.01336830312 | P13: 0.01364686494 | Q13: 0.03468434316 | R13: 0.0344 | S13: 48646.71908 | T13: 0 | U13: 0.03468434316 | V13: 0.0344 | W13: 48646.71908 | X13: 0.03468434316 | Y13: 0.0344 | Z13: 48646.71908 | AA13: 48647 | AB13: 149.4237405 | AC13: 0.03469031819 | AD13: 0.03440597339 | AF13: 48452.91261 | AG13: 148.8275832 | AH13: 0.004005690941 | AI13: 0.004005690941
A14: 00M | B14: NHS South Tees CCG | E14: 47011 | F14: 297279.8125 | G14: 158.1372095 | H14: -0.001445234834 | J14: 46809.83488 | K14: 297414.375 | L14: 157.3892818 | M14: 0.0004526459394 | O14: 0.00429749695 | P14: 0.004752088134 | Q14: 0.03486821696 | R14: 0.0344 | S14: 48650.18975 | T14: 0 | U14: 0.03486821696 | V14: 0.0344 | W14: 48650.18975 | X14: 0.03486821696 | Y14: 0.0344 | Z14: 48650.18975 | AA14: 48650 | AB14: 163.5764916 | AC14: 0.03486418072 | AD14: 0.03439596559 | AF14: 48885.33954 | AG14: 164.3677766 | AH14: -0.004814112754 | AI14: -0.004814112754
A15: 00N | B15: NHS South Tyneside CCG | E15: 23176 | F15: 157356.1406 | G15: 147.2837343 | H15: 0.009734405781 | J15: 22837.75032 | K15: 157527.4219 | L15: 144.9763479 | M15: 0.001088494223 | O15: 0.01481098969 | P15: 0.01591560559 | Q15: 0.03552593842 | R15: 0.0344 | S15: 23999.34915 | T15: 0 | U15: 0.03552593842 | V15: 0.0344 | W15: 23999.34915 | X15: 0.03552593842 | Y15: 0.0344 | Z15: 23999.34915 | AA15: 23999 | AB15: 152.3480783 | AC15: 0.03551087332 | AD15: 0.03438495127 | AF15: 23850.35498 | AG15: 151.4044647 | AH15: 0.006232402798 | AI15: 0.006232402798
A16: 00P | B16: NHS Sunderland CCG | E16: 43304 | F16: 284309.3125 | G16: 152.3129848 | H16: 0.03616747532 | J16: 41571.78833 | K16: 284521.125 | L16: 146.1114296 | M16: 0.0007450072533 | O16: 0.04166796138 | P16: 0.04244401157 | Q16: 0.0351706355 | R16: 0.0344 | S16: 44827.0292 | T16: 0 | U16: 0.0351706355 | V16: 0.0344 | W16: 44827.0292 | X16: 0.0351706355 | Y16: 0.0344 | Z16: 44827.0292 | AA16: 44827 | AB16: 157.5524489 | AC16: 0.0351699612 | AD16: 0.0343993262 | AF16: 43415.04286 | AG16: 152.5898749 | AH16: 0.03252230204 | AI16: 0.03252230204
A17: 00Q | B17: NHS Blackburn with Darwen CCG | E17: 25499 | F17: 175157.5156 | G17: 145.5775386 | H17: 0.02036682041 | J17: 24848.68983 | K17: 175171.625 | L17: 141.8533956 | M17: 8.055249556e-05 | O17: 0.02617080329 | P17: 0.02625346391 | Q17: 0.0344833235 | R17: 0.0344 | S17: 26378.29027 | T17: 0 | U17: 0.0344833235 | V17: 0.0344 | W17: 26378.29027 | X17: 0.0344833235 | Y17: 0.0344 | Z17: 26378.29027 | AA17: 26378 | AB17: 150.5837489 | AC17: 0.03447194008 | AD17: 0.03438861749 | AF17: 25950.45768 | AG17: 148.1430436 | AH17: 0.01647532852 | AI17: 0.01647532852
A18: 00R | B18: NHS Blackpool CCG | E18: 29953 | F18: 173096.5469 | G18: 173.0421579 | H18: -0.0499101508 | J18: 31261.98413 | K18: 172778.25 | L18: 180.9370342 | M18: -0.00183884012 | O18: -0.04187143492 | P18: -0.04363328016 | Q18: 0.03249790378 | R18: 0.0344 | S18: 30926.40971 | T18: 0.9449546327 | U18: 0.04187260598 | V18: 0.04379197254 | W18: 31207.21017 | X18: 0.04187260598 | Y18: 0.04379197254 | Z18: 31207.21017 | AA18: 31207 | AB18: 180.618799 | AC18: 0.04186558942 | AD18: 0.04378494305 | AF18: 32648.11151 | AG18: 188.9596145 | AH18: -0.04414073115 | AI18: -0.04414073115
A19: 00T | B19: NHS Bolton CCG | E19: 43497 | F19: 310601.6875 | G19: 140.0410936 | H19: -0.01070244024 | J19: 43846.29104 | K19: 311766.75 | L19: 140.6381246 | M19: 0.003750985738 | O19: -0.007966262034 | P19: -0.004245157631 | Q19: 0.03828001965 | R19: 0.0344 | S19: 45162.06601 | T19: 0.09193627788 | U19: 0.03919720848 | V19: 0.03531376132 | W19: 45201.96098 | X19: 0.03919720848 | Y19: 0.03531376132 | Z19: 45201.96098 | AA19: 45202 | AB19: 144.9865966 | AC19: 0.03919810562 | AD19: 0.03531465511 | AF19: 45790.39492 | AG19: 146.8738886 | AH19: -0.01284974544 | AI19: -0.01284974544
A20: 00V | B20: NHS Bury CCG | E20: 28025 | F20: 204868.2812 | G20: 136.7952122 | H20: -0.0003519377159 | J20: 27954.90866 | K20: 205557.6562 | L20: 135.9954631 | M20: 0.003364966972 | O20: 0.00250730006 | P20: 0.005880704014 | Q20: 0.03788072184 | R20: 0.0344 | S20: 29086.60723 | T20: 0 | U20: 0.03788072184 | V20: 0.0344 | W20: 29086.60723 | X20: 0.03788072184 | Y20: 0.0344 | Z20: 29086.60723 | AA20: 29087 | AB20: 141.5028782 | AC20: 0.03789473684 | AD20: 0.034413968 | AF20: 29194.40338 | AG20: 142.0253758 | AH20: -0.003678902911 | AI20: -0.003678902911
A21: 00X | B21: NHS Chorley and South Ribble CCG | E21: 23738 | F21: 184909.5625 | G21: 128.3762704 | H21: -0.008068499628 | J21: 23990.92029 | K21: 186178.5312 | L21: 128.859757 | M21: 0.006862645354 | O21: -0.01054233379 | P21: -0.003752036739 | Q21: 0.04149872035 | R21: 0.0344 | S21: 24723.09662 | T21: 0.0812568866 | U21: 0.04231188083 | V21: 0.03520761808 | W21: 24742.39943 | X21: 0.04231188083 | Y21: 0.03520761808 | Z21: 24742.39943 | AA21: 24742 | AB21: 132.8939477 | AC21: 0.04229505434 | AD21: 0.03519090628 | AF21: 25054.65544 | AG21: 134.5732791 | AH21: -0.01247893602 | AI21: -0.01247893602
A22: 00Y | B22: NHS Oldham CCG | E22: 39615 | F22: 256758.2344 | G22: 154.2891121 | H22: 0.06588510584 | J22: 37106.89662 | K22: 258134.7344 | L22: 143.7501106 | M22: 0.005361074411 | O22: 0.06759129992 | P22: 0.07331473632 | Q22: 0.03583606385 | R22: 0.03031248197 | S22: 41034.64567 | T22: 0 | U22: 0.03583606385 | V22: 0.03031248197 | W22: 41034.64567 | X22: 0.03583606385 | Y22: 0.03031248197 | Z22: 41034.64567 | AA22: 41035 | AB22: 158.9673707 | AC22: 0.0358450082 | AD22: 0.03032137863 | AF22: 38752.182 | AG22: 150.1238572 | AH22: 0.05890811521 | AI22: 0.05890811521
A23: 01A | B23: NHS East Lancashire CCG | E23: 53915 | F23: 382499.5625 | G23: 140.9544096 | H23: -0.02421218887 | J23: 55022.89626 | K23: 382833.375 | L23: 143.7254426 | M23: 0.0008727134165 | O23: -0.02013518619 | P23: -0.01928004502 | Q23: 0.03530273476 | R23: 0.0344 | S23: 55818.34694 | T23: 0.417542935 | U23: 0.03945634598 | V23: 0.03854998947 | W23: 56042.28889 | X23: 0.03945634598 | Y23: 0.03854998947 | Z23: 56042.28889 | AA23: 56042 | AB23: 146.387446 | AC23: 0.03945098767 | AD23: 0.03854463583 | AF23: 57462.56044 | AG23: 150.0980954 | AH23: -0.02472149575 | AI23: -0.02472149575
A24: 01C | B24: NHS Eastern Cheshire CCG | E24: 28187 | F24: 209256.7656 | G24: 134.7005432 | H24: 0.01497499383 | J24: 27775.19826 | K24: 209983.75 | L24: 132.2730843 | M24: 0.003474126023 | O24: 0.01482623944 | P24: 0.01835187369 | Q24: 0.03799363596 | R24: 0.0344 | S24: 29257.92662 | T24: 0 | U24: 0.03799363596 | V24: 0.0344 | W24: 29257.92662 | X24: 0.03799363596 | Y24: 0.0344 | Z24: 29257.92662 | AA24: 29258 | AB24: 139.3345914 | AC24: 0.0379962394 | AD24: 0.03440259443 | AF24: 29006.72479 | AG24: 138.1379501 | AH24: 0.008662653722 | AI24: 0.008662653722
A25: 01D | B25: NHS Heywood, Middleton and Rochdale CCG | E25: 32817 | F25: 234477.7031 | G25: 139.9578705 | H25: -0.03682994161 | J25: 33988.03995 | K25: 235364.3906 | L25: 144.4060415 | M25: 0.003781542928 | O25: -0.03445447142 | P25: -0.03080321955 | Q25: 0.038311628 | R25: 0.0344 | S25: 34074.2727 | T25: 0.6670973374 | U25: 0.04496702963 | V25: 0.04103032876 | W25: 34292.68301 | X25: 0.04496702963 | Y25: 0.04103032876 | Z25: 34292.68301 | AA25: 34293 | AB25: 145.7017347 | AC25: 0.04497668891 | AD25: 0.04103995164 | AF25: 35495.03812 | AG25: 150.8088714 | AH25: -0.03386496198 | AI25: -0.03386496198
A26: 01E | B26: NHS Greater Preston CCG | E26: 28045 | F26: 209249.0156 | G26: 134.0269149 | H26: -0.04329824824 | J26: 29140.76985 | K26: 209231.7188 | L26: 139.2751062 | M26: -8.266167919e-05 | O26: -0.03760263904 | P26: -0.03768219242 | Q26: 0.03431449476 | R26: 0.0344 | S26: 29007.35001 | T26: 0.8160734687 | U26: 0.0424248376 | V26: 0.04251101332 | W26: 29234.80457 | X26: 0.0424248376 | Y26: 0.04251101332 | Z26: 29234.80457 | AA26: 29235 | AB26: 139.7254688 | AC26: 0.04243180603 | AD26: 0.04251798231 | AF26: 30432.84456 | AG26: 145.4504352 | AH26: -0.03936025608 | AI26: -0.03936025608
A27: 01F | B27: NHS Halton CCG | E27: 19372 | F27: 131605.6875 | G27: 147.1972858 | H27: 0.001431057264 | J27: 19280.86007 | K27: 131833.6406 | L27: 146.2514422 | M27: 0.001732091746 | O27: 0.004726963898 | P27: 0.006467243179 | Q27: 0.0361916757 | R27: 0.0344 | S27: 20073.10514 | T27: 0 | U27: 0.0361916757 | V27: 0.0344 | W27: 20073.10514 | X27: 0.0361916757 | Y27: 0.0344 | Z27: 20073.10514 | AA27: 20073 | AB27: 152.2600749 | AC27: 0.03618624819 | AD27: 0.03439458188 | AF27: 20135.75552 | AG27: 152.7360955 | AH27: -0.00311662116 | AI27: -0.00311662116
A28: 01G | B28: NHS Salford CCG | E28: 41657 | F28: 275610.5 | G28: 151.1444593 | H28: -0.0007488433308 | J28: 41715.34129 | K28: 278114.5 | L28: 149.9934066 | M28: 0.009085285212 | O28: -0.001398557109 | P28: 0.007674021813 | Q28: 0.04379781902 | R28: 0.0344 | S28: 43481.48575 | T28: 0 | U28: 0.04379781902 | V28: 0.0344 | W28: 43481.48575 | X28: 0.04379781902 | Y28: 0.0344 | Z28: 43481.48575 | AA28: 43481 | AB28: 156.3420821 | AC28: 0.04378615839 | AD28: 0.03438844435 | AF28: 43564.96083 | AG28: 156.6439751 | AH28: -0.001927255858 | AI28: -0.001927255858
A29: 01H | B29: NHS Cumbria CCG | E29: 49303 | F29: 323764.0625 | G29: 152.2806442 | H29: 0.01893577669 | J29: 48138.26238 | K29: 323354.9062 | L29: 148.8712911 | M29: -0.001263748196 | O29: 0.02419567229 | P29: 0.02290134686 | Q29: 0.03309277887 | R29: 0.0344 | S29: 50934.57328 | T29: 0 | U29: 0.03309277887 | V29: 0.0344 | W29: 50934.57328 | X29: 0.03309277887 | Y29: 0.0344 | Z29: 50934.57328 | AA29: 50935 | AB29: 157.520418 | AC29: 0.03310143399 | AD29: 0.03440866608 | AF29: 50272.66828 | AG29: 155.4721061 | AH29: 0.01317478744 | AI29: 0.01317478744
A30: 01J | B30: NHS Knowsley CCG | E30: 32241 | F30: 165618.9688 | G30: 194.6697304 | H30: 0.244065467 | J30: 25802.72671 | K30: 166135.6719 | L30: 155.3111768 | M30: 0.00311983059 | O30: 0.2495191056 | P30: 0.2534173936 | Q30: 0.02883385066 | R30: 0.02563404619 | S30: 33170.63218 | T30: 0 | U30: 0.02883385066 | V30: 0.02563404619 | W30: 33170.63218 | X30: 0.02883385066 | Y30: 0.02563404619 | Z30: 33170.63218 | AA30: 33171 | AB30: 199.6621173 | AC30: 0.02884525914 | AD30: 0.02564541919 | AF30: 26946.79568 | AG30: 162.1975303 | AH30: 0.2309812416 | AI30: 0.2309812416
A31: 01K | B31: NHS Morecambe Bay CCG | E31: 47965 | F31: 346843 | G31: 138.2902351 | H31: -0.01801304551 | J31: 48652.75841 | K31: 347573.9375 | L31: 139.9781548 | M31: 0.00210740162 | O31: -0.01413606208 | P31: -0.01205845082 | Q31: 0.03657989624 | R31: 0.0344 | S31: 49719.55472 | T31: 0.2611467421 | U31: 0.0391809225 | V31: 0.03699555639 | W31: 49844.31295 | X31: 0.0391809225 | Y31: 0.03699555639 | Z31: 49844.31295 | AA31: 49844 | AB31: 143.4054589 | AC31: 0.039174398 | AD31: 0.0369890456 | AF31: 50809.97659 | AG31: 146.1846563 | AH31: -0.01901155358 | AI31: -0.01901155358
A32: 01R | B32: NHS South Cheshire CCG | E32: 25128 | F32: 186311.0625 | G32: 134.8712184 | H32: -0.007065569666 | J32: 25263.9522 | K32: 186706.9688 | L32: 135.3133864 | M32: 0.002124974463 | O32: -0.005381272042 | P32: -0.003267732645 | Q32: 0.03659807358 | R32: 0.0344 | S32: 26047.63639 | T32: 0.07076843844 | U32: 0.03730294087 | V32: 0.03510337264 | W32: 26065.3483 | X32: 0.03730294087 | Y32: 0.03510337264 | Z32: 26065.3483 | AA32: 26065 | AB32: 139.6037876 | AC32: 0.03728907991 | AD32: 0.03508954107 | AF32: 26384.13241 | AG32: 141.3130564 | AH32: -0.01209561873 | AI32: -0.01209561873
A33: 01T | B33: NHS South Sefton CCG | E33: 23086 | F33: 155182.25 | G33: 148.7670143 | H33: -0.01394956165 | J33: 23277.24573 | K33: 155277.4375 | L33: 149.9074567 | M33: 0.0006133916733 | O33: -0.008215994969 | P33: -0.007607642919 | Q33: 0.03503449235 | R33: 0.0344 | S33: 23894.80629 | T33: 0.1647567497 | U33: 0.03667302606 | V33: 0.03603752927 | W33: 23932.63348 | X33: 0.03667302606 | Y33: 0.03603752927 | Z33: 23932.63348 | AA33: 23933 | AB33: 154.1305703 | AC33: 0.03668890237 | AD33: 0.03605339584 | AF33: 24309.33722 | AG33: 156.5542142 | AH33: -0.01548117972 | AI33: -0.01548117972
A34: 01V | B34: NHS Southport and Formby CCG | E34: 17734 | F34: 125268.4766 | G34: 141.5679386 | H34: -5.073319422e-05 | J34: 17669.63852 | K34: 125542.4844 | L34: 140.7462869 | M34: 0.002187364451 | O34: 0.003642489819 | P34: 0.005837821723 | Q34: 0.03666260979 | R34: 0.0344 | S34: 18384.17472 | T34: 0 | U34: 0.03666260979 | V34: 0.0344 | W34: 18384.17472 | X34: 0.03666260979 | Y34: 0.0344 | Z34: 18384.17472 | AA34: 18384 | AB34: 146.436484 | AC34: 0.03665275742 | AD34: 0.03439016913 | AF34: 18453.0939 | AG34: 146.9868467 | AH34: -0.00374429915 | AI34: -0.00374429915
A35: 01W | B35: NHS Stockport CCG | E35: 41519 | F35: 313465.75 | G35: 132.451472 | H35: -0.02962213431 | J35: 42720.93187 | K35: 314968.75 | L35: 135.6354618 | M35: 0.004794782205 | O35: -0.02813449561 | P35: -0.02347461218 | Q35: 0.03935972271 | R35: 0.0344 | S35: 43153.17633 | T35: 0.5083835882 | U35: 0.04443681139 | V35: 0.03945286131 | W35: 43363.97197 | X35: 0.04443681139 | Y35: 0.03945286131 | Z35: 43363.97197 | AA35: 43364 | AB35: 137.6771505 | AC35: 0.04443748645 | AD35: 0.03945353315 | AF35: 44615.13836 | AG35: 141.6494124 | AH35: -0.02804291119 | AI35: -0.02804291119
A36: 01X | B36: NHS St Helens CCG | E36: 30248 | F36: 198154.4375 | G36: 152.6486128 | H36: 0.0391017858 | J36: 29030.02532 | K36: 198715.8594 | L36: 146.088115 | M36: 0.002833254113 | O36: 0.04195568776 | P36: 0.044907813 | Q36: 0.03733071805 | R36: 0.0344 | S36: 31377.17956 | T36: 0 | U36: 0.03733071805 | V36: 0.0344 | W36: 31377.17956 | X36: 0.03733071805 | Y36: 0.0344 | Z36: 31377.17956 | AA36: 31377 | AB36: 157.8988215 | AC36: 0.0373247818 | AD36: 0.03439408052 | AF36: 30317.18972 | AG36: 152.5655265 | AH36: 0.0349574051 | AI36: 0.0349574051
A37: 01Y | B37: NHS Tameside and Glossop CCG | E37: 35389 | F37: 248556.2812 | G37: 142.3782164 | H37: -0.01854210854 | J37: 35945.03209 | K37: 249223.8125 | L37: 144.22792 | M37: 0.002685634202 | O37: -0.01546895505 | P37: -0.0128248648 | Q37: 0.03717802002 | R37: 0.0344 | S37: 36704.69295 | T37: 0.277744771 | U37: 0.03994595918 | V37: 0.0371605254 | W37: 36802.64755 | X37: 0.03994595918 | Y37: 0.0371605254 | Z37: 36802.64755 | AA37: 36803 | AB37: 147.6704799 | AC37: 0.03995591851 | AD37: 0.03717045805 | AF37: 37538.80147 | AG37: 150.6228522 | AH37: -0.01960109108 | AI37: -0.01960109108
A38: 02A | B38: NHS Trafford CCG | E38: 32611 | F38: 243556.875 | G38: 133.8948038 | H38: 0.04664665737 | J38: 31159.62977 | K38: 245133.5625 | L38: 127.1128664 | M38: 0.006473590614 | O38: 0.04657854528 | P38: 0.05335366633 | Q38: 0.04050451423 | R38: 0.03381203832 | S38: 33931.89271 | T38: 0 | U38: 0.04050451423 | V38: 0.03381203832 | W38: 33931.89271 | X38: 0.04050451423 | Y38: 0.03381203832 | Z38: 33931.89271 | AA38: 33932 | AB38: 138.4224977 | AC38: 0.04050780412 | AD38: 0.03381530705 | AF38: 32541.21886 | AG38: 132.748933 | AH38: 0.04273906122 | AI38: 0.04273906122
A39: 02D | B39: NHS Vale Royal CCG | E39: 13941 | F39: 107292.4375 | G39: 129.9346005 | H39: -0.03156774245 | J39: 14357.79736 | K39: 107566.4219 | L39: 133.4784323 | M39: 0.00255362243 | O39: -0.02902933819 | P39: -0.02654984573 | Q39: 0.03704146704 | R39: 0.0344 | S39: 14457.39509 | T39: 0.5749831235 | U39: 0.04277085939 | V39: 0.04011479891 | W39: 14537.26855 | X39: 0.04277085939 | Y39: 0.04011479891 | Z39: 14537.26855 | AA39: 14537 | AB39: 135.1444042 | AC39: 0.04275159601 | AD39: 0.0400955846 | AF39: 14994.40877 | AG39: 139.3967421 | AH39: -0.03050528893 | AI39: -0.03050528893
A40: 02E | B40: NHS Warrington CCG | E40: 28776 | F40: 219281.6562 | G40: 131.2284871 | H40: -0.02552119483 | J40: 29535.00863 | K40: 220369.6406 | L40: 134.0248527 | M40: 0.004961584081 | O40: -0.02569860866 | P40: -0.02086453039 | Q40: 0.03953226257 | R40: 0.0344 | S40: 29913.58039 | T40: 0.4518577237 | U40: 0.04404559192 | V40: 0.03889104664 | W40: 30043.45595 | X40: 0.04404559192 | Y40: 0.03889104664 | Z40: 30043.45595 | AA40: 30043 | AB40: 136.3300313 | AC40: 0.04402974701 | AD40: 0.03887527996 | AF40: 30844.56352 | AG40: 139.9673904 | AH40: -0.02598718945 | AI40: -0.02598718945
A41: 02F | B41: NHS West Cheshire CCG | E41: 37523 | F41: 264776.8438 | G41: 141.715565 | H41: 0.01683587893 | J41: 36843.87094 | K41: 265597.6875 | L41: 138.7206014 | M41: 0.003100134205 | O41: 0.01843261954 | P41: 0.02158989734 | Q41: 0.03760677882 | R41: 0.0344 | S41: 38934.11916 | T41: 0 | U41: 0.03760677882 | V41: =MAX(R41,NewMinGrowthPerHead(P41,$P$2,$L$1,$U$1,$T$2,AG41,G41,T41, $P$1)) -> 0.0344 | W41: 38934.11916 | X41: 0.03760677882 | Y41: 0.0344 | Z41: 38934.11916 | AA41: =IF(ROUND(Z41,0)/E41>$AA$1,ROUND(Z41,0),ROUNDUP(Z41,0)) -> 38934 | AB41: =AA41/K41*1000 -> 146.5901317 | AC41: =AA41/E41-1 -> 0.03760360312 | AD41: =AB41/G41-1 -> 0.03439683412 | AF41: 38477.49401 | AG41: =AF41/K41*1000 -> 144.8713442 | AH41: 0.01186423401 | AI41: 0.01186423401
A42: 02G | B42: NHS West Lancashire CCG | E42: 14874 | F42: 113720.625 | G42: 130.7942161 | H42: -0.03526572324 | J42: 15368.99135 | K42: 113877.375 | L42: 134.9608854 | M42: 0.001378377933 | O42: -0.0322071462 | P42: -0.03087316188 | Q42: 0.03582579413 | R42: 0.0344 | S42: 15406.87286 | T42: 0.6686120603 | U42: 0.04248033768 | V42: 0.0410453837 | W42: 15505.85254 | X42: 0.04248033768 | Y42: 0.0410453837 | Z42: 15505.85254 | AA42: 15506 | AB42: 136.1640098 | AC42: 0.04249025145 | AD42: 0.04105528382 | AF42: 16050.43817 | AG42: 140.9449258 | AH42: -0.0339204554 | AI42: -0.0339204554
A43: 02H | B43: NHS Wigan Borough CCG | E43: 49319 | F43: 328789.4375 | G43: 150.0017774 | H43: 0.06516876215 | J43: 46207.84414 | K43: 329583.8125 | L43: 140.2005875 | M43: 0.002416059975 | O43: 0.06732960437 | P43: 0.06990833671 | Q43: 0.03340042844 | R43: 0.0309096888 | S43: 50966.27573 | T43: 0 | U43: 0.03340042844 | V43: 0.0309096888 | W43: 50966.27573 | X43: 0.03340042844 | Y43: 0.0309096888 | Z43: 50966.27573 | AA43: 50966 | AB43: 154.637449 | AC43: 0.03339483769 | AD43: 0.03090411153 | AF43: 48256.65708 | AG43: 146.4169515 | AH43: 0.05614443851 | AI43: 0.05614443851
A44: 02M | B44: NHS Fylde & Wyre CCG | E44: 27775 | F44: 178249.3125 | G44: 155.8210779 | H44: 0.08972928122 | J44: 25474.01549 | K44: 178955.0312 | L44: 142.3486968 | M44: 0.003959166743 | O44: 0.0903267298 | P44: 0.09464351513 | Q44: 0.0306375144 | R44: 0.02657314017 | S44: 28625.95696 | T44: 0 | U44: 0.0306375144 | V44: 0.02657314017 | W44: 28625.95696 | X44: 0.0306375144 | Y44: 0.02657314017 | Z44: 28625.95696 | AA44: 28626 | AB44: 159.9619737 | AC44: 0.03063906391 | AD44: 0.02657468356 | AF44: 26603.5097 | AG44: 148.660306 | AH44: 0.07602343895 | AI44: 0.07602343895
A45: 02N | B45: NHS Airedale, Wharfedale and Craven CCG | E45: 22850 | F45: 159702.5 | G45: 143.0785367 | H45: 0.04360840518 | J45: 21863.30626 | K45: 160223.2188 | L45: 136.455293 | M45: 0.003260554782 | O45: 0.04513012481 | P45: 0.04853782884 | Q45: 0.03777271787 | R45: 0.0344 | S45: 23713.1066 | T45: 0 | U45: 0.03777271787 | V45: 0.0344 | W45: 23713.1066 | X45: 0.03777271787 | Y45: 0.0344 | Z45: 23713.1066 | AA45: 23713 | AB45: 147.999773 | AC45: 0.03776805252 | AD45: 0.03439534981 | AF45: 22832.70498 | AG45: 142.5055941 | AH45: 0.03855412757 | AI45: 0.03855412757
A46: 02P | B46: NHS Barnsley CCG | E46: 38113 | F46: 262230.9375 | G46: 145.3413558 | H46: 0.03186743308 | J46: 36971.07839 | K46: 264060.1562 | L46: 140.0100602 | M46: 0.006975602373 | O46: 0.03088688955 | P46: 0.03807794659 | Q46: 0.0416155631 | R46: 0.0344 | S46: 39699.09396 | T46: 0 | U46: 0.0416155631 | V46: 0.0344 | W46: 39699.09396 | X46: 0.0416155631 | Y46: 0.0344 | Z46: 39699.09396 | AA46: 39699 | AB46: 150.3407427 | AC46: 0.04161309789 | AD46: 0.03439755188 | AF46: 38610.34171 | AG46: 146.2179764 | AH46: 0.02819602843 | AI46: 0.02819602843
A47: 02Q | B47: NHS Bassetlaw CCG | E47: 17579 | F47: 117732.3672 | G47: 149.3132298 | H47: 0.06587962735 | J47: 16480.57605 | K47: 118099.2578 | L47: 139.548515 | M47: 0.00311631061 | O47: 0.06664960906 | P47: 0.06997362056 | Q47: 0.03411084243 | R47: 0.03089824329 | S47: 18178.6345 | T47: 0 | U47: 0.03411084243 | V47: 0.03089824329 | W47: 18178.6345 | X47: 0.03411084243 | Y47: 0.03089824329 | Z47: 18178.6345 | AA47: 18179 | AB47: 153.9298412 | AC47: 0.03413163434 | AD47: 0.03091897061 | AF47: 17211.3095 | AG47: 145.7359667 | AH47: 0.05622410633 | AI47: 0.05622410633
A48: 02R | B48: NHS Bradford Districts CCG | E48: 51695 | F48: 334130.3125 | G48: 154.7150859 | H48: 0.0949486707 | J48: 47060.96581 | K48: 334984.2188 | L48: 140.487113 | M48: 0.00255560845 | O48: 0.09846874398 | P48: 0.101276 | Q48: 0.02825516522 | R48: 0.02563404619 | S48: 53155.65077 | T48: 0 | U48: 0.02825516522 | V48: 0.02563404619 | W48: 53155.65077 | X48: 0.02825516522 | Y48: 0.02563404619 | Z48: 53155.65077 | AA48: 53156 | AB48: 158.6821021 | AC48: 0.02826192088 | AD48: 0.02564078463 | AF48: 49147.60538 | AG48: 146.7161813 | AH48: 0.08155828938 | AI48: 0.08155828938
A49: 02T | B49: NHS Calderdale CCG | E49: 31208 | F49: 221396.0625 | G49: 140.9600498 | H49: 0.0231478135 | J49: 30443.23564 | K49: 222195.1562 | L49: 137.0112479 | M49: 0.003609340387 | O49: 0.02512099483 | P49: 0.02882100543 | Q49: 0.0381335017 | R49: 0.0344 | S49: 32398.07032 | T49: 0 | U49: 0.0381335017 | V49: 0.0344 | W49: 32398.07032 | X49: 0.0381335017 | Y49: 0.0344 | Z49: 32398.07032 | AA49: 32398 | AB49: 145.8087591 | AC49: 0.0381312484 | AD49: 0.0343977548 | AF49: 31793.06046 | AG49: 143.0861995 | AH49: 0.01902740806 | AI49: 0.01902740806
A50: 02W | B50: NHS Bradford City CCG | E50: 21183 | F50: 140352.5781 | G50: 150.9270459 | H50: 0.007136892581 | J50: 20884.31895 | K50: 140252.5469 | L50: 148.9050959 | M50: -0.0007127140188 | O50: 0.01430168989 | P50: 0.01357878286 | Q50: 0.03366276862 | R50: 0.0344 | S50: 21896.07843 | T50: 0 | U50: 0.03366276862 | V50: 0.0344 | W50: 21896.07843 | X50: 0.03366276862 | Y50: 0.0344 | Z50: 21896.07843 | AA50: 21896 | AB50: 156.1183771 | AC50: 0.03365906623 | AD50: 0.03439629497 | AF50: 21810.31028 | AG50: 155.5074098 | AH50: 0.003928863073 | AI50: 0.003928863073
A51: 02X | B51: NHS Doncaster CCG | E51: 45892 | F51: 321430.5625 | G51: 142.7742267 | H51: 0.005661010422 | J51: 45488.82247 | K51: 322119.4688 | L51: 141.2172405 | M51: 0.002143250613 | O51: 0.008863221866 | P51: 0.01102546858 | Q51: 0.03661697843 | R51: 0.0344 | S51: 47572.42637 | T51: 0 | U51: 0.03661697843 | V51: 0.0344 | W51: 47572.42637 | X51: 0.03661697843 | Y51: 0.0344 | Z51: 47572.42637 | AA51: 47572 | AB51: 147.6843365 | AC51: 0.03660768761 | AD51: 0.03439072905 | AF51: 47505.75467 | AG51: 147.4786819 | AH51: 0.001394469616 | AI51: 0.001394469616
A52: 02Y | B52: NHS East Riding of Yorkshire CCG | E52: 44491 | F52: 304863.6562 | G52: 145.9373693 | H52: -0.002276459813 | J52: 44543.30736 | K52: 305466.3438 | L52: 145.8206715 | M52: 0.001976908325 | O52: -0.001174303444 | P52: 0.0008002833909 | Q52: 0.03644491397 | R52: 0.0344 | S52: 46112.47067 | T52: 0 | U52: 0.03644491397 | V52: 0.0344 | W52: 46112.47067 | X52: 0.03644491397 | Y52: 0.0344 | Z52: 46112.47067 | AA52: 46112 | AB52: 150.956074 | AC52: 0.03643433503 | AD52: 0.03438944194 | AF52: 46518.31629 | AG52: 152.2862248 | AH52: -0.008734544218 | AI52: -0.008734544218
A53: 03A | B53: NHS Greater Huddersfield CCG | E53: 34809 | F53: 249965.9375 | G53: 139.2549735 | H53: 0.0540977401 | J53: 32979.13942 | K53: 251006.7812 | L53: 131.387444 | M53: 0.004163942337 | O53: 0.05548539502 | P53: 0.05988037534 | Q53: 0.03696775082 | R53: 0.03266778172 | S53: 36095.81044 | T53: 0 | U53: 0.03696775082 | V53: 0.03266778172 | W53: 36095.81044 | X53: 0.03696775082 | Y53: 0.03266778172 | Z53: 36095.81044 | AA53: 36096 | AB53: 143.8048798 | AC53: 0.03697319659 | AD53: 0.03267320491 | AF53: 34441.40387 | AG53: 137.2130414 | AH53: 0.04804090254 | AI53: 0.04804090254
A54: 03D | B54: NHS Hambleton, Richmondshire and Whitby CCG | E54: 22803 | F54: 144023.375 | G54: 158.3284658 | H54: 0.03752056045 | J54: 21938.89922 | K54: 144107.0938 | L54: 152.2402447 | M54: 0.0005812858503 | O54: 0.03938669738 | P54: 0.03999087816 | Q54: 0.03500128208 | R54: 0.0344 | S54: 23601.13424 | T54: 0 | U54: 0.03500128208 | V54: 0.0344 | W54: 23601.13424 | X54: 0.03500128208 | Y54: 0.0344 | Z54: 23601.13424 | AA54: 23601 | AB54: 163.7740335 | AC54: 0.03499539534 | AD54: 0.03439411668 | AF54: 22911.64966 | AG54: 158.9904359 | AH54: 0.03008732907 | AI54: 0.03008732907
A55: 03E | B55: NHS Harrogate and Rural District CCG | E55: 22576 | F55: 163245.0625 | G55: 138.2951475 | H55: 0.01968068732 | J55: 22124.25583 | K55: 163361.4375 | L55: 135.4313243 | M55: 0.0007128852672 | O55: 0.02041850245 | P55: 0.02114594376 | Q55: 0.03513740852 | R55: 0.0344 | S55: 23369.26213 | T55: 0 | U55: 0.03513740852 | V55: 0.0344 | W55: 23369.26213 | X55: 0.03513740852 | Y55: 0.0344 | Z55: 23369.26213 | AA55: 23369 | AB55: 143.050896 | AC55: 0.03512579731 | AD55: 0.03438839706 | AF55: 23105.22481 | AG55: 141.4362236 | AH55: 0.01141625724 | AI55: 0.01141625724
A56: 03F | B56: NHS Hull CCG | E56: 47439 | F56: 299668.0312 | G56: 158.3051746 | H56: 0.0562373752 | J56: 44663.14486 | K56: 300221.8125 | L56: 148.7671548 | M56: 0.001847982408 | O56: 0.06215091101 | P56: 0.06411374721 | Q56: 0.03383257122 | R56: 0.03192559088 | S56: 49043.98335 | T56: 0 | U56: 0.03383257122 | V56: 0.03192559088 | W56: 49043.98335 | X56: 0.03383257122 | Y56: 0.03192559088 | Z56: 49043.98335 | AA56: 49044 | AB56: 163.3592163 | AC56: 0.03383292228 | AD56: 0.03192594129 | AF56: 46643.46727 | AG56: 155.3633525 | AH56: 0.05146557207 | AI56: 0.05146557207
A57: 03H | B57: NHS North East Lincolnshire CCG | E57: 29585 | F57: 169562.0781 | G57: 174.4788713 | H57: 0.1671172633 | J57: 25212.11321 | K57: 169500.1562 | L57: 148.7438936 | M57: -0.0003651870494 | O57: 0.1734438823 | P57: 0.1730153558 | Q57: 0.02525949792 | R57: 0.02563404619 | S57: 30332.30225 | T57: 0 | U57: 0.02525949792 | V57: 0.02563404619 | W57: 30332.30225 | X57: 0.02525949792 | Y57: 0.02563404619 | Z57: 30332.30225 | AA57: 30332 | AB57: 178.9496875 | AC57: 0.02524928173 | AD57: 0.02562382627 | AF57: 26329.99492 | AG57: 155.3390599 | AH57: 0.1519941456 | AI57: 0.1519941456
A58: 03J | B58: NHS North Kirklees CCG | E58: 26824 | F58: 194611.9688 | G58: 137.8332493 | H58: 0.03211058951 | J58: 25961.09603 | K58: 195498.4375 | L58: 132.7943914 | M58: 0.004555057717 | O58: 0.03323834899 | P58: 0.0379448093 | Q58: 0.0391117517 | R58: 0.0344 | S58: 27873.13363 | T58: 0 | U58: 0.0391117517 | V58: 0.0344 | W58: 27873.13363 | X58: 0.0391117517 | Y58: 0.0344 | Z58: 27873.13363 | AA58: 27873 | AB58: 142.5740295 | AC58: 0.03910677006 | AD58: 0.03439504094 | AF58: 27112.18695 | AG58: 138.6823716 | AH58: 0.02806166298 | AI58: 0.02806166298
A59: 03K | B59: NHS North Lincolnshire CCG | E59: 25659 | F59: 177652.9844 | G59: 144.4332618 | H59: -0.0498856789 | J59: 26965.21833 | K59: 178117.2188 | L59: 151.3902952 | M59: 0.002613152696 | O59: -0.04844085863 | P59: -0.0459542893 | Q59: 0.03710304515 | R59: 0.0344 | S59: 26611.02704 | T59: 0.9952201255 | U59: 0.04702045823 | V59: 0.04429156491 | W59: 26865.49794 | X59: 0.04702045823 | Y59: 0.04429156491 | Z59: 26865.49794 | AA59: 26865 | AB59: 150.8276414 | AC59: 0.04700105226 | AD59: 0.04427220952 | AF59: 28160.8311 | AG59: 158.1028005 | AH59: -0.04601537125 | AI59: -0.04601537125
A60: 03L | B60: NHS Rotherham CCG | E60: 39257 | F60: 263993.0938 | G60: 148.7046477 | H60: 0.04856492138 | J60: 37359.8981 | K60: 264819.25 | L60: 141.0769727 | M60: 0.003129461602 | O60: 0.05077909715 | P60: 0.05406746999 | Q60: 0.03692177836 | R60: 0.03368689492 | S60: 40706.43825 | T60: 0 | U60: 0.03692177836 | V60: 0.03368689492 | W60: 40706.43825 | X60: 0.03692177836 | Y60: 0.03368689492 | Z60: 40706.43825 | AA60: 40706 | AB60: 153.7123906 | AC60: 0.03691061467 | AD60: 0.03367576605 | AF60: 39016.40133 | AG60: 147.3321948 | AH60: 0.04330483104 | AI60: 0.04330483104
A61: 03M | B61: NHS Scarborough and Ryedale CCG | E61: 18303 | F61: 120626.7188 | G61: 151.732553 | H61: -0.003999392221 | J61: 18323.02385 | K61: 120801.6562 | L61: 151.6785814 | M61: 0.001450238403 | O61: -0.001092824382 | P61: 0.0003558291651 | Q61: 0.0359001266 | R61: 0.0344 | S61: 18960.08002 | T61: 0 | U61: 0.0359001266 | V61: 0.0344 | W61: 18960.08002 | X61: 0.0359001266 | Y61: 0.0344 | Z61: 18960.08002 | AA61: 18960 | AB61: 156.9514905 | AC61: 0.03589575479 | AD61: 0.03439563452 | AF61: 19135.44973 | AG61: 158.403869 | AH61: -0.009168832258 | AI61: -0.009168832258
A62: 03N | B62: NHS Sheffield CCG | E62: 82473 | F62: 604647.125 | G62: 136.3985647 | H62: 0.004823882182 | J62: 81931.8661 | K62: 607792.6875 | L62: 134.8023229 | M62: 0.005202311183 | O62: 0.006604681744 | P62: 0.01184135254 | Q62: 0.03978127069 | R62: 0.0344 | S62: 85753.88074 | T62: 0 | U62: 0.03978127069 | V62: 0.0344 | W62: 85753.88074 | X62: 0.03978127069 | Y62: 0.0344 | Z62: 85753.88074 | AA62: 85754 | AB62: 141.0908715 | AC62: 0.03978271677 | AD62: 0.0344014386 | AF62: 85564.64905 | AG62: 140.7793328 | AH62: 0.002212957768 | AI62: 0.002212957768
A63: 03Q | B63: NHS Vale of York CCG | E63: 47164 | F63: 358916.4375 | G63: 131.4066314 | H63: -0.0102635145 | J63: 47633.69425 | K63: 360500 | L63: 132.1323003 | M63: 0.004412064577 | O63: -0.009860546299 | P63: -0.005491987089 | Q63: 0.0389638396 | R63: 0.0344 | S63: 49001.69053 | T63: 0.1189385401 | U63: 0.04015119404 | V63: 0.03558213877 | W63: 49057.69092 | X63: 0.04015119404 | Y63: 0.03558213877 | Z63: 49057.69092 | AA63: 49058 | AB63: 136.0832178 | AC63: 0.04015774743 | AD63: 0.03558866338 | AF63: 49745.72807 | AG63: 137.9909239 | AH63: -0.01382486685 | AI63: -0.01382486685
A64: 03R | B64: NHS Wakefield CCG | E64: 59843 | F64: 375745.5312 | G64: 159.2647018 | H64: 0.1226051137 | J64: 53268.96783 | K64: 377694.125 | L64: 141.0373218 | M64: 0.005185939919 | O64: 0.1234120434 | P64: 0.1292379907 | Q64: 0.03095292273 | R64: 0.02563404619 | S64: 61695.31575 | T64: 0 | U64: 0.03095292273 | V64: 0.02563404619 | W64: 61695.31575 | X64: 0.03095292273 | Y64: 0.02563404619 | Z64: 61695.31575 | AA64: 61695 | AB64: 163.3464645 | AC64: 0.03094764634 | AD64: 0.02562879702 | AF64: 55630.86445 | AG64: 147.2907858 | AH64: 0.1090066747 | AI64: 0.1090066747
A65: 03T | B65: NHS Lincolnshire East CCG | E65: 40158 | F65: 251486.8125 | G65: 159.6823293 | H65: -0.0375204754 | J65: 41683.66296 | K65: 252526.2969 | L65: 165.0666227 | M65: 0.004133355402 | O65: -0.03660098103 | P65: -0.03261891049 | Q65: 0.03867554283 | R65: 0.0344 | S65: 41711.13245 | T65: 0.7064192851 | U65: 0.04572571619 | V65: 0.04142115244 | W65: 41994.25331 | X65: 0.04572571619 | Y65: 0.04142115244 | Z65: 41994.25331 | AA65: 41994 | AB65: 166.2955523 | AC65: 0.04571940834 | AD65: 0.04141487056 | AF65: 43531.87791 | AG65: 172.3855236 | AH65: -0.03532762615 | AI65: -0.03532762615
A66: 03V | B66: NHS Corby CCG | E66: 11357 | F66: 79913.375 | G66: 142.1163854 | H66: -0.01226475611 | J66: 11583.01021 | K66: 81145.17188 | L66: 142.7442933 | M66: 0.01541415157 | O66: -0.01951221743 | P66: -0.004398830136 | Q66: 0.05034439839 | R66: 0.0344 | S66: 11928.76133 | T66: 0.09526432347 | U66: 0.05130583212 | V66: 0.03534683901 | W66: 11939.68034 | X66: 0.05130583212 | Y66: 0.03534683901 | Z66: 11939.68034 | AA66: 11940 | AB66: 147.1436898 | AC66: 0.05133397904 | AD66: 0.03537455866 | AF66: 12096.59014 | AG66: 149.0734429 | AH66: -0.01294498208 | AI66: -0.01294498208
A67: 03W | B67: NHS East Leicestershire and Rutland CCG | E67: 44691 | F67: 333199 | G67: 134.1270532 | H67: 0.02433101905 | J67: 43688.81867 | K67: 335015.1875 | L67: 130.4084719 | M67: 0.005450759156 | O67: 0.02293908057 | P67: 0.02851487513 | Q67: 0.04003826527 | R67: 0.0344 | S67: 46480.35011 | T67: 0 | U67: 0.04003826527 | V67: 0.0344 | W67: 46480.35011 | X67: 0.04003826527 | Y67: 0.0344 | Z67: 46480.35011 | AA67: 46480 | AB67: 138.7399788 | AC67: 0.04003043118 | AD67: 0.03439220838 | AF67: 45625.94036 | AG67: 136.1906626 | AH67: 0.01871872951 | AI67: 0.01871872951
A68: 04C | B68: NHS Leicester City CCG | E68: 56206 | F68: 409607.5625 | G68: 137.2191462 | H68: -0.002045126119 | J68: 56305.3103 | K68: 412727.875 | L68: 136.4223589 | M68: 0.007617809791 | O68: -0.001763782137 | P68: 0.005840591497 | Q68: 0.04227986245 | R68: 0.0344 | S68: 58582.38195 | T68: 0 | U68: 0.04227986245 | V68: 0.0344 | W68: 58582.38195 | X68: 0.04227986245 | Y68: 0.0344 | Z68: 58582.38195 | AA68: 58582 | AB68: 141.9385594 | AC68: 0.04227306693 | AD68: 0.03439325586 | AF68: 58801.83553 | AG68: 142.4711998 | AH68: -0.003738582822 | AI68: -0.003738582822
A69: 04D | B69: NHS Lincolnshire West CCG | E69: 32805 | F69: 238697.6562 | G69: 137.4332723 | H69: -0.04990486731 | J69: 34500.11672 | K69: 239817.1719 | L69: 143.8600766 | M69: 0.004690098942 | O69: -0.04913365162 | P69: -0.04467399437 | Q69: 0.03925143835 | R69: 0.0344 | S69: 34092.64343 | T69: 0.9674931103 | U69: 0.04891252236 | V69: 0.0440159841 | W69: 34409.5753 | X69: 0.04891252236 | Y69: 0.0440159841 | Z69: 34409.5753 | AA69: 34410 | AB69: 143.484304 | AC69: 0.04892546868 | AD69: 0.04402886998 | AF69: 36029.81989 | AG69: 150.238699 | AH69: -0.04495775706 | AI69: -0.04495775706
A70: 04E | B70: NHS Mansfield and Ashfield CCG | E70: 28359 | F70: 195172.625 | G70: 145.3021396 | H70: 0.04128549207 | J70: 27245.78979 | K70: 196347.5 | L70: 138.7631103 | M70: 0.006019671048 | O70: 0.04085806337 | P70: 0.04712368652 | Q70: 0.04062674773 | R70: 0.0344 | S70: 29511.13394 | T70: 0 | U70: 0.04062674773 | V70: 0.0344 | W70: 29511.13394 | X70: 0.04062674773 | Y70: 0.0344 | Z70: 29511.13394 | AA70: 29511 | AB70: 150.299851 | AC70: 0.04062202475 | AD70: 0.03439530528 | AF70: 28453.84284 | AG70: 144.9157379 | AH70: 0.03715340542 | AI70: 0.03715340542
A71: 04F | B71: NHS Milton Keynes CCG | E71: 36307 | F71: 297252.1875 | G71: 122.1420784 | H71: -0.03472890146 | J71: 37770.69557 | K71: 300121.75 | L71: 125.851244 | M71: 0.009653629546 | O71: -0.03875214773 | P71: -0.02947261706 | Q71: 0.0443857144 | R71: 0.0344 | S71: 37918.51213 | T71: 0.6382808242 | U71: 0.05079087559 | V71: 0.04074391934 | W71: 38151.06432 | X71: 0.05079087559 | Y71: 0.04074391934 | Z71: 38151.06432 | AA71: 38151 | AB71: 127.1184111 | AC71: 0.05078910403 | AD71: 0.04074216472 | AF71: 39445.41318 | AG71: 131.4313714 | AH71: -0.0328153029 | AI71: -0.0328153029
A72: 04G | B72: NHS Nene CCG | E72: 90879 | F72: 691032.875 | G72: 131.5118329 | H72: -0.04010721748 | J72: 94892.33803 | K72: 695931.1875 | L72: 136.3530472 | M72: 0.007088392864 | O72: -0.04229359411 | P72: -0.03550499485 | Q72: 0.04173223358 | R72: 0.0344 | S72: 94671.58366 | T72: 0.7689224657 | U72: 0.04942878182 | V72: 0.04204237608 | W72: 95371.03826 | X72: 0.04942878182 | Y72: 0.04204237608 | Z72: 95371.03826 | AA72: 95371 | AB72: 137.0408479 | AC72: 0.04942836079 | AD72: 0.04204195801 | AF72: 99099.77628 | AG72: 142.3988148 | AH72: -0.03762648532 | AI72: -0.03762648532
A73: 04H | B73: NHS Newark & Sherwood CCG | E73: 19101 | F73: 136000.9688 | G73: 140.447529 | H73: 0.04087927183 | J73: 18379.76256 | K73: 136950.875 | L73: 134.2069743 | M73: 0.006984555027 | O73: 0.03924084648 | P73: 0.04649948136 | Q73: 0.04162482372 | R73: 0.0344 | S73: 19896.07576 | T73: 0 | U73: 0.04162482372 | V73: =MAX(R73,NewMinGrowthPerHead(P73,$P$2,$L$1,$U$1,$T$2,AG73,G73,T73, $P$1)) -> 0.0344 | W73: 19896.07576 | X73: 0.04162482372 | Y73: 0.0344 | Z73: 19896.07576 | AA73: =IF(ROUND(Z73,0)/E73>$AA$1,ROUND(Z73,0),ROUNDUP(Z73,0)) -> 19896 | AB73: =AA73/K73*1000 -> 145.2783708 | AC73: =AA73/E73-1 -> 0.04162085755 | AD73: =AB73/G73-1 -> 0.03439606134 | AF73: 19194.70418 | AG73: =AF73/K73*1000 -> 140.157587 | AH73: 0.03653590131 | AI73: 0.03653590131
A74: 04K | B74: NHS Nottingham City CCG | E74: 52218 | F74: 381504.375 | G74: =E74/F74*1000 -> 136.8739218 | H74: -0.04990425861 | J74: 54774.80185 | K74: 383184.875 | L74: =J74/K74*1000 -> 142.946148 | M74: =K74/F74-1 -> 0.004404929826 | O74: =E74/J74-1 -> -0.04667843172 | P74: =G74/L74-1 -> -0.04247911711 | Q74: =(1+M74)*(1+R74)-1 -> 0.03895645941 | R74: =MinGrowthPerHead(P74,0,1,$Q$1,$Q$2,$R$1,$R$2) -> 0.0344 | S74: =(1+IF($S$2=1,Q74,0))*$E74 -> 54252.2284 | T74: =MinMaxRamp(P74,0,1,$P$2,$T$2) -> 0.9199592228 | U74: =(1+M74)*(1+V74)-1 -> 0.04814027742 | V74: 0.04354354135 | W74: =(1+IF($S$2=1,U74,0))*$E74 -> 54731.78901 | X74: =MAX(U74,$X$1) -> 0.04814027742 | Y74: =(1+X74)/(1+M74) - 1 -> 0.04354354135 | Z74: =(1+IF($Z$2=1,X74,0))*$E74 -> 54731.78901 | AA74: 54732 | AB74: 142.8344477 | AC74: 0.04814431805 | AD74: 0.04354756426 | AF74: 57203.46575 | AG74: 149.2842476 | AH74: =AA74/AF74-1 -> -0.04320482548 | AI74: -0.04320482548
A75: 04L | B75: NHS Nottingham North and East CCG | E75: 20753 | F75: 153479.5469 | G75: 135.216714 | H75: 0.0346161554 | J75: 20063.58939 | K75: 154496.7812 | L75: 129.8641255 | M75: 0.006627817163 | O75: 0.03436127975 | P75: 0.04121683719 | Q75: 0.04125581407 | R75: 0.0344 | S75: 21609.18191 | T75: 0 | U75: 0.04125581407 | V75: 0.0344 | W75: 21609.18191 | X75: 0.04125581407 | Y75: 0.0344 | Z75: 21609.18191 | AA75: 21609 | AB75: 139.8669916 | AC75: 0.04124704862 | AD75: 0.03439129226 | AF75: 20953.19034 | AG75: 135.6221804 | AH75: 0.03129879766 | AI75: 0.03129879766
A76: 04M | B76: NHS Nottingham West CCG | E76: 13376 | F76: 94623.32812 | G76: 141.3604897 | H76: 0.06035132691 | J76: 12605.02987 | K76: 95121.66406 | L76: 132.5148166 | M76: 0.005266523038 | O76: 0.06116368946 | P76: 0.06675233248 | Q76: 0.03689522018 | R76: 0.03146299655 | S76: 13869.51047 | T76: 0 | U76: 0.03689522018 | V76: 0.03146299655 | W76: 13869.51047 | X76: 0.03689522018 | Y76: 0.03146299655 | Z76: 13869.51047 | AA76: 13870 | AB76: 145.8132607 | AC76: 0.03693181818 | AD76: 0.03149940281 | AF76: 13163.9252 | AG76: 138.3904006 | AH76: 0.05363710211 | AI76: 0.05363710211
A77: 04N | B77: NHS Rushcliffe CCG | E77: 16976 | F77: 128001.9531 | G77: 132.6229763 | H77: 0.04125275921 | J77: 16341.51916 | K77: 128916.7656 | L77: 126.7602323 | M77: 0.007146863604 | O77: 0.03882630728 | P77: 0.04625065721 | Q77: 0.04179271571 | R77: 0.0344 | S77: 17685.47314 | T77: 0 | U77: 0.04179271571 | V77: 0.0344 | W77: 17685.47314 | X77: 0.04179271571 | Y77: 0.0344 | Z77: 17685.47314 | AA77: 17685 | AB77: 137.1815366 | AC77: 0.04176484449 | AD77: 0.03437232655 | AF77: 17066.08696 | AG77: 132.3806634 | AH77: 0.03626566794 | AI77: 0.03626566794
A78: 04Q | B78: NHS South West Lincolnshire CCG | E78: 20278 | F78: 134597.2812 | G78: 150.6568321 | H78: -0.0188149099 | J78: 20712.31066 | K78: 135580.4688 | L78: 152.7676578 | M78: 0.007304660918 | O78: -0.02096872086 | P78: -0.01381722934 | Q78: 0.04195594125 | R78: 0.0344 | S78: 21128.78258 | T78: 0.2992361525 | U78: 0.04495179606 | V78: 0.03737412979 | W78: 21189.53252 | X78: 0.04495179606 | Y78: 0.03737412979 | Z78: 21189.53252 | AA78: 21190 | AB78: 156.2909481 | AC78: 0.04497484959 | AD78: 0.03739701615 | AF78: 21630.6753 | AG78: 159.5412341 | AH78: -0.02037270206 | AI78: -0.02037270206
A79: 04V | B79: NHS West Leicestershire CCG | E79: 50135 | F79: 396364.25 | G79: 126.4871895 | H79: -0.02014775948 | J79: 51303.71321 | K79: 399689.625 | L79: 128.3588815 | M79: 0.00838969458 | O79: -0.02278028511 | P79: -0.01458171017 | Q79: 0.04307830007 | R79: 0.0344 | S79: 52294.73057 | T79: 0.3157923155 | U79: 0.04624331536 | V79: 0.0375386827 | W79: 52453.40862 | X79: 0.04624331536 | Y79: 0.0375386827 | Z79: 52453.40862 | AA79: 52453 | AB79: 131.2343296 | AC79: 0.04623516505 | AD79: 0.0375306002 | AF79: 53578.47227 | AG79: 134.0501952 | AH79: -0.02100605379 | AI79: -0.02100605379
A80: 04Y | B80: NHS Cannock Chase CCG | E80: 18919 | F80: 133391.125 | G80: 141.8310251 | H80: 0.07159308574 | J80: 17607.28383 | K80: 133519.9062 | L80: 131.8701033 | M80: 0.0009654409167 | O80: 0.07449849616 | P80: 0.07553586098 | Q80: 0.03091740632 | R80: 0.02992307644 | S80: 19503.92641 | T80: 0 | U80: 0.03091740632 | V80: 0.02992307644 | W80: 19503.92641 | X80: 0.03091740632 | Y80: 0.02992307644 | Z80: 19503.92641 | AA80: 19504 | AB80: 146.0755969 | AC80: 0.03092129605 | AD80: 0.02992696242 | AF80: 18387.97447 | AG80: 137.7171014 | AH80: 0.06069322839 | AI80: 0.06069322839
A81: 05A | B81: NHS Coventry and Rugby CCG | E81: 73273 | F81: 521674.4062 | G81: 140.4573411 | H81: -0.001348428319 | J81: 73647.6263 | K81: 528344.125 | L81: 139.3932909 | M81: 0.01278521367 | O81: -0.005086739609 | P81: 0.007633439008 | Q81: 0.04762502502 | R81: 0.0344 | S81: 76762.62846 | T81: 0 | U81: 0.04762502502 | V81: 0.0344 | W81: 76762.62846 | X81: 0.04762502502 | Y81: 0.0344 | Z81: 76762.62846 | AA81: 76763 | AB81: 145.2897768 | AC81: 0.04763009567 | AD81: 0.03440500664 | AF81: 76913.09373 | AG81: 145.5738601 | AH81: -0.001951471815 | AI81: -0.001951471815
A82: 05C | B82: NHS Dudley CCG | E82: 44240 | F82: 320331.8125 | G82: 138.1067951 | H82: 0.01256528002 | J82: 43558.79568 | K82: 321186.375 | L82: 135.6184417 | M82: 0.002667741594 | O82: 0.0156387317 | P82: 0.01834819339 | Q82: 0.0371595119 | R82: 0.0344 | S82: 45883.93681 | T82: 0 | U82: 0.0371595119 | V82: 0.0344 | W82: 45883.93681 | X82: 0.0371595119 | Y82: 0.0344 | Z82: 45883.93681 | AA82: 45884 | AB82: 142.8578656 | AC82: 0.03716094033 | AD82: 0.03440142462 | AF82: 45490.15228 | AG82: 141.6316376 | AH82: 0.008657867742 | AI82: 0.008657867742
A83: 05D | B83: NHS East Staffordshire CCG | E83: 19759 | F83: 142623.875 | G83: 138.5392172 | H83: -0.00196746321 | J83: 19775.00222 | K83: 143146.2188 | L83: 138.1454738 | M83: 0.003662386469 | O83: -0.0008092145094 | P83: 0.002850208304 | Q83: 0.03818837256 | R83: 0.0344 | S83: 20513.56405 | T83: 0 | U83: 0.03818837256 | V83: 0.0344 | W83: 20513.56405 | X83: 0.03818837256 | Y83: 0.0344 | Z83: 20513.56405 | AA83: 20514 | AB83: 143.3080118 | AC83: 0.03821043575 | AD83: 0.03442198268 | AF83: 20651.80747 | AG83: 144.270716 | AH83: -0.006672901372 | AI83: -0.006672901372
A84: 05F | B84: NHS Herefordshire CCG | E84: 29372 | F84: 188340.4375 | G84: 155.9516394 | H84: 0.04431690398 | J84: 28126.31882 | K84: 189233.0781 | L84: 148.6332046 | M84: 0.004739505954 | O84: 0.04428880971 | P84: 0.04923822274 | Q84: 0.03930254496 | R84: 0.0344 | S84: 30526.39435 | T84: 0 | U84: 0.03930254496 | V84: 0.0344 | W84: 30526.39435 | X84: 0.03930254496 | Y84: 0.0344 | Z84: 30526.39435 | AA84: 30526 | AB84: 161.3142919 | AC84: 0.03928911889 | AD84: 0.03438663726 | AF84: 29373.41371 | AG84: 155.223463 | AH84: 0.03923909922 | AI84: 0.03923909922
A85: 05G | B85: NHS North Staffordshire CCG | E85: 30598 | F85: 218799.0938 | G85: 139.8451862 | H85: 0.02276291504 | J85: 29869.96219 | K85: 219545.2812 | L85: 136.0537654 | M85: 0.003410377471 | O85: 0.02437357663 | P85: 0.0278670772 | Q85: 0.03792769446 | R85: 0.0344 | S85: 31758.51159 | T85: 0 | U85: 0.03792769446 | V85: 0.0344 | W85: 31758.51159 | X85: 0.03792769446 | Y85: 0.0344 | Z85: 31758.51159 | AA85: 31759 | AB85: 144.6580852 | AC85: 0.03794365645 | AD85: 0.03441590774 | AF85: 31194.3686 | AG85: 142.0862631 | AH85: 0.01810042712 | AI85: 0.01810042712
A86: 05H | B86: NHS Warwickshire North CCG | E86: 27132 | F86: 192349.4375 | G86: 141.0557803 | H86: 0.007059659745 | J86: 26916.62454 | K86: 193056.6562 | L86: 139.4234473 | M86: 0.003676739372 | O86: 0.008001577781 | P86: 0.01170773687 | Q86: 0.03820321921 | R86: 0.0344 | S86: 28168.52974 | T86: 0 | U86: 0.03820321921 | V86: 0.0344 | W86: 28168.52974 | X86: 0.03820321921 | Y86: 0.0344 | Z86: 28168.52974 | AA86: 28169 | AB86: 145.910535 | AC86: 0.03822055138 | AD86: 0.03441726868 | AF86: 28110.0827 | AG86: 145.6053536 | AH86: 0.002095949008 | AI86: 0.002095949008
A87: 05J | B87: NHS Redditch and Bromsgrove CCG | E87: 24413 | F87: 178487.7656 | G87: 136.7768817 | H87: 0.03091095394 | J87: 23661.20494 | K87: 179143.1562 | L87: 132.0798708 | M87: 0.003671907835 | O87: 0.03177332103 | P87: 0.03556189758 | Q87: 0.03819822146 | R87: 0.0344 | S87: 25345.53318 | T87: 0 | U87: 0.03819822146 | V87: 0.0344 | W87: 25345.53318 | X87: 0.03819822146 | Y87: 0.0344 | Z87: 25345.53318 | AA87: 25346 | AB87: 141.4846123 | AC87: 0.03821734322 | AD87: 0.0344190518 | AF87: 24710.32082 | AG87: 137.9361698 | AH87: 0.02572525001 | AI87: 0.02572525001
A88: 05L | B88: NHS Sandwell and West Birmingham CCG | E88: 84388 | F88: 575628.9375 | G88: 146.6013859 | H88: 0.02664435237 | J88: 82151.83509 | K88: 579789.375 | L88: 141.6925501 | M88: 0.007227637857 | O88: 0.02721990213 | P88: 0.03464427558 | Q88: 0.0418762686 | R88: 0.0344 | S88: 87921.85455 | T88: 0 | U88: 0.0418762686 | V88: 0.0344 | W88: 87921.85455 | X88: 0.0418762686 | Y88: 0.0344 | Z88: 87921.85455 | AA88: 87922 | AB88: 151.6447244 | AC88: 0.04187799213 | AD88: 0.03440171117 | AF88: 85794.37126 | AG88: 147.9750664 | AH88: 0.02479916471 | AI88: 0.02479916471
A89: 05N | B89: NHS Shropshire CCG | E89: 45891 | F89: 311223.875 | G89: 147.4533405 | H89: 0.02155993495 | J89: 44975.72875 | K89: 312527.375 | L89: 143.9097255 | M89: 0.004188303356 | O89: 0.02035033738 | P89: 0.02462387413 | Q89: 0.03873238099 | R89: 0.0344 | S89: 47668.4677 | T89: 0 | U89: 0.03873238099 | V89: 0.0344 | W89: 47668.4677 | X89: 0.03873238099 | Y89: 0.0344 | Z89: 47668.4677 | AA89: 47668 | AB89: 152.5242389 | AC89: 0.03872218954 | AD89: 0.03438985105 | AF89: 46969.91084 | AG89: 150.2905492 | AH89: 0.01486247572 | AI89: 0.01486247572
A90: 05Q | B90: NHS South East Staffordshire and Seisdon Peninsula CCG | E90: 29091 | F90: 218123.3281 | G90: 133.3695036 | H90: 0.03671446044 | J90: 28027.54969 | K90: 218447.4062 | L90: 128.3034217 | M90: 0.001485756374 | O90: 0.0379430355 | P90: 0.03948516598 | Q90: 0.03593686639 | R90: 0.0344 | S90: 30136.43938 | T90: 0 | U90: 0.03593686639 | V90: 0.0344 | W90: 30136.43938 | X90: 0.03593686639 | Y90: 0.0344 | Z90: 30136.43938 | AA90: 30136 | AB90: 137.9554032 | AC90: 0.03592176274 | AD90: 0.03438491876 | AF90: 29270.26524 | AG90: 133.9922764 | AH90: 0.02957727748 | AI90: 0.02957727748
A91: 05R | B91: NHS South Warwickshire CCG | E91: 39520 | F91: 288329.125 | G91: 137.0655843 | H91: -0.01891124005 | J91: 40242.65412 | K91: 289400.875 | L91: 139.0550534 | M91: 0.003717106276 | O91: -0.01795741703 | P91: -0.01430706038 | Q91: 0.03824497473 | R91: 0.0344 | S91: 41031.4414 | T91: 0.3098442963 | U91: 0.04133598671 | V91: 0.0374795649 | W91: 41153.59819 | X91: 0.04133598671 | Y91: 0.0374795649 | Z91: 41153.59819 | AA91: 41154 | AB91: 142.2041312 | AC91: 0.04134615385 | AD91: 0.03748969439 | AF91: 42026.97608 | AG91: 145.2206255 | AH91: -0.02077180325 | AI91: -0.02077180325
A92: 05T | B92: NHS South Worcestershire CCG | E92: 48994 | F92: 313593.1875 | G92: 156.2342613 | H92: 0.07102384479 | J92: 45801.20339 | K92: 315466.2812 | L92: 145.1857334 | M92: 0.005973005233 | O92: 0.06970988471 | P92: 0.07609926745 | Q92: 0.03597544648 | R92: 0.02982430054 | S92: 50756.58102 | T92: 0 | U92: 0.03597544648 | V92: 0.02982430054 | W92: 50756.58102 | X92: 0.03597544648 | Y92: 0.02982430054 | Z92: 50756.58102 | AA92: 50757 | AB92: 160.895167 | AC92: 0.03598399804 | AD92: 0.02983280133 | AF92: 47831.98627 | AG92: 151.6231341 | AH92: 0.06115183503 | AI92: 0.06115183503
A93: 05V | B93: NHS Stafford and Surrounds CCG | E93: 21548 | F93: 149500.5 | G93: 144.1332972 | H93: 0.08167409486 | J93: 19911.52063 | K93: 150004.2344 | L93: 132.7397237 | M93: 0.003369449433 | O93: 0.08218756363 | P93: 0.08583393991 | Q93: 0.03158181711 | R93: 0.02811762676 | S93: 22228.525 | T93: 0 | U93: 0.03158181711 | V93: 0.02811762676 | W93: 22228.525 | X93: 0.03158181711 | Y93: 0.02811762676 | Z93: 22228.525 | AA93: 22229 | AB93: 148.1891501 | AC93: 0.03160386115 | AD93: 0.02813959677 | AF93: 20794.37899 | AG93: 138.62528 | AH93: 0.06899080825 | AI93: 0.06899080825
A94: 05W | B94: NHS Stoke on Trent CCG | E94: 41964 | F94: 292240 | G94: 143.594306 | H94: -0.01158704537 | J94: 42314.93508 | K94: 293148.125 | L94: 144.3465998 | M94: 0.003107463044 | O94: -0.008293409407 | P94: -0.005211717827 | Q94: 0.03761435977 | R94: 0.0344 | S94: 43542.44899 | T94: 0.1128688214 | U94: 0.03873965715 | V94: 0.03552181139 | W94: 43589.67097 | X94: 0.03873965715 | Y94: 0.03552181139 | Z94: 43589.67097 | AA94: 43590 | AB94: 148.6961583 | AC94: 0.03874749786 | AD94: 0.03552962781 | AF94: 44191.14005 | AG94: 150.7467941 | AH94: -0.01360318044 | AI94: -0.01360318044
A95: 05X | B95: NHS Telford and Wrekin CCG | E95: 24862 | F95: 187726.6094 | G95: 132.4372719 | H95: -0.03248910025 | J95: 25725.99407 | K95: 188812.2188 | L95: 136.2517439 | M95: 0.005782927517 | O95: -0.03358447746 | P95: -0.02799576654 | Q95: 0.04038186022 | R95: 0.0344 | S95: 25865.97381 | T95: 0.6062970556 | U95: 0.04644273867 | V95: 0.04042603035 | W95: 26016.65937 | X95: 0.04644273867 | Y95: 0.04042603035 | Z95: 26016.65937 | AA95: 26017 | AB95: 137.7929891 | AC95: 0.04645643955 | AD95: 0.04043965245 | AF95: 26866.66078 | AG95: 142.2930198 | AH95: -0.03162509808 | AI95: -0.03162509808
A96: 05Y | B96: NHS Walsall CCG | E96: 42643 | F96: 287643.6875 | G96: 148.2493858 | H96: 0.02716229205 | J96: 41437.32404 | K96: 289358.9375 | L96: 143.2038851 | M96: 0.005963106699 | O96: 0.029096376 | P96: 0.0352329875 | Q96: 0.04056823757 | R96: 0.0344 | S96: 44372.95135 | T96: 0 | U96: 0.04056823757 | V96: 0.0344 | W96: 44372.95135 | X96: 0.04056823757 | Y96: 0.0344 | Z96: 44372.95135 | AA96: 44373 | AB96: 153.3493328 | AC96: 0.04056937833 | AD96: 0.03440113399 | AF96: 43274.61655 | AG96: 149.5534125 | AH96: 0.02538170263 | AI96: 0.02538170263
A97: 06A | B97: NHS Wolverhampton CCG | E97: 39275 | F97: 282238.0625 | G97: 139.1555754 | H97: -0.04990943162 | J97: 41226.4643 | K97: 283758.125 | L97: 145.2873439 | M97: 0.005385745943 | O97: -0.04733523312 | P97: -0.04220442272 | Q97: 0.0399710156 | R97: 0.0344 | S97: 40844.86164 | T97: 0.9140102376 | U97: 0.0491043559 | V97: 0.04348441395 | W97: 41203.57358 | X97: 0.0491043559 | Y97: 0.04348441395 | Z97: 41203.57358 | AA97: 41204 | AB97: 145.2081769 | AC97: 0.04911521324 | AD97: 0.04349521313 | AF97: 43054.40749 | AG97: 151.72925 | AH97: -0.04297835212 | AI97: -0.04297835212
A98: 06D | B98: NHS Wyre Forest CCG | E98: 17875 | F98: 116725.7969 | G98: 153.1366714 | H98: 0.06522105906 | J98: 16774.40407 | K98: 117143.3125 | L98: 143.1955757 | M98: 0.003576892479 | O98: 0.06561162617 | P98: 0.06942320438 | Q98: 0.03468249909 | R98: 0.03099474175 | S98: 18494.94967 | T98: 0 | U98: 0.03468249909 | V98: 0.03099474175 | W98: 18494.94967 | X98: 0.03468249909 | Y98: 0.03099474175 | Z98: 18494.94967 | AA98: 18495 | AB98: 157.8835326 | AC98: 0.03468531469 | AD98: 0.03099754731 | AF98: 17518.16559 | AG98: 149.5447347 | AH98: 0.05576122723 | AI98: 0.05576122723
A99: 06F | B99: NHS Bedfordshire CCG | E99: 64653 | F99: 486320.9688 | G99: 132.9430647 | H99: -0.00751552814 | J99: 65502.57441 | K99: 492199.875 | L99: 133.0812496 | M99: 0.01208853129 | O99: -0.01297009194 | P99: -0.001038350006 | Q99: 0.04690437677 | R99: 0.0344 | S99: 67685.50867 | T99: 0.02248727679 | U99: 0.04713058126 | V99: 0.03462350267 | W99: 67700.13347 | X99: 0.04713058126 | Y99: 0.03462350267 | Z99: 67700.13347 | AA99: 67700 | AB99: 137.5457481 | AC99: 0.04712851685 | AD99: 0.03462146292 | AF99: 68406.8978 | AG99: 138.9819488 | AH99: -0.01033372111 | AI99: -0.01033372111
A100: 06H | B100: NHS Cambridgeshire and Peterborough CCG | E100: 133062 | F100: 973472.4375 | G100: 136.6879994 | H100: 0.02015496191 | J100: 130438.927 | K100: 978624.0625 | L100: 133.2880848 | M100: 0.005292009102 | O100: 0.02010958715 | P100: 0.02550801638 | Q100: 0.03987405422 | R100: 0.0344 | S100: 138367.7214 | T100: 0 | U100: 0.03987405422 | V100: 0.0344 | W100: 138367.7214 | X100: 0.03987405422 | Y100: 0.0344 | Z100: 138367.7214 | AA100: 138368 | AB100: 141.3903513 | AC100: 0.03987614796 | AD100: 0.03440208272 | AF100: 136222.4681 | AG100: 139.1979548 | AH100: 0.01575020603 | AI100: 0.01575020603
A101: 06K | B101: NHS East and North Hertfordshire CCG | E101: 76951 | F101: 603318.875 | G101: 127.5461504 | H101: -0.001756977669 | J101: 77242.48937 | K101: 608245.0625 | L101: 126.9923821 | M101: 0.008165147328 | O101: -0.003773692081 | P101: 0.004360642495 | Q101: 0.0428460284 | R101: 0.0344 | S101: 80248.04473 | T101: 0 | U101: 0.0428460284 | V101: 0.0344 | W101: 80248.04473 | X101: 0.0428460284 | Y101: 0.0344 | Z101: 80248.04473 | AA101: 80248 | AB101: 131.9336645 | AC101: 0.0428454471 | AD101: 0.03439942341 | AF101: 80667.3497 | AG101: 132.6231065 | AH101: -0.005198506001 | AI101: -0.005198506001
A102: 06L | B102: NHS Ipswich and East Suffolk CCG | E102: 58403 | F102: 409731.9062 | G102: 142.5395462 | H102: -0.007582979389 | J102: 58910.71779 | K102: 411776.5312 | L102: 143.0647774 | M102: 0.004990153241 | O102: -0.008618428145 | P102: -0.00367128218 | Q102: 0.03956181451 | R102: 0.0344 | S102: 60713.52865 | T102: 0.07950800607 | U102: 0.04035599374 | V102: 0.03519023583 | W102: 60759.9111 | X102: 0.04035599374 | Y102: 0.03519023583 | Z102: 60759.9111 | AA102: 60760 | AB102: 147.5557624 | AC102: 0.04035751588 | AD102: 0.03519175041 | AF102: 61522.76437 | AG102: 149.4081369 | AH102: -0.01239808352 | AI102: -0.01239808352
A103: 06M | B103: NHS Great Yarmouth and Waveney CCG | E103: 35810 | F103: 240583.375 | G103: 148.8465277 | H103: -0.02598738042 | J103: 36689.4312 | K103: 241371.125 | L103: 152.0042267 | M103: 0.003274332651 | O103: -0.02396960574 | P103: -0.02077375756 | Q103: 0.03778696969 | R103: 0.0344 | S103: 37163.15138 | T103: 0.4498918799 | U103: 0.04227311888 | V103: 0.03887150798 | W103: 37323.80039 | X103: 0.04227311888 | Y103: 0.03887150798 | Z103: 37323.80039 | AA103: 37324 | AB103: 154.6332437 | AC103: 0.0422786931 | AD103: 0.03887706401 | AF103: 38316.20655 | AG103: 158.7439531 | AH103: -0.0258952187 | AI103: -0.0258952187
A104: 06N | B104: NHS Herts Valleys CCG | E104: 82234 | F104: 651355.75 | G104: 126.2505167 | H104: 0.004165563632 | J104: 81997.24582 | K104: 656279.25 | L104: 124.9426152 | M104: 0.007558849369 | O104: 0.002887343069 | P104: 0.01046801743 | Q104: 0.04221887379 | R104: 0.0344 | S104: 85705.82687 | T104: 0 | U104: 0.04221887379 | V104: 0.0344 | W104: 85705.82687 | X104: 0.04221887379 | Y104: 0.0344 | Z104: 85705.82687 | AA104: 85706 | AB104: 130.5937983 | AC104: 0.04222097916 | AD104: 0.03440208957 | AF104: 85632.92764 | AG104: 130.4824549 | AH104: 0.0008533207929 | AI104: 0.0008533207929
A105: 06P | B105: NHS Luton CCG | E105: 32080 | F105: 236174.5938 | G105: 135.8317145 | H105: -0.0001534003367 | J105: 32115.8586 | K105: 238103.2969 | L105: 134.8820408 | M105: 0.008166429311 | O105: -0.001116538803 | P105: 0.007040772373 | Q105: 0.04284735448 | R105: 0.0344 | S105: 33454.54313 | T105: 0 | U105: 0.04284735448 | V105: =MAX(R105,NewMinGrowthPerHead(P105,$P$2,$L$1,$U$1,$T$2,AG105,G105,T105, $P$1)) -> 0.0344 | W105: 33454.54313 | X105: 0.04284735448 | Y105: 0.0344 | Z105: 33454.54313 | AA105: =IF(ROUND(Z105,0)/E105>$AA$1,ROUND(Z105,0),ROUNDUP(Z105,0)) -> 33455 | AB105: =AA105/K105*1000 -> 140.5062443 | AC105: =AA105/E105-1 -> 0.04286159601 | AD105: =AB105/G105-1 -> 0.03441412617 | AF105: 33539.84598 | AG105: =AF105/K105*1000 -> 140.8625854 | AH105: -0.002529706998 | AI105: -0.002529706998
A106: 06Q | B106: NHS Mid Essex CCG | E106: 51431 | F106: 393605.25 | G106: 130.6664482 | H106: -0.02843203896 | J106: 53007.66206 | K106: 395722.8125 | L106: 133.9514943 | M106: 0.005379914267 | O106: -0.02974404074 | P106: -0.02452414686 | Q106: 0.03996498332 | R106: 0.0344 | S106: 53486.43906 | T106: 0.5311130886 | U106: 0.04527215411 | V106: 0.03967877146 | W106: 53759.39216 | X106: 0.04527215411 | Y106: 0.03967877146 | Z106: 53759.39216 | AA106: 53759 | AB106: 135.8501413 | AC106: 0.04526452918 | AD106: 0.03967118732 | AF106: 55357.97263 | AG106: 139.8907793 | AH106: -0.02888423386 | AI106: -0.02888423386
A107: 06T | B107: NHS North East Essex CCG | E107: 50925 | F107: 355431.3125 | G107: 143.2766282 | H107: -0.0123370045 | J107: 51734.71139 | K107: 359002.8125 | L107: 144.1067022 | M107: 0.01004835498 | O107: -0.01565122081 | P107: -0.005760134852 | Q107: 0.04479401839 | R107: 0.0344 | S107: 53206.13539 | T107: 0.1247457467 | U107: 0.04604633393 | V107: 0.03563985701 | W107: 53269.90956 | X107: 0.04604633393 | Y107: 0.03563985701 | Z107: 53269.90956 | AA107: 53270 | AB107: 148.3832386 | AC107: 0.04604810997 | AD107: 0.03564161538 | AF107: 54028.58051 | AG107: 150.4962597 | AH107: -0.01404035605 | AI107: -0.01404035605
A108: 06V | B108: NHS North Norfolk CCG | E108: 29798 | F108: 174474.5469 | G108: 170.7870892 | H108: 0.0293517726 | J108: 28937.63528 | K108: 175179.875 | L108: 165.1881261 | M108: 0.00404258465 | O108: 0.0297316872 | P108: 0.03389446471 | Q108: 0.03858164956 | R108: 0.0344 | S108: 30947.65599 | T108: 0 | U108: 0.03858164956 | V108: 0.0344 | W108: 30947.65599 | X108: 0.03858164956 | Y108: 0.0344 | Z108: 30947.65599 | AA108: 30948 | AB108: 176.6641288 | AC108: 0.03859319417 | AD108: 0.03441149813 | AF108: 30220.70319 | AG108: 172.5124144 | AH108: 0.02406617772 | AI108: 0.02406617772
A109: 06W | B109: NHS Norwich CCG | E109: 32720 | F109: 237093.5156 | G109: 138.0046178 | H109: 0.06783108408 | J109: 30571.39287 | K109: 238141.7188 | L109: 128.3747889 | M109: 0.004421053533 | O109: 0.07028162358 | P109: 0.07501339593 | Q109: 0.03456842455 | R109: 0.03001467453 | S109: 33851.07885 | T109: 0 | U109: 0.03456842455 | V109: 0.03001467453 | W109: 33851.07885 | X109: 0.03456842455 | Y109: 0.03001467453 | Z109: 33851.07885 | AA109: 33851 | AB109: 142.1464503 | AC109: 0.03456601467 | AD109: 0.03001227526 | AF109: 31926.90008 | AG109: 134.066808 | AH109: 0.06026579213 | AI109: 0.06026579213
A110: 06Y | B110: NHS South Norfolk CCG | E110: 34407 | F110: 230298.2812 | G110: 149.4018966 | H110: 0.01176817976 | J110: 34114.20539 | K110: 232384.4688 | L110: 146.8007117 | M110: 0.009058632521 | O110: 0.008582776665 | P110: 0.01771915741 | Q110: 0.04377024948 | R110: 0.0344 | S110: 35913.00297 | T110: 0 | U110: 0.04377024948 | V110: 0.0344 | W110: 35913.00297 | X110: 0.04377024948 | Y110: 0.0344 | Z110: 35913.00297 | AA110: 35913 | AB110: 154.541309 | AC110: 0.04377016305 | AD110: 0.03439991434 | AF110: 35626.79762 | AG110: 153.3097191 | AH110: 0.008033345718 | AI110: 0.008033345718
A111: 07G | B111: NHS Thurrock CCG | E111: 22793 | F111: 178554.9375 | G111: 127.6525887 | H111: -0.04248382239 | J111: 23889.70173 | K111: 180604.5625 | L111: 132.2762914 | M111: 0.01147896008 | O111: -0.04590688251 | P111: -0.0349548857 | Q111: 0.04627383631 | R111: 0.0344 | S111: 23847.71955 | T111: 0.7570088945 | U111: 0.05388416985 | V111: 0.04192396623 | W111: 24021.18188 | X111: 0.05388416985 | Y111: 0.04192396623 | Z111: 24021.18188 | AA111: 24021 | AB111: 133.0032845 | AC111: 0.05387619006 | AD111: 0.041916077 | AF111: 24948.94895 | AG111: 138.1412994 | AH111: -0.03719390937 | AI111: -0.03719390937
A112: 07H | B112: NHS West Essex CCG | E112: 43531 | F112: 316014.2812 | G112: 137.7501037 | H112: -0.01379115313 | J112: 44212.92183 | K112: 318751.0938 | L112: 138.7067298 | M112: 0.008660407654 | O112: -0.01542358671 | P112: -0.006896753609 | Q112: 0.04335832568 | R112: 0.0344 | S112: 45418.43128 | T112: 0.1493612043 | U112: 0.04485569398 | V112: 0.03588451183 | W112: 45483.61321 | X112: 0.04485569398 | Y112: 0.03588451183 | Z112: 45483.61321 | AA112: 45484 | AB112: 142.6944123 | AC112: 0.04486457927 | AD112: 0.03589332082 | AF112: 46173.28178 | AG112: 144.8568575 | AH112: -0.01492815219 | AI112: -0.01492815219
A113: 07J | B113: NHS West Norfolk CCG | E113: 30028 | F113: 176762.8125 | G113: 169.8773604 | H113: 0.02098112671 | J113: 29403.49666 | K113: 177701.8125 | L113: 165.4653728 | M113: 0.005312203323 | O113: 0.02123908415 | P113: 0.02666411381 | Q113: 0.03989494312 | R113: 0.0344 | S113: 31225.96535 | T113: 0 | U113: 0.03989494312 | V113: 0.0344 | W113: 31225.96535 | X113: 0.03989494312 | Y113: 0.0344 | Z113: 31225.96535 | AA113: 31226 | AB113: 175.7213366 | AC113: 0.03989609698 | AD113: 0.03440114776 | AF113: 30707.22043 | AG113: 172.801954 | AH113: 0.01689438394 | AI113: 0.01689438394
A114: 07K | B114: NHS West Suffolk CCG | E114: 36609 | F114: 252258.1562 | G114: 145.125139 | H114: 0.01668225528 | J114: 36068.16262 | K114: 253729.0469 | L114: 142.1522804 | M114: 0.005830894219 | O114: 0.01499486918 | P114: 0.02091319689 | Q114: 0.04043147698 | R114: 0.0344 | S114: 38089.15594 | T114: 0 | U114: 0.04043147698 | V114: 0.0344 | W114: 38089.15594 | X114: 0.04043147698 | Y114: 0.0344 | Z114: 38089.15594 | AA114: 38089 | AB114: 150.1168292 | AC114: 0.04042721735 | AD114: 0.03439576506 | AF114: 37667.39149 | AG114: 148.4551807 | AH114: 0.01119293076 | AI114: 0.01119293076
A115: 07L | B115: NHS Barking and Dagenham CCG | E115: 33377 | F115: 227890.2969 | G115: 146.4608211 | H115: 0.06761024903 | J115: 31463.92581 | K115: 231530.3125 | L115: 135.8954923 | M115: 0.01597266612 | O115: 0.06080214549 | P115: 0.07774598399 | Q115: 0.04598002812 | R115: 0.02953559972 | S115: 34911.6754 | T115: 0 | U115: 0.04598002812 | V115: 0.02953559972 | W115: 34911.6754 | X115: 0.04598002812 | Y115: 0.02953559972 | Z115: 34911.6754 | AA115: 34912 | AB115: 150.7880313 | AC115: 0.04598975342 | AD115: 0.02954517213 | AF115: 32859.00709 | AG115: 141.9209724 | AH115: 0.062478848 | AI115: 0.062478848
A116: 07M | B116: NHS Barnet CCG | E116: 54797 | F116: 428645.75 | G116: 127.8374975 | H116: -0.02008878536 | J116: 56160.05085 | K116: 433326.5312 | L116: 129.6021517 | M116: 0.01091992922 | O116: -0.02427082646 | P116: -0.01361593295 | Q116: 0.04569557478 | R116: 0.0344 | S116: 57300.98041 | T116: 0.2948767287 | U116: 0.04865838009 | V116: 0.03733080116 | W116: 57463.33325 | X116: 0.04865838009 | Y116: 0.03733080116 | Z116: 57463.33325 | AA116: 57463 | AB116: 132.6090047 | AC116: 0.04865229848 | AD116: 0.03732478525 | AF116: 58650.13541 | AG116: 135.3485909 | AH116: -0.02024096623 | AI116: -0.02024096623
A117: 07N | B117: NHS Bexley CCG | E117: 31512 | F117: 243943.6875 | G117: 129.1773537 | H117: 0.003966114479 | J117: 31429.87886 | K117: 246476.6406 | L117: 127.5166635 | M117: 0.01038335179 | O117: 0.00261283682 | P117: 0.01302331862 | Q117: 0.04514053909 | R117: 0.0344 | S117: 32934.46867 | T117: 0 | U117: 0.04514053909 | V117: 0.0344 | W117: 32934.46867 | X117: 0.04514053909 | Y117: 0.0344 | Z117: 32934.46867 | AA117: 32934 | AB117: 133.6191532 | AC117: 0.04512566641 | AD117: 0.03438528016 | AF117: 32823.45053 | AG117: 133.1706341 | AH117: 0.003368002688 | AI117: 0.003368002688
A118: 07P | B118: NHS Brent CCG | E118: 52073 | F118: 383764.3438 | G118: 135.6900422 | H118: 0.001921283544 | J118: 51908.96739 | K118: 385367 | L118: 134.7000843 | M118: 0.004176146836 | O118: 0.003160005273 | P118: 0.007349348756 | Q118: 0.03871980629 | R118: 0.0344 | S118: 54089.25647 | T118: 0 | U118: 0.03871980629 | V118: 0.0344 | W118: 54089.25647 | X118: 0.03871980629 | Y118: 0.0344 | Z118: 54089.25647 | AA118: 54089 | AB118: 140.3571141 | AC118: 0.03871488103 | AD118: 0.03439509523 | AF118: 54210.56285 | AG118: 140.6725611 | AH118: -0.002242420072 | AI118: -0.002242420072
A119: 07Q | B119: NHS Bromley CCG | E119: 46854 | F119: 353043.375 | G119: 132.7145708 | H119: 0.02502228572 | J119: 45808.82931 | K119: 356784.1875 | L119: 128.3936646 | M119: 0.01059590057 | O119: 0.02281592219 | P119: 0.033653578 | Q119: 0.04536039955 | R119: 0.0344 | S119: 48979.31616 | T119: 0 | U119: 0.04536039955 | V119: 0.0344 | W119: 48979.31616 | X119: 0.04536039955 | Y119: 0.0344 | Z119: 48979.31616 | AA119: 48979 | AB119: 137.2790659 | AC119: 0.04535365177 | AD119: 0.03439332296 | AF119: 47839.95032 | AG119: 134.0865206 | AH119: 0.0238095917 | AI119: 0.0238095917
A120: 07R | B120: NHS Camden CCG | E120: 40397 | F120: 287746.6562 | G120: 140.3908581 | H120: -0.01356074543 | J120: 41103.33258 | K120: 290829.9062 | L120: 141.3311757 | M120: 0.01071515492 | O120: -0.01718431419 | P120: -0.006653291858 | Q120: 0.04548375625 | R120: 0.0344 | S120: 42234.4073 | T120: 0.1440886163 | U120: 0.0469312087 | V120: 0.03583210719 | W120: 42292.88004 | X120: 0.0469312087 | Y120: 0.03583210719 | Z120: 42292.88004 | AA120: 42293 | AB120: 145.4217709 | AC120: 0.04693417828 | AD120: 0.0358350453 | AF120: 42925.81622 | AG120: 147.5976689 | AH120: -0.01474208944 | AI120: -0.01474208944
A121: 07T | B121: NHS City and Hackney CCG | E121: 49506 | F121: 323519.0625 | G121: 153.0234405 | H121: 0.05273505978 | J121: 47295.09067 | K121: 327826.5 | L121: 144.2686625 | M121: 0.01331432363 | O121: 0.04674712104 | P121: 0.06068385097 | Q121: 0.04627431465 | R121: 0.03252691712 | S121: 51796.85622 | T121: 0 | U121: 0.04627431465 | V121: 0.03252691712 | W121: 51796.85622 | X121: 0.04627431465 | Y121: 0.03252691712 | Z121: 51796.85622 | AA121: 51797 | AB121: 158.0012598 | AC121: 0.04627721892 | AD121: 0.03252978323 | AF121: 49392.11112 | AG121: 150.6654011 | AH121: 0.04868973653 | AI121: 0.04868973653
A122: 07V | B122: NHS Croydon CCG | E122: 55559 | F122: 415648.125 | G122: 133.6683523 | H122: -0.01566442156 | J122: 56553.9892 | K122: 418991.6875 | L122: 134.976399 | M122: 0.008044214081 | O122: -0.01759361651 | P122: -0.009690929244 | Q122: 0.04272093505 | R122: 0.0344 | S122: 57932.53243 | T122: 0.2098739414 | U122: 0.0448236672 | V122: 0.03648595231 | W122: 58049.35813 | X122: 0.0448236672 | Y122: 0.03648595231 | Z122: 58049.35813 | AA122: 58049 | AB122: 138.5445147 | AC122: 0.04481722133 | AD122: 0.03647955788 | AF122: 59061.54062 | AG122: 140.9611274 | AH122: -0.01714382339 | AI122: -0.01714382339
A123: 07W | B123: NHS Ealing CCG | E123: 58508 | F123: 438184.875 | G123: 133.5235498 | H123: 0.02436180803 | J123: 56941.73867 | K123: 438781.7188 | L123: 129.7723589 | M123: 0.001362082044 | O123: 0.02750638397 | P123: 0.02890593197 | Q123: 0.03580893767 | R123: 0.0344 | S123: 60603.10932 | T123: 0 | U123: 0.03580893767 | V123: 0.0344 | W123: 60603.10932 | X123: 0.03580893767 | Y123: 0.0344 | Z123: 60603.10932 | AA123: 60603 | AB123: 138.1165108 | AC123: 0.03580706912 | AD123: 0.03439813399 | AF123: 59466.48255 | AG123: 135.5263449 | AH123: 0.01911189974 | AI123: 0.01911189974
A124: 07X | B124: NHS Enfield CCG | E124: 46040 | F124: 343347.5625 | G124: 134.0915301 | H124: 0.003664933115 | J124: 45966.73286 | K124: 346657 | L124: 132.6000423 | M124: 0.00963873888 | O124: 0.001593916538 | P124: 0.01124801876 | Q124: 0.0443703115 | R124: 0.0344 | S124: 48082.80914 | T124: 0 | U124: 0.0443703115 | V124: 0.0344 | W124: 48082.80914 | X124: 0.0443703115 | Y124: 0.0344 | Z124: 48082.80914 | AA124: 48083 | AB124: 138.7048293 | AC124: 0.04437445699 | AD124: 0.03440410592 | AF124: 48004.85516 | AG124: 138.4794052 | AH124: 0.001627852798 | AI124: 0.001627852798
A125: 07Y | B125: NHS Hounslow CCG | E125: 42311 | F125: 318917.875 | G125: 132.670519 | H125: 0.01623185365 | J125: 41667.86915 | K125: 320845.8125 | L125: 129.8688265 | M125: 0.006045247542 | O125: 0.0154346949 | P125: 0.02157324899 | Q125: 0.04065320406 | R125: 0.0344 | S125: 44031.07772 | T125: 0 | U125: 0.04065320406 | V125: 0.0344 | W125: 44031.07772 | X125: 0.04065320406 | Y125: 0.0344 | Z125: 44031.07772 | AA125: 44031 | AB125: 137.2341426 | AC125: 0.04065136726 | AD125: 0.03439817424 | AF125: 43515.38382 | AG125: 135.6270898 | AH125: 0.01184905506 | AI125: 0.01184905506
A126: 08A | B126: NHS Greenwich CCG | E126: 41440 | F126: 300540.5 | G126: 137.8849107 | H126: 0.03382944637 | J126: 40317.12427 | K126: 304522.375 | L126: 132.3946205 | M126: 0.0132490463 | O126: 0.02785108685 | P126: 0.04146913349 | Q126: 0.04810481349 | R126: 0.0344 | S126: 43433.46347 | T126: 0 | U126: 0.04810481349 | V126: 0.0344 | W126: 43433.46347 | X126: 0.04810481349 | Y126: 0.0344 | Z126: 43433.46347 | AA126: 43433 | AB126: 142.6266297 | AC126: 0.04809362934 | AD126: 0.03438896209 | AF126: 42104.74816 | AG126: 138.2648752 | AH126: 0.03154636696 | AI126: 0.03154636696
A127: 08C | B127: NHS Hammersmith and Fulham CCG | E127: 31077 | F127: 239545.8438 | G127: 129.732996 | H127: -0.04991524835 | J127: 32522.05719 | K127: 239128.8906 | L127: 136.0022083 | M127: -0.001740598453 | O127: -0.04443314212 | P127: -0.04609640031 | Q127: 0.03259952496 | R127: 0.0344 | S127: 32090.09544 | T127: 0.998297787 | U127: 0.04250440849 | V127: 0.04432215401 | W127: 32397.9095 | X127: 0.04250440849 | Y127: 0.04432215401 | Z127: 32397.9095 | AA127: 32398 | AB127: 135.4834203 | AC127: 0.04250732053 | AD127: 0.04432507113 | AF127: 33964.05504 | AG127: 142.03242 | AH127: -0.04610918916 | AI127: -0.04610918916
A128: 08D | B128: NHS Haringey CCG | E128: 45855 | F128: 321680.5625 | G128: 142.5482461 | H128: 0.01936417285 | J128: 45085.37732 | K128: 324594.0625 | L128: 138.8977265 | M128: 0.00905712169 | O128: 0.01707033912 | P128: 0.02628206895 | Q128: 0.04376868668 | R128: 0.0344 | S128: 47862.01313 | T128: 0 | U128: 0.04376868668 | V128: 0.0344 | W128: 47862.01313 | X128: 0.04376868668 | Y128: 0.0344 | Z128: 47862.01313 | AA128: 47862 | AB128: 147.4518654 | AC128: 0.04376840039 | AD128: 0.03439971629 | AF128: 47084.42113 | AG128: 145.0563229 | AH128: 0.0165145679 | AI128: 0.0165145679
A129: 08E | B129: NHS Harrow CCG | E129: 33553 | F129: 268365.625 | G129: 125.0271901 | H129: 0.004987528332 | J129: 33342.26137 | K129: 269424.5 | L129: 123.7536355 | M129: 0.003945643187 | O129: 0.006320465869 | P129: 0.01029104736 | Q129: 0.03848137331 | R129: 0.0344 | S129: 34844.16552 | T129: 0 | U129: 0.03848137331 | V129: 0.0344 | W129: 34844.16552 | X129: 0.03848137331 | Y129: 0.0344 | Z129: 34844.16552 | AA129: 34844 | AB129: 129.327511 | AC129: 0.03847644026 | AD129: 0.03439508633 | AF129: 34820.62632 | AG129: 129.2407569 | AH129: 0.0006712596916 | AI129: 0.0006712596916
A130: 08F | B130: NHS Havering CCG | E130: 37178 | F130: 281514.6562 | G130: 132.0641721 | H130: 0.0007783784536 | J130: 37240.42686 | K130: 284984.5 | L130: 130.6752713 | M130: 0.01232562381 | O130: -0.001676319767 | P130: 0.01062864236 | Q130: 0.04714962527 | R130: 0.0344 | S130: 38930.92877 | T130: 0 | U130: 0.04714962527 | V130: 0.0344 | W130: 38930.92877 | X130: 0.04714962527 | Y130: 0.0344 | Z130: 38930.92877 | AA130: 38931 | AB130: 136.6074295 | AC130: 0.04715154123 | AD130: 0.03440189264 | AF130: 38891.63285 | AG130: 136.4692917 | AH130: 0.001012226778 | AI130: 0.001012226778
A131: 08G | B131: NHS Hillingdon CCG | E131: 42730 | F131: 316898.25 | G131: 134.8382328 | H131: 0.04229697147 | J131: 41155.59278 | K131: 320584.9375 | L131: 128.3765641 | M131: 0.01163366317 | O131: 0.03825500039 | P131: 0.05033370935 | Q131: 0.04637467494 | R131: 0.03434149439 | S131: 44711.58986 | T131: 0 | U131: 0.04637467494 | V131: 0.03434149439 | W131: 44711.58986 | X131: 0.04637467494 | Y131: 0.03434149439 | Z131: 44711.58986 | AA131: 44712 | AB131: 139.4700585 | AC131: 0.04638427334 | AD131: 0.03435098241 | AF131: 42980.39359 | AG131: 134.0686619 | AH131: 0.04028828644 | AI131: 0.04028828644
A132: 08H | B132: NHS Islington CCG | E132: 39988 | F132: 255947.1875 | G132: 156.2353562 | H132: 0.03837530643 | J132: 38639.14971 | K132: 259082.2812 | L132: 149.1385267 | M132: 0.01224898691 | O132: 0.03490890198 | P132: 0.04758548757 | Q132: 0.04707035206 | R132: 0.0344 | S132: 41870.24924 | T132: 0 | U132: 0.04707035206 | V132: 0.0344 | W132: 41870.24924 | X132: 0.04707035206 | Y132: 0.0344 | Z132: 41870.24924 | AA132: 41870 | AB132: 161.6088904 | AC132: 0.04706411924 | AD132: 0.0343938426 | AF132: 40352.37377 | AG132: 155.7511906 | AH132: 0.03760934216 | AI132: 0.03760934216
A133: 08J | B133: NHS Kingston CCG | E133: 27669 | F133: 212189.8125 | G133: 130.3974007 | H133: 0.07664231738 | J133: 25803.03216 | K133: 214617.5625 | L133: 120.2279621 | M133: 0.01144140697 | O133: 0.07231583584 | P133: 0.08458463772 | Q133: 0.04010227142 | R133: 0.02833665326 | S133: 28778.58975 | T133: 0 | U133: 0.04010227142 | V133: 0.02833665326 | W133: 28778.58975 | X133: 0.04010227142 | Y133: 0.02833665326 | Z133: 28778.58975 | AA133: 28779 | AB133: 134.0943382 | AC133: 0.04011709856 | AD133: 0.02835131268 | AF133: 26947.11467 | AG133: 125.5587584 | AH133: 0.06798075966 | AI133: 0.06798075966
A134: 08K | B134: NHS Lambeth CCG | E134: 59665 | F134: 416706.75 | G134: 143.1822259 | H134: 0.01211782569 | J134: 58917.91822 | K134: 419431.375 | L134: 140.4709369 | M134: 0.006538470999 | O134: 0.01268004368 | P134: 0.01930142278 | Q134: 0.0411633944 | R134: 0.0344 | S134: 62121.01393 | T134: 0 | U134: 0.0411633944 | V134: 0.0344 | W134: 62121.01393 | X134: 0.0411633944 | Y134: 0.0344 | Z134: 62121.01393 | AA134: 62121 | AB134: 148.1076612 | AC134: 0.04116316098 | AD134: 0.0343997681 | AF134: 61530.28407 | AG134: 146.699288 | AH134: 0.009600409652 | AI134: 0.009600409652
A135: 08L | B135: NHS Lewisham CCG | E135: 47877 | F135: 334478.8438 | G135: 143.139098 | H135: 0.01893015008 | J135: 47143.0307 | K135: 338397.0625 | L135: 139.3127658 | M135: 0.01171439935 | O135: 0.01556898844 | P135: 0.02746576914 | Q135: 0.04651737469 | R135: 0.0344 | S135: 50104.11235 | T135: 0 | U135: 0.04651737469 | V135: 0.0344 | W135: 50104.11235 | X135: 0.04651737469 | Y135: 0.0344 | Z135: 50104.11235 | AA135: 50104 | AB135: 148.062751 | AC135: 0.04651502809 | AD135: 0.03439768058 | AF135: 49233.30895 | AG135: 145.4897646 | AH135: 0.01768499956 | AI135: 0.01768499956
A136: 08M | B136: NHS Newham CCG | E136: 56956 | F136: 405949.8125 | G136: 140.3030578 | H136: 0.03399099269 | J136: 55326.06664 | K136: 410601.9375 | L136: 134.7438032 | M136: 0.01145985256 | O136: 0.02946049588 | P136: 0.04125796138 | Q136: 0.04625407149 | R136: 0.0344 | S136: 59590.4469 | T136: 0 | U136: 0.04625407149 | V136: 0.0344 | W136: 59590.4469 | X136: 0.04625407149 | Y136: 0.0344 | Z136: 59590.4469 | AA136: 59590 | AB136: 145.1283946 | AC136: 0.04624622516 | AD136: 0.03439224256 | AF136: 57779.17312 | AG136: 140.7182184 | AH136: 0.03134047762 | AI136: 0.03134047762
A137: 08N | B137: NHS Redbridge CCG | E137: 41122 | F137: 324502.875 | G137: 126.7230683 | H137: 0.0001478926625 | J137: 41238.16236 | K137: 328112.0938 | L137: 125.6831526 | M137: 0.0111223013 | O137: -0.002816865565 | P137: 0.008274105712 | Q137: 0.04590490847 | R137: 0.0344 | S137: 43009.70165 | T137: 0 | U137: 0.04590490847 | V137: =MAX(R137,NewMinGrowthPerHead(P137,$P$2,$L$1,$U$1,$T$2,AG137,G137,T137, $P$1)) -> 0.0344 | W137: 43009.70165 | X137: 0.04590490847 | Y137: 0.0344 | Z137: 43009.70165 | AA137: =IF(ROUND(Z137,0)/E137>$AA$1,ROUND(Z137,0),ROUNDUP(Z137,0)) -> 43010 | AB137: =AA137/K137*1000 -> 131.0832512 | AC137: =AA137/E137-1 -> 0.04591216381 | AD137: =AB137/G137-1 -> 0.03440717553 | AF137: 43066.62423 | AG137: =AF137/K137*1000 -> 131.255827 | AH137: -0.001314805336 | AI137: -0.001314805336
A138: 08P | B138: NHS Richmond CCG | E138: 27336 | F138: 219498.4375 | G138: =E138/F138*1000 -> 124.5384719 | H138: 0.01335130739 | J138: 27060.366 | K138: 221206 | L138: =J138/K138*1000 -> 122.331067 | M138: =K138/F138-1 -> 0.007779383395 | O138: =E138/J138-1 -> 0.01018589339 | P138: =G138/L138-1 -> 0.01804451676 | Q138: =(1+M138)*(1+R138)-1 -> 0.04244699418 | R138: =MinGrowthPerHead(P138,0,1,$Q$1,$Q$2,$R$1,$R$2) -> 0.0344 | S138: =(1+IF($S$2=1,Q138,0))*$E138 -> 28496.33103 | T138: =MinMaxRamp(P138,0,1,$P$2,$T$2) -> 0 | U138: =(1+M138)*(1+V138)-1 -> 0.04244699418 | V138: 0.0344 | W138: =(1+IF($S$2=1,U138,0))*$E138 -> 28496.33103 | X138: =MAX(U138,$X$1) -> 0.04244699418 | Y138: =(1+X138)/(1+M138) - 1 -> 0.0344 | Z138: =(1+IF($Z$2=1,X138,0))*$E138 -> 28496.33103 | AA138: 28496 | AB138: 128.8210989 | AC138: 0.0424348844 | AD138: 0.0343879837 | AF138: 28260.19752 | AG138: 127.755113 | AH138: =AA138/AF138-1 -> 0.008343978312 | AI138: 0.008343978312
A139: 08Q | B139: NHS Southwark CCG | E139: 47696 | F139: 334416.6875 | G139: 142.6244616 | H139: -0.008589297246 | J139: 48230.88397 | K139: 337654.8125 | L139: 142.8408013 | M139: 0.009682904954 | O139: -0.01109007191 | P139: -0.001514551071 | Q139: 0.04441599688 | R139: 0.0344 | S139: 49814.46539 | T139: 0.03280023976 | U139: 0.04474515751 | V139: 0.03472600396 | W139: 49830.16503 | X139: 0.04474515751 | Y139: 0.03472600396 | Z139: 49830.16503 | AA139: 49830 | AB139: 147.5767504 | AC139: 0.04474169742 | AD139: 0.03472257705 | AF139: 50369.39663 | AG139: 149.1742299 | AH139: -0.01070881658 | AI139: -0.01070881658
A140: 08R | B140: NHS Merton CCG | E140: 30958 | F140: 226818.9688 | G140: 136.4877028 | H140: 0.1116084913 | J140: 27841.21189 | K140: 228194.5625 | L140: 122.006465 | M140: 0.006064720943 | O140: 0.1119487226 | P140: 0.1186923813 | Q140: 0.03185423047 | R140: 0.02563404619 | S140: 31944.14327 | T140: 0 | U140: 0.03185423047 | V140: 0.02563404619 | W140: 31944.14327 | X140: 0.03185423047 | Y140: 0.02563404619 | Z140: 31944.14327 | AA140: 31944 | AB140: 139.9858071 | AC140: 0.03184960269 | AD140: 0.0256294463 | AF140: 29075.6654 | AG140: 127.4161184 | AH140: 0.09865069487 | AI140: 0.09865069487
A141: 08T | B141: NHS Sutton CCG | E141: 27830 | F141: 198247.3125 | G141: 140.3802132 | H141: 0.09058893741 | J141: 25571.7791 | K141: 200119.25 | L141: 127.782705 | M141: 0.009442435695 | O141: 0.08830910419 | P141: 0.09858539292 | Q141: 0.03556887912 | R141: 0.02588205379 | S141: 28819.88191 | T141: 0 | U141: 0.03556887912 | V141: 0.02588205379 | W141: 28819.88191 | X141: 0.03556887912 | Y141: 0.02588205379 | Z141: 28819.88191 | AA141: 28820 | AB141: 144.0141316 | AC141: 0.03557312253 | AD141: 0.02588625751 | AF141: 26705.60806 | AG141: 133.4484717 | AH141: 0.07917407962 | AI141: 0.07917407962
A142: 08V | B142: NHS Tower Hamlets CCG | E142: 49013 | F142: 331104.6875 | G142: 148.0287107 | H142: 0.007788602507 | J142: 49049.76287 | K142: 336755.5625 | L142: 145.6539055 | M142: 0.0170667321 | O142: -0.000749501434 | P142: 0.01630443913 | Q142: 0.05205382769 | R142: 0.0344 | S142: 51564.31426 | T142: 0 | U142: 0.05205382769 | V142: 0.0344 | W142: 51564.31426 | X142: 0.05205382769 | Y142: 0.0344 | Z142: 51564.31426 | AA142: 51564 | AB142: 153.1199652 | AC142: 0.05204741599 | AD142: 0.03439369589 | AF142: 51224.58386 | AG142: 152.1120645 | AH142: 0.006626040044 | AI142: 0.006626040044
A143: 08W | B143: NHS Waltham Forest CCG | E143: 42961 | F143: 314321.0938 | G143: 136.6787048 | H143: 0.01948063546 | J143: 42178.65108 | K143: 316882.375 | L143: 133.1050712 | M143: 0.008148613952 | O143: 0.01854845747 | P143: 0.02684821564 | Q143: 0.04282892627 | R143: 0.0344 | S143: 44800.9735 | T143: 0 | U143: 0.04282892627 | V143: 0.0344 | W143: 44800.9735 | X143: 0.04282892627 | Y143: 0.0344 | Z143: 44800.9735 | AA143: 44801 | AB143: 141.3805359 | AC143: 0.04282954307 | AD143: 0.03440061182 | AF143: 44048.81335 | AG143: 139.0068266 | AH143: 0.01707620689 | AI143: 0.01707620689
A144: 08X | B144: NHS Wandsworth CCG | E144: 52030 | F144: 406574.1875 | G144: 127.9717247 | H144: 0.003264661945 | J144: 51821.6005 | K144: 408998 | L144: 126.7037993 | M144: 0.005961550375 | O144: 0.004021479485 | P144: 0.01000700411 | Q144: 0.04056662771 | R144: 0.0344 | S144: 54140.68164 | T144: 0 | U144: 0.04056662771 | V144: 0.0344 | W144: 54140.68164 | X144: 0.04056662771 | Y144: 0.0344 | Z144: 54140.68164 | AA144: 54141 | AB144: 132.3747304 | AC144: 0.04057274649 | AD144: 0.03440608252 | AF144: 54119.32219 | AG144: 132.3217282 | AH144: 0.0004005557436 | AI144: 0.0004005557436
A145: 08Y | B145: NHS West London CCG | E145: 38819 | F145: 250446.0938 | G145: 154.9994229 | H145: 0.07624401916 | J145: 35942.74438 | K145: 250522.5625 | L145: 143.4710871 | M145: 0.0003053301765 | O145: 0.08002326128 | P145: 0.08035302498 | Q145: 0.02939274443 | R145: 0.0290785357 | S145: 39959.99695 | T145: 0 | U145: 0.02939274443 | V145: 0.0290785357 | W145: 39959.99695 | X145: 0.02939274443 | Y145: 0.0290785357 | Z145: 39959.99695 | AA145: 39960 | AB145: 159.5065913 | AC145: 0.0293928231 | AD145: 0.02907861435 | AF145: 37536.41232 | AG145: 149.832462 | AH145: 0.06456631117 | AI145: 0.06456631117
A146: 09A | B146: NHS Central London (Westminster) CCG | E146: 33221 | F146: 231308.875 | G146: 143.621813 | H146: -0.002300193572 | J146: 33342.73101 | K146: 232909.4062 | L146: 143.1575115 | M146: 0.00691945456 | O146: -0.003650901033 | P146: 0.003243291284 | Q146: 0.0415574838 | R146: 0.0344 | S146: 34601.58117 | T146: 0 | U146: 0.0415574838 | V146: 0.0344 | W146: 34601.58117 | X146: 0.0415574838 | Y146: 0.0344 | Z146: 34601.58117 | AA146: 34602 | AB146: 148.5642017 | AC146: 0.04157009121 | AD146: 0.03441252077 | AF146: 34821.11678 | AG146: 149.5049828 | AH146: -0.006292640695 | AI146: -0.006292640695
A147: 09C | B147: NHS Ashford CCG | E147: 18148 | F147: 134913.2812 | G147: 134.5160375 | H147: -0.03503501541 | J147: 18880.27991 | K147: 136241.8438 | L147: 138.5791574 | M147: 0.009847529374 | O147: -0.0387854372 | P147: -0.02931984855 | Q147: 0.04458628438 | R147: 0.0344 | S147: 18957.15189 | T147: 0.6349723563 | U147: 0.05095946874 | V147: 0.04071103624 | W147: 19072.81244 | X147: 0.05095946874 | Y147: 0.04071103624 | Z147: 19072.81244 | AA147: 19073 | AB147: 139.9937015 | AC147: 0.05096980384 | AD147: 0.04072127055 | AF147: 19717.41401 | AG147: 144.7236287 | AH147: -0.03268248102 | AI147: -0.03268248102
A148: 09D | B148: NHS Brighton and Hove CCG | E148: 44221 | F148: 319712.5625 | G148: 138.3148652 | H148: 0.01224522392 | J148: 43601.81726 | K148: 321566 | L148: 135.592125 | M148: 0.005797199477 | O148: 0.01420084704 | P148: 0.02008037166 | Q148: 0.04039662314 | R148: 0.0344 | S148: 46007.37907 | T148: 0 | U148: 0.04039662314 | V148: 0.0344 | W148: 46007.37907 | X148: 0.04039662314 | Y148: 0.0344 | Z148: 46007.37907 | AA148: 46007 | AB148: 143.0717178 | AC148: 0.04038805093 | AD148: 0.0343914772 | AF148: 45535.0814 | AG148: 141.604154 | AH148: 0.01036384672 | AI148: 0.01036384672
A149: 09E | B149: NHS Canterbury and Coastal CCG | E149: 29295 | F149: 227708.875 | G149: 128.6511121 | H149: -0.04135642006 | J149: 30614.50084 | K149: 229538.9375 | L149: 133.3738893 | M149: 0.008036851879 | O149: -0.04310051792 | P149: -0.03541005852 | Q149: 0.04271331958 | R149: 0.0344 | S149: 30546.2867 | T149: 0.7668664541 | U149: 0.05039651723 | V149: 0.04202194123 | W149: 30771.36597 | X149: 0.05039651723 | Y149: 0.04202194123 | Z149: 30771.36597 | AA149: 30771 | AB149: 134.0556872 | AC149: 0.05038402458 | AD149: 0.04200954818 | AF149: 31971.91941 | AG149: 139.2875638 | AH149: -0.03756169271 | AI149: -0.03756169271
A150: 09F | B150: NHS Eastbourne, Hailsham and Seaford CCG | E150: 27919 | F150: 198129.1094 | G150: 140.9131656 | H150: -0.00612635944 | J150: 28179.33061 | K150: 199789.375 | L150: 141.0451913 | M150: 0.008379715783 | O150: -0.009238353116 | P150: -0.0009360521064 | Q150: 0.04306797801 | R150: 0.0344 | S150: 29121.41488 | T150: 0.02027183771 | U150: 0.04327114964 | V150: 0.03460148326 | W150: 29127.08723 | X150: 0.04327114964 | Y150: 0.03460148326 | Z150: 29127.08723 | AA150: 29127 | AB150: 145.7885335 | AC150: 0.04326802536 | AD150: 0.03459838494 | AF150: 29428.77599 | AG150: 147.2990042 | AH150: -0.01025445257 | AI150: -0.01025445257
A151: 09G | B151: NHS Coastal West Sussex CCG | E151: 72213 | F151: 519346.125 | G151: 139.0459975 | H151: -0.03797297817 | J151: 75253.70901 | K151: 523524.9688 | L151: 143.7442596 | M151: 0.008046355886 | O151: -0.04040610163 | P151: -0.03268486762 | Q151: 0.04272315053 | R151: 0.0344 | S151: 75298.16687 | T151: 0.7078477015 | U151: 0.04981510903 | V151: 0.04143534958 | W151: 75810.29847 | X151: 0.04981510903 | Y151: 0.04143534958 | Z151: 75810.29847 | AA151: 75810 | AB151: 144.8068469 | AC151: 0.04981097586 | AD151: 0.0414312494 | AF151: 78590.38867 | AG151: 150.1177467 | AH151: -0.03537822775 | AI151: -0.03537822775
A152: 09H | B152: NHS Crawley CCG | E152: 16901 | F152: 134315.8281 | G152: 125.8302929 | H152: -0.005301958599 | J152: 16972.4801 | K152: 135115.5156 | L152: 125.61459 | M152: 0.005953784533 | O152: -0.004211529645 | P152: 0.001717180348 | Q152: 0.04055859472 | R152: 0.0344 | S152: 17586.48081 | T152: 0 | U152: 0.04055859472 | V152: 0.0344 | W152: 17586.48081 | X152: 0.04055859472 | Y152: 0.0344 | Z152: 17586.48081 | AA152: 17586 | AB152: 130.1552965 | AC152: 0.04053014615 | AD152: 0.0343717198 | AF152: 17725.02413 | AG152: 131.1842244 | AH152: -0.007843381579 | AI152: -0.007843381579
A153: 09J | B153: NHS Dartford, Gravesham and Swanley CCG | E153: 35491 | F153: 271700.1875 | G153: 130.6256 | H153: -0.03402416644 | J153: 36816.58594 | K153: 274235.25 | L153: 134.2518365 | M153: 0.009330367135 | O153: -0.03600512935 | P153: -0.02701070329 | Q153: 0.04405133176 | R153: 0.0344 | S153: 37054.42582 | T153: 0.5849637962 | U153: 0.04991957604 | V153: 0.04021399754 | W153: 37262.69567 | X153: 0.04991957604 | Y153: 0.04021399754 | Z153: 37262.69567 | AA153: 37263 | AB153: 135.8796872 | AC153: 0.0499281508 | AD153: 0.04022249304 | AF153: 38448.99921 | AG153: 140.2044384 | AH153: -0.03084603589 | AI153: -0.03084603589
A154: 09L | B154: NHS East Surrey CCG | E154: 23087 | F154: 183940.0312 | G154: 125.5137332 | H154: -0.02086385583 | J154: 23610.14262 | K154: 185280.125 | L154: 127.4294403 | M154: 0.007285492673 | O154: -0.0221575376 | P154: -0.0150334735 | Q154: 0.04193611362 | R154: 0.0344 | S154: 24055.17906 | T154: 0.3255760369 | U154: 0.04519561273 | V154: 0.03763592381 | W154: 24130.43111 | X154: 0.04519561273 | Y154: 0.03763592381 | Z154: 24130.43111 | AA154: 24130 | AB154: 130.2352317 | AC154: 0.0451769394 | AD154: 0.03761738554 | AF154: 24656.99445 | AG154: 133.0795435 | AH154: -0.02137302046 | AI154: -0.02137302046
A155: 09N | B155: NHS Guildford and Waverley CCG | E155: 28645 | F155: 226834.0312 | G155: 126.2817569 | H155: -0.03195286362 | J155: 29581.18775 | K155: 227948 | L155: 129.7716486 | M155: 0.004910941907 | O155: -0.03164807858 | P155: -0.02689255855 | Q155: 0.03947987831 | R155: 0.0344 | S155: 29775.90111 | T155: 0.5824051662 | U155: 0.04529687276 | V155: 0.04018856713 | W155: 29942.52892 | X155: 0.04529687276 | Y155: 0.04018856713 | Z155: 29942.52892 | AA155: 29943 | AB155: 131.3589064 | AC155: 0.04531331821 | AD155: 0.04020493221 | AF155: 30892.79018 | AG155: 135.5256031 | AH155: -0.0307447199 | AI155: -0.0307447199
A156: 09P | B156: NHS Hastings and Rother CCG | E156: 30497 | F156: 189923.25 | G156: 160.5753903 | H156: -0.0498883502 | J156: 32121.94619 | K156: 191177.5625 | L156: 168.0215281 | M156: 0.006604312532 | O156: -0.05058679143 | P156: -0.04431656988 | Q156: 0.04123150088 | R156: 0.0344 | S156: 31754.43708 | T156: 0.9597524609 | U156: 0.05083354897 | V156: 0.04393904923 | W156: 32047.27074 | X156: 0.05083354897 | Y156: 0.04393904923 | Z156: 32047.27074 | AA156: 32047 | AB156: 167.6295041 | AC156: 0.05082467128 | AD156: 0.04393022978 | AF156: 33546.20349 | AG156: 175.4714468 | AH156: -0.04469070522 | AI156: -0.04469070522
A157: 09W | B157: NHS Medway CCG | E157: 41352 | F157: 302095.9375 | G157: 136.883668 | H157: 0.0009223940451 | J157: 41387.74065 | K157: 304682.5625 | L157: 135.8388886 | M157: 0.008562263437 | O157: -0.0008635565545 | P157: 0.007691312883 | Q157: 0.0432568053 | R157: 0.0344 | S157: 43140.75541 | T157: 0 | U157: 0.0432568053 | V157: 0.0344 | W157: 43140.75541 | X157: 0.0432568053 | Y157: 0.0344 | Z157: 43140.75541 | AA157: 43141 | AB157: 141.5932689 | AC157: 0.04326272006 | AD157: 0.03440586455 | AF157: 43222.83469 | AG157: 141.8618589 | AH157: -0.001893320648 | AI157: -0.001893320648
A158: 09X | B158: NHS Horsham and Mid Sussex CCG | E158: 30652 | F158: 242897.75 | G158: 126.1930174 | H158: 0.003917995559 | J158: 30642.74775 | K158: 244893.8438 | L158: 125.126656 | M158: 0.008217835488 | O158: 0.0003019393833 | P158: 0.00852225616 | Q158: 0.04290052903 | R158: 0.0344 | S158: 31966.98702 | T158: 0 | U158: 0.04290052903 | V158: 0.0344 | W158: 31966.98702 | X158: 0.04290052903 | Y158: 0.0344 | Z158: 31966.98702 | AA158: 31967 | AB158: 130.5341103 | AC158: 0.04290095263 | AD158: 0.03440042015 | AF158: 32001.41876 | AG158: 130.6746559 | AH158: -0.00107553855 | AI158: -0.00107553855
A159: 09Y | B159: NHS North West Surrey CCG | E159: 47812 | F159: 374092.875 | G159: 127.8078338 | H159: -0.01179956142 | J159: 48349.61313 | K159: 375978.375 | L159: 128.5967927 | M159: 0.005040192225 | O159: -0.01111928509 | P159: -0.006135136197 | Q159: 0.03961357484 | R159: 0.0344 | S159: 49706.00424 | T159: 0.1328670535 | U159: 0.04094080606 | V159: 0.03572057527 | W159: 49769.46182 | X159: 0.04094080606 | Y159: 0.03572057527 | Z159: 49769.46182 | AA159: 49769 | AB159: 132.3719749 | AC159: 0.04093114699 | AD159: 0.03571096464 | AF159: 50493.39013 | AG159: 134.2986552 | AH159: -0.01434623679 | AI159: -0.01434623679
A160: 10A | B160: NHS South Kent Coast CCG | E160: 30107 | F160: 207538.2344 | G160: 145.0672455 | H160: -0.02838477916 | J160: 31008.27249 | K160: 208628.875 | L160: 148.628863 | M160: 0.005255131076 | O160: -0.02906554975 | P160: -0.02396316195 | Q160: 0.03983590759 | R160: 0.0344 | S160: 31306.33967 | T160: 0.5189639837 | U160: 0.04502103428 | V160: 0.03955802062 | W160: 31462.44828 | X160: 0.04502103428 | Y160: 0.03955802062 | Z160: 31462.44828 | AA160: 31462 | AB160: 150.8036699 | AC160: 0.04500614475 | AD160: 0.03954320893 | AF160: 32383.15053 | AG160: 155.218929 | AH160: -0.02844536468 | AI160: -0.02844536468
A161: 10C | B161: NHS Surrey Heath CCG | E161: 12046 | F161: 97135.19531 | G161: 124.0127223 | H161: -0.04988682243 | J161: 12680.0055 | K161: 97507.04688 | L161: 130.0419396 | M161: 0.003828185667 | O161: -0.0500004118 | P161: -0.04636363699 | Q161: 0.03835987525 | R161: 0.0344 | S161: 12508.08306 | T161: 1 | U161: 0.04854436584 | V161: 0.04454565115 | W161: 12630.76543 | X161: 0.04854436584 | Y161: 0.04454565115 | Z161: 12630.76543 | AA161: 12631 | AB161: 129.5393554 | AC161: 0.04856383862 | AD161: 0.04456504967 | AF161: 13242.22518 | AG161: 135.8078785 | AH161: -0.04615728628 | AI161: -0.04615728628
A162: 10D | B162: NHS Swale CCG | E162: 16138 | F162: 114335.75 | G162: 141.1457046 | H162: 0.001389135922 | J162: 16194.54313 | K162: 115515.5312 | L162: 140.1936428 | M162: 0.01031856834 | O162: -0.003491492781 | P162: 0.006791048351 | Q162: 0.04507352709 | R162: 0.0344 | S162: 16865.39658 | T162: 0 | U162: 0.04507352709 | V162: 0.0344 | W162: 16865.39658 | X162: 0.04507352709 | Y162: 0.0344 | Z162: 16865.39658 | AA162: 16865 | AB162: 145.9976838 | AC162: 0.04504895278 | AD162: 0.03437567667 | AF162: 16912.59415 | AG162: 146.4096989 | AH162: -0.002814124839 | AI162: -0.002814124839
A163: 10E | B163: NHS Thanet CCG | E163: 23214 | F163: 146794.5625 | G163: 158.1393725 | H163: 0.004554734816 | J163: 23175.56637 | K163: 148125.1719 | L163: 156.4593383 | M163: 0.009064432308 | O163: 0.001658368414 | P163: 0.01073783289 | Q163: 0.04377624878 | R163: 0.0344 | S163: 24230.22184 | T163: 0 | U163: 0.04377624878 | V163: 0.0344 | W163: 24230.22184 | X163: 0.04377624878 | Y163: 0.0344 | Z163: 24230.22184 | AA163: 24230 | AB163: 163.5778693 | AC163: 0.04376669251 | AD163: 0.03439052958 | AF163: 24203.14949 | AG163: 163.3966002 | AH163: 0.001109380877 | AI163: 0.001109380877
A164: 10J | B164: NHS North Hampshire CCG | E164: 30106 | F164: 227382.6875 | G164: 132.4023404 | H164: 0.02289269352 | J164: 29467.12053 | K164: 228530.7031 | L164: 128.9416263 | M164: 0.005048826002 | O164: 0.02168109598 | P164: 0.02683938606 | Q164: 0.03962250562 | R164: 0.0344 | S164: 31298.87515 | T164: 0 | U164: 0.03962250562 | V164: 0.0344 | W164: 31298.87515 | X164: 0.03962250562 | Y164: 0.0344 | Z164: 31298.87515 | AA164: 31299 | AB164: 136.9575272 | AC164: 0.03962665249 | AD164: 0.03440412605 | AF164: 30773.66532 | AG164: 134.6587785 | AH164: 0.01707091669 | AI164: 0.01707091669
A165: 10K | B165: NHS Fareham and Gosport CCG | E165: 27160 | F165: 205878.6875 | G165: 131.9223487 | H165: -0.005417119872 | J165: 27335.54691 | K165: 206927.4688 | L165: 132.1020697 | M165: 0.005094171052 | O165: -0.006421927732 | P165: -0.001360471079 | Q165: 0.03966941054 | R165: 0.0344 | S165: 28237.42119 | T165: 0.02946336933 | U165: 0.03996374087 | V165: 0.03469283856 | W165: 28245.4152 | X165: 0.03996374087 | Y165: 0.03469283856 | Z165: 28245.4152 | AA165: 28245 | AB165: 136.4971029 | AC165: 0.03994845361 | AD165: 0.03467762878 | AF165: 28547.5797 | AG165: 137.959353 | AH165: -0.01059913675 | AI165: -0.01059913675
A166: 10L | B166: NHS Isle of Wight CCG | E166: 21460 | F166: 145043.375 | G166: 147.9557408 | H166: -0.0003627590391 | J166: 21474.60988 | K166: 145597.1562 | L166: 147.4933332 | M166: 0.003818038914 | O166: -0.0006803325168 | P166: 0.003135108861 | Q166: 0.03834937945 | R166: 0.0344 | S166: 22282.97768 | T166: 0 | U166: 0.03834937945 | V166: 0.0344 | W166: 22282.97768 | X166: 0.03834937945 | Y166: 0.0344 | Z166: 22282.97768 | AA166: 22283 | AB166: 153.0455716 | AC166: 0.03835041938 | AD166: 0.03440103598 | AF166: 22426.77416 | AG166: 154.0330508 | AH166: -0.006410826501 | AI166: -0.006410826501
A167: 10Q | B167: NHS Oxfordshire CCG | E167: 99682 | F167: 747848.3125 | G167: 133.2917362 | H167: 0.01399085243 | J167: 98231.63204 | K167: 750273.75 | L167: 130.9277208 | M167: 0.003243221198 | O167: 0.01476477517 | P167: 0.0180558818 | Q167: 0.03775478801 | R167: 0.0344 | S167: 103445.4728 | T167: 0 | U167: 0.03775478801 | V167: 0.0344 | W167: 103445.4728 | X167: 0.03775478801 | Y167: 0.0344 | Z167: 103445.4728 | AA167: 103445 | AB167: 137.8763418 | AC167: 0.03775004514 | AD167: 0.03439527247 | AF167: 102587.1315 | AG167: 136.7329345 | AH167: 0.008362340393 | AI167: 0.008362340393
A168: 10R | B168: NHS Portsmouth CCG | E168: 31608 | F168: 231311.25 | G168: 136.6470502 | H168: -0.04989769061 | J168: 33185.55057 | K168: 232324.75 | L168: 142.8412193 | M168: 0.004381542186 | O168: -0.04753727281 | P168: -0.04336401719 | Q168: 0.03893226724 | R168: 0.0344 | S168: 32838.5711 | T168: 0.9391232743 | U168: 0.04830717886 | V168: 0.04373401425 | W168: 33134.89331 | X168: 0.04830717886 | Y168: 0.04373401425 | Z168: 33134.89331 | AA168: 33135 | AB168: 142.6236335 | AC168: 0.04831055429 | AD168: 0.04373737495 | AF168: 34656.9671 | AG168: 149.1746665 | AH168: -0.04391518441 | AI168: -0.04391518441
A169: 10V | B169: NHS South Eastern Hampshire CCG | E169: 29531 | F169: 216374.5938 | G169: 136.4809033 | H169: -0.004878166048 | J169: 29715.17057 | K169: 217457.1406 | L169: 136.6484011 | M169: 0.005003114535 | O169: -0.006197863333 | P169: -0.001225757418 | Q169: 0.03957522168 | R169: 0.0344 | S169: 30699.69587 | T169: 0.02654591051 | U169: 0.03984038343 | V169: =MAX(R169,NewMinGrowthPerHead(P169,$P$2,$L$1,$U$1,$T$2,AG169,G169,T169, $P$1)) -> 0.03466384173 | W169: 30707.52636 | X169: 0.03984038343 | Y169: 0.03466384173 | Z169: 30707.52636 | AA169: =IF(ROUND(Z169,0)/E169>$AA$1,ROUND(Z169,0),ROUNDUP(Z169,0)) -> 30708 | AB169: =AA169/K169*1000 -> 141.2140338 | AC169: =AA169/E169-1 -> 0.03985642206 | AD169: =AB169/G169-1 -> 0.03467980052 | AF169: 31032.71367 | AG169: =AF169/K169*1000 -> 142.7072644 | AH169: -0.01046359238 | AI169: -0.01046359238
A170: 10X | B170: NHS Southampton CCG | E170: 38095 | F170: 288342.1875 | G170: 132.1173302 | H170: -0.04292053072 | J170: 39708.74904 | K170: 289813.3125 | L170: 137.0149242 | M170: 0.005102010957 | O170: -0.04063963443 | P170: -0.03574496733 | Q170: 0.03967752013 | R170: 0.0344 | S170: 39606.51513 | T170: 0.7741194874 | U170: 0.04741080481 | V170: 0.04209402966 | W170: 39901.11461 | X170: 0.04741080481 | Y170: 0.04209402966 | Z170: 39901.11461 | AA170: 39901 | AB170: 137.6782856 | AC170: 0.0474077963 | AD170: 0.04209103641 | AF170: 41469.39814 | AG170: 143.0900388 | AH170: -0.03782061508 | AI170: -0.03782061508
A171: 11A | B171: NHS West Hampshire CCG | E171: 75153 | F171: 566415.25 | G171: 132.681809 | H171: -0.005454687926 | J171: 75684.5754 | K171: 569597.25 | L171: 132.8738427 | M171: 0.005617786597 | O171: -0.007023563173 | P171: -0.001445233455 | Q171: 0.04021103846 | R171: 0.0344 | S171: 78174.98017 | T171: 0.03129904612 | U171: 0.04052386954 | V171: 0.03471108349 | W171: 78198.49037 | X171: 0.04052386954 | Y171: 0.03471108349 | Z171: 78198.49037 | AA171: 78198 | AB171: 137.2864774 | AC171: 0.04051734462 | AD171: 0.03470459501 | AF171: 79040.35927 | AG171: 138.7653456 | AH171: -0.01065733095 | AI171: -0.01065733095
A172: 11E | B172: NHS Bath and North East Somerset CCG | E172: 27063 | F172: 209078.4688 | G172: 129.4394404 | H172: -0.01948542419 | J172: 27571.50717 | K172: 210293.5781 | L172: 131.1096013 | M172: 0.005811738446 | O172: -0.01844321279 | P172: -0.01273866147 | Q172: 0.04041166225 | R172: 0.0344 | S172: 28156.66082 | T172: 0.2758778878 | U172: 0.04316956817 | V172: 0.03714197031 | W172: 28231.29802 | X172: 0.04316956817 | Y172: 0.03714197031 | Z172: 28231.29802 | AA172: 28231 | AB172: 134.2456591 | AC172: 0.04315855596 | AD172: 0.03713102173 | AF172: 28794.00223 | AG172: 136.9228794 | AH172: -0.01955276043 | AI172: -0.01955276043
A173: 11J | B173: NHS Dorset CCG | E173: 112366 | F173: 804863.5625 | G173: 139.6087551 | H173: -0.01129089481 | J173: 113565.6199 | K173: 808390.5625 | L173: 140.4836043 | M173: 0.004382109173 | O173: -0.01056323102 | P173: -0.006227411078 | Q173: 0.03893285373 | R173: 0.0344 | S173: 116740.729 | T173: 0.1348654267 | U173: 0.04027916492 | V173: 0.03574043724 | W173: 116892.0086 | X173: 0.04027916492 | Y173: 0.03574043724 | Z173: 116892.0086 | AA173: 116892 | AB173: 144.5984224 | AC173: 0.04027908798 | AD173: 0.03574036065 | AF173: 118601.0141 | AG173: 146.712517 | AH173: -0.01440977665 | AI173: -0.01440977665
A174: 11M | B174: NHS Gloucestershire CCG | E174: 86659 | F174: 651781.125 | G174: 132.9572101 | H174: -0.02991895569 | J174: 89510.6861 | K174: 656479.25 | L174: 136.3496045 | M174: 0.007208132945 | O174: -0.03185861064 | P174: -0.02488011879 | Q174: 0.04185609272 | R174: 0.0344 | S174: 90286.20714 | T174: 0.5388222803 | U174: 0.04725008878 | V174: 0.03975539367 | W174: 90753.64544 | X174: 0.04725008878 | Y174: 0.03975539367 | Z174: 90753.64544 | AA174: 90754 | AB174: 138.2435165 | AC174: 0.04725418018 | AD174: 0.03975945579 | AF174: 93479.50689 | AG174: 142.3952195 | AH174: -0.0291561967 | AI174: -0.0291561967
A175: 11N | B175: NHS Kernow CCG | E175: 82276 | F175: 579195.75 | G175: 142.0521473 | H175: -0.04990352234 | J175: 86722.2221 | K175: 583022.5625 | L175: 148.7459108 | M175: 0.006607114261 | O175: -0.05126969755 | P175: -0.04500132803 | Q175: 0.04123439899 | R175: 0.0344 | S175: 85668.60141 | T175: 0.9745820906 | U175: 0.05098484041 | V175: 0.04408644199 | W175: 86470.82873 | X175: 0.05098484041 | Y175: 0.04408644199 | Z175: 86470.82873 | AA175: 86471 | AB175: 148.3150148 | AC175: 0.05098692207 | AD175: 0.04408850998 | AF175: 90567.40498 | AG175: 155.3411666 | AH175: -0.04523045554 | AI175: -0.04523045554
A176: 11X | B176: NHS Somerset CCG | E176: 77813 | F176: 578764.8125 | G176: 134.446667 | H176: -0.04424497103 | J176: 81557.34054 | K176: 582469.875 | L176: 140.0198432 | M176: 0.006401672009 | O176: -0.04591052769 | P176: -0.03980275982 | Q176: 0.04102188953 | R176: 0.0344 | S176: 81005.03629 | T176: 0.861998047 | U176: 0.04964419663 | V176: 0.04296746102 | W176: 81675.96387 | X176: 0.04964419663 | Y176: 0.04296746102 | Z176: 81675.96387 | AA176: 81676 | AB176: 140.2235609 | AC176: 0.04964466092 | AD176: 0.04296792236 | AF176: 85173.51737 | AG176: 146.2281931 | AH176: -0.04106343707 | AI176: -0.04106343707
A177: 12D | B177: NHS Swindon CCG | E177: 30259 | F177: 239149.6562 | G177: 126.527466 | H177: -0.0498953969 | J177: 31893.6294 | K177: 240568.4688 | L177: 132.5761001 | M177: 0.005932739031 | O177: -0.05125253634 | P177: -0.04562386523 | Q177: 0.04053682525 | R177: 0.0344 | S177: 31485.6038 | T177: 0.9880642173 | U177: 0.0504155292 | V177: 0.04422044182 | W177: 31784.5235 | X177: 0.0504155292 | Y177: 0.04422044182 | Z177: 31784.5235 | AA177: 31785 | AB177: 132.1245472 | AC177: 0.05043127664 | AD177: 0.0442360964 | AF177: 33307.76334 | AG177: 138.4544014 | AH177: -0.04571797056 | AI177: -0.04571797056
A178: 12F | B178: NHS Wirral CCG | E178: 50101 | F178: 336757.8125 | G178: 148.7745737 | H178: 0.007088057756 | J178: 49534.84776 | K178: 337197.9688 | L178: 146.9013824 | M178: 0.001307040947 | O178: 0.0114293728 | P178: 0.0127513524 | Q178: 0.03575200316 | R178: 0.0344 | S178: 51892.21111 | T178: 0 | U178: 0.03575200316 | V178: 0.0344 | W178: 51892.21111 | X178: 0.03575200316 | Y178: 0.0344 | Z178: 51892.21111 | AA178: 51892 | AB178: 153.891793 | AC178: 0.03574778947 | AD178: 0.03439579181 | AF178: 51731.17696 | AG178: 153.4148535 | AH178: 0.003108822344 | AI178: 0.003108822344
A179: 13T | B179: NHS Newcastle Gateshead CCG | E179: 73270 | F179: 527745.75 | G179: 138.8357936 | H179: -0.03121273235 | J179: 75349.56797 | K179: 529457.6875 | L179: 142.3146169 | M179: 0.003243867904 | O179: -0.02759893692 | P179: -0.02444459632 | Q179: 0.03775545696 | R179: 0.0344 | S179: 76036.34233 | T179: 0.529390283 | U179: 0.04303417342 | V179: 0.03966164837 | W179: 76423.11389 | X179: 0.04303417342 | Y179: 0.03966164837 | Z179: 76423.11389 | AA179: 76423 | AB179: 144.3420349 | AC179: 0.04303261908 | AD179: 0.03966009905 | AF179: 78690.49793 | AG179: 148.624715 | AH179: -0.02881539684 | AI179: -0.02881539684
A180: 14L | B180: NHS Manchester CCG | E180: 96940 | F180: 647873.9375 | G180: 149.6278742 | H180: -0.02567178914 | J180: 99568.84723 | K180: 653890.9375 | L180: 152.2713369 | M180: 0.009287300587 | O180: -0.02640230653 | P180: -0.0173602121 | Q180: 0.04400678373 | R180: 0.0344 | S180: 101206.0176 | T180: 0.3759656113 | U180: 0.04777823749 | V180: 0.03813674944 | W180: 101571.6223 | X180: 0.04777823749 | Y180: 0.03813674944 | Z180: 101571.6223 | AA180: 101572 | AB180: 155.3347725 | AC180: 0.04778213328 | AD180: 0.03814060939 | AF180: 103983.6376 | AG180: 159.0229067 | AH180: -0.02319247154 | AI180: -0.02319247154
A181: 14Y | B181: NHS Buckinghamshire CCG | E181: 72890 | F181: 563792.625 | G181: 129.285125 | H181: -0.01109132158 | J181: 73897.68645 | K181: 568164.25 | L181: 130.0639497 | M181: 0.00775395918 | O181: -0.01363623809 | P181: -0.005988013749 | Q181: 0.04242069538 | R181: 0.0344 | S181: 75982.04449 | T181: 0.1296808608 | U181: 0.04371959698 | V181: 0.03568890747 | W181: 76076.72142 | X181: 0.04371959698 | Y181: 0.03568890747 | Z181: 76076.72142 | AA181: 76077 | AB181: 133.8996602 | AC181: 0.04372341885 | AD181: 0.03569269993 | AF181: 77174.24132 | AG181: 135.8308646 | AH181: -0.01421771436 | AI181: -0.01421771436
A182: 15A | B182: NHS Berkshire West CCG | E182: 71573 | F182: 547396.375 | G182: 130.7516879 | H182: -0.01291482711 | J182: 72544.69086 | K182: 550345.9375 | L182: 131.8165283 | M182: 0.005388348617 | O182: -0.01339437595 | P182: -0.008078200904 | Q182: 0.03997370781 | R182: 0.0344 | S182: 74434.03819 | T182: 0.174947502 | U182: 0.04172189305 | V182: 0.03613881589 | W182: 74559.16105 | X182: 0.04172189305 | Y182: 0.03613881589 | Z182: 74559.16105 | AA182: 74559 | AB182: 135.4766065 | AC182: 0.04171964288 | AD182: 0.03613657779 | AF182: 75761.25517 | AG182: 137.6611509 | AH182: -0.01586899746 | AI182: -0.01586899746
A183: 15C | B183: NHS Bristol, North Somerset and South Gloucestershire CCG | E183: 131438 | F183: 1017741.5 | G183: 129.1467431 | H183: -0.03277295627 | J183: 136116.0049 | K183: 1026830 | L183: 132.5594353 | M183: 0.008930067213 | O183: -0.03436777997 | P183: -0.02574461935 | Q183: 0.04363726152 | R183: 0.0344 | S183: 137173.5944 | T183: 0.5575445446 | U183: 0.04922822289 | V183: 0.03994147561 | W183: 137908.4592 | X183: 0.04922822289 | Y183: 0.03994147561 | Z183: 137908.4592 | AA183: 137908 | AB183: 134.3046074 | AC183: 0.04922472953 | AD183: 0.03993801318 | AF183: 142151.2623 | AG183: 138.4369977 | AH183: -0.02985033154 | AI183: -0.02985033154
A184: 15D | B184: NHS East Berkshire CCG | E184: 59977 | F184: 462630.3438 | G184: 129.6434633 | H184: 0.01559536513 | J184: 59060.4536 | K184: 465062.5 | L184: 126.994659 | M184: 0.0052572346 | O184: 0.01551878354 | P184: 0.02085760402 | Q184: 0.03983808347 | R184: 0.0344 | S184: 62366.36873 | T184: 0 | U184: 0.03983808347 | V184: 0.0344 | W184: 62366.36873 | X184: 0.03983808347 | Y184: 0.0344 | Z184: 62366.36873 | AA184: 62366 | AB184: 134.1024056 | AC184: 0.03983193558 | AD184: 0.03439388426 | AF184: 61679.13934 | AG184: 132.6254844 | AH184: 0.01113602869 | AI184: 0.01113602869
A185: 15E | B185: NHS Birmingham and Solihull CCG | E185: 187794 | F185: 1320167.625 | G185: 142.2501177 | H185: -0.004777779345 | J185: 188594.9145 | K185: 1329445 | L185: 141.8598847 | M185: 0.007027421991 | O185: -0.004246744829 | P185: 0.002750833494 | Q185: 0.04166916531 | R185: 0.0344 | S185: 195619.2192 | T185: 0 | U185: 0.04166916531 | V185: 0.0344 | W185: 195619.2192 | X185: 0.04166916531 | Y185: 0.0344 | Z185: 195619.2192 | AA185: 195619 | AB185: 147.1433568 | AC185: 0.04166799791 | AD185: 0.03439884075 | AF185: 196957.0381 | AG185: 148.1498205 | AH185: -0.00679355287 | AI185: -0.00679355287
A186: 15F | B186: NHS Leeds CCG | E186: 119874 | F186: 884667.0625 | G186: 135.5018233 | H186: -0.04134395696 | J186: 124716.1521 | K186: 888936.5 | L186: 140.2981564 | M186: 0.004826038722 | O186: -0.03882538063 | P186: -0.0341867147 | Q186: 0.03939205445 | R186: 0.0344 | S186: 124596.0831 | T186: 0.7403728143 | U186: 0.04678618646 | V186: 0.04175861903 | W186: 125482.4473 | X186: 0.04678618646 | Y186: 0.04175861903 | Z186: 125482.4473 | AA186: 125482 | AB186: 141.1596891 | AC186: 0.04678245491 | AD186: 0.0417549054 | AF186: 130245.9506 | AG186: 146.5188465 | AH186: -0.03657657343 | AI186: -0.03657657343
A187: 15M | B187: NHS Derby and Derbyshire CCG | E187: 144807 | F187: 1053807.5 | G187: 137.4131423 | H187: 0.007945023641 | J187: 143521.5144 | K187: 1058006.75 | L187: 135.6527398 | M187: 0.00398483594 | O187: 0.008956745116 | P187: 0.01297727222 | Q187: 0.0385219143 | R187: 0.0344 | S187: 150385.2428 | T187: 0 | U187: 0.0385219143 | V187: 0.0344 | W187: 150385.2428 | X187: 0.0385219143 | Y187: 0.0344 | Z187: 150385.2428 | AA187: 150385 | AB187: 142.1399249 | AC187: 0.03852023728 | AD187: 0.03439832964 | AF187: 149885.1252 | AG187: 141.6674565 | AH187: 0.003335052767 | AI187: 0.003335052767
A188: 99A | B188: NHS Liverpool CCG | E188: 80578 | F188: 536622.875 | G188: 150.1575944 | H188: -0.04989701731 | J188: 84634.92529 | K188: 540072.5 | L188: 156.7103033 | M188: 0.006428397224 | O188: -0.04793441096 | P188: -0.04181415517 | Q188: 0.04104953409 | R188: 0.0344 | S188: 83885.68936 | T188: 0.9055583146 | U188: 0.05010780198 | V188: 0.04340040968 | W188: 84615.58647 | X188: 0.05010780198 | Y188: 0.04340040968 | Z188: 84615.58647 | AA188: 84616 | AB188: 156.6752612 | AC188: 0.05011293405 | AD188: 0.04340550897 | AF188: 88387.55937 | AG188: 163.6586928 | AH188: -0.04267070389 | AI188: -0.04267070389
A189: 99C | B189: NHS North Tyneside CCG | E189: 29807 | F189: 219720.4375 | G189: 135.6587505 | H189: -0.0247610414 | J189: 30484.39405 | K189: 220334 | L189: 138.3553789 | M189: 0.002792468953 | O189: -0.02222101077 | P189: -0.0194905933 | Q189: 0.03728852988 | R189: 0.0344 | S189: 30918.45921 | T189: 0.4221027244 | U189: 0.04149555471 | V189: 0.03859530955 | W189: 31043.858 | X189: 0.04149555471 | Y189: 0.03859530955 | Z189: 31043.858 | AA189: 31044 | AB189: 140.8951864 | AC189: 0.04150031872 | AD189: 0.03860006029 | AF189: 31836.0438 | AG189: 144.489928 | AH189: -0.02487883887 | AI189: -0.02487883887
A190: 99D | B190: NHS South Lincolnshire CCG | E190: 25090 | F190: 168384.8125 | G190: 149.003937 | H190: -0.005657763688 | J190: 25265.72758 | K190: 169595.8125 | L190: 148.9761287 | M190: 0.007191860014 | O190: -0.006955176035 | P190: 0.0001866633268 | Q190: 0.04183926 | R190: 0.0344 | S190: 26139.74703 | T190: 0 | U190: 0.04183926 | V190: 0.0344 | W190: 26139.74703 | X190: 0.04183926 | Y190: 0.0344 | Z190: 26139.74703 | AA190: 26140 | AB190: 154.1311641 | AC190: 0.04184934237 | AD190: 0.03441001038 | AF190: 26385.98651 | AG190: 155.581592 | AH190: -0.009322619348 | AI190: -0.009322619348
A191: 99E | B191: NHS Basildon and Brentwood CCG | E191: 36358 | F191: 281462.125 | G191: 129.1754619 | H191: -0.04392607531 | J191: 38064.79846 | K191: 283903.5 | L191: 134.0765382 | M191: 0.008673902395 | O191: -0.04483928808 | P191: -0.03655431729 | Q191: 0.04337228464 | R191: 0.0344 | S191: 37934.92952 | T191: 0.7916473696 | U191: 0.05130877353 | V191: 0.04226824055 | W191: 38223.48439 | X191: 0.05130877353 | Y191: 0.04226824055 | Z191: 38223.48439 | AA191: 38223 | AB191: 134.6337752 | AC191: 0.05129545079 | AD191: 0.04225503237 | AF191: 39752.55632 | AG191: 140.0213675 | AH191: -0.03847692983 | AI191: -0.03847692983
A192: 99F | B192: NHS Castle Point and Rochford CCG | E192: 25031 | F192: 186162.3125 | G192: 134.4579344 | H192: 0.02285702125 | J192: 24474.61354 | K192: 187122.9688 | L192: 130.7942777 | M192: 0.00516031541 | O192: 0.02273320708 | P192: 0.02801083301 | Q192: 0.03973783026 | R192: 0.0344 | S192: 26025.67763 | T192: 0 | U192: 0.03973783026 | V192: 0.0344 | W192: 26025.67763 | X192: 0.03973783026 | Y192: 0.0344 | Z192: 26025.67763 | AA192: 26026 | AB192: 139.0850101 | AC192: 0.03975070912 | AD192: 0.03441281274 | AF192: 25559.7952 | AG192: 136.5935747 | AH192: 0.01823977037 | AI192: 0.01823977037
A193: 99G | B193: NHS Southend CCG | E193: 26333 | F193: 189659.2812 | G193: 138.8437193 | H193: -0.01591901244 | J193: 26786.44476 | K193: 191002.9062 | L193: 140.2410324 | M193: 0.0070844147 | O193: -0.01692814275 | P193: -0.009963654034 | Q193: 0.04172811857 | R193: 0.0344 | S193: 27431.82655 | T193: 0.2157802715 | U193: 0.04388796794 | V193: 0.03654465575 | W193: 27488.70186 | X193: 0.04388796794 | Y193: 0.03654465575 | Z193: 27488.70186 | AA193: 27489 | AB193: 143.9192761 | AC193: 0.04389928986 | AD193: 0.03655589802 | AF193: 27974.13088 | AG193: 146.4591897 | AH193: -0.01734212503 | AI193: -0.01734212503
A194: 99H | B194: NHS Surrey Downs CCG | E194: 39032 | F194: 309493.5 | G194: 126.1157343 | H194: -0.03112886984 | J194: 40323.08991 | K194: 311412.7812 | L194: 129.4843768 | M194: 0.006201362064 | O194: -0.03201862534 | P194: -0.02601582236 | Q194: 0.04081468892 | R194: 0.0344 | S194: 40625.07894 | T194: 0.563417918 | U194: 0.04644926712 | V194: 0.0399998515 | W194: 40845.00779 | X194: 0.04644926712 | Y194: 0.0399998515 | Z194: 40845.00779 | AA194: 40845 | AB194: 131.1603199 | AC194: 0.04644906743 | AD194: 0.03999965304 | AF194: 42110.97831 | AG194: 135.225594 | AH194: -0.03006290433 | AI194: -0.03006290433
A195: 99J | B195: NHS West Kent CCG | E195: 64529 | F195: 496486.1875 | G195: 129.9713902 | H195: -0.01652953293 | J195: 65720.98795 | K195: 500118.6875 | L195: 131.4107823 | M195: 0.007316417035 | O195: -0.01813709728 | P195: -0.01095337881 | Q195: 0.04196810178 | R195: 0.0344 | S195: 67237.15964 | T195: 0.2372144842 | U195: 0.04434304358 | V195: 0.03675769194 | W195: 67390.41226 | X195: 0.04434304358 | Y195: 0.03675769194 | Z195: 67390.41226 | AA195: 67390 | AB195: 134.7480142 | AC195: 0.04433665484 | AD195: 0.0367513496 | AF195: 68634.9956 | AG195: 137.2374145 | AH195: -0.01813937024 | AI195: -0.01813937024
A196: 99K | B196: NHS High Weald Lewes Havens CCG | E196: 23341 | F196: 171932.0312 | G196: 135.7571351 | H196: 0.0005054253004 | J196: 23404.85711 | K196: 173388.3438 | L196: 134.9851818 | M196: 0.008470280316 | O196: -0.002728369871 | P196: 0.005718800388 | Q196: 0.04316165796 | R196: 0.0344 | S196: 24348.43626 | T196: 0 | U196: 0.04316165796 | V196: 0.0344 | W196: 24348.43626 | X196: 0.04316165796 | Y196: 0.0344 | Z196: 24348.43626 | AA196: 24348 | AB196: 140.4246645 | AC196: 0.04314296731 | AD196: 0.03438146634 | AF196: 24442.60676 | AG196: 140.9702996 | AH196: -0.003870567588 | AI196: -0.003870567588
A197: 99M | B197: NHS North East Hampshire and Farnham CCG | E197: 30023 | F197: 227991 | G197: 131.6850227 | H197: 0.02016050453 | J197: 29406.39731 | K197: 228523.125 | L197: 128.680182 | M197: 0.002333973709 | O197: 0.02096831794 | P197: 0.02335123115 | Q197: 0.03681426241 | R197: 0.0344 | S197: 31128.2746 | T197: 0 | U197: 0.03681426241 | V197: 0.0344 | W197: 31128.2746 | X197: 0.03681426241 | Y197: 0.0344 | Z197: 31128.2746 | AA197: 31128 | AB197: 136.2137858 | AC197: 0.03680511608 | AD197: 0.03439087497 | AF197: 30710.24969 | AG197: 134.3857419 | AH197: 0.01360296032 | AI197: 0.01360296032
A198: 99N | B198: NHS Wiltshire CCG | E198: 66388 | F198: 495483.4688 | G198: 133.9863067 | H198: -0.0365271072 | J198: 69313.17635 | K198: 501744.0312 | L198: 138.1444961 | M198: 0.01263526009 | O198: -0.04220231284 | P198: -0.03010028994 | Q198: 0.04746991304 | R198: 0.0344 | S198: 69539.43259 | T198: 0.6518741731 | U198: 0.05403080183 | V198: 0.04087902462 | W198: 69974.99687 | X198: 0.05403080183 | Y198: 0.04087902462 | Z198: 69974.99687 | AA198: 69975 | AB198: 139.4635424 | AC198: 0.05403084895 | AD198: 0.04087907116 | AF198: 72386.4583 | AG198: 144.2696949 | AH198: -0.03331366606 | AI198: -0.03331366606
A199: 99P | B199: NHS Northern, Eastern and Western Devon CCG | E199: 125723 | F199: 936391.5 | G199: 134.2632862 | H199: -0.04990050124 | J199: 132265.4927 | K199: 941125.25 | L199: 140.5397345 | M199: 0.005055310733 | O199: -0.04946484981 | P199: -0.04465959927 | Q199: 0.03962921342 | R199: 0.0344 | S199: 130705.3036 | T199: 0.9671813593 | U199: 0.04929069513 | V199: 0.04401288558 | W199: 131919.9741 | X199: 0.04929069513 | Y199: 0.04401288558 | Z199: 131919.9741 | AA199: 131920 | AB199: 140.1726285 | AC199: 0.04929090143 | AD199: 0.04401309084 | AF199: 138130.022 | AG199: 146.7711359 | AH199: -0.04495780067 | AI199: -0.04495780067
A200: 99Q | B200: NHS South Devon and Torbay CCG | E200: 39594 | F200: 295595.9375 | G200: 133.9463605 | H200: -0.04988969182 | J200: 41723.85209 | K200: 297486.0625 | L200: 140.2548131 | M200: 0.006394286119 | O200: -0.05104639164 | P200: -0.04497851076 | Q200: 0.04101424956 | R200: 0.0344 | S200: 41217.9182 | T200: 0.9740879428 | U200: 0.05075768666 | V200: 0.04408153062 | W200: 41603.69985 | X200: 0.05075768666 | Y200: 0.04408153062 | Z200: 41603.69985 | AA200: 41604 | AB200: 139.85193 | AC200: 0.05076526746 | AD200: 0.04408906326 | AF200: 43573.849 | AG200: 146.4735814 | AH200: -0.04520713778 | AI200: -0.04520713778

Sheet Primary medical care 2021-22
A1: NHS England - 2019-20 to 2023-24 Allocations | E1: 2020-21 | J1: 2021-22 | L1: 0.05392171144 | P1: -0.04227897326 | Q1: 0.05 | R1: 0.0446 | T1: -0.04227897326 | U1: 0.0446 | X1: 0.01925030241 | AA1: 1.019250302 | AI1: -0.04246998271
A2: Minimum allocations for primary medical care services | P2: -0.04245 | Q2: 0.1 | R2: 0.03555288009 | S2: 1 | T2: 0 | U2: 0.0531 | Z2: 1 | AI2: 0.2187593172
A3: 2021-22 minimum allocation calculations | U3: 0.0085 | AI3: 0
L4: 151.1845616 | AA4: 9010.715767 | AI4: 37
B5: England | E5: 8635381 | F5: 59802739.78 | G5: 144.3977489 | J5: 8626712.608 | K5: 60137620.02 | L5: 143.449518 | M5: 0.005599747363 | AA5: 9082869 | AF5: 9091879.716 | AH5: -0.0009910729188
E6: Baseline | J6: Opening Target | O6: Distance from Target | Q6: Minimum per capita growth | T6: Per capita pace of change | X6: Minimum programme | AF6: Closing target
A7: CCG | B7: Clinical Commissioning Group (192) | E7: Baseline £000 | F7: Estimated Population | G7: Allocation per capita £ | H7: Closing DfT | J7: Opening Target £000 | K7: Estimated Population | L7: Opening Target per capita £ | M7: population growth rate % | O7: DFT (total allocation) | P7: DFT (per capita) | Q7: Apply minimum per capita growth [programme] | R7: Apply minimum per capita growth [per capita] | S7: Allocation after min per capita growth £000 | T7: First Transition position | U7: Growth on per capita parameters [programme] | V7: Growth on per capita parameters [per capita] | W7: Allocation after per capita p-o-c | X7: Apply minimum programme growth [programme] | Y7: Apply minimum programme growth [per capita] | Z7: Allocation after minimum programme growth | AA7: Minimum allocation £000 | AB7: Minimum allocation per head £ | AC7: Growth after rounding | AD7: Per capita growth after rounding | AF7: Target allocations from the fair shares formula £000 | AG7: Target per head | AH7: DFT (total allocation) | AI7: DFT (per capita)
A9: 00C | B9: NHS Darlington CCG | E9: 15947 | F9: 108449.6406 | G9: =E9/F9*1000 -> 147.0452083 | H9: 0.01161426682 | J9: 15714.78814 | K9: 108477.0781 | L9: =J9/K9*1000 -> 144.8673619 | M9: =K9/F9-1 -> 0.0002529976111 | O9: =E9/J9-1 -> 0.01477664595 | P9: =G9/L9-1 -> 0.01503338202 | Q9: =(1+M9)*(1+R9)-1 -> 0.0448642813 | R9: =MinGrowthPerHead(P9,0,1,$Q$1,$Q$2,$R$1,$R$2) -> 0.0446 | S9: =(1+IF($S$2=1,Q9,0))*$E9 -> 16662.45069 | T9: =MinMaxRamp(P9,0,1,$P$2,$T$2) -> 0 | U9: =(1+M9)*(1+V9)-1 -> 0.0448642813 | V9: =MAX(R9,NewMinGrowthPerHead(P9,$P$2,$L$1,$U$1,$T$2,AG9,G9,T9, $P$1)) -> 0.0446 | W9: =(1+IF($S$2=1,U9,0))*$E9 -> 16662.45069 | X9: =MAX(U9,$X$1) -> 0.0448642813 | Y9: =(1+X9)/(1+M9) - 1 -> 0.0446 | Z9: =(1+IF($Z$2=1,X9,0))*$E9 -> 16662.45069 | AA9: =IF(ROUND(Z9,0)/E9>$AA$1,ROUND(Z9,0),ROUNDUP(Z9,0)) -> 16662 | AB9: =AA9/K9*1000 -> 153.5992699 | AC9: =AA9/E9-1 -> 0.04483601931 | AD9: =AB9/G9-1 -> 0.04457174516 | AF9: 16562.15641 | AG9: =AF9/K9*1000 -> 152.678858 | AH9: =AA9/AF9-1 -> 0.006028417239 | AI9: =AB9/AG9-1 -> 0.006028417239
A10: 00D | B10: NHS Durham Dales, Easington and Sedgefield CCG | E10: 48160 | F10: 294087.8125 | G10: =E10/F10*1000 -> 163.7606115 | H10: 0.06155414911 | J10: 45289.72039 | K10: 295084.125 | L10: =J10/K10*1000 -> 153.4807079 | M10: =K10/F10-1 -> 0.003387806151 | O10: =E10/J10-1 -> 0.06337596222 | P10: =G10/L10-1 -> 0.06697847384 | Q10: =(1+M10)*(1+R10)-1 -> 0.04505636876 | R10: =MinGrowthPerHead(P10,0,1,$Q$1,$Q$2,$R$1,$R$2) -> 0.04152787422 | S10: =(1+IF($S$2=1,Q10,0))*$E10 -> 50329.91472 | T10: =MinMaxRamp(P10,0,1,$P$2,$T$2) -> 0 | U10: =(1+M10)*(1+V10)-1 -> 0.04505636876 | V10: 0.04152787422 | W10: =(1+IF($S$2=1,U10,0))*$E10 -> 50329.91472 | X10: =MAX(U10,$X$1) -> 0.04505636876 | Y10: =(1+X10)/(1+M10) - 1 -> 0.04152787422 | Z10: =(1+IF($Z$2=1,X10,0))*$E10 -> 50329.91472 | AA10: 50330 | AB10: 170.5615305 | AC10: 0.04505813953 | AD10: 0.04152963902 | AF10: 47731.81963 | AG10: 161.7566503 | AH10: =AA10/AF10-1 -> 0.05443287925 | AI10: 0.05443287925
A11: 00J | B11: NHS North Durham CCG | E11: 37925 | F11: 260704.7812 | G11: 145.4710566 | H11: 0.0369399977 | J11: 36457.7757 | K11: 261174 | L11: 139.5919031 | M11: 0.001799808764 | O11: 0.04024448203 | P11: 0.04211672317 | Q11: 0.04648008023 | R11: 0.0446 | S11: 39687.75704 | T11: 0 | U11: 0.04648008023 | V11: 0.0446 | W11: 39687.75704 | X11: 0.04648008023 | Y11: 0.0446 | Z11: 39687.75704 | AA11: 39688 | AB11: 151.959996 | AC11: 0.04648648649 | AD11: 0.04460639474 | AF11: 38423.64136 | AG11: 147.1189374 | AH11: 0.03290574744 | AI11: 0.03290574744
A12: 00K | B12: NHS Hartlepool and Stockton-on-Tees CCG | E12: 44957 | F12: 298891.875 | G12: 150.4122519 | H12: -0.01769902643 | J12: 45638.06099 | K12: 299587.75 | L12: 152.3362053 | M12: 0.00232818306 | O12: -0.01492309209 | P12: -0.01262965272 | Q12: 0.04703202002 | R12: 0.0446 | S12: 47071.41852 | T12: 0.2975183208 | U12: 0.04975573181 | V12: 0.04731738522 | W12: 47193.86843 | X12: 0.04975573181 | Y12: 0.04731738522 | Z12: 47193.86843 | AA12: 47194 | AB12: 157.5298055 | AC12: 0.04975865827 | AD12: 0.04732030488 | AF12: 48098.94334 | AG12: 160.5504342 | AH12: -0.0188142042 | AI12: -0.0188142042
A13: 00L | B13: NHS Northumberland CCG | E13: 48647 | F13: 325564.0625 | G13: 149.4237405 | H13: 0.004005690941 | J13: 48344.26451 | K13: 325652.125 | L13: 148.4537051 | M13: 0.0002704920787 | O13: 0.006262076552 | P13: 0.006534262473 | Q13: 0.04488255603 | R13: 0.0446 | S13: 50830.4017 | T13: 0 | U13: 0.04488255603 | V13: 0.0446 | W13: 50830.4017 | X13: 0.04488255603 | Y13: 0.0446 | Z13: 50830.4017 | AA13: 50830 | AB13: 156.0868058 | AC13: 0.04487429852 | AD13: 0.04459174473 | AF13: 50951.07 | AG13: 156.4585829 | AH13: -0.002376201238 | AI13: -0.002376201238
A14: 00M | B14: NHS South Tees CCG | E14: 48719 | F14: 297414.375 | G14: 163.8084911 | H14: -0.003402646644 | J14: 48639.4678 | K14: 297457.0312 | L14: 163.5176267 | M14: 0.0001434236324 | O14: 0.001635137205 | P14: 0.001778795355 | Q14: 0.04474982033 | R14: 0.0446 | S14: 50899.1665 | T14: 0 | U14: 0.04474982033 | V14: 0.0446 | W14: 50899.1665 | X14: 0.04474982033 | Y14: 0.0446 | Z14: 50899.1665 | AA14: 50899 | AB14: 171.1137901 | AC14: 0.04474640284 | AD14: 0.044596583 | AF14: 51262.19114 | AG14: 172.334777 | AH14: -0.007084971116 | AI14: -0.007084971116
A15: 00N | B15: NHS South Tyneside CCG | E15: 24049 | F15: 157527.4219 | G15: 152.6654833 | H15: 0.008328807654 | J15: 23739.85432 | K15: 157706.6562 | L15: 150.5317206 | M15: 0.001137797933 | O15: 0.01302222313 | P15: 0.01417483772 | Q15: 0.04578854372 | R15: 0.0446 | S15: 25150.16869 | T15: 0 | U15: 0.04578854372 | V15: 0.0446 | W15: 25150.16869 | X15: 0.04578854372 | Y15: 0.0446 | Z15: 25150.16869 | AA15: 25150 | AB15: 159.4732943 | AC15: 0.04578152938 | AD15: 0.04459299363 | AF15: 25019.94789 | AG15: 158.6486486 | AH15: 0.005197936717 | AI15: 0.005197936717
A16: 00P | B16: NHS Sunderland CCG | E16: 45100 | F16: 284521.125 | G16: 158.5119558 | H16: 0.03881044509 | J16: 43213.9435 | K16: 284736.6562 | L16: 151.7681077 | M16: 0.0007575228377 | O16: 0.04364462818 | P16: 0.04443521282 | Q16: 0.04539130836 | R16: 0.0446 | S16: 47147.14801 | T16: 0 | U16: 0.04539130836 | V16: 0.0446 | W16: 47147.14801 | X16: 0.04539130836 | Y16: 0.0446 | Z16: 47147.14801 | AA16: 47147 | AB16: 165.5810693 | AC16: 0.04538802661 | AD16: 0.04459672074 | AF16: 45544.1133 | AG16: 159.9517038 | AH16: 0.03519415768 | AI16: 0.03519415768
A17: 00Q | B17: NHS Blackburn with Darwen CCG | E17: 26378 | F17: 175171.625 | G17: 150.5837489 | H17: 0.01647532852 | J17: 25800.22991 | K17: 175123.5469 | L17: 147.3258757 | M17: -0.0002744629731 | O17: 0.02239399014 | P17: 0.02211338085 | Q17: 0.04431329598 | R17: 0.0446 | S17: 27546.89612 | T17: 0 | U17: 0.04431329598 | V17: 0.0446 | W17: 27546.89612 | X17: 0.04431329598 | Y17: 0.0446 | Z17: 27546.89612 | AA17: 27547 | AB17: 157.3003773 | AC17: 0.04431723406 | AD17: 0.04460393916 | AF17: 27191.42246 | AG17: 155.2699391 | AH17: 0.01307682754 | AI17: 0.01307682754
A18: 00R | B18: NHS Blackpool CCG | E18: 31207 | F18: 172778.25 | G18: 180.618799 | H18: -0.04414073115 | J18: 32400.10815 | K18: 172451.375 | L18: 187.8796742 | M18: -0.001891875858 | O18: -0.03682420276 | P18: -0.0386464118 | Q18: 0.04262374648 | R18: 0.0446 | S18: 32537.15926 | T18: 0.9103983933 | U18: 0.05092314401 | V18: 0.05291512872 | W18: 32796.15855 | X18: 0.05092314401 | Y18: 0.05291512872 | Z18: 32796.15855 | AA18: 32796 | AB18: 190.1753465 | AC18: 0.05091806326 | AD18: 0.05291003834 | AF18: 34147.17743 | AG18: 198.0104678 | AH18: -0.03956922756 | AI18: -0.03956922756
A19: 00T | B19: NHS Bolton CCG | E19: 45220 | F19: 311766.75 | G19: 145.044332 | H19: -0.0124566499 | J19: 45659.50542 | K19: 312848.8125 | L19: 145.9475107 | M19: 0.003470743753 | O19: -0.00962571584 | P19: -0.00618838048 | Q19: 0.04822553892 | R19: 0.0446 | S19: 47400.75887 | T19: 0.1457804589 | U19: 0.04956164679 | V19: 0.04593148662 | W19: 47461.17767 | X19: 0.04956164679 | Y19: 0.04593148662 | Z19: 47461.17767 | AA19: 47461 | AB19: 151.7058659 | AC19: 0.04955771782 | AD19: 0.04592757124 | AF19: 48121.5441 | AG19: 153.8172503 | AH19: -0.01372657742 | AI19: -0.01372657742
A20: 00V | B20: NHS Bury CCG | E20: 29087 | F20: 205557.6562 | G20: 141.5028782 | H20: -0.003678902911 | J20: 29116.21205 | K20: 206201.6875 | L20: 141.2025886 | M20: 0.003133092981 | O20: -0.001003291462 | P20: 0.002126658114 | Q20: 0.04787282893 | R20: 0.0446 | S20: 30479.47698 | T20: 0 | U20: 0.04787282893 | V20: 0.0446 | W20: 30479.47698 | X20: 0.04787282893 | Y20: 0.0446 | Z20: 30479.47698 | AA20: 30479 | AB20: 147.8115934 | AC20: 0.04785643071 | AD20: 0.044583653 | AF20: 30686.20803 | AG20: 148.8164738 | AH20: -0.006752480818 | AI20: -0.006752480818
A21: 00X | B21: NHS Chorley and South Ribble CCG | E21: 25059 | F21: 186178.5312 | G21: 134.5966145 | H21: 0.0001734032161 | J21: 25117.74307 | K21: 187455.0625 | L21: 133.9934101 | M21: 0.006856490066 | O21: -0.002338708199 | P21: 0.004501746537 | Q21: 0.05176228952 | R21: 0.0446 | S21: 26356.11121 | T21: 0 | U21: 0.05176228952 | V21: 0.0446 | W21: 26356.11121 | X21: 0.05176228952 | Y21: 0.0446 | Z21: 26356.11121 | AA21: 26356 | AB21: 140.5990302 | AC21: 0.05175785147 | AD21: 0.04459559217 | AF21: 26472.13477 | AG21: 141.2185641 | AH21: -0.004387057054 | AI21: -0.004387057054
A22: 00Y | B22: NHS Oldham CCG | E22: 41097 | F22: 258134.7344 | G22: 159.2075553 | H22: 0.06050802511 | J22: 38682.67218 | K22: 259393.0625 | L22: 149.1276282 | M22: 0.004874695101 | O22: 0.06241367733 | P22: 0.06759262007 | Q22: 0.04649333826 | R22: 0.04141674913 | S22: 43007.73672 | T22: 0 | U22: 0.04649333826 | V22: 0.04141674913 | W22: 43007.73672 | X22: 0.04649333826 | Y22: 0.04141674913 | Z22: 43007.73672 | AA22: 43008 | AB22: 165.8024297 | AC22: 0.04649974451 | AD22: 0.04142312431 | AF22: 40768.50807 | AG22: 157.1688451 | AH22: 0.05493190796 | AI22: 0.05493190796
A23: 01A | B23: NHS East Lancashire CCG | E23: 56913 | F23: 382833.375 | G23: 148.6625872 | H23: -0.009563800143 | J23: 57258.55835 | K23: 383179.6562 | L23: 149.4300582 | M23: 0.0009045221044 | O23: -0.006035051556 | P23: -0.005135988289 | Q23: 0.04554486379 | R23: 0.0446 | S23: 59505.09483 | T23: 0.1209891234 | U23: 0.04665091816 | V23: 0.04570505482 | W23: 59568.04371 | X23: 0.04665091816 | Y23: 0.04570505482 | Z23: 59568.04371 | AA23: 59568 | AB23: 155.4571049 | AC23: 0.04665015023 | AD23: 0.04570428759 | AF23: 60346.03781 | AG23: 157.4875827 | AH23: -0.01289293946 | AI23: -0.01289293946
A24: 01C | B24: NHS Eastern Cheshire CCG | E24: 29258 | F24: 209983.75 | G24: 139.3345914 | H24: 0.008662653722 | J24: 29000.34014 | K24: 210671.9062 | L24: 137.6564187 | M24: 0.003277188116 | O24: 0.008884718457 | P24: 0.01219102347 | Q24: 0.04802335071 | R24: 0.0446 | S24: 30663.06719 | T24: 0 | U24: 0.04802335071 | V24: 0.0446 | W24: 30663.06719 | X24: 0.04802335071 | Y24: 0.0446 | Z24: 30663.06719 | AA24: 30663 | AB24: 145.5485952 | AC24: 0.04802105407 | AD24: 0.04459771087 | AF24: 30564.08812 | AG24: 145.0790884 | AH24: 0.003236212518 | AI24: 0.003236212518
A25: 01D | B25: NHS Heywood, Middleton and Rochdale CCG | E25: 34293 | F25: 235364.3906 | G25: 145.7017347 | H25: -0.03386496198 | J25: 35403.20281 | K25: 236209.7969 | L25: 149.8803321 | M25: 0.003591903804 | O25: -0.03135882405 | P25: -0.02787955813 | Q25: 0.04835210271 | R25: 0.0446 | S25: 35951.13866 | T25: 0.6567622645 | U25: 0.05437219064 | V25: 0.05059854174 | W25: 36157.58553 | X25: 0.05437219064 | Y25: 0.05059854174 | Z25: 36157.58553 | AA25: 36158 | AB25: 153.0757847 | AC25: 0.05438427667 | AD25: 0.05061058452 | AF25: 37312.20409 | AG25: 157.9621361 | AH25: -0.03093368836 | AI25: -0.03093368836
A26: 01E | B26: NHS Greater Preston CCG | E26: 29244 | F26: 209231.7188 | G26: 139.7684834 | H26: -0.03906452296 | J26: 30262.36614 | K26: 209111.4844 | L26: 144.7188146 | M26: -0.0005746469786 | O26: -0.03365123979 | P26: -0.03420654919 | Q26: 0.04399972377 | R26: 0.0446 | S26: 30530.72792 | T26: 0.8058079903 | U26: 0.05135534615 | V26: 0.0519598517 | W26: 30745.83574 | X26: 0.05135534615 | Y26: 0.0519598517 | Z26: 30745.83574 | AA26: 30746 | AB26: 147.0316185 | AC26: 0.05136096293 | AD26: 0.05196547171 | AF26: 31894.16471 | AG26: 152.5223008 | AH26: -0.0359992094 | AI26: -0.0359992094
A27: 01F | B27: NHS Halton CCG | E27: 20167 | F27: 131833.6406 | G27: 152.9730948 | H27: 0.00155169138 | J27: 20091.75387 | K27: 132053.2031 | L27: 152.1489323 | M27: 0.001665451238 | O27: 0.003745125206 | P27: 0.005416813768 | Q27: 0.04633973036 | R27: 0.0446 | S27: 21101.53334 | T27: 0 | U27: 0.04633973036 | V27: 0.0446 | W27: 21101.53334 | X27: 0.04633973036 | Y27: 0.0446 | Z27: 21101.53334 | AA27: 21102 | AB27: 159.7992286 | AC27: 0.04636287004 | AD27: 0.0446231012 | AF27: 21175.13562 | AG27: 160.3530632 | AH27: -0.00345384425 | AI27: -0.00345384425
A28: 01G | B28: NHS Salford CCG | E28: 43603 | F28: 278114.5 | G28: 156.7807504 | H28: 0.0008731598358 | J28: 43586.13732 | K28: 280451.75 | L28: 155.4140323 | M28: 0.008403912777 | O28: 0.0003868817252 | P28: 0.008794045822 | Q28: 0.05337872729 | R28: 0.0446 | S28: 45930.47265 | T28: 0 | U28: 0.05337872729 | V28: 0.0446 | W28: 45930.47265 | X28: 0.05337872729 | Y28: 0.0446 | Z28: 45930.47265 | AA28: 45930 | AB28: 163.7714865 | AC28: 0.05336788753 | AD28: 0.04458925058 | AF28: 45936.37644 | AG28: 163.7942229 | AH28: -0.0001388102358 | AI28: -0.0001388102358
A29: 01H | B29: NHS Cumbria CCG | E29: 50989 | F29: 323354.9062 | G29: 157.6874172 | H29: 0.01424892975 | J29: 50033.02384 | K29: 322940.9375 | L29: 154.9293324 | M29: -0.001280230304 | O29: 0.01910690354 | P29: 0.017802212 | Q29: 0.04326267142 | R29: 0.0446 | S29: 53194.92035 | T29: 0 | U29: 0.04326267142 | V29: 0.0446 | W29: 53194.92035 | X29: 0.04326267142 | Y29: 0.0446 | Z29: 53194.92035 | AA29: 53195 | AB29: 164.7205226 | AC29: 0.04326423346 | AD29: 0.04460156404 | AF29: 52730.89011 | AG29: 163.2833871 | AH29: 0.008801480223 | AI29: 0.008801480223
A30: 01J | B30: NHS Knowsley CCG | E30: 33190 | F30: 166135.6719 | G30: 199.7764816 | H30: 0.2316863347 | J30: 26838.94109 | K30: 166636.7812 | L30: 161.0625271 | M30: 0.003016265979 | O30: 0.2366359718 | P30: 0.2403659948 | Q30: 0.03867638301 | R30: 0.03555288009 | S30: 34473.66915 | T30: 0 | U30: 0.03867638301 | V30: 0.03555288009 | W30: 34473.66915 | X30: 0.03867638301 | Y30: 0.03555288009 | Z30: 34473.66915 | AA30: 34474 | AB30: 206.8810964 | AC30: 0.03868635131 | AD30: 0.03556281841 | AF30: 28286.14273 | AG30: 169.7472942 | AH30: 0.2187593172 | AI30: 0.2187593172
A31: 01K | B31: NHS Morecambe Bay CCG | E31: 49979 | F31: 347573.9375 | G31: 143.7938654 | H31: -0.01635459506 | J31: 50620.76219 | K31: 348167.625 | L31: 145.3919278 | M31: 0.001708089808 | O31: -0.01267784535 | P31: -0.01099141044 | Q31: 0.04638427061 | R31: 0.0446 | S31: 52297.23946 | T31: 0.2589260411 | U31: 0.0487532125 | V31: 0.04696490242 | W31: 52415.63681 | X31: 0.0487532125 | Y31: 0.04696490242 | Z31: 52415.63681 | AA31: 52416 | AB31: 150.5481735 | AC31: 0.0487604794 | AD31: 0.04697215693 | AF31: 53350.32033 | AG31: 153.2317094 | AH31: -0.01751292815 | AI31: -0.01751292815
A32: 01R | B32: NHS South Cheshire CCG | E32: 26065 | F32: 186706.9688 | G32: 139.6037876 | H32: -0.01209561873 | J32: 26343.71731 | K32: 187151.7188 | L32: 140.7612898 | M32: 0.002382074986 | O32: -0.01058002969 | P32: -0.008223157125 | Q32: 0.04708831553 | R32: 0.0446 | S32: 27292.35694 | T32: 0.1937139488 | U32: 0.04886181752 | V32: 0.04636928741 | W32: 27338.58327 | X32: 0.04886181752 | Y32: 0.04636928741 | Z32: 27338.58327 | AA32: 27339 | AB32: 146.0793424 | AC32: 0.04887780549 | AD32: 0.04638523739 | AF32: 27764.21563 | AG32: 148.3513794 | AH32: -0.0153152403 | AI32: -0.0153152403
A33: 01T | B33: NHS South Sefton CCG | E33: 24239 | F33: 155277.4375 | G33: 156.1012365 | H33: -0.002893423947 | J33: 24190.1739 | K33: 155438.5156 | L33: 155.6253532 | M33: 0.001037356924 | O33: 0.00201842694 | P33: 0.003057877694 | Q33: 0.04568362304 | R33: 0.0446 | S33: 25346.32534 | T33: 0 | U33: 0.04568362304 | V33: 0.0446 | W33: 25346.32534 | X33: 0.04568362304 | Y33: 0.0446 | Z33: 25346.32534 | AA33: 25346 | AB33: 163.0612586 | AC33: 0.04567020092 | AD33: 0.04458659178 | AF33: 25494.54948 | AG33: 164.0169386 | AH33: -0.005826715164 | AI33: -0.005826715164
A34: 01V | B34: NHS Southport and Formby CCG | E34: 18475 | F34: 125542.4844 | G34: 147.1613382 | H34: 0.001187123216 | J34: 18392.06621 | K34: 125805.1562 | L34: 146.1948521 | M34: 0.002092294703 | O34: 0.004509215294 | P34: 0.006610944604 | Q34: 0.04678561105 | R34: 0.0446 | S34: 19339.36416 | T34: 0 | U34: 0.04678561105 | V34: 0.0446 | W34: 19339.36416 | X34: 0.04678561105 | Y34: 0.0446 | Z34: 19339.36416 | AA34: 19339 | AB34: 153.7218392 | AC34: 0.04676589986 | AD34: 0.04458032997 | AF34: 19383.7979 | AG34: 154.0779287 | AH34: -0.002311100285 | AI34: -0.002311100285
A35: 01W | B35: NHS Stockport CCG | E35: 43364 | F35: 314968.75 | G35: 137.6771505 | H35: -0.02804291119 | J35: 44545.58748 | K35: 316512.0625 | L35: 140.7389884 | M35: 0.004899890862 | O35: -0.02652535405 | P35: -0.02175543452 | Q35: 0.04971842599 | R35: 0.0446 | S35: 45519.98982 | T35: 0.5124955129 | U35: 0.05442224238 | V35: 0.04928088058 | W35: 45723.96612 | X35: 0.05442224238 | Y35: 0.04928088058 | Z35: 45723.96612 | AA35: 45724 | AB35: 144.4621088 | AC35: 0.05442302371 | AD35: 0.0492816581 | AF35: 46947.56179 | AG35: 148.3278755 | AH35: -0.02606230752 | AI35: -0.02606230752
A36: 01X | B36: NHS St Helens CCG | E36: 31434 | F36: 198715.8594 | G36: 158.1856632 | H36: 0.0368375266 | J36: 30240.67549 | K36: 199263.5469 | L36: 151.7622062 | M36: 0.002756133817 | O36: 0.03946090792 | P36: 0.04232580128 | Q36: 0.04747905739 | R36: 0.0446 | S36: 32926.45669 | T36: 0 | U36: 0.04747905739 | V36: 0.0446 | W36: 32926.45669 | X36: 0.04747905739 | Y36: 0.0446 | Z36: 32926.45669 | AA36: 32926 | AB36: 165.2384519 | AC36: 0.04746452885 | AD36: 0.0445855114 | AF36: 31871.30447 | AG36: 159.9454841 | AH36: 0.03309232399 | AI36: 0.03309232399
A37: 01Y | B37: NHS Tameside and Glossop CCG | E37: 37275 | F37: 249223.8125 | G37: 149.5643599 | H37: -0.007027434451 | J37: 37434.31965 | K37: 249879.5625 | L37: 149.8094493 | M37: 0.002631169122 | O37: -0.004255978352 | P37: -0.001636007428 | Q37: 0.04734851927 | R37: 0.0446 | S37: 39039.91606 | T37: 0.03853963318 | U37: 0.04770144739 | V37: 0.04495200195 | W37: 39053.07145 | X37: 0.04770144739 | Y37: 0.04495200195 | Z37: 39053.07145 | AA37: 39053 | AB37: 156.2872914 | AC37: 0.04769953052 | AD37: 0.0449500901 | AF37: 39452.84224 | AG37: 157.8874312 | AH37: -0.01013468773 | AI37: -0.01013468773
A38: 02A | B38: NHS Trafford CCG | E38: 33932 | F38: 245133.5625 | G38: 138.4224977 | H38: 0.04273906122 | J38: 32539.65075 | K38: 246695.3125 | L38: 131.902185 | M38: 0.006371016617 | O38: 0.04278931149 | P38: 0.04943293952 | Q38: 0.05125516396 | R38: 0.0446 | S38: 35671.19022 | T38: 0 | U38: 0.05125516396 | V38: 0.0446 | W38: 35671.19022 | X38: 0.05125516396 | Y38: 0.0446 | Z38: 35671.19022 | AA38: 35671 | AB38: 144.59537 | AC38: 0.05124955794 | AD38: 0.04459442947 | AF38: 34294.24441 | AG38: 139.0145766 | AH38: 0.04014538351 | AI38: 0.04014538351
A39: 02D | B39: NHS Vale Royal CCG | E39: 14544 | F39: 107566.4219 | G39: 135.2094803 | H39: -0.03003844825 | J39: 14958.5483 | K39: 107859.3906 | L39: 138.685637 | M39: 0.002723607841 | O39: -0.02771313706 | P39: -0.02506500893 | Q39: 0.04744508075 | R39: 0.0446 | S39: 15234.04125 | T39: 0.5904595744 | U39: 0.05285273484 | V39: 0.04999296576 | W39: 15312.69018 | X39: 0.05285273484 | Y39: 0.04999296576 | Z39: 15312.69018 | AA39: 15313 | AB39: 141.9718757 | AC39: 0.0528740374 | AD39: 0.05001421047 | AF39: 15765.13882 | AG39: 146.1638039 | AH39: -0.02867966018 | AI39: -0.02867966018
A40: 02E | B40: NHS Warrington CCG | E40: 30043 | F40: 220369.6406 | G40: 136.3300313 | H40: -0.02598718945 | J40: 30849.59313 | K40: 221421.6875 | L40: 139.3250746 | M40: 0.004774010032 | O40: -0.02614598923 | P40: -0.02149680042 | Q40: 0.04958693088 | R40: 0.0446 | S40: 31532.74016 | T40: 0.5064028367 | U40: 0.05423424487 | V40: 0.04922523309 | W40: 31672.35942 | X40: 0.05423424487 | Y40: 0.04922523309 | Z40: 31672.35942 | AA40: 31672 | AB40: 143.0392856 | AC40: 0.0542222814 | AD40: 0.04921332645 | AF40: 32513.05599 | AG40: 146.8377211 | AH40: -0.02586825394 | AI40: -0.02586825394
A41: 02F | B41: NHS West Cheshire CCG | E41: 38993 | F41: 265597.6875 | G41: 146.8122722 | H41: 0.0133975979 | J41: 38410.60723 | K41: 266357.6875 | L41: 144.2068655 | M41: 0.002861470697 | O41: 0.01516229022 | P41: 0.01806714736 | Q41: 0.04758909229 | R41: 0.0446 | S41: 40848.64148 | T41: 0 | U41: 0.04758909229 | V41: =MAX(R41,NewMinGrowthPerHead(P41,$P$2,$L$1,$U$1,$T$2,AG41,G41,T41, $P$1)) -> 0.0446 | W41: 40848.64148 | X41: 0.04758909229 | Y41: 0.0446 | Z41: 40848.64148 | AA41: =IF(ROUND(Z41,0)/E41>$AA$1,ROUND(Z41,0),ROUNDUP(Z41,0)) -> 40849 | AB41: =AA41/K41*1000 -> 153.3614456 | AC41: =AA41/E41-1 -> 0.04759828687 | AD41: =AB41/G41-1 -> 0.04460916835 | AF41: 40481.7729 | AG41: =AF41/K41*1000 -> 151.9827465 | AH41: 0.009071418291 | AI41: 0.009071418291
A42: 02G | B42: NHS West Lancashire CCG | E42: 15506 | F42: 113877.375 | G42: 136.1640098 | H42: -0.0339204554 | J42: 15999.10667 | K42: 114012.5312 | L42: 140.3276157 | M42: 0.001186857793 | O42: -0.03082088746 | P42: -0.02967060968 | Q42: 0.04583979165 | R42: 0.0446 | S42: 16216.79181 | T42: 0.6989542916 | U42: 0.05223127129 | V42: 0.05098390286 | W42: 16315.89809 | X42: 0.05223127129 | Y42: 0.05098390286 | Z42: 16315.89809 | AA42: 16316 | AB42: 143.1070762 | AC42: 0.05223784342 | AD42: 0.05099046719 | AF42: 16861.80588 | AG42: 147.8943209 | AH42: -0.03236936084 | AI42: -0.03236936084
A43: 02H | B43: NHS Wigan Borough CCG | E43: 50966 | F43: 329583.8125 | G43: 154.637449 | H43: 0.05614443851 | J43: 48137.40218 | K43: 330294.3125 | L43: 145.7409358 | M43: 0.002155749078 | O43: 0.05876091551 | P43: 0.06104333837 | Q43: 0.04484937972 | R43: 0.04260179187 | S43: 53251.79349 | T43: 0 | U43: 0.04484937972 | V43: 0.04260179187 | W43: 53251.79349 | X43: 0.04484937972 | Y43: 0.04260179187 | Z43: 53251.79349 | AA43: 53252 | AB43: 161.2259067 | AC43: 0.0448534317 | AD43: 0.04260583513 | AF43: 50733.05329 | AG43: 153.5995364 | AH43: 0.04965099771 | AI43: 0.04965099771
A44: 02M | B44: NHS Fylde & Wyre CCG | E44: 28701 | F44: 178955.0312 | G44: 160.3810734 | H44: 0.07884261585 | J44: 26593.3439 | K44: 179679.0625 | L44: 148.0046898 | M44: 0.004045883734 | O44: 0.07925502353 | P44: 0.08362156388 | Q44: 0.04271815034 | R44: 0.0385164336 | S44: 29927.05363 | T44: 0 | U44: 0.04271815034 | V44: 0.0385164336 | W44: 29927.05363 | X44: 0.04271815034 | Y44: 0.0385164336 | Z44: 29927.05363 | AA44: 29927 | AB44: 166.5580819 | AC44: 0.04271628166 | AD44: 0.03851457245 | AF44: 28027.30252 | AG44: 155.9853559 | AH44: 0.06778024676 | AI44: 0.06778024676
A45: 02N | B45: NHS Airedale, Wharfedale and Craven CCG | E45: 23713 | F45: 160223.2188 | G45: 147.999773 | H45: 0.03855412757 | J45: 22806.00805 | K45: 160710.5312 | L45: 141.9073652 | M45: 0.003041459932 | O45: 0.03976986894 | P45: 0.04293228734 | Q45: 0.04777710904 | R45: 0.0446 | S45: 24845.93859 | T45: 0 | U45: 0.04777710904 | V45: 0.0446 | W45: 24845.93859 | X45: 0.04777710904 | Y45: 0.0446 | Z45: 24845.93859 | AA45: 24846 | AB45: 154.600945 | AC45: 0.0477796989 | AD45: 0.044602582 | AF45: 24035.74703 | AG45: 149.5592532 | AH45: 0.03371033008 | AI45: 0.03371033008
A46: 02P | B46: NHS Barnsley CCG | E46: 39771 | F46: 264060.1562 | G46: 150.6134078 | H46: 0.03006081379 | J46: 38640.77197 | K46: 265800.3438 | L46: 145.3751768 | M46: 0.006590117664 | O46: 0.02924962338 | P46: 0.0360324995 | Q46: 0.05148403691 | R46: 0.0446 | S46: 41818.57163 | T46: 0 | U46: 0.05148403691 | V46: 0.0446 | W46: 41818.57163 | X46: 0.05148403691 | Y46: 0.0446 | Z46: 41818.57163 | AA46: 41819 | AB46: 157.3323774 | AC46: 0.05149480777 | AD46: 0.04461070035 | AF46: 40724.34853 | AG46: 153.2140552 | AH46: 0.02687953303 | AI46: 0.02687953303
A47: 02Q | B47: NHS Bassetlaw CCG | E47: 18179 | F47: 118099.2578 | G47: 153.9298412 | H47: 0.05622410633 | J47: 17187.36703 | K47: 118456.6719 | L47: 145.0941239 | M47: 0.003026387033 | O47: 0.05769545577 | P47: 0.06089645158 | Q47: 0.0457837669 | R47: 0.04262836992 | S47: 19011.3031 | T47: 0 | U47: 0.0457837669 | V47: 0.04262836992 | W47: 19011.3031 | X47: 0.0457837669 | Y47: 0.04262836992 | Z47: 19011.3031 | AA47: 19011 | AB47: 160.4890607 | AC47: 0.0457670939 | AD47: 0.04261174723 | AF47: 18114.13927 | AG47: 152.9178474 | AH47: 0.04951163925 | AI47: 0.04951163925
A48: 02R | B48: NHS Bradford Districts CCG | E48: 53304 | F48: 334984.2188 | G48: 159.123914 | H48: 0.08456962633 | J48: 48998.3161 | K48: 335719.3125 | L48: 145.9502456 | M48: 0.002194413076 | O48: 0.08787411989 | P48: 0.09026136508 | Q48: 0.03959130967 | R48: 0.03731501204 | S48: 55414.37517 | T48: 0 | U48: 0.03959130967 | V48: 0.03731501204 | W48: 55414.37517 | X48: 0.03959130967 | Y48: 0.03731501204 | Z48: 55414.37517 | AA48: 55414 | AB48: 165.0605072 | AC48: 0.03958427135 | AD48: 0.03730798913 | AF48: 51640.38916 | AG48: 153.8201326 | AH48: 0.0730747948 | AI48: 0.0730747948
A49: 02T | B49: NHS Calderdale CCG | E49: 32454 | F49: 222195.1562 | G49: 146.0607897 | H49: 0.02078879873 | J49: 31759.35677 | K49: 222935.9062 | L49: 142.4595854 | M49: 0.003333781044 | O49: 0.0218720811 | P49: 0.02527877888 | Q49: 0.04808246768 | R49: 0.0446 | S49: 34014.46841 | T49: 0 | U49: 0.04808246768 | V49: 0.0446 | W49: 34014.46841 | X49: 0.04808246768 | Y49: 0.0446 | Z49: 34014.46841 | AA49: 34014 | AB49: 152.5729999 | AC49: 0.04806803476 | AD49: 0.04458561503 | AF49: 33471.87564 | AG49: 150.14125 | AH49: 0.01619641402 | AI49: 0.01619641402
A50: 02W | B50: NHS Bradford City CCG | E50: 21896 | F50: 140252.5469 | G50: 156.1183771 | H50: 0.003928863073 | J50: 21657.46319 | K50: 140106.9844 | L50: 154.5780411 | M50: -0.001037859941 | O50: 0.01101406985 | P50: 0.009964778845 | Q50: 0.04351585151 | R50: 0.0446 | S50: 22848.82308 | T50: 0 | U50: 0.04351585151 | V50: 0.0446 | W50: 22848.82308 | X50: 0.04351585151 | Y50: 0.0446 | Z50: 22848.82308 | AA50: 22849 | AB50: 163.0825194 | AC50: 0.04352393131 | AD50: 0.0446080882 | AF50: 22825.27067 | AG50: 162.9131536 | AH50: 0.001039607904 | AI50: 0.001039607904
A51: 02X | B51: NHS Doncaster CCG | E51: 47664 | F51: 322119.4688 | G51: 147.9699448 | H51: 0.0033310771 | J51: 47351.86456 | K51: 322742.1875 | L51: 146.7173069 | M51: 0.001933191907 | O51: 0.006591829964 | P51: 0.008537765143 | Q51: 0.04661941227 | R51: 0.0446 | S51: 49886.06767 | T51: 0 | U51: 0.04661941227 | V51: 0.0446 | W51: 49886.06767 | X51: 0.04661941227 | Y51: 0.0446 | Z51: 49886.06767 | AA51: 49886 | AB51: 154.5691946 | AC51: 0.04661799261 | AD51: 0.04459858309 | AF51: 49905.15814 | AG51: 154.6285551 | AH51: -0.0003838909223 | AI51: -0.0003838909223
A52: 02Y | B52: NHS East Riding of Yorkshire CCG | E52: 46160 | F52: 305466.3438 | G52: 151.1132108 | H52: -0.007702692598 | J52: 46481.96893 | K52: 306030.75 | L52: 151.8865961 | M52: 0.001847687189 | O52: -0.006926748919 | P52: -0.005091860195 | Q52: 0.04653009404 | R52: 0.0446 | S52: 48307.82914 | T52: 0.1199495923 | U52: 0.04762767855 | V52: 0.04569556026 | W52: 48358.49364 | X52: 0.04762767855 | Y52: 0.04569556026 | Z52: 48358.49364 | AA52: 48358 | AB52: 158.0168006 | AC52: 0.0476169844 | AD52: 0.04568488583 | AF52: 48988.35624 | AG52: 160.0765813 | AH52: -0.0128674708 | AI52: -0.0128674708
A53: 03A | B53: NHS Greater Huddersfield CCG | E53: 36183 | F53: 251006.7812 | G53: 144.151484 | H53: 0.05056693197 | J53: 34394.24866 | K53: 251959.5156 | L53: 136.5070439 | M53: 0.003795651935 | O53: 0.05200728054 | P53: 0.05600033401 | Q53: 0.04747510219 | R53: 0.04351428517 | S53: 37900.79162 | T53: 0 | U53: 0.04747510219 | V53: 0.04351428517 | W53: 37900.79162 | X53: 0.04747510219 | Y53: 0.04351428517 | Z53: 37900.79162 | AA53: 37901 | AB53: 150.4249598 | AC53: 0.04748086118 | AD53: 0.04352002239 | AF53: 36248.84541 | AG53: 143.8677373 | AH53: 0.04557812998 | AI53: 0.04557812998
A54: 03D | B54: NHS Hambleton, Richmondshire and Whitby CCG | E54: 23632 | F54: 144107.0938 | G54: 163.9891513 | H54: 0.03144035255 | J54: 22867.18873 | K54: 144141.25 | L54: 158.6443071 | M54: 0.0002370199073 | O54: 0.03344579347 | P54: 0.0336907407 | Q54: 0.044847591 | R54: 0.0446 | S54: 24691.83827 | T54: 0 | U54: 0.044847591 | V54: 0.0446 | W54: 24691.83827 | X54: 0.044847591 | Y54: 0.0446 | Z54: 24691.83827 | AA54: 24692 | AB54: 171.3041895 | AC54: 0.04485443466 | AD54: 0.04460684205 | AF54: 24100.22668 | AG54: 167.1986796 | AH54: 0.02455467856 | AI54: 0.02455467856
A55: 03E | B55: NHS Harrogate and Rural District CCG | E55: 23410 | F55: 163361.4375 | G55: 143.3018732 | H55: 0.01319074766 | J55: 23082.87307 | K55: 163420 | L55: 141.2487643 | M55: 0.0003584842353 | O55: 0.01417184637 | P55: 0.01453541099 | Q55: 0.04497447263 | R55: 0.0446 | S55: 24462.8524 | T55: 0 | U55: 0.04497447263 | V55: 0.0446 | W55: 24462.8524 | X55: 0.04497447263 | Y55: 0.0446 | Z55: 24462.8524 | AA55: 24463 | AB55: 149.6940399 | AC55: 0.04498077745 | AD55: 0.04460630255 | AF55: 24327.54109 | AG55: 148.8651395 | AH55: 0.005568129951 | AI55: 0.005568129951
A56: 03F | B56: NHS Hull CCG | E56: 49044 | F56: 300221.8125 | G56: 163.3592163 | H56: 0.05146557207 | J56: 46427.18064 | K56: 300771.9062 | L56: 154.360097 | M56: 0.001832291083 | O56: 0.0563639516 | P56: 0.05829951785 | Q56: 0.04500952499 | R56: 0.04309826534 | S56: 51251.44714 | T56: 0 | U56: 0.04500952499 | V56: 0.04309826534 | W56: 51251.44714 | X56: 0.04500952499 | Y56: 0.04309826534 | Z56: 51251.44714 | AA56: 51251 | AB56: 170.3982285 | AC56: 0.0450004078 | AD56: 0.04308916482 | AF56: 48930.61367 | AG56: 162.6834577 | AH56: 0.04742197473 | AI56: 0.04742197473
A57: 03H | B57: NHS North East Lincolnshire CCG | E57: 30332 | F57: 169500.1562 | G57: 178.9496875 | H57: 0.1519941456 | J57: 26183.51285 | K57: 169391.1875 | L57: 154.5742328 | M57: -0.0006428828882 | O57: 0.1584389067 | P57: 0.1576941661 | Q57: 0.03488714086 | R57: 0.03555288009 | S57: 31390.19676 | T57: 0 | U57: 0.03488714086 | V57: 0.03555288009 | W57: 31390.19676 | X57: 0.03488714086 | Y57: 0.03555288009 | Z57: 31390.19676 | AA57: 31390 | AB57: 185.3107028 | AC57: 0.03488065409 | AD57: 0.03554638915 | AF57: 27595.37267 | AG57: 162.90914 | AH57: 0.1375095517 | AI57: 0.1375095517
A58: 03J | B58: NHS North Kirklees CCG | E58: 27928 | F58: 195498.4375 | G58: 142.8553617 | H58: 0.030090271 | J58: 27071.15609 | K58: 196266.0469 | L58: 137.9309184 | M58: 0.003926422046 | O58: 0.03165154463 | P58: 0.035702244 | Q58: 0.04870154047 | R58: 0.0446 | S58: 29288.13662 | T58: 0 | U58: 0.04870154047 | V58: 0.0446 | W58: 29288.13662 | X58: 0.04870154047 | Y58: 0.0446 | Z58: 29288.13662 | AA58: 29288 | AB58: 149.2260147 | AC58: 0.04869664852 | AD58: 0.04459512719 | AF58: 28530.87916 | AG58: 145.3683896 | AH58: 0.02653689127 | AI58: 0.02653689127
A59: 03K | B59: NHS North Lincolnshire CCG | E59: 26986 | F59: 178117.2188 | G59: 151.5069693 | H59: -0.04171862306 | J59: 28111.50521 | K59: 178564.7188 | L59: 157.4303446 | M59: 0.002512390454 | O59: -0.04003717359 | P59: -0.03762537215 | Q59: 0.04722444307 | R59: 0.0446 | S59: 28260.39882 | T59: 0.8863456337 | U59: 0.05534022469 | V59: 0.05269544271 | W59: 28479.4113 | X59: 0.05534022469 | Y59: 0.05269544271 | Z59: 28479.4113 | AA59: 28479 | AB59: 159.4883928 | AC59: 0.05532498332 | AD59: 0.05268023954 | AF59: 29627.32569 | AG59: 165.9192583 | AH59: -0.03875900574 | AI59: -0.03875900574
A60: 03L | B60: NHS Rotherham CCG | E60: 40779 | F60: 264819.25 | G60: 153.9880503 | H60: 0.04517583906 | J60: 38924.97269 | K60: 265637.2812 | L60: 146.5342986 | M60: 0.00308901732 | O60: 0.04763079273 | P60: 0.05086694239 | Q60: 0.04766943629 | R60: 0.04444313336 | S60: 42722.91194 | T60: 0 | U60: 0.04766943629 | V60: 0.04444313336 | W60: 42722.91194 | X60: 0.04766943629 | Y60: 0.04444313336 | Z60: 42722.91194 | AA60: 42723 | AB60: 160.8320933 | AC60: 0.04767159567 | AD60: 0.0444452861 | AF60: 41023.87384 | AG60: 154.4356788 | AH60: 0.04141798426 | AI60: 0.04141798426
A61: 03M | B61: NHS Scarborough and Ryedale CCG | E61: 18978 | F61: 120801.6562 | G61: 157.1004951 | H61: -0.008228169757 | J61: 19083.93764 | K61: 120953.375 | L61: 157.7792901 | M61: 0.001255932698 | O61: -0.00555114144 | P61: -0.004302180602 | Q61: 0.0459119473 | R61: 0.0446 | S61: 19849.31694 | T61: 0.1013470107 | U61: 0.04683876333 | V61: 0.04552565348 | W61: 19866.90605 | X61: 0.04683876333 | Y61: 0.04552565348 | Z61: 19866.90605 | AA61: 19867 | AB61: 164.2533745 | AC61: 0.04684371377 | AD61: 0.04553059771 | AF61: 20112.97622 | AG61: 166.2870194 | AH61: -0.01222972735 | AI61: -0.01222972735
A62: 03N | B62: NHS Sheffield CCG | E62: 85811 | F62: 607792.6875 | G62: 141.1846535 | H62: 0.00287912073 | J62: 85381.2933 | K62: 610593 | L62: 139.8333969 | M62: 0.004607348126 | O62: 0.005032796765 | P62: 0.009663332738 | Q62: 0.04941283585 | R62: 0.0446 | S62: 90051.16486 | T62: 0 | U62: 0.04941283585 | V62: 0.0446 | W62: 90051.16486 | X62: 0.04941283585 | Y62: 0.0446 | Z62: 90051.16486 | AA62: 90051 | AB62: 147.4812191 | AC62: 0.04941091468 | AD62: 0.04459808764 | AF62: 89985.19876 | AG62: 147.373453 | AH62: 0.0007312451154 | AI62: 0.0007312451154
A63: 03Q | B63: NHS Vale of York CCG | E63: 49747 | F63: 360500 | G63: 137.9944521 | H63: 2.556868847e-05 | J63: 49703.85014 | K63: 361942.9062 | L63: 137.325112 | M63: 0.00400251387 | O63: 0.0008681391228 | P63: 0.004874127731 | Q63: 0.04878102599 | R63: 0.0446 | S63: 52173.7097 | T63: 0 | U63: 0.04878102599 | V63: 0.0446 | W63: 52173.7097 | X63: 0.04878102599 | Y63: 0.0446 | Z63: 52173.7097 | AA63: 52174 | AB63: 144.1498068 | AC63: 0.04878686152 | AD63: 0.04460581227 | AF63: 52383.96681 | AG63: 144.7299171 | AH63: -0.004008226575 | AI63: -0.004008226575
A64: 03R | B64: NHS Wakefield CCG | E64: 61711 | F64: 377694.125 | G64: 163.3888269 | H64: 0.1092942848 | J64: 55599.0389 | K64: 379592.1875 | L64: 146.470451 | M64: 0.005025395881 | O64: 0.1099292582 | P64: 0.1155070921 | Q64: 0.04075694326 | R64: 0.03555288009 | S64: 64226.15173 | T64: 0 | U64: 0.04075694326 | V64: 0.03555288009 | W64: 64226.15173 | X64: 0.04075694326 | Y64: 0.03555288009 | Z64: 64226.15173 | AA64: 64226 | AB64: 169.1973705 | AC64: 0.04075448461 | AD64: 0.03555043373 | AF64: 58597.03423 | AG64: 154.3683884 | AH64: 0.09606229808 | AI64: 0.09606229808
A65: 03T | B65: NHS Lincolnshire East CCG | E65: 42113 | F65: 252526.2969 | G65: 166.7667903 | H65: -0.03259399724 | J65: 43503.74255 | K65: 253605.7031 | L65: 171.5408684 | M65: 0.004274431073 | O65: -0.0319683426 | P65: -0.02783055801 | Q65: 0.0490650707 | R65: 0.0446 | S65: 44179.27732 | T65: 0.6556079625 | U65: 0.05507866491 | V65: 0.05058799892 | W65: 44432.52782 | X65: 0.05507866491 | Y65: 0.05058799892 | Z65: 44432.52782 | AA65: 44433 | AB65: 175.2050504 | AC65: 0.05508987724 | AD65: 0.05059916353 | AF65: 45849.5388 | AG65: 180.7906456 | AH65: -0.03089537726 | AI65: -0.03089537726
A66: 03V | B66: NHS Corby CCG | E66: 11965 | F66: 81145.17188 | G66: 147.4517796 | H66: -0.01087828397 | J66: 12194.62604 | K66: 82345.01562 | L66: 148.0918541 | M66: 0.01478638497 | O66: -0.01883010125 | P66: -0.004322145404 | Q66: 0.06004585774 | R66: 0.0446 | S66: 12683.44869 | T66: 0.101817324 | U66: 0.06098955741 | V66: 0.04552994909 | W66: 12694.74005 | X66: 0.06098955741 | Y66: 0.04552994909 | Z66: 12694.74005 | AA66: 12695 | AB66: 154.1684084 | AC66: 0.06101128291 | AD66: 0.04555135802 | AF66: 12852.18115 | AG66: 156.0772204 | AH66: -0.01222992019 | AI66: -0.01222992019
A67: 03W | B67: NHS East Leicestershire and Rutland CCG | E67: 46480 | F67: 335015.1875 | G67: 138.7399788 | H67: 0.01871872951 | J67: 45690.34535 | K67: 336898.3438 | L67: 135.6205698 | M67: 0.005621107103 | O67: 0.01728274626 | P67: 0.02300100153 | Q67: 0.05047180848 | R67: 0.0446 | S67: 48825.92966 | T67: 0 | U67: 0.05047180848 | V67: 0.0446 | W67: 48825.92966 | X67: 0.05047180848 | Y67: 0.0446 | Z67: 48825.92966 | AA67: 48826 | AB67: 144.9279906 | AC67: 0.05047332186 | AD67: 0.04460150492 | AF67: 48154.04697 | AG67: 142.9334631 | AH67: 0.0139542379 | AI67: 0.0139542379
A68: 04C | B68: NHS Leicester City CCG | E68: 58748 | F68: 412727.875 | G68: 142.3407615 | H68: -0.0009155416958 | J68: 58779.99204 | K68: 415521.0625 | L68: 141.4609206 | M68: 0.006767625036 | O68: -0.0005442675693 | P68: 0.006219674068 | Q68: 0.05166946111 | R68: 0.0446 | S68: 61783.4775 | T68: 0 | U68: 0.05166946111 | V68: 0.0446 | W68: 61783.4775 | X68: 0.05166946111 | Y68: 0.0446 | Z68: 61783.4775 | AA68: 61783 | AB68: 148.6880102 | AC68: 0.05166133315 | AD68: 0.04459192668 | AF68: 61949.50981 | AG68: 149.0887356 | AH68: -0.002687830996 | AI68: -0.002687830996
A69: 04D | B69: NHS Lincolnshire West CCG | E69: 34457 | F69: 239817.1719 | G69: 143.6802867 | H69: -0.04365328204 | J69: 35987.78726 | K69: 240844.4375 | L69: 149.423369 | M69: 0.004283536566 | O69: -0.04253629859 | P69: -0.03843496782 | Q69: 0.0490745823 | R69: 0.0446 | S69: 36147.96288 | T69: 0.9054173808 | U69: 0.05737964019 | V69: 0.05286963461 | W69: 36434.13026 | X69: 0.05737964019 | Y69: 0.05286963461 | Z69: 36434.13026 | AA69: 36434 | AB69: 151.2760701 | AC69: 0.05737585977 | AD69: 0.05286587031 | AF69: 37928.31034 | AG69: 157.4805328 | AH69: -0.03939828406 | AI69: -0.03939828406
A70: 04E | B70: NHS Mansfield and Ashfield CCG | E70: 29511 | F70: 196347.5 | G70: 150.299851 | H70: 0.03715340542 | J70: 28461.24367 | K70: 197463.0625 | L70: 144.1345197 | M70: 0.005681572213 | O70: 0.03688371241 | P70: 0.0427748421 | Q70: 0.05053497033 | R70: 0.0446 | S70: 31002.33751 | T70: 0 | U70: 0.05053497033 | V70: 0.0446 | W70: 31002.33751 | X70: 0.05053497033 | Y70: 0.0446 | Z70: 31002.33751 | AA70: 31002 | AB70: 157.0015152 | AC70: 0.0505235336 | AD70: 0.04458862788 | AF70: 29995.92264 | AG70: 151.9064997 | AH70: 0.03354047049 | AI70: 0.03354047049
A71: 04F | B71: NHS Milton Keynes CCG | E71: 38151 | F71: 300121.75 | G71: 127.1184111 | H71: -0.0328153029 | J71: 39627.73164 | K71: 302910.25 | L71: 130.8233434 | M71: 0.009291229309 | O71: -0.0372651065 | P71: -0.02832011585 | Q71: 0.05430561814 | R71: 0.0446 | S71: 40222.81364 | T71: 0.6671405382 | U71: 0.06045556444 | V71: 0.05069333176 | W71: 40457.44024 | X71: 0.06045556444 | Y71: 0.05069333176 | Z71: 40457.44024 | AA71: 40457 | AB71: 133.5610135 | AC71: 0.06044402506 | AD71: 0.05068189861 | AF71: 41764.52675 | AG71: 137.8775619 | AH71: -0.03130711281 | AI71: -0.03130711281
A72: 04G | B72: NHS Nene CCG | E72: 95502 | F72: 695931.1875 | G72: 137.2290849 | H72: -0.03630458526 | J72: 99318.74965 | K72: 700670.125 | L72: 141.7482295 | M72: 0.006809491492 | O72: -0.03842929623 | P72: -0.03188148871 | Q72: 0.05171319481 | R72: 0.0446 | S72: 100440.7135 | T72: 0.7510362475 | U72: 0.05861949884 | V72: 0.05145959369 | W72: 101100.2794 | X72: 0.05861949884 | Y72: 0.05145959369 | Z72: 101100.2794 | AA72: 101100 | AB72: 144.2904391 | AC72: 0.05861657347 | AD72: 0.0514566881 | AF72: 104674.1866 | AG72: 149.3915366 | AH72: -0.03414582646 | AI72: -0.03414582646
A73: 04H | B73: NHS Newark & Sherwood CCG | E73: 19896 | F73: 136950.875 | G73: 145.2783708 | H73: 0.03653590131 | J73: 19233.21857 | K73: 137881.5625 | L73: 139.4908661 | M73: 0.006795776223 | O73: 0.03446024506 | P73: 0.04149020539 | Q73: 0.05169886784 | R73: 0.0446 | S73: 20924.60067 | T73: 0 | U73: 0.05169886784 | V73: =MAX(R73,NewMinGrowthPerHead(P73,$P$2,$L$1,$U$1,$T$2,AG73,G73,T73, $P$1)) -> 0.0446 | W73: 20924.60067 | X73: 0.05169886784 | Y73: 0.0446 | Z73: 20924.60067 | AA73: =IF(ROUND(Z73,0)/E73>$AA$1,ROUND(Z73,0),ROUNDUP(Z73,0)) -> 20925 | AB73: =AA73/K73*1000 -> 151.7606823 | AC73: =AA73/E73-1 -> 0.05171893848 | AD73: =AB73/G73-1 -> 0.04461993516 | AF73: 20270.30664 | AG73: =AF73/K73*1000 -> 147.0124523 | AH73: 0.03229814798 | AI73: 0.03229814798
A74: 04K | B74: NHS Nottingham City CCG | E74: 54732 | F74: 383184.875 | G74: =E74/F74*1000 -> 142.8344477 | H74: -0.04320482548 | J74: 56983.16856 | K74: 384540.0625 | L74: =J74/K74*1000 -> 148.1852585 | M74: =K74/F74-1 -> 0.003536641419 | O74: =E74/J74-1 -> -0.03950585085 | P74: =G74/L74-1 -> -0.03610892746 | Q74: =(1+M74)*(1+R74)-1 -> 0.04829437563 | R74: =MinGrowthPerHead(P74,0,1,$Q$1,$Q$2,$R$1,$R$2) -> 0.0446 | S74: =(1+IF($S$2=1,Q74,0))*$E74 -> 57375.24777 | T74: =MinMaxRamp(P74,0,1,$P$2,$T$2) -> 0.850622555 | U74: =(1+M74)*(1+V74)-1 -> 0.05609101815 | V74: 0.05236916577 | W74: =(1+IF($S$2=1,U74,0))*$E74 -> 57801.97361 | X74: =MAX(U74,$X$1) -> 0.05609101815 | Y74: =(1+X74)/(1+M74) - 1 -> 0.05236916577 | Z74: =(1+IF($Z$2=1,X74,0))*$E74 -> 57801.97361 | AA74: 57802 | AB74: 150.3146372 | AC74: 0.0560915004 | AD74: 0.05236964632 | AF74: 60055.79853 | AG74: 156.1756612 | AH74: =AA74/AF74-1 -> -0.03752840833 | AI74: -0.03752840833
A75: 04L | B75: NHS Nottingham North and East CCG | E75: 21609 | F75: 154496.7812 | G75: 139.8669916 | H75: 0.03129879766 | J75: 20962.13673 | K75: 155536.7344 | L75: 134.7728999 | M75: 0.006731228422 | O75: 0.03085865159 | P75: 0.03779759665 | Q75: 0.05163144121 | R75: 0.0446 | S75: 22724.70381 | T75: 0 | U75: 0.05163144121 | V75: 0.0446 | W75: 22724.70381 | X75: 0.05163144121 | Y75: 0.0446 | Z75: 22724.70381 | AA75: 22725 | AB75: 146.1069637 | AC75: 0.05164514786 | AD75: 0.044613615 | AF75: 22092.45101 | AG75: 142.0400853 | AH75: 0.02863190625 | AI75: 0.02863190625
A76: 04M | B76: NHS Nottingham West CCG | E76: 13888 | F76: 95121.66406 | G76: 146.002492 | H76: 0.05500447542 | J76: 13153.55732 | K76: 95606.65625 | L76: 137.5799326 | M76: 0.005098651209 | O76: 0.05583604977 | P76: 0.06121938952 | Q76: 0.04788563722 | R76: 0.04256993675 | S76: 14553.03573 | T76: 0 | U76: 0.04788563722 | V76: 0.04256993675 | W76: 14553.03573 | X76: 0.04788563722 | Y76: 0.04256993675 | Z76: 14553.03573 | AA76: 14553 | AB76: 152.2174352 | AC76: 0.04788306452 | AD76: 0.0425673771 | AF76: 13862.81964 | AG76: 144.998478 | AH76: 0.04978643428 | AI76: 0.04978643428
A77: 04N | B77: NHS Rushcliffe CCG | E77: 17703 | F77: 128916.7656 | G77: 137.3211616 | H77: 0.03732039127 | J77: 17104.31686 | K77: 129817.625 | L77: 131.7565073 | M77: 0.006987914804 | O77: 0.03500187408 | P77: 0.042234379 | Q77: 0.0518995758 | R77: 0.0446 | S77: 18621.77819 | T77: 0 | U77: 0.0518995758 | V77: 0.0446 | W77: 18621.77819 | X77: 0.0518995758 | Y77: 0.0446 | Z77: 18621.77819 | AA77: 18622 | AB77: 143.447394 | AC77: 0.05191210529 | AD77: 0.04461244254 | AF77: 18026.61089 | AG77: 138.8610437 | AH77: 0.03302834407 | AI77: 0.03302834407
A78: 04Q | B78: NHS South West Lincolnshire CCG | E78: 21249 | F78: 135580.4688 | G78: 156.726114 | H78: -0.0176450942 | J78: 21681.47874 | K78: 136527.4062 | L78: 158.8067871 | M78: 0.006984320889 | O78: -0.0199469208 | P78: -0.0131019156 | Q78: 0.0518958216 | R78: 0.0446 | S78: 22351.73431 | T78: 0.3086434771 | U78: 0.05473450727 | V78: 0.04741899689 | W78: 22412.05354 | X78: 0.05473450727 | Y78: 0.04741899689 | Z78: 22412.05354 | AA78: 22412 | AB78: 164.1575169 | AC78: 0.05473198739 | AD78: 0.04741649449 | AF78: 22850.58118 | AG78: 167.3699209 | AH78: -0.01919343652 | AI78: -0.01919343652
A79: 04V | B79: NHS West Leicestershire CCG | E79: 52521 | F79: 399689.625 | G79: 131.4044616 | H79: -0.01973688733 | J79: 53717.96458 | K79: 402919.5625 | L79: 133.3218081 | M79: 0.00808111419 | O79: -0.02228238891 | P79: -0.01438134125 | Q79: 0.05304153188 | R79: 0.0446 | S79: 55306.7943 | T79: 0.3387830683 | U79: 0.0561608141 | V79: 0.04769427701 | W79: 55470.62212 | X79: 0.0561608141 | Y79: 0.04769427701 | Z79: 55470.62212 | AA79: 55471 | AB79: 137.6726403 | AC79: 0.05616800899 | AD79: 0.04770141422 | AF79: 56614.52916 | AG79: 140.5107481 | AH79: -0.02019851052 | AI79: -0.02019851052
A80: 04Y | B80: NHS Cannock Chase CCG | E80: 19504 | F80: 133519.9062 | G80: 146.0755969 | H80: 0.06069322839 | J80: 18347.6038 | K80: 133701.5938 | L80: 137.2280112 | M80: 0.001360752154 | O80: 0.06302709651 | P80: 0.06447361292 | Q80: 0.04339898781 | R80: 0.04198110977 | S80: 20350.45386 | T80: 0 | U80: 0.04339898781 | V80: 0.04198110977 | W80: 20350.45386 | X80: 0.04339898781 | Y80: 0.04198110977 | Z80: 20350.45386 | AA80: 20350 | AB80: 152.204618 | AC80: 0.0433757178 | AD80: 0.04195787138 | AF80: 19336.938 | AG80: 144.6275804 | AH80: 0.05238999047 | AI80: 0.05238999047
A81: 05A | B81: NHS Coventry and Rugby CCG | E81: 76763 | F81: 528344.125 | G81: 145.2897768 | H81: -0.001951471815 | J81: 77157.87162 | K81: 534572.25 | L81: 144.3357219 | M81: 0.01178800843 | O81: -0.00511771007 | P81: 0.006609970752 | Q81: 0.05691375361 | R81: 0.0446 | S81: 81131.87047 | T81: 0 | U81: 0.05691375361 | V81: 0.0446 | W81: 81131.87047 | X81: 0.05691375361 | Y81: 0.0446 | Z81: 81131.87047 | AA81: 81132 | AB81: 151.7699432 | AC81: 0.05691544103 | AD81: 0.04460166777 | AF81: 81318.3561 | AG81: 152.1185511 | AH81: -0.002291685591 | AI81: -0.002291685591
A82: 05C | B82: NHS Dudley CCG | E82: 45884 | F82: 321186.375 | G82: 142.8578656 | H82: 0.008657867742 | J82: 45347.36906 | K82: 322034.875 | L82: 140.8150874 | M82: 0.00264176835 | O82: 0.01183378338 | P82: 0.01450681385 | Q82: 0.04735959122 | R82: 0.0446 | S82: 48057.04748 | T82: 0 | U82: 0.04735959122 | V82: 0.0446 | W82: 48057.04748 | X82: 0.04735959122 | Y82: 0.0446 | Z82: 48057.04748 | AA82: 48057 | AB82: 149.229179 | AC82: 0.04735855636 | AD82: 0.04459896787 | AF82: 47792.57681 | AG82: 148.4080779 | AH82: 0.00553272519 | AI82: 0.00553272519
A83: 05D | B83: NHS East Staffordshire CCG | E83: 20536 | F83: 143146.2188 | G83: 143.4617008 | H83: -0.005607619313 | J83: 20625.93534 | K83: 143672.5 | L83: 143.5621663 | M83: 0.003676529178 | O83: -0.004360303581 | P83: -0.0006998051856 | Q83: 0.04844050238 | R83: 0.0446 | S83: 21530.77416 | T83: 0.01648539895 | U83: 0.04859162543 | V83: 0.04475056948 | W83: 21533.87762 | X83: 0.04859162543 | Y83: 0.04475056948 | Z83: 21533.87762 | AA83: 21534 | AB83: 149.8825454 | AC83: 0.04859758473 | AD83: 0.04475650695 | AF83: 21738.12107 | AG83: 151.303284 | AH83: -0.009390005353 | AI83: -0.009390005353
A84: 05F | B84: NHS Herefordshire CCG | E84: 30576 | F84: 189233.0781 | G84: 161.5785163 | H84: 0.0409413188 | J84: 29373.87377 | K84: 190084.8125 | L84: 154.5303561 | M84: 0.004500980396 | O84: 0.04092501521 | P84: 0.0456101983 | Q84: 0.04930172412 | R84: 0.0446 | S84: 32083.44952 | T84: 0 | U84: 0.04930172412 | V84: 0.0446 | W84: 32083.44952 | X84: 0.04930172412 | Y84: 0.0446 | Z84: 32083.44952 | AA84: 32083 | AB84: 168.7825533 | AC84: 0.0492870225 | AD84: 0.04458536425 | AF84: 30957.76331 | AG84: 162.8628974 | AH84: 0.03634748008 | AI84: 0.03634748008
A85: 05G | B85: NHS North Staffordshire CCG | E85: 31781 | F85: 219545.2812 | G85: 144.7582923 | H85: 0.01880568262 | J85: 31141.55344 | K85: 220264.125 | L85: 141.382776 | M85: 0.003274239127 | O85: 0.02053354735 | P85: 0.02387501822 | Q85: 0.04802027019 | R85: 0.0446 | S85: 33307.13221 | T85: 0 | U85: 0.04802027019 | V85: 0.0446 | W85: 33307.13221 | X85: 0.04802027019 | Y85: 0.0446 | Z85: 33307.13221 | AA85: 33307 | AB85: 151.2139119 | AC85: 0.04801611025 | AD85: 0.04459585364 | AF85: 32820.7593 | AG85: 149.0063772 | AH85: 0.01481503519 | AI85: 0.01481503519
A86: 05H | B86: NHS Warwickshire North CCG | E86: 28169 | F86: 193056.6562 | G86: 145.910535 | H86: 0.002095949008 | J86: 28066.86883 | K86: 193794.2656 | L86: 144.8281699 | M86: 0.003820688648 | O86: 0.003638851662 | P86: 0.00747344323 | Q86: 0.04859109136 | R86: 0.0446 | S86: 29537.76245 | T86: 0 | U86: 0.04859109136 | V86: 0.0446 | W86: 29537.76245 | X86: 0.04859109136 | Y86: 0.0446 | Z86: 29537.76245 | AA86: 29538 | AB86: 152.4193706 | AC86: 0.0485995243 | AD86: 0.04460840084 | AF86: 29580.28243 | AG86: 152.6375527 | AH86: -0.00142941264 | AI86: -0.00142941264
A87: 05J | B87: NHS Redditch and Bromsgrove CCG | E87: 25346 | F87: 179143.1562 | G87: 141.4846123 | H87: 0.02572525001 | J87: 24694.54662 | K87: 179792.7812 | L87: 137.3500452 | M87: 0.003626289799 | O87: 0.02638045497 | P87: 0.03010240795 | Q87: 0.04838802232 | R87: 0.0446 | S87: 26572.44281 | T87: 0 | U87: 0.04838802232 | V87: 0.0446 | W87: 26572.44281 | X87: 0.04838802232 | Y87: 0.0446 | Z87: 26572.44281 | AA87: 26572 | AB87: 147.792363 | AC87: 0.04837055157 | AD87: 0.04458259237 | AF87: 26026.11884 | AG87: 144.7561947 | AH87: 0.02097435893 | AI87: 0.02097435893
A88: 05L | B88: NHS Sandwell and West Birmingham CCG | E88: 87922 | F88: 579789.375 | G88: 151.6447244 | H88: 0.02479916471 | J88: 85716.04242 | K88: 583751.6875 | L88: 146.836479 | M88: 0.006834055039 | O88: 0.02573564434 | P88: 0.03274557819 | Q88: 0.05173885389 | R88: 0.0446 | S88: 92470.98351 | T88: 0 | U88: 0.05173885389 | V88: 0.0446 | W88: 92470.98351 | X88: 0.05173885389 | Y88: 0.0446 | Z88: 92470.98351 | AA88: 92471 | AB88: 158.4081074 | AC88: 0.05173904142 | AD88: 0.04460018626 | AF88: 90337.99812 | AG88: 154.7541533 | AH88: 0.02361134762 | AI88: 0.02361134762
A89: 05N | B89: NHS Shropshire CCG | E89: 47668 | F89: 312527.375 | G89: 152.5242389 | H89: 0.01486247572 | J89: 47002.63306 | K89: 313786.3438 | L89: 149.7918377 | M89: 0.004028347117 | O89: 0.01415595032 | P89: 0.01824132252 | Q89: 0.0488080114 | R89: 0.0446 | S89: 49994.58029 | T89: 0 | U89: 0.0488080114 | V89: 0.0446 | W89: 49994.58029 | X89: 0.0488080114 | Y89: 0.0446 | Z89: 49994.58029 | AA89: 49995 | AB89: 159.3281575 | AC89: 0.04881681631 | AD89: 0.04460876959 | AF89: 49537.09548 | AG89: 157.8688699 | AH89: 0.009243669162 | AI89: 0.009243669162
A90: 05Q | B90: NHS South East Staffordshire and Seisdon Peninsula CCG | E90: 30136 | F90: 218447.4062 | G90: 137.9554032 | H90: 0.02957727748 | J90: 29219.41886 | K90: 218756.5625 | L90: 133.5704791 | M90: 0.0014152434 | O90: 0.0313689039 | P90: 0.03282854193 | Q90: 0.04607836326 | R90: 0.0446 | S90: 31524.61756 | T90: 0 | U90: 0.04607836326 | V90: 0.0446 | W90: 31524.61756 | X90: 0.04607836326 | Y90: 0.0446 | Z90: 31524.61756 | AA90: 31525 | AB90: 144.1099624 | AC90: 0.04609105389 | AD90: 0.0446126727 | AF90: 30794.97993 | AG90: 140.7728279 | AH90: 0.02370581412 | AI90: 0.02370581412
A91: 05R | B91: NHS South Warwickshire CCG | E91: 41154 | F91: 289400.875 | G91: 142.2041312 | H91: -0.02077180325 | J91: 42005.44383 | K91: 290531.75 | L91: 144.5812509 | M91: 0.003907641952 | O91: -0.02026984493 | P91: -0.01644141027 | Q91: 0.04868192278 | R91: 0.0446 | S91: 43157.45585 | T91: 0.387312374 | U91: 0.05223326583 | V91: 0.04813751969 | W91: 43303.60782 | X91: 0.05223326583 | Y91: 0.04813751969 | Z91: 43303.60782 | AA91: 43304 | AB91: 149.0508352 | AC91: 0.05224279535 | AD91: 0.04814701212 | AF91: 44270.44925 | AG91: 152.3773194 | AH91: -0.02183057254 | AI91: -0.02183057254
